Workbook

Sheet Read Stocks
D1: Do not Insert Rows because of the Python Program | M1: Final Applied | N1: Final Applied | O1: Column | P1: Source | Q1: Finance.yahoo Index | X1: FRED Index | AF1: Google Index | AN1: FRED Commodities | AV1: Yahoo Stock Prices | AY1: Re-ordered | BA1: Re-ordered | BB1: Column in Sheet | BD1: Google Stock Prices | BL1: FRED Exonomic Data
G2: Start Row | H2: Number | I2: Column | J2: Source | M2: Ticker/Description | N2: Sheet Name | Q2: Counter | R2: Accum | S2: Sheet | T2: Name | U2: Column | V2: Source | X2: Counter | Y2: Counter 1 | Z2: Sheet | AA2: Re-ordered | AB2: Name | AC2: Re-ordered | AD2: Column | AE2: Source | AF2: Counter | AG2: Counter | AH2: Sheet | AI2: Re-ordered | AJ2: Name | AK2: Re-ordered | AL2: Column | AM2: Source | AN2: counter | AO2: Accum | AP2: Sheet | AQ2: Re-ordered | AR2: Name | AS2: Re-ordered | AT2: Column | AU2: Source | AV2: Counter | AW2: Counter 1 | AX2: Sheet | AY2: for List | AZ2: Name | BA2: To Complete List | BB2: Column | BC2: Source | BD2: Counter | BE2: Counter 1 | BF2: Sheet | BG2: Re-ordered | BH2: Name | BI2: Re-ordered | BJ2: Column | BK2: Source | BL2: Counter | BM2: Counter 1 | BN2: Sheet | BO2: Re-ordered | BP2: Description | BQ2: Re-ordered | BR2: Column | BS2: Source
F4: TRUE | G4: 1 | H4: =Index_Tickers*F4 -> 18 | I4: =I85 -> B | J4: yahoo | L4: 1 | M4: =S4&AA4&AI4&AQ4&AY4&BG4&BO4 -> ^GSPC | N4: =T4&AC4&AK4&AS4&BA4&BI4&BQ4 -> S&P 500 | O4: =U4&AD4&AL4&AT4&BB4&BJ4&BR4 -> B | P4: =V4&AE4&AM4&AU4&BC4&BK4&BS4 -> yahoo | Q4: =G4 -> 1 | R4: =IF(AND($F$4,Q4<=$H$4),Q4,0) -> 1 | S4: =IF(R4,'Yahoo Index'!D10,"") -> ^GSPC | T4: =IF(R4,'Yahoo Index'!E10,"") -> S&P 500 | U4: =IF(R4,$I$4,"") -> B | V4: =IF(R4,$J$4,"") -> yahoo | X4: =G69 -> 19 | Y4: =IF(AND($F$69,X4<=$H$69),X4) -> FALSE | Z4: =IF($F$69,'FRED Indicies'!E16) -> FALSE | AA4: =IFERROR(INDEX(Z:Z,MATCH(L4,Y:Y,0)),"") ->  | AB4: =IF($F$69,'FRED Indicies'!D16) -> FALSE | AC4: =IFERROR(INDEX(AB:AB,MATCH(L4,Y:Y,0)),"") ->  | AD4: =IF(AA4<>"",$I$69,"") ->  | AE4: =IF(AA4<>"",$J$69,"") ->  | AF4: =G72 -> 19 | AG4: =IF(AND($F$72,AF4<=$H$72),AF4) -> FALSE | AH4: =IF(AG4,#REF!) -> FALSE | AI4: =IFERROR(INDEX(AH:AH,MATCH(Q4,AG:AG,0)),"") ->  | AK4: =IFERROR(INDEX(AJ:AJ,MATCH(Q4,AG:AG,0)),"") ->  | AL4: =IF(AI4<>"",$I$69,"") ->  | AM4: =IF(AK4<>"",$J$69,"") ->  | AN4: =G63 -> 1 | AO4: =IF(AND($F$63,AN4<=$H$63),AN4) -> FALSE | AP4: =IF(AO4,'Commodity Prices'!C16) -> FALSE | AQ4: =IFERROR(INDEX(AP:AP,MATCH(L4,AO:AO,0)),"") ->  | AR4: =IF(AO4,'Commodity Prices'!D16) -> FALSE | AS4: =IFERROR(INDEX(AR:AR,MATCH(L4,AO:AO,0)),"") ->  | AT4: =IF(AQ4<>"",$I$63,"") ->  | AU4: =IF(AS4<>"",$J$63,"") ->  | AV4: =G6 -> 19 | AW4: =IF(AND($F$6,AV4<=$H$6),AV4) -> 19 | AX4: =IF(AW4,'Yahoo Stocks'!D10) -> ORSTED.CO | AY4: =IFERROR(INDEX(AX:AX,MATCH(L4,AW:AW,0)),"") ->  | AZ4: =IF(AW4,'Yahoo Stocks'!E10) -> ORSTED A/S | BA4: =IFERROR(INDEX(AZ:AZ,MATCH(L4,AW:AW,0)),"") ->  | BB4: =IF(AY4<>"",$I$6,"") ->  | BC4: =IF(BA4<>"",$J$6,"") ->  | BD4: =G66 -> 0 | BE4: =IF(AND($F$66,BD4<=$H$66),BD4) -> FALSE | BF4: =IF(BE4,#REF!) -> FALSE | BG4: =IFERROR(INDEX(BF:BF,MATCH(Q4,BE:BE,0)),"") ->  | BH4: =IF(BE4,#REF!) -> FALSE | BI4: =IFERROR(INDEX(BH:BH,MATCH(Q4,BE:BE,0)),"") ->  | BJ4: =IF(BI4<>"",$I$66,"") ->  | BK4: =IF(BI4<>"",$J$66,"") ->  | BL4: =G9 -> 49 | BM4: =IF(AND($F$9,BL4<=$H$9),BL4) -> 49 | BN4: ='FRED Series'!D16 -> GDP Inf | BP4: =IF(BM4,'FRED Series'!E16) -> Implicit Price Deflator | BQ4: =IFERROR(INDEX(BN:BN,MATCH(L4,BM:BM,0)),"") ->  | BR4: =IF(BQ4<>"",$I$9,"") ->  | BS4: =IF(BQ4<>"",$J$9,"") -> 
L5: 2 | M5: =S5&AA5&AI5&AQ5&AY5&BG5&BO5 -> ^GDAXI | N5: DAX | O5: B | P5: yahoo | Q5: =Q4+1 -> 2 | R5: =IF(AND($F$4,Q5<=$H$4),Q5) -> 2 | S5: =IF(R5,'Yahoo Index'!D11,"") -> ^GDAXI | T5: =IF(R5,'Yahoo Index'!E11,"") -> DAX | U5: B | V5: yahoo | X5: =X4+1 -> 20 | Y5: FALSE | Z5: =IF($F$69,'FRED Indicies'!E17) -> FALSE | AB5: =IF($F$69,'FRED Indicies'!D17) -> FALSE | AF5: =AF4+1 -> 20 | AG5: FALSE | AH5: =IF(AG5,#REF!) -> FALSE | AN5: =AN4+1 -> 2 | AO5: FALSE | AP5: =IF(AO5,'Commodity Prices'!C17) -> FALSE | AR5: =IF(AO5,'Commodity Prices'!D17) -> FALSE | AV5: =AV4+1 -> 20 | AW5: 20 | AX5: =IF(AW5,'Yahoo Stocks'!D11) -> TNABY | AZ5: =IF(AW5,'Yahoo Stocks'!E11) -> Tenaga Malaysia | BD5: =BD4+1 -> 1 | BE5: FALSE | BF5: =IF(BE5,#REF!) -> FALSE | BH5: =IF(BE5,#REF!) -> FALSE | BL5: =BL4+1 -> 50 | BM5: 50 | BN5: ='FRED Series'!D17 -> CPI US | BO5: =IFERROR(INDEX(BN:BN,MATCH(L5,BM:BM,0)),"") ->  | BP5: =IF(BM5,'FRED Series'!E17) -> Consumer Price Inflation | BQ5: =IFERROR(INDEX(BN:BN,MATCH(L5,BM:BM,0)),"") -> 
F6: TRUE | G6: =H4+1 -> 19 | H6: =Yahoo_Stock_Tickers*F6+G6-1 -> 48 | I6: =I85 -> B | J6: Yahoo | L6: 3 | M6: ^NSEI | N6: Nifty Fifty | O6: B | P6: yahoo | Q6: 3 | R6: 3 | S6: =IF(R6,'Yahoo Index'!D12,"") -> ^NSEI | T6: =IF(R6,'Yahoo Index'!E12,"") -> Nifty Fifty | U6: B | V6: yahoo | X6: 21 | Y6: FALSE | Z6: =IF($F$69,'FRED Indicies'!E18) -> FALSE | AB6: =IF($F$69,'FRED Indicies'!D18) -> FALSE | AF6: 21 | AG6: FALSE | AH6: =IF(AG6,#REF!) -> FALSE | AN6: 3 | AO6: FALSE | AP6: =IF(AO6,'Commodity Prices'!C18) -> FALSE | AR6: =IF(AO6,'Commodity Prices'!D18) -> FALSE | AV6: 21 | AW6: 21 | AX6: =IF(AW6,'Yahoo Stocks'!D12) -> 600900.SS | AZ6: =IF(AW6,'Yahoo Stocks'!E12) -> China Yangtze Power Co | BD6: 2 | BE6: FALSE | BF6: =IF(BE6,#REF!) -> FALSE | BH6: =IF(BE6,#REF!) -> FALSE | BL6: 51 | BM6: 51 | BN6: ='FRED Series'!D18 -> Euro | BP6: =IF(BM6,'FRED Series'!E18) -> U.S. / Euro Foreign Exchange Rate (EXUSEU)
L7: 4 | M7: ^FCHI | N7: CAC 40 | O7: B | P7: yahoo | Q7: 4 | R7: 4 | S7: =IF(R7,'Yahoo Index'!D13,"") -> ^FCHI | T7: =IF(R7,'Yahoo Index'!E13,"") -> CAC 40 | U7: B | V7: yahoo | X7: 22 | Y7: FALSE | Z7: =IF($F$69,'FRED Indicies'!E19) -> FALSE | AB7: =IF($F$69,'FRED Indicies'!D19) -> FALSE | AF7: 22 | AG7: FALSE | AH7: =IF(AG7,#REF!) -> FALSE | AN7: 4 | AO7: FALSE | AP7: =IF(AO7,'Commodity Prices'!C19) -> FALSE | AR7: =IF(AO7,'Commodity Prices'!D19) -> FALSE | AV7: 22 | AW7: 22 | AX7: =IF(AW7,'Yahoo Stocks'!D13) -> RWE.DE | AZ7: =IF(AW7,'Yahoo Stocks'!E13) -> RWE | BD7: 3 | BE7: FALSE | BF7: =IF(BE7,#REF!) -> FALSE | BH7: =IF(BE7,#REF!) -> FALSE | BL7: 52 | BM7: 52 | BN7: ='FRED Series'!D19 -> INR | BP7: =IF(BM7,'FRED Series'!E19) -> India / U.S. Foreign Exchange Rate (DEXINUS)
L8: 5 | M8: ^NDX | N8: Nasdaq 100 | O8: B | P8: yahoo | Q8: 5 | R8: 5 | S8: =IF(R8,'Yahoo Index'!D14,"") -> ^NDX | T8: =IF(R8,'Yahoo Index'!E14,"") -> Nasdaq 100 | U8: B | V8: yahoo | X8: 23 | Y8: FALSE | Z8: =IF($F$69,'FRED Indicies'!E20) -> FALSE | AB8: =IF($F$69,'FRED Indicies'!D20) -> FALSE | AF8: 23 | AG8: FALSE | AH8: =IF(AG8,#REF!) -> FALSE | AN8: 5 | AO8: FALSE | AP8: =IF(AO8,'Commodity Prices'!C20) -> FALSE | AR8: =IF(AO8,'Commodity Prices'!D20) -> FALSE | AV8: 23 | AW8: 23 | AX8: =IF(AW8,'Yahoo Stocks'!D14) -> NEE | AZ8: =IF(AW8,'Yahoo Stocks'!E14) -> Nextera | BD8: 4 | BE8: FALSE | BF8: =IF(BE8,#REF!) -> FALSE | BH8: =IF(BE8,#REF!) -> FALSE | BL8: 53 | BM8: 53 | BN8: ='FRED Series'!D20 -> UK | BP8: =IF(BM8,'FRED Series'!E20) -> U.S. / U.K. Foreign Exchange Rate (EXUSUK)
F9: TRUE | G9: =H6+1 -> 49 | H9: ='FRED Series'!D8*'Read Stocks'!F9+G9-1 -> 80 | I9: B | J9: FRED | L9: 6 | M9: ^DJI | N9: 30 Industrials | O9: B | P9: yahoo | Q9: 6 | R9: 6 | S9: =IF(R9,'Yahoo Index'!D15,"") -> ^DJI | T9: =IF(R9,'Yahoo Index'!E15,"") -> 30 Industrials | U9: B | V9: yahoo | X9: 24 | Y9: FALSE | Z9: =IF($F$69,'FRED Indicies'!E21) -> FALSE | AB9: =IF($F$69,'FRED Indicies'!D21) -> FALSE | AF9: 24 | AG9: FALSE | AH9: =IF(AG9,#REF!) -> FALSE | AN9: 6 | AO9: FALSE | AP9: =IF(AO9,'Commodity Prices'!C21) -> FALSE | AR9: =IF(AO9,'Commodity Prices'!D21) -> FALSE | AV9: 24 | AW9: 24 | AX9: =IF(AW9,'Yahoo Stocks'!D15) -> 015760.KS | AZ9: =IF(AW9,'Yahoo Stocks'!E15) -> Korea Electric Power | BD9: 5 | BE9: FALSE | BF9: =IF(BE9,#REF!) -> FALSE | BH9: =IF(BE9,#REF!) -> FALSE | BL9: 54 | BM9: 54 | BN9: ='FRED Series'!D21 -> PKR | BP9: =IF(BM9,'FRED Series'!E21) -> Pakistan Exchange Rate
L10: 7 | M10: ^SSMI | N10: Swiss | O10: B | P10: yahoo | Q10: 7 | R10: 7 | S10: =IF(R10,'Yahoo Index'!D16,"") -> ^SSMI | T10: =IF(R10,'Yahoo Index'!E16,"") -> Swiss | U10: B | V10: yahoo | X10: 25 | Y10: FALSE | Z10: =IF($F$69,'FRED Indicies'!E22) -> FALSE | AB10: =IF($F$69,'FRED Indicies'!D22) -> FALSE | AF10: 25 | AG10: FALSE | AH10: =IF(AG10,#REF!) -> FALSE | AN10: 7 | AO10: FALSE | AP10: =IF(AO10,'Commodity Prices'!C22) -> FALSE | AR10: =IF(AO10,'Commodity Prices'!D22) -> FALSE | AV10: 25 | AW10: 25 | AX10: =IF(AW10,'Yahoo Stocks'!D16) -> ED | AZ10: =IF(AW10,'Yahoo Stocks'!E16) -> Consolidated Edison | BD10: 6 | BE10: FALSE | BF10: =IF(BE10,#REF!) -> FALSE | BH10: =IF(BE10,#REF!) -> FALSE | BL10: 55 | BM10: 55 | BN10: ='FRED Series'!D22 -> US NOM GNP | BP10: =IF(BM10,'FRED Series'!E22) -> Gross National Product (GNP)
L11: 8 | M11: ^KLSE | N11: Malaysia | O11: B | P11: yahoo | Q11: 8 | R11: 8 | S11: =IF(R11,'Yahoo Index'!D17,"") -> ^KLSE | T11: =IF(R11,'Yahoo Index'!E17,"") -> Malaysia | U11: B | V11: yahoo | X11: 26 | Y11: FALSE | Z11: =IF($F$69,'FRED Indicies'!E23) -> FALSE | AB11: =IF($F$69,'FRED Indicies'!D23) -> FALSE | AF11: 26 | AG11: FALSE | AH11: =IF(AG11,#REF!) -> FALSE | AN11: 8 | AO11: FALSE | AP11: =IF(AO11,'Commodity Prices'!C23) -> FALSE | AR11: =IF(AO11,'Commodity Prices'!D23) -> FALSE | AV11: 26 | AW11: 26 | AX11: =IF(AW11,'Yahoo Stocks'!D17) -> EOAN.DE | AZ11: =IF(AW11,'Yahoo Stocks'!E17) -> EON | BD11: 7 | BE11: FALSE | BF11: =IF(BE11,#REF!) -> FALSE | BH11: =IF(BE11,#REF!) -> FALSE | BL11: 56 | BM11: 56 | BN11: ='FRED Series'!D23 -> 5 yr treasury | BP11: =IF(BM11,'FRED Series'!E23) -> 5-Year Treasury Constant Maturity Rate (GS5)
D12: Read Index (1-->yes) | F12: 1 | L12: 9 | M12: ^SP500TR | N12: S&P TR | O12: B | P12: yahoo | Q12: 9 | R12: 9 | S12: =IF(R12,'Yahoo Index'!D18,"") -> ^SP500TR | T12: =IF(R12,'Yahoo Index'!E18,"") -> S&P TR | U12: B | V12: yahoo | X12: 27 | Y12: FALSE | Z12: =IF($F$69,'FRED Indicies'!E24) -> FALSE | AB12: =IF($F$69,'FRED Indicies'!D24) -> FALSE | AF12: 27 | AG12: FALSE | AH12: =IF(AG12,#REF!) -> FALSE | AN12: 9 | AO12: FALSE | AP12: =IF(AO12,'Commodity Prices'!C24) -> FALSE | AR12: =IF(AO12,'Commodity Prices'!D24) -> FALSE | AV12: 27 | AW12: 27 | AX12: =IF(AW12,'Yahoo Stocks'!D18) -> 0HAH.IL | AZ12: =IF(AW12,'Yahoo Stocks'!E18) -> FORTUM | BD12: 8 | BE12: FALSE | BF12: =IF(BE12,#REF!) -> FALSE | BH12: =IF(BE12,#REF!) -> FALSE | BL12: 57 | BM12: 57 | BN12: ='FRED Series'!D24 -> 10 year treasury | BP12: =IF(BM12,'FRED Series'!E24) -> 10-Year Treasury Constant Maturity Rate (GS10)
D13: Read Stocks (1-->yes) | F13: =NOT(F12)*1 -> 0 | L13: 10 | M13: ^JKSE | N13: Indonesia | O13: B | P13: yahoo | Q13: 10 | R13: 10 | S13: =IF(R13,'Yahoo Index'!D19,"") -> ^JKSE | T13: =IF(R13,'Yahoo Index'!E19,"") -> Indonesia | U13: B | V13: yahoo | X13: 28 | Y13: FALSE | Z13: =IF($F$69,'FRED Indicies'!E25) -> FALSE | AB13: =IF($F$69,'FRED Indicies'!D25) -> FALSE | AF13: 28 | AG13: FALSE | AH13: =IF(AG13,#REF!) -> FALSE | AN13: 10 | AO13: FALSE | AP13: =IF(AO13,'Commodity Prices'!C25) -> FALSE | AR13: =IF(AO13,'Commodity Prices'!D25) -> FALSE | AV13: 28 | AW13: 28 | AX13: =IF(AW13,'Yahoo Stocks'!D19) -> IBE.MC | AZ13: =IF(AW13,'Yahoo Stocks'!E19) -> Ibederola | BD13: 9 | BE13: FALSE | BF13: =IF(BE13,#REF!) -> FALSE | BH13: =IF(BE13,#REF!) -> FALSE | BL13: 58 | BM13: 58 | BN13: ='FRED Series'!D25 -> US Med Inc Nom | BP13: =IF(BM13,'FRED Series'!E25) -> Median Household Income in the United States (MEHOINUSA646N)
L14: 11 | M14: ^KS11 | N14: Seoul Composite | O14: B | P14: yahoo | Q14: 11 | R14: 11 | S14: =IF(R14,'Yahoo Index'!D20,"") -> ^KS11 | T14: =IF(R14,'Yahoo Index'!E20,"") -> Seoul Composite | U14: B | V14: yahoo | X14: 29 | Y14: FALSE | Z14: =IF($F$69,'FRED Indicies'!E26) -> FALSE | AB14: =IF($F$69,'FRED Indicies'!D26) -> FALSE | AF14: 29 | AG14: FALSE | AH14: =IF(AG14,#REF!) -> FALSE | AN14: 11 | AO14: FALSE | AP14: =IF(AO14,'Commodity Prices'!C26) -> FALSE | AR14: =IF(AO14,'Commodity Prices'!D26) -> FALSE | AV14: 29 | AW14: 29 | AX14: =IF(AW14,'Yahoo Stocks'!D20) -> SSE.L | AZ14: =IF(AW14,'Yahoo Stocks'!E20) -> SSE PLC | BD14: 10 | BE14: FALSE | BF14: =IF(BE14,#REF!) -> FALSE | BH14: =IF(BE14,#REF!) -> FALSE | BL14: 59 | BM14: 59 | BN14: ='FRED Series'!D26 -> Median Income | BP14: =IF(BM14,'FRED Series'!E26) -> Employed full time: Median usual weekly real earnings: d over (LES1252881600Q)
D15: Python Debug (1-->pause) | F15: 1 | L15: 12 | M15: ^N225 | N15: Nikkei 225 | O15: B | P15: yahoo | Q15: 12 | R15: 12 | S15: =IF(R15,'Yahoo Index'!D21,"") -> ^N225 | T15: =IF(R15,'Yahoo Index'!E21,"") -> Nikkei 225 | U15: B | V15: yahoo | X15: 30 | Y15: FALSE | Z15: =IF($F$69,'FRED Indicies'!E27) -> FALSE | AB15: =IF($F$69,'FRED Indicies'!D27) -> FALSE | AF15: 30 | AG15: FALSE | AH15: =IF(AG15,#REF!) -> FALSE | AN15: 12 | AO15: FALSE | AP15: =IF(AO15,'Commodity Prices'!C27) -> FALSE | AR15: =IF(AO15,'Commodity Prices'!D27) -> FALSE | AV15: 30 | AW15: 30 | AX15: =IF(AW15,'Yahoo Stocks'!D21) -> EDPR.LS | AZ15: =IF(AW15,'Yahoo Stocks'!E21) -> EDP Renovaveis S/A | BD15: 11 | BE15: FALSE | BF15: =IF(BE15,#REF!) -> FALSE | BH15: =IF(BE15,#REF!) -> FALSE | BL15: 60 | BM15: 60 | BN15: ='FRED Series'!D27 -> Corp Profit | BP15: =IF(BM15,'FRED Series'!E27) -> Corporate Profits
L16: 13 | M16: ^FTSE | N16: FTSE 100 | O16: B | P16: yahoo | Q16: 13 | R16: 13 | S16: =IF(R16,'Yahoo Index'!D22,"") -> ^FTSE | T16: =IF(R16,'Yahoo Index'!E22,"") -> FTSE 100 | U16: B | V16: yahoo | X16: 31 | Y16: FALSE | Z16: =IF($F$69,'FRED Indicies'!E28) -> FALSE | AB16: =IF($F$69,'FRED Indicies'!D28) -> FALSE | AF16: 31 | AG16: FALSE | AH16: =IF(AG16,#REF!) -> FALSE | AN16: 13 | AO16: FALSE | AP16: =IF(AO16,'Commodity Prices'!C28) -> FALSE | AR16: =IF(AO16,'Commodity Prices'!D28) -> FALSE | AV16: 31 | AW16: 31 | AX16: =IF(AW16,'Yahoo Stocks'!D22) -> FTS.TO | AZ16: =IF(AW16,'Yahoo Stocks'!E22) -> FORTIS | BD16: 12 | BE16: FALSE | BF16: =IF(BE16,#REF!) -> FALSE | BH16: =IF(BE16,#REF!) -> FALSE | BL16: 61 | BM16: 61 | BN16: ='FRED Series'!D28 -> Corp Nonfin | BP16: =IF(BM16,'FRED Series'!E28) -> Non Financial Corporate Profits
D17: Use Current Path (1-->yes) | F17: 1 | L17: 14 | M17: NGE | N17: Nigeria | O17: B | P17: yahoo | Q17: 14 | R17: 14 | S17: =IF(R17,'Yahoo Index'!D23,"") -> NGE | T17: =IF(R17,'Yahoo Index'!E23,"") -> Nigeria | U17: B | V17: yahoo | X17: 32 | Y17: FALSE | Z17: =IF($F$69,'FRED Indicies'!E29) -> FALSE | AB17: =IF($F$69,'FRED Indicies'!D29) -> FALSE | AF17: 32 | AG17: FALSE | AH17: =IF(AG17,#REF!) -> FALSE | AN17: 14 | AO17: FALSE | AP17: =IF(AO17,'Commodity Prices'!C29) -> FALSE | AR17: =IF(AO17,'Commodity Prices'!D29) -> FALSE | AV17: 32 | AW17: 32 | AX17: =IF(AW17,'Yahoo Stocks'!D23) -> 1038.HK | AZ17: =IF(AW17,'Yahoo Stocks'!E23) -> CK Infrastructure | BD17: 13 | BE17: FALSE | BF17: =IF(BE17,#REF!) -> FALSE | BH17: =IF(BE17,#REF!) -> FALSE | BL17: 62 | BM17: 62 | BN17: ='FRED Series'!D29 -> Corp Aft Tax | BP17: =IF(BM17,'FRED Series'!E29) -> Corporate Profits After Tax
L18: 15 | M18: ^TWII | N18: Taiwan Weighted | O18: B | P18: yahoo | Q18: 15 | R18: 15 | S18: =IF(R18,'Yahoo Index'!D24,"") -> ^TWII | T18: =IF(R18,'Yahoo Index'!E24,"") -> Taiwan Weighted | U18: B | V18: yahoo | X18: 33 | Y18: FALSE | Z18: =IF($F$69,'FRED Indicies'!E30) -> FALSE | AB18: =IF($F$69,'FRED Indicies'!D30) -> FALSE | AF18: 33 | AG18: FALSE | AH18: =IF(AG18,#REF!) -> FALSE | AN18: 15 | AO18: FALSE | AP18: =IF(AO18,'Commodity Prices'!C30) -> FALSE | AR18: =IF(AO18,'Commodity Prices'!D30) -> FALSE | AV18: 33 | AW18: 33 | AX18: =IF(AW18,'Yahoo Stocks'!D24) -> ETR | AZ18: =IF(AW18,'Yahoo Stocks'!E24) -> Entergy Corporation | BD18: 14 | BE18: FALSE | BF18: =IF(BE18,#REF!) -> FALSE | BH18: =IF(BE18,#REF!) -> FALSE | BL18: 63 | BM18: 63 | BN18: ='FRED Series'!D30 -> Corp Inf Adjusted | BP18: =IF(BM18,'FRED Series'!E30) -> Corporate Profits with Inflation Adj
D19: Timing Code | F19: 1 | G19: =CHOOSE(timing_code,"Monthly","Weekly","Daily") -> Monthly | L19: 16 | M19: ^STI | N19: Straits Times | O19: B | P19: yahoo | Q19: 16 | R19: 16 | S19: =IF(R19,'Yahoo Index'!D25,"") -> ^STI | T19: =IF(R19,'Yahoo Index'!E25,"") -> Straits Times | U19: B | V19: yahoo | X19: 34 | Y19: FALSE | Z19: =IF($F$69,'FRED Indicies'!E31) -> FALSE | AB19: =IF($F$69,'FRED Indicies'!D31) -> FALSE | AF19: 34 | AG19: FALSE | AH19: =IF(AG19,#REF!) -> FALSE | AN19: 16 | AO19: FALSE | AP19: =IF(AO19,'Commodity Prices'!C31) -> FALSE | AR19: =IF(AO19,'Commodity Prices'!D31) -> FALSE | AV19: 34 | AW19: 34 | AX19: =IF(AW19,'Yahoo Stocks'!D25) -> ENEL.MI | AZ19: =IF(AW19,'Yahoo Stocks'!E25) -> ENEL | BD19: 15 | BE19: FALSE | BF19: =IF(BE19,#REF!) -> FALSE | BH19: =IF(BE19,#REF!) -> FALSE | BL19: 64 | BM19: 64 | BN19: ='FRED Series'!D31 -> GDP Inflation Index | BP19: =IF(BM19,'FRED Series'!E31) -> GDP Inflation Index
L20: 17 | M20: 000001.SS | N20: SSE Composite | O20: B | P20: yahoo | Q20: 17 | R20: 17 | S20: =IF(R20,'Yahoo Index'!D26,"") -> 000001.SS | T20: =IF(R20,'Yahoo Index'!E26,"") -> SSE Composite | U20: B | V20: yahoo | X20: 35 | Y20: FALSE | Z20: =IF($F$69,'FRED Indicies'!E32) -> FALSE | AB20: =IF($F$69,'FRED Indicies'!D32) -> FALSE | AF20: 35 | AG20: FALSE | AH20: =IF(AG20,#REF!) -> FALSE | AN20: 17 | AO20: FALSE | AP20: =IF(AO20,'Commodity Prices'!C32) -> FALSE | AR20: =IF(AO20,'Commodity Prices'!D32) -> FALSE | AV20: 35 | AW20: 35 | AX20: =IF(AW20,'Yahoo Stocks'!D26) -> DUK | AZ20: =IF(AW20,'Yahoo Stocks'!E26) -> DUKE ENERGY CORPORATION | BD20: 16 | BE20: FALSE | BF20: =IF(BE20,#REF!) -> FALSE | BH20: =IF(BE20,#REF!) -> FALSE | BL20: 65 | BM20: 65 | BN20: ='FRED Series'!D32 -> CPI US Index | BP20: =IF(BM20,'FRED Series'!E32) -> CPI US Index
C21: Start of Graph | E21: ='Multiple Stock Graph'!K20 -> 2008-03-01 | L21: 18 | M21: Tadawul Saudi | N21: Tadawul Saudi | O21: B | P21: yahoo | Q21: 18 | R21: 18 | S21: =IF(R21,'Yahoo Index'!E27,"") -> Tadawul Saudi | T21: =IF(R21,'Yahoo Index'!E27,"") -> Tadawul Saudi | U21: B | V21: yahoo | X21: 36 | Y21: FALSE | Z21: =IF($F$69,'FRED Indicies'!E33) -> FALSE | AB21: =IF($F$69,'FRED Indicies'!D33) -> FALSE | AF21: 36 | AG21: FALSE | AH21: =IF(AG21,#REF!) -> FALSE | AN21: 18 | AO21: FALSE | AP21: =IF(AO21,'Commodity Prices'!C33) -> FALSE | AR21: =IF(AO21,'Commodity Prices'!D33) -> FALSE | AV21: 36 | AW21: 36 | AX21: =IF(AW21,'Yahoo Stocks'!D27) -> D | AZ21: =IF(AW21,'Yahoo Stocks'!E27) -> DOMINION ENERGY INC | BD21: 17 | BE21: FALSE | BF21: =IF(BE21,#REF!) -> FALSE | BH21: =IF(BE21,#REF!) -> FALSE | BL21: 66 | BM21: 66 | BN21: ='FRED Series'!D33 -> US GDP | BP21: =IF(BM21,'FRED Series'!E33) -> US GDP Gross Domestic Product (GDP)
C22: End of Graph | E22: ='Multiple Stock Graph'!K21 -> 2025-07-31 | L22: 19 | M22: ORSTED.CO | N22: ORSTED A/S | O22: B | P22: Yahoo | Q22: 19 | R22: FALSE | S22: =IF(R22,'Yahoo Index'!E28,"") ->  | T22: =IF(R22,'Yahoo Index'!E28,"") ->  | X22: 37 | Y22: FALSE | Z22: =IF($F$69,'FRED Indicies'!E34) -> FALSE | AB22: =IF($F$69,'FRED Indicies'!D34) -> FALSE | AF22: 37 | AG22: FALSE | AH22: =IF(AG22,#REF!) -> FALSE | AN22: 19 | AO22: FALSE | AP22: =IF(AO22,'Commodity Prices'!C34) -> FALSE | AR22: =IF(AO22,'Commodity Prices'!D34) -> FALSE | AV22: 37 | AW22: 37 | AX22: =IF(AW22,'Yahoo Stocks'!D28) -> SO | AY22: ORSTED.CO | AZ22: =IF(AW22,'Yahoo Stocks'!E28) -> SOUTHERN COMPANY (THE) | BA22: ORSTED A/S | BB22: B | BC22: Yahoo | BD22: 18 | BE22: FALSE | BF22: =IF(BE22,#REF!) -> FALSE | BH22: =IF(BE22,#REF!) -> FALSE | BL22: 67 | BM22: 67 | BN22: ='FRED Series'!D34 -> Median Family Income | BP22: =IF(BM22,'FRED Series'!E34) -> Median Family Income in the United States (MEFAINUSA646N)
L23: 20 | M23: TNABY | N23: Tenaga Malaysia | O23: B | P23: Yahoo | Q23: 20 | R23: FALSE | S23: =IF(R23,'Yahoo Index'!E29,"") ->  | T23: =IF(R23,'Yahoo Index'!E29,"") ->  | X23: 38 | Y23: FALSE | Z23: =IF($F$69,'FRED Indicies'!E35) -> FALSE | AB23: =IF($F$69,'FRED Indicies'!D35) -> FALSE | AF23: 38 | AG23: FALSE | AH23: =IF(AG23,#REF!) -> FALSE | AN23: 20 | AO23: FALSE | AP23: =IF(AO23,'Commodity Prices'!C35) -> FALSE | AR23: =IF(AO23,'Commodity Prices'!D35) -> FALSE | AV23: 38 | AW23: 38 | AX23: =IF(AW23,'Yahoo Stocks'!D29) -> ENGI.PA | AY23: TNABY | AZ23: =IF(AW23,'Yahoo Stocks'!E29) -> ENGIE | BA23: Tenaga Malaysia | BB23: B | BC23: Yahoo | BD23: 19 | BE23: FALSE | BF23: =IF(BE23,#REF!) -> FALSE | BH23: =IF(BE23,#REF!) -> FALSE | BL23: 68 | BM23: 68 | BN23: ='FRED Series'!D35 -> US Real GDP | BP23: =IF(BM23,'FRED Series'!E35) -> Real Gross Domestic Product (GDPC1)
L24: 21 | M24: 600900.SS | N24: China Yangtze Power Co | O24: B | P24: Yahoo | Q24: 21 | R24: FALSE | S24: =IF(R24,'Yahoo Index'!E30,"") ->  | T24: =IF(R24,'Yahoo Index'!E30,"") ->  | X24: 39 | Y24: FALSE | Z24: =IF($F$69,'FRED Indicies'!E36) -> FALSE | AB24: =IF($F$69,'FRED Indicies'!D36) -> FALSE | AF24: 39 | AG24: FALSE | AH24: =IF(AG24,#REF!) -> FALSE | AN24: 21 | AO24: FALSE | AP24: =IF(AO24,'Commodity Prices'!C36) -> FALSE | AR24: =IF(AO24,'Commodity Prices'!D36) -> FALSE | AV24: 39 | AW24: 39 | AX24: =IF(AW24,'Yahoo Stocks'!D30) -> AEP | AY24: 600900.SS | AZ24: =IF(AW24,'Yahoo Stocks'!E30) -> AMERICAN ELECTRIC POWER COMPANY INC | BA24: China Yangtze Power Co | BB24: B | BC24: Yahoo | BD24: 20 | BE24: FALSE | BF24: =IF(BE24,#REF!) -> FALSE | BH24: =IF(BE24,#REF!) -> FALSE | BL24: 69 | BM24: 69 | BN24: ='FRED Series'!D36 -> US Real GNP | BP24: =IF(BM24,'FRED Series'!E36) -> Real Gross National Product (GNPC96)
C25: active workbook | D25: Stock and Economic Analysis.xlsm | L25: 22 | M25: RWE.DE | N25: RWE | O25: B | P25: Yahoo | Q25: 22 | R25: FALSE | S25: =IF(R25,'Yahoo Index'!E31,"") ->  | T25: =IF(R25,'Yahoo Index'!E31,"") ->  | X25: 40 | Y25: FALSE | Z25: =IF($F$69,'FRED Indicies'!E37) -> FALSE | AB25: =IF($F$69,'FRED Indicies'!D37) -> FALSE | AF25: 40 | AG25: FALSE | AH25: =IF(AG25,#REF!) -> FALSE | AN25: 22 | AO25: FALSE | AP25: =IF(AO25,'Commodity Prices'!C37) -> FALSE | AR25: =IF(AO25,'Commodity Prices'!D37) -> FALSE | AV25: 40 | AW25: 40 | AX25: =IF(AW25,'Yahoo Stocks'!D31) -> EXC | AY25: RWE.DE | AZ25: =IF(AW25,'Yahoo Stocks'!E31) -> EXELON CORPORATION | BA25: RWE | BB25: B | BC25: Yahoo | BD25: 21 | BE25: FALSE | BF25: =IF(BE25,#REF!) -> FALSE | BH25: =IF(BE25,#REF!) -> FALSE | BL25: 70 | BM25: 70 | BN25: ='FRED Series'!D37 -> GDP GDI | BP25: =IF(BM25,'FRED Series'!E37) -> Real Average of GDP and GDI (LB0000091Q020SBEA)
C26: workbook path | D26: C:\stocks\Stock and Economic Analysis.xlsm | L26: 23 | M26: NEE | N26: Nextera | O26: B | P26: Yahoo | Q26: 23 | R26: FALSE | S26: =IF(R26,'Yahoo Index'!E32,"") ->  | T26: =IF(R26,'Yahoo Index'!E32,"") ->  | X26: 41 | Y26: FALSE | Z26: =IF($F$69,'FRED Indicies'!E38) -> FALSE | AB26: =IF($F$69,'FRED Indicies'!D38) -> FALSE | AF26: 41 | AG26: FALSE | AH26: =IF(AG26,#REF!) -> FALSE | AN26: 23 | AO26: FALSE | AP26: =IF(AO26,'Commodity Prices'!C38) -> FALSE | AR26: =IF(AO26,'Commodity Prices'!D38) -> FALSE | AV26: 41 | AW26: 41 | AX26: =IF(AW26,'Yahoo Stocks'!D32) -> NGG | AY26: NEE | AZ26: =IF(AW26,'Yahoo Stocks'!E32) -> NATIONAL GRID TRANSCO PLC | BA26: Nextera | BB26: B | BC26: Yahoo | BD26: 22 | BE26: FALSE | BF26: =IF(BE26,#REF!) -> FALSE | BH26: =IF(BE26,#REF!) -> FALSE | BL26: 71 | BM26: 71 | BN26: ='FRED Series'!D38 -> Crude Oil Price | BP26: =IF(BM26,'FRED Series'!E38) -> Crude Oil Prices: Brent - Europe (DCOILBRENTEU)
C27: workbook path name | D27: C:\stocks | L27: 24 | M27: 015760.KS | N27: Korea Electric Power | O27: B | P27: Yahoo | Q27: 24 | R27: FALSE | S27: =IF(R27,'Yahoo Index'!E33,"") ->  | T27: =IF(R27,'Yahoo Index'!E33,"") ->  | X27: 42 | Y27: FALSE | Z27: =IF($F$69,'FRED Indicies'!E39) -> FALSE | AB27: =IF($F$69,'FRED Indicies'!D39) -> FALSE | AF27: 42 | AG27: FALSE | AH27: =IF(AG27,#REF!) -> FALSE | AN27: 24 | AO27: FALSE | AP27: =IF(AO27,'Commodity Prices'!C39) -> FALSE | AR27: =IF(AO27,'Commodity Prices'!D39) -> FALSE | AV27: 42 | AW27: 42 | AX27: =IF(AW27,'Yahoo Stocks'!D33) -> MAEOY | AY27: 015760.KS | AZ27: =IF(AW27,'Yahoo Stocks'!E33) -> MERALCO | BA27: Korea Electric Power | BB27: B | BC27: Yahoo | BD27: 23 | BE27: FALSE | BF27: =IF(BE27,#REF!) -> FALSE | BH27: =IF(BE27,#REF!) -> FALSE | BL27: 72 | BM27: 72 | BN27: ='FRED Series'!D39 -> Gold Fixing Pr | BP27: =IF(BM27,'FRED Series'!E39) -> Gold Fixing Price 10:30 A.M. London time in London Bullion Market, based in U.S. Dollars (GOLDAMGBD228NLBM)
C28: active sheet name | D28: Read Stocks | L28: 25 | M28: ED | N28: Consolidated Edison | O28: B | P28: Yahoo | Q28: 25 | R28: FALSE | S28: =IF(R28,'Yahoo Index'!E34,"") ->  | T28: =IF(R28,'Yahoo Index'!E34,"") ->  | X28: 43 | Y28: FALSE | Z28: =IF($F$69,'FRED Indicies'!E40) -> FALSE | AB28: =IF($F$69,'FRED Indicies'!D40) -> FALSE | AF28: 43 | AG28: FALSE | AH28: =IF(AG28,#REF!) -> FALSE | AN28: 25 | AO28: FALSE | AP28: =IF(AO28,'Commodity Prices'!C40) -> FALSE | AR28: =IF(AO28,'Commodity Prices'!D40) -> FALSE | AV28: 43 | AW28: 43 | AX28: =IF(AW28,'Yahoo Stocks'!D34) -> NTPC.NS | AY28: ED | AZ28: =IF(AW28,'Yahoo Stocks'!E34) -> NTPC | BA28: Consolidated Edison | BB28: B | BC28: Yahoo | BD28: 24 | BE28: FALSE | BF28: =IF(BE28,#REF!) -> FALSE | BH28: =IF(BE28,#REF!) -> FALSE | BL28: 73 | BM28: 73 | BN28: ='FRED Series'!D40 -> Henry Hub Natur | BP28: =IF(BM28,'FRED Series'!E40) -> Henry Hub Natural Gas Spot Price (MHHNGSP)
C29: python path | D29: C:\stocks | L29: 26 | M29: EOAN.DE | N29: EON | O29: B | P29: Yahoo | Q29: 26 | R29: FALSE | S29: =IF(R29,'Yahoo Index'!E35,"") ->  | T29: =IF(R29,'Yahoo Index'!E35,"") ->  | X29: 44 | Y29: FALSE | Z29: =IF($F$69,'FRED Indicies'!E41) -> FALSE | AB29: =IF($F$69,'FRED Indicies'!D41) -> FALSE | AF29: 44 | AG29: FALSE | AH29: =IF(AG29,#REF!) -> FALSE | AN29: 26 | AO29: FALSE | AP29: =IF(AO29,'Commodity Prices'!C41) -> FALSE | AR29: =IF(AO29,'Commodity Prices'!D41) -> FALSE | AV29: 44 | AW29: 44 | AX29: =IF(AW29,'Yahoo Stocks'!D35) -> ELE.MC | AY29: EOAN.DE | AZ29: =IF(AW29,'Yahoo Stocks'!E35) -> ENDESA SA | BA29: EON | BB29: B | BC29: Yahoo | BD29: 25 | BE29: FALSE | BF29: =IF(BE29,#REF!) -> FALSE | BH29: =IF(BE29,#REF!) -> FALSE | BL29: 74 | BM29: 74 | BN29: ='FRED Series'!D41 -> LNG, Asia (PNG | BP29: =IF(BM29,'FRED Series'!E41) -> Global price of LNG, Asia (PNGASJPUSDM)
L30: 27 | M30: 0HAH.IL | N30: FORTUM | O30: B | P30: Yahoo | Q30: 27 | R30: FALSE | S30: =IF(R30,'Yahoo Index'!E36,"") ->  | T30: =IF(R30,'Yahoo Index'!E36,"") ->  | X30: 45 | Y30: FALSE | Z30: =IF($F$69,'FRED Indicies'!E42) -> FALSE | AB30: =IF($F$69,'FRED Indicies'!D42) -> FALSE | AF30: 45 | AG30: FALSE | AH30: =IF(AG30,#REF!) -> FALSE | AN30: 27 | AO30: FALSE | AP30: =IF(AO30,'Commodity Prices'!C42) -> FALSE | AR30: =IF(AO30,'Commodity Prices'!D42) -> FALSE | AV30: 45 | AW30: 45 | AX30: =IF(AW30,'Yahoo Stocks'!D36) -> PNM | AY30: 0HAH.IL | AZ30: =IF(AW30,'Yahoo Stocks'!E36) -> PNM Resources | BA30: FORTUM | BB30: B | BC30: Yahoo | BD30: 26 | BE30: FALSE | BF30: =IF(BE30,#REF!) -> FALSE | BH30: =IF(BE30,#REF!) -> FALSE | BL30: 75 | BM30: 75 | BN30: ='FRED Series'!D42 -> EU Natural Gas | BP30: =IF(BM30,'FRED Series'!E42) -> Global price of Natural gas, EU (PNGASEUUSDM)
C31: data workbook | D31: C:\stocks\Stock_Output.xlsx | L31: 28 | M31: IBE.MC | N31: Ibederola | O31: B | P31: Yahoo | Q31: 28 | R31: FALSE | S31: =IF(R31,'Yahoo Index'!E37,"") ->  | T31: =IF(R31,'Yahoo Index'!E37,"") ->  | X31: 46 | Y31: FALSE | Z31: =IF($F$69,'FRED Indicies'!E43) -> FALSE | AB31: =IF($F$69,'FRED Indicies'!D43) -> FALSE | AF31: 46 | AG31: FALSE | AH31: =IF(AG31,#REF!) -> FALSE | AN31: 28 | AO31: FALSE | AP31: =IF(AO31,'Commodity Prices'!C43) -> FALSE | AR31: =IF(AO31,'Commodity Prices'!D43) -> FALSE | AV31: 46 | AW31: 46 | AX31: =IF(AW31,'Yahoo Stocks'!D37) -> TSLA | AY31: IBE.MC | AZ31: =IF(AW31,'Yahoo Stocks'!E37) -> Tesla | BA31: Ibederola | BB31: B | BC31: Yahoo | BD31: 27 | BE31: FALSE | BF31: =IF(BE31,#REF!) -> FALSE | BH31: =IF(BE31,#REF!) -> FALSE | BL31: 76 | BM31: 76 | BN31: ='FRED Series'!D43 -> Uranium (PURAN | BP31: =IF(BM31,'FRED Series'!E43) -> Global price of Uranium (PURANUSDM)
C32: data workbook name | D32: Stock_Output.xlsx | L32: 29 | M32: SSE.L | N32: SSE PLC | O32: B | P32: Yahoo | Q32: 29 | R32: FALSE | S32: =IF(R32,'Yahoo Index'!E38,"") ->  | T32: =IF(R32,'Yahoo Index'!E38,"") ->  | X32: 47 | Y32: FALSE | Z32: =IF($F$69,'FRED Indicies'!E44) -> FALSE | AB32: =IF($F$69,'FRED Indicies'!D44) -> FALSE | AF32: 47 | AG32: FALSE | AH32: =IF(AG32,#REF!) -> FALSE | AN32: 29 | AO32: FALSE | AP32: =IF(AO32,'Commodity Prices'!C44) -> FALSE | AR32: =IF(AO32,'Commodity Prices'!D44) -> FALSE | AV32: 47 | AW32: 47 | AX32: =IF(AW32,'Yahoo Stocks'!D38) -> AAPL | AY32: =IFERROR(INDEX(AX:AX,MATCH(L32,AW:AW,0)),"") -> SSE.L | AZ32: =IF(AW32,'Yahoo Stocks'!E38) -> Apple | BA32: SSE PLC | BB32: B | BC32: Yahoo | BD32: 28 | BE32: FALSE | BF32: =IF(BE32,#REF!) -> FALSE | BH32: =IF(BE32,#REF!) -> FALSE | BL32: 77 | BM32: 77 | BN32: ='FRED Series'!D44 -> GDP Per Capital France | BP32: =IF(BM32,'FRED Series'!E44) -> Gross Domestic Product Per Capita for France (PCAGDPFRA646NWDB)
L33: 30 | M33: EDPR.LS | N33: EDP Renovaveis S/A | O33: B | P33: Yahoo | Q33: 30 | R33: FALSE | S33: =IF(R33,'Yahoo Index'!E39,"") ->  | T33: =IF(R33,'Yahoo Index'!E39,"") ->  | X33: 48 | Y33: FALSE | Z33: =IF($F$69,'FRED Indicies'!E45) -> FALSE | AB33: =IF($F$69,'FRED Indicies'!D45) -> FALSE | AF33: 48 | AG33: FALSE | AH33: =IF(AG33,#REF!) -> FALSE | AN33: 30 | AO33: FALSE | AP33: =IF(AO33,'Commodity Prices'!C45) -> FALSE | AR33: =IF(AO33,'Commodity Prices'!D45) -> FALSE | AV33: 48 | AW33: 48 | AX33: =IF(AW33,'Yahoo Stocks'!D39) -> AMZN | AY33: EDPR.LS | AZ33: =IF(AW33,'Yahoo Stocks'!E39) -> Amazon | BA33: EDP Renovaveis S/A | BB33: B | BC33: Yahoo | BD33: 29 | BE33: FALSE | BF33: =IF(BE33,#REF!) -> FALSE | BH33: =IF(BE33,#REF!) -> FALSE | BL33: 78 | BM33: 78 | BN33: ='FRED Series'!D45 -> GDP Per Capital Germany | BP33: =IF(BM33,'FRED Series'!E45) -> Gross Domestic Product Per Capita for Germany (PCAGDPDEA646NWDB)
L34: 31 | M34: =S34&AA34&AI34&AQ34&AY34&BG34&BO34 -> FTS.TO | N34: FORTIS | O34: B | P34: Yahoo | Q34: 31 | R34: FALSE | S34: =IF(R34,'Yahoo Index'!E40,"") ->  | T34: =IF(R34,'Yahoo Index'!E40,"") ->  | X34: 49 | Y34: FALSE | Z34: =IF($F$69,'FRED Indicies'!E46) -> FALSE | AB34: =IF($F$69,'FRED Indicies'!D46) -> FALSE | AF34: 49 | AG34: FALSE | AH34: =IF(AG34,#REF!) -> FALSE | AN34: 31 | AO34: FALSE | AP34: =IF(AO34,'Commodity Prices'!C46) -> FALSE | AR34: =IF(AO34,'Commodity Prices'!D46) -> FALSE | AV34: 49 | AW34: FALSE | AX34: =IF(AW34,'Yahoo Stocks'!D40) -> FALSE | AY34: =IFERROR(INDEX(AX:AX,MATCH(L34,AW:AW,0)),"") -> FTS.TO | AZ34: =IF(AW34,'Yahoo Stocks'!E40) -> FALSE | BA34: =IFERROR(INDEX(AZ:AZ,MATCH(L34,AW:AW,0)),"") -> FORTIS | BB34: B | BC34: Yahoo | BD34: 30 | BE34: FALSE | BF34: =IF(BE34,#REF!) -> FALSE | BH34: =IF(BE34,#REF!) -> FALSE | BL34: 79 | BM34: 79 | BN34: ='FRED Series'!D46 -> GDP Per Capital US | BP34: =IF(BM34,'FRED Series'!E46) -> Gross domestic product per capita (A939RC0Q052SBEA)
L35: 32 | M35: 1038.HK | N35: CK Infrastructure | O35: B | P35: Yahoo | Q35: 32 | R35: FALSE | S35: =IF(R35,'Yahoo Index'!E41,"") ->  | T35: =IF(R35,'Yahoo Index'!E41,"") ->  | X35: 50 | Y35: FALSE | Z35: =IF($F$69,'FRED Indicies'!E47) -> FALSE | AB35: =IF($F$69,'FRED Indicies'!D47) -> FALSE | AF35: 50 | AG35: FALSE | AH35: =IF(AG35,#REF!) -> FALSE | AN35: 32 | AO35: FALSE | AP35: =IF(AO35,'Commodity Prices'!C47) -> FALSE | AR35: =IF(AO35,'Commodity Prices'!D47) -> FALSE | AV35: 50 | AW35: FALSE | AX35: =IF(AW35,'Yahoo Stocks'!D41) -> FALSE | AY35: 1038.HK | AZ35: =IF(AW35,'Yahoo Stocks'!E41) -> FALSE | BA35: CK Infrastructure | BB35: B | BC35: Yahoo | BD35: 31 | BE35: FALSE | BF35: =IF(BE35,#REF!) -> FALSE | BH35: =IF(BE35,#REF!) -> FALSE | BL35: 80 | BM35: 80 | BN35: ='FRED Series'!D47 -> GDP Per Capital China | BP35: =IF(BM35,'FRED Series'!E47) -> Gross Domestic Product Per Capita for China (PCAGDPCNA646NWDB)
L36: 33 | M36: ETR | N36: =T36&AC36&AK36&AS36&BA36&BI36&BQ36 -> Entergy Corporation | O36: =U36&AD36&AL36&AT36&BB36&BJ36&BR36 -> B | P36: =V36&AE36&AM36&AU36&BC36&BK36&BS36 -> Yahoo | Q36: 33 | R36: FALSE | S36: =IF(R36,'Yahoo Index'!E42,"") ->  | T36: =IF(R36,'Yahoo Index'!E42,"") ->  | U36: =IF(R36,$I$4,"") ->  | V36: =IF(R36,$J$4,"") ->  | X36: 51 | Y36: =IF(AND($F$69,X36<=$H$69),X36) -> FALSE | Z36: =IF($F$69,'FRED Indicies'!E48) -> FALSE | AA36: =IFERROR(INDEX(Z:Z,MATCH(L36,Y:Y,0)),"") ->  | AB36: =IF($F$69,'FRED Indicies'!D48) -> FALSE | AC36: =IFERROR(INDEX(AB:AB,MATCH(L36,Y:Y,0)),"") ->  | AD36: =IF(AA36<>"",$I$69,"") ->  | AE36: =IF(AA36<>"",$J$69,"") ->  | AF36: 51 | AG36: =IF(AND($F$72,AF36<=$H$72),AF36) -> FALSE | AH36: =IF(AG36,#REF!) -> FALSE | AI36: =IFERROR(INDEX(AH:AH,MATCH(Q36,AG:AG,0)),"") ->  | AK36: =IFERROR(INDEX(AJ:AJ,MATCH(Q36,AG:AG,0)),"") ->  | AL36: =IF(AI36<>"",$I$69,"") ->  | AM36: =IF(AK36<>"",$J$69,"") ->  | AN36: 33 | AO36: =IF(AND($F$63,AN36<=$H$63),AN36) -> FALSE | AP36: =IF(AO36,'Commodity Prices'!C48) -> FALSE | AQ36: =IFERROR(INDEX(AP:AP,MATCH(L36,AO:AO,0)),"") ->  | AR36: =IF(AO36,'Commodity Prices'!D48) -> FALSE | AS36: =IFERROR(INDEX(AR:AR,MATCH(L36,AO:AO,0)),"") ->  | AT36: =IF(AQ36<>"",$I$63,"") ->  | AU36: =IF(AS36<>"",$J$63,"") ->  | AV36: 51 | AW36: =IF(AND($F$6,AV36<=$H$6),AV36) -> FALSE | AX36: =IF(AW36,'Yahoo Stocks'!D42) -> FALSE | AY36: =IFERROR(INDEX(AX:AX,MATCH(L36,AW:AW,0)),"") -> ETR | AZ36: =IF(AW36,'Yahoo Stocks'!E42) -> FALSE | BA36: =IFERROR(INDEX(AZ:AZ,MATCH(L36,AW:AW,0)),"") -> Entergy Corporation | BB36: =IF(AY36<>"",$I$6,"") -> B | BC36: =IF(BA36<>"",$J$6,"") -> Yahoo | BD36: 32 | BE36: FALSE | BF36: =IF(BE36,#REF!) -> FALSE | BH36: =IF(BE36,#REF!) -> FALSE | BL36: 81 | BM36: =IF(AND($F$9,BL36<=$H$9),BL36) -> FALSE | BN36: ='FRED Series'!D48 -> 0 | BP36: =IF(BM36,'FRED Series'!E48) -> FALSE | BR36: =IF(BQ36<>"",$I$9,"") ->  | BS36: =IF(BQ36<>"",$J$9,"") -> 
L37: 34 | M37: ENEL.MI | N37: ENEL | O37: B | P37: Yahoo | Q37: =Q36+1 -> 34 | R37: =IF(AND($F$4,Q37<=$H$4),Q37) -> FALSE | S37: =IF(R37,'Yahoo Index'!E43,"") ->  | T37: =IF(R37,'Yahoo Index'!E43,"") ->  | X37: =X36+1 -> 52 | Y37: FALSE | Z37: =IF($F$69,'FRED Indicies'!E49) -> FALSE | AB37: =IF($F$69,'FRED Indicies'!D49) -> FALSE | AF37: =AF36+1 -> 52 | AG37: FALSE | AH37: =IF(AG37,#REF!) -> FALSE | AN37: =AN36+1 -> 34 | AO37: FALSE | AP37: =IF(AO37,'Commodity Prices'!C49) -> FALSE | AR37: =IF(AO37,'Commodity Prices'!D49) -> FALSE | AV37: =AV36+1 -> 52 | AW37: FALSE | AX37: =IF(AW37,'Yahoo Stocks'!D43) -> FALSE | AY37: ENEL.MI | AZ37: =IF(AW37,'Yahoo Stocks'!E43) -> FALSE | BA37: ENEL | BB37: B | BC37: Yahoo | BD37: =BD36+1 -> 33 | BE37: FALSE | BF37: =IF(BE37,#REF!) -> FALSE | BH37: =IF(BE37,#REF!) -> FALSE | BL37: =BL36+1 -> 82 | BM37: FALSE | BN37: ='FRED Series'!D49 -> 0 | BP37: =IF(BM37,'FRED Series'!E49) -> FALSE
L38: 35 | M38: DUK | N38: DUKE ENERGY CORPORATION | O38: B | P38: Yahoo | Q38: 35 | R38: FALSE | S38: =IF(R38,'Yahoo Index'!E44,"") ->  | T38: =IF(R38,'Yahoo Index'!E44,"") ->  | X38: 53 | Y38: FALSE | Z38: =IF($F$69,'FRED Indicies'!E50) -> FALSE | AB38: =IF($F$69,'FRED Indicies'!D50) -> FALSE | AF38: 53 | AG38: FALSE | AH38: =IF(AG38,#REF!) -> FALSE | AN38: 35 | AO38: FALSE | AP38: =IF(AO38,'Commodity Prices'!C50) -> FALSE | AR38: =IF(AO38,'Commodity Prices'!D50) -> FALSE | AV38: 53 | AW38: FALSE | AX38: =IF(AW38,'Yahoo Stocks'!D44) -> FALSE | AY38: DUK | AZ38: =IF(AW38,'Yahoo Stocks'!E44) -> FALSE | BA38: DUKE ENERGY CORPORATION | BB38: B | BC38: Yahoo | BD38: 34 | BE38: FALSE | BF38: =IF(BE38,#REF!) -> FALSE | BH38: =IF(BE38,#REF!) -> FALSE | BL38: 83 | BM38: FALSE | BN38: ='FRED Series'!D50 -> 0 | BP38: =IF(BM38,'FRED Series'!E50) -> FALSE
L39: 36 | M39: D | N39: DOMINION ENERGY INC | O39: B | P39: Yahoo | Q39: 36 | R39: FALSE | S39: =IF(R39,'Yahoo Index'!E45,"") ->  | T39: =IF(R39,'Yahoo Index'!E45,"") ->  | X39: 54 | Y39: FALSE | Z39: =IF($F$69,'FRED Indicies'!E51) -> FALSE | AB39: =IF($F$69,'FRED Indicies'!D51) -> FALSE | AF39: 54 | AG39: FALSE | AH39: =IF(AG39,#REF!) -> FALSE | AN39: 36 | AO39: FALSE | AP39: =IF(AO39,'Commodity Prices'!C51) -> FALSE | AR39: =IF(AO39,'Commodity Prices'!D51) -> FALSE | AV39: 54 | AW39: FALSE | AX39: =IF(AW39,'Yahoo Stocks'!D45) -> FALSE | AY39: D | AZ39: =IF(AW39,'Yahoo Stocks'!E45) -> FALSE | BA39: DOMINION ENERGY INC | BB39: B | BC39: Yahoo | BD39: 35 | BE39: FALSE | BF39: =IF(BE39,#REF!) -> FALSE | BH39: =IF(BE39,#REF!) -> FALSE | BL39: 84 | BM39: FALSE | BN39: ='FRED Series'!D51 -> 0 | BP39: =IF(BM39,'FRED Series'!E51) -> FALSE
L40: 37 | M40: =S40&AA40&AI40&AQ40&AY40&BG40&BO40 -> SO | N40: SOUTHERN COMPANY (THE) | O40: B | P40: Yahoo | Q40: 37 | R40: FALSE | S40: =IF(R40,'Yahoo Index'!#REF!,"") ->  | T40: =IF(R40,'Yahoo Index'!E46,"") ->  | X40: 55 | Y40: FALSE | Z40: =IF($F$69,'FRED Indicies'!E52) -> FALSE | AB40: =IF($F$69,'FRED Indicies'!D52) -> FALSE | AF40: 55 | AG40: FALSE | AH40: =IF(AG40,#REF!) -> FALSE | AN40: 37 | AO40: FALSE | AP40: =IF(AO40,'Commodity Prices'!C52) -> FALSE | AR40: =IF(AO40,'Commodity Prices'!D52) -> FALSE | AV40: 55 | AW40: FALSE | AX40: =IF(AW40,'Yahoo Stocks'!D46) -> FALSE | AY40: SO | AZ40: =IF(AW40,'Yahoo Stocks'!E46) -> FALSE | BA40: SOUTHERN COMPANY (THE) | BB40: B | BC40: Yahoo | BD40: 36 | BE40: FALSE | BF40: =IF(BE40,#REF!) -> FALSE | BH40: =IF(BE40,#REF!) -> FALSE | BL40: 85 | BM40: FALSE | BN40: ='FRED Series'!D52 -> 0 | BP40: =IF(BM40,'FRED Series'!E52) -> FALSE
L41: 38 | M41: =S41&AA41&AI41&AQ41&AY41&BG41&BO41 -> ENGI.PA | N41: ENGIE | O41: B | P41: Yahoo | Q41: 38 | R41: FALSE | S41: =IF(R41,'Yahoo Index'!#REF!,"") ->  | T41: =IF(R41,'Yahoo Index'!E47,"") ->  | X41: 56 | Y41: FALSE | Z41: =IF($F$69,'FRED Indicies'!E53) -> FALSE | AB41: =IF($F$69,'FRED Indicies'!D53) -> FALSE | AF41: 56 | AG41: FALSE | AH41: =IF(AG41,#REF!) -> FALSE | AN41: 38 | AO41: FALSE | AP41: =IF(AO41,'Commodity Prices'!C53) -> FALSE | AR41: =IF(AO41,'Commodity Prices'!D53) -> FALSE | AV41: 56 | AW41: FALSE | AX41: =IF(AW41,'Yahoo Stocks'!D47) -> FALSE | AY41: ENGI.PA | AZ41: =IF(AW41,'Yahoo Stocks'!E47) -> FALSE | BA41: ENGIE | BB41: B | BC41: =IF(BA41<>"",$J$6,"") -> Yahoo | BD41: 37 | BE41: FALSE | BF41: =IF(BE41,#REF!) -> FALSE | BH41: =IF(BE41,#REF!) -> FALSE | BL41: 86 | BM41: FALSE | BN41: ='FRED Series'!D53 -> 0 | BP41: =IF(BM41,'FRED Series'!E53) -> FALSE
L42: 39 | M42: AEP | N42: AMERICAN ELECTRIC POWER COMPANY INC | O42: B | P42: Yahoo | Q42: 39 | R42: FALSE | S42: =IF(R42,'Yahoo Index'!#REF!,"") ->  | T42: =IF(R42,'Yahoo Index'!E48,"") ->  | X42: 57 | Y42: FALSE | Z42: =IF($F$69,'FRED Indicies'!E54) -> FALSE | AB42: =IF($F$69,'FRED Indicies'!D54) -> FALSE | AF42: 57 | AG42: FALSE | AH42: =IF(AG42,#REF!) -> FALSE | AN42: 39 | AO42: FALSE | AP42: =IF(AO42,'Commodity Prices'!C54) -> FALSE | AR42: =IF(AO42,'Commodity Prices'!D54) -> FALSE | AV42: 57 | AW42: FALSE | AX42: =IF(AW42,'Yahoo Stocks'!D48) -> FALSE | AY42: AEP | AZ42: =IF(AW42,'Yahoo Stocks'!E48) -> FALSE | BA42: AMERICAN ELECTRIC POWER COMPANY INC | BB42: B | BC42: Yahoo | BD42: 38 | BE42: FALSE | BF42: =IF(BE42,#REF!) -> FALSE | BH42: =IF(BE42,#REF!) -> FALSE | BL42: 87 | BM42: FALSE | BN42: ='FRED Series'!D54 -> 0 | BP42: =IF(BM42,'FRED Series'!E54) -> FALSE
L43: 40 | M43: EXC | N43: EXELON CORPORATION | O43: B | P43: Yahoo | Q43: 40 | R43: FALSE | S43: =IF(R43,'Yahoo Index'!#REF!,"") ->  | T43: =IF(R43,'Yahoo Index'!E49,"") ->  | X43: 58 | Y43: FALSE | Z43: =IF($F$69,'FRED Indicies'!E55) -> FALSE | AB43: =IF($F$69,'FRED Indicies'!D55) -> FALSE | AF43: 58 | AG43: FALSE | AH43: =IF(AG43,#REF!) -> FALSE | AN43: 40 | AO43: FALSE | AP43: =IF(AO43,'Commodity Prices'!C55) -> FALSE | AR43: =IF(AO43,'Commodity Prices'!D55) -> FALSE | AV43: 58 | AW43: FALSE | AX43: =IF(AW43,'Yahoo Stocks'!D49) -> FALSE | AY43: EXC | AZ43: =IF(AW43,'Yahoo Stocks'!E49) -> FALSE | BA43: EXELON CORPORATION | BB43: B | BC43: Yahoo | BD43: 39 | BE43: FALSE | BF43: =IF(BE43,#REF!) -> FALSE | BH43: =IF(BE43,#REF!) -> FALSE | BL43: 88 | BM43: FALSE | BN43: ='FRED Series'!D55 -> 0 | BP43: =IF(BM43,'FRED Series'!E55) -> FALSE
L44: 41 | M44: NGG | N44: NATIONAL GRID TRANSCO PLC | O44: B | P44: Yahoo | Q44: 41 | R44: FALSE | S44: =IF(R44,'Yahoo Index'!#REF!,"") ->  | T44: =IF(R44,'Yahoo Index'!E50,"") ->  | X44: 59 | Y44: FALSE | Z44: =IF($F$69,'FRED Indicies'!E56) -> FALSE | AB44: =IF($F$69,'FRED Indicies'!D56) -> FALSE | AF44: 59 | AG44: FALSE | AH44: =IF(AG44,#REF!) -> FALSE | AN44: 41 | AO44: FALSE | AP44: =IF(AO44,'Commodity Prices'!C56) -> FALSE | AR44: =IF(AO44,'Commodity Prices'!D56) -> FALSE | AV44: 59 | AW44: FALSE | AX44: =IF(AW44,'Yahoo Stocks'!D50) -> FALSE | AY44: NGG | AZ44: =IF(AW44,'Yahoo Stocks'!E50) -> FALSE | BA44: NATIONAL GRID TRANSCO PLC | BB44: B | BC44: Yahoo | BD44: 40 | BE44: FALSE | BF44: =IF(BE44,#REF!) -> FALSE | BH44: =IF(BE44,#REF!) -> FALSE | BL44: 89 | BM44: FALSE | BN44: ='FRED Series'!D56 -> 0 | BP44: =IF(BM44,'FRED Series'!E56) -> FALSE
L45: 42 | M45: MAEOY | N45: MERALCO | O45: B | P45: Yahoo | Q45: 42 | R45: FALSE | S45: =IF(R45,'Yahoo Index'!#REF!,"") ->  | T45: =IF(R45,'Yahoo Index'!E51,"") ->  | X45: 60 | Y45: FALSE | Z45: =IF($F$69,'FRED Indicies'!E57) -> FALSE | AB45: =IF($F$69,'FRED Indicies'!D57) -> FALSE | AF45: 60 | AG45: FALSE | AH45: =IF(AG45,#REF!) -> FALSE | AN45: 42 | AO45: FALSE | AP45: =IF(AO45,'Commodity Prices'!C57) -> FALSE | AR45: =IF(AO45,'Commodity Prices'!D57) -> FALSE | AV45: 60 | AW45: FALSE | AX45: =IF(AW45,'Yahoo Stocks'!D51) -> FALSE | AY45: MAEOY | AZ45: =IF(AW45,'Yahoo Stocks'!E51) -> FALSE | BA45: MERALCO | BB45: B | BC45: Yahoo | BD45: 41 | BE45: FALSE | BF45: =IF(BE45,#REF!) -> FALSE | BH45: =IF(BE45,#REF!) -> FALSE | BL45: 90 | BM45: FALSE | BN45: ='FRED Series'!D57 -> 0 | BP45: =IF(BM45,'FRED Series'!E57) -> FALSE
L46: 43 | M46: NTPC.NS | N46: NTPC | O46: B | P46: Yahoo | Q46: 43 | R46: FALSE | S46: =IF(R46,'Yahoo Index'!#REF!,"") ->  | T46: =IF(R46,'Yahoo Index'!E52,"") ->  | X46: 61 | Y46: FALSE | Z46: =IF($F$69,'FRED Indicies'!E58) -> FALSE | AB46: =IF($F$69,'FRED Indicies'!D58) -> FALSE | AF46: 61 | AG46: FALSE | AH46: =IF(AG46,#REF!) -> FALSE | AN46: 43 | AO46: FALSE | AP46: =IF(AO46,'Commodity Prices'!C58) -> FALSE | AR46: =IF(AO46,'Commodity Prices'!D58) -> FALSE | AV46: 61 | AW46: FALSE | AX46: =IF(AW46,'Yahoo Stocks'!D52) -> FALSE | AY46: NTPC.NS | AZ46: =IF(AW46,'Yahoo Stocks'!E52) -> FALSE | BA46: NTPC | BB46: B | BC46: Yahoo | BD46: 42 | BE46: FALSE | BF46: =IF(BE46,#REF!) -> FALSE | BH46: =IF(BE46,#REF!) -> FALSE | BL46: 91 | BM46: FALSE | BN46: ='FRED Series'!D58 -> 0 | BP46: =IF(BM46,'FRED Series'!E58) -> FALSE
L47: 44 | M47: ELE.MC | N47: ENDESA SA | O47: B | P47: Yahoo | Q47: 44 | R47: FALSE | S47: =IF(R47,'Yahoo Index'!#REF!,"") ->  | T47: =IF(R47,'Yahoo Index'!E53,"") ->  | X47: 62 | Y47: FALSE | Z47: =IF($F$69,'FRED Indicies'!E59) -> FALSE | AB47: =IF($F$69,'FRED Indicies'!D59) -> FALSE | AF47: 62 | AG47: FALSE | AH47: =IF(AG47,#REF!) -> FALSE | AN47: 44 | AO47: FALSE | AP47: =IF(AO47,'Commodity Prices'!C59) -> FALSE | AR47: =IF(AO47,'Commodity Prices'!D59) -> FALSE | AV47: 62 | AW47: FALSE | AX47: =IF(AW47,'Yahoo Stocks'!D53) -> FALSE | AY47: ELE.MC | AZ47: =IF(AW47,'Yahoo Stocks'!E53) -> FALSE | BA47: ENDESA SA | BB47: B | BC47: Yahoo | BD47: 43 | BE47: FALSE | BF47: =IF(BE47,#REF!) -> FALSE | BH47: =IF(BE47,#REF!) -> FALSE | BL47: 92 | BM47: FALSE | BN47: ='FRED Series'!D59 -> 0 | BP47: =IF(BM47,'FRED Series'!E59) -> FALSE
L48: 45 | M48: PNM | N48: PNM Resources | O48: B | P48: Yahoo | Q48: 45 | R48: FALSE | S48: =IF(R48,'Yahoo Index'!#REF!,"") ->  | T48: =IF(R48,'Yahoo Index'!E54,"") ->  | X48: 63 | Y48: FALSE | Z48: =IF($F$69,'FRED Indicies'!E60) -> FALSE | AB48: =IF($F$69,'FRED Indicies'!D60) -> FALSE | AF48: 63 | AG48: FALSE | AH48: =IF(AG48,#REF!) -> FALSE | AN48: 45 | AO48: FALSE | AP48: =IF(AO48,'Commodity Prices'!C60) -> FALSE | AR48: =IF(AO48,'Commodity Prices'!D60) -> FALSE | AV48: 63 | AW48: FALSE | AX48: =IF(AW48,'Yahoo Stocks'!D54) -> FALSE | AY48: PNM | AZ48: =IF(AW48,'Yahoo Stocks'!E54) -> FALSE | BA48: PNM Resources | BB48: B | BC48: Yahoo | BD48: 44 | BE48: FALSE | BF48: =IF(BE48,#REF!) -> FALSE | BH48: =IF(BE48,#REF!) -> FALSE | BL48: 93 | BM48: FALSE | BN48: ='FRED Series'!D60 -> 0 | BP48: =IF(BM48,'FRED Series'!E60) -> FALSE
L49: 46 | M49: TSLA | N49: Tesla | O49: B | P49: Yahoo | Q49: 46 | R49: FALSE | S49: =IF(R49,'Yahoo Index'!#REF!,"") ->  | T49: =IF(R49,'Yahoo Index'!E55,"") ->  | X49: 64 | Y49: FALSE | Z49: =IF($F$69,'FRED Indicies'!E61) -> FALSE | AB49: =IF($F$69,'FRED Indicies'!D61) -> FALSE | AF49: 64 | AG49: FALSE | AH49: =IF(AG49,#REF!) -> FALSE | AN49: 46 | AO49: FALSE | AP49: =IF(AO49,'Commodity Prices'!C61) -> FALSE | AR49: =IF(AO49,'Commodity Prices'!D61) -> FALSE | AV49: 64 | AW49: FALSE | AX49: =IF(AW49,'Yahoo Stocks'!D55) -> FALSE | AY49: TSLA | AZ49: =IF(AW49,'Yahoo Stocks'!E55) -> FALSE | BA49: Tesla | BB49: B | BC49: Yahoo | BD49: 45 | BE49: FALSE | BF49: =IF(BE49,#REF!) -> FALSE | BH49: =IF(BE49,#REF!) -> FALSE | BL49: 94 | BM49: FALSE | BN49: ='FRED Series'!D61 -> 0 | BP49: =IF(BM49,'FRED Series'!E61) -> FALSE
L50: 47 | M50: AAPL | N50: Apple | O50: B | P50: Yahoo | Q50: 47 | R50: FALSE | S50: =IF(R50,'Yahoo Index'!#REF!,"") ->  | T50: =IF(R50,'Yahoo Index'!E56,"") ->  | X50: 65 | Y50: FALSE | Z50: =IF($F$69,'FRED Indicies'!E62) -> FALSE | AB50: =IF($F$69,'FRED Indicies'!D62) -> FALSE | AF50: 65 | AG50: FALSE | AH50: =IF(AG50,#REF!) -> FALSE | AN50: 47 | AO50: FALSE | AP50: =IF(AO50,'Commodity Prices'!C62) -> FALSE | AR50: =IF(AO50,'Commodity Prices'!D62) -> FALSE | AV50: 65 | AW50: FALSE | AX50: =IF(AW50,'Yahoo Stocks'!D56) -> FALSE | AY50: AAPL | AZ50: =IF(AW50,'Yahoo Stocks'!E56) -> FALSE | BA50: Apple | BB50: B | BC50: Yahoo | BD50: 46 | BE50: FALSE | BF50: =IF(BE50,#REF!) -> FALSE | BH50: =IF(BE50,#REF!) -> FALSE | BL50: 95 | BM50: FALSE | BN50: ='FRED Series'!D62 -> 0 | BP50: =IF(BM50,'FRED Series'!E62) -> FALSE
L51: 48 | M51: AMZN | N51: Amazon | O51: B | P51: Yahoo | Q51: 48 | R51: FALSE | S51: =IF(R51,'Yahoo Index'!#REF!,"") ->  | T51: =IF(R51,'Yahoo Index'!E57,"") ->  | X51: 66 | Y51: FALSE | Z51: =IF($F$69,'FRED Indicies'!E63) -> FALSE | AB51: =IF($F$69,'FRED Indicies'!D63) -> FALSE | AF51: 66 | AG51: FALSE | AH51: =IF(AG51,#REF!) -> FALSE | AN51: 48 | AO51: FALSE | AP51: =IF(AO51,'Commodity Prices'!C63) -> FALSE | AR51: =IF(AO51,'Commodity Prices'!D63) -> FALSE | AV51: 66 | AW51: FALSE | AX51: =IF(AW51,'Yahoo Stocks'!D57) -> FALSE | AY51: AMZN | AZ51: =IF(AW51,'Yahoo Stocks'!E57) -> FALSE | BA51: Amazon | BB51: B | BC51: Yahoo | BD51: 47 | BE51: FALSE | BF51: =IF(BE51,#REF!) -> FALSE | BH51: =IF(BE51,#REF!) -> FALSE | BL51: 96 | BM51: FALSE | BN51: ='FRED Series'!D63 -> 0 | BP51: =IF(BM51,'FRED Series'!E63) -> FALSE
L52: 49 | M52: GDP Inf | N52: GDP Inf | O52: B | P52: FRED | Q52: 49 | R52: FALSE | S52: =IF(R52,'Yahoo Index'!#REF!,"") ->  | T52: =IF(R52,'Yahoo Index'!E58,"") ->  | X52: 67 | Y52: FALSE | Z52: =IF($F$69,'FRED Indicies'!E64) -> FALSE | AB52: =IF($F$69,'FRED Indicies'!D64) -> FALSE | AF52: 67 | AG52: FALSE | AH52: =IF(AG52,#REF!) -> FALSE | AN52: 49 | AO52: FALSE | AP52: =IF(AO52,'Commodity Prices'!C64) -> FALSE | AR52: =IF(AO52,'Commodity Prices'!D64) -> FALSE | AV52: 67 | AW52: FALSE | AX52: =IF(AW52,'Yahoo Stocks'!D58) -> FALSE | AZ52: =IF(AW52,'Yahoo Stocks'!E58) -> FALSE | BD52: 48 | BE52: FALSE | BF52: =IF(BE52,#REF!) -> FALSE | BH52: =IF(BE52,#REF!) -> FALSE | BL52: 97 | BM52: FALSE | BN52: ='FRED Series'!D64 -> 0 | BO52: GDP Inf | BP52: =IF(BM52,'FRED Series'!E64) -> FALSE | BQ52: GDP Inf | BR52: B | BS52: FRED
L53: 50 | M53: CPI US | N53: CPI US | O53: B | P53: FRED | Q53: 50 | R53: FALSE | S53: =IF(R53,'Yahoo Index'!#REF!,"") ->  | T53: =IF(R53,'Yahoo Index'!E59,"") ->  | X53: 68 | Y53: FALSE | Z53: =IF($F$69,'FRED Indicies'!E65) -> FALSE | AB53: =IF($F$69,'FRED Indicies'!D65) -> FALSE | AF53: 68 | AG53: FALSE | AH53: =IF(AG53,#REF!) -> FALSE | AN53: 50 | AO53: FALSE | AP53: =IF(AO53,'Commodity Prices'!C65) -> FALSE | AR53: =IF(AO53,'Commodity Prices'!D65) -> FALSE | AV53: 68 | AW53: FALSE | AX53: =IF(AW53,'Yahoo Stocks'!D59) -> FALSE | AZ53: =IF(AW53,'Yahoo Stocks'!E59) -> FALSE | BD53: 49 | BE53: FALSE | BF53: =IF(BE53,#REF!) -> FALSE | BH53: =IF(BE53,#REF!) -> FALSE | BL53: 98 | BM53: FALSE | BN53: ='FRED Series'!D65 -> 0 | BO53: CPI US | BP53: =IF(BM53,'FRED Series'!E65) -> FALSE | BQ53: CPI US | BR53: B | BS53: FRED
L54: 51 | M54: Euro | N54: Euro | O54: B | P54: FRED | Q54: 51 | R54: FALSE | S54: =IF(R54,'Yahoo Index'!#REF!,"") ->  | T54: =IF(R54,'Yahoo Index'!E60,"") ->  | X54: 69 | Y54: FALSE | Z54: =IF($F$69,'FRED Indicies'!E66) -> FALSE | AB54: =IF($F$69,'FRED Indicies'!D66) -> FALSE | AF54: 69 | AG54: FALSE | AH54: =IF(AG54,#REF!) -> FALSE | AN54: 51 | AO54: FALSE | AP54: =IF(AO54,'Commodity Prices'!C66) -> FALSE | AR54: =IF(AO54,'Commodity Prices'!D66) -> FALSE | AV54: 69 | AW54: FALSE | AX54: =IF(AW54,'Yahoo Stocks'!D60) -> FALSE | AZ54: =IF(AW54,'Yahoo Stocks'!E60) -> FALSE | BD54: 50 | BE54: FALSE | BF54: =IF(BE54,#REF!) -> FALSE | BH54: =IF(BE54,#REF!) -> FALSE | BL54: 99 | BM54: FALSE | BN54: ='FRED Series'!D66 -> 0 | BO54: Euro | BP54: =IF(BM54,'FRED Series'!E66) -> FALSE | BQ54: Euro | BR54: B | BS54: FRED
L55: 52 | M55: INR | N55: INR | O55: B | P55: FRED | Q55: 52 | R55: FALSE | S55: =IF(R55,'Yahoo Index'!#REF!,"") ->  | T55: =IF(R55,'Yahoo Index'!E61,"") ->  | X55: 70 | Y55: FALSE | Z55: =IF($F$69,'FRED Indicies'!E67) -> FALSE | AB55: =IF($F$69,'FRED Indicies'!D67) -> FALSE | AF55: 70 | AG55: FALSE | AH55: =IF(AG55,#REF!) -> FALSE | AN55: 52 | AO55: FALSE | AP55: =IF(AO55,'Commodity Prices'!C67) -> FALSE | AR55: =IF(AO55,'Commodity Prices'!D67) -> FALSE | AV55: 70 | AW55: FALSE | AX55: =IF(AW55,'Yahoo Stocks'!D61) -> FALSE | AZ55: =IF(AW55,'Yahoo Stocks'!E61) -> FALSE | BD55: 51 | BE55: FALSE | BF55: =IF(BE55,#REF!) -> FALSE | BH55: =IF(BE55,#REF!) -> FALSE | BL55: 100 | BM55: FALSE | BN55: ='FRED Series'!D67 -> 0 | BO55: INR | BP55: =IF(BM55,'FRED Series'!E67) -> FALSE | BQ55: INR | BR55: B | BS55: FRED
L56: 53 | M56: UK | N56: UK | O56: B | P56: FRED | Q56: 53 | R56: FALSE | S56: =IF(R56,'Yahoo Index'!#REF!,"") ->  | T56: =IF(R56,'Yahoo Index'!E62,"") ->  | X56: 71 | Y56: FALSE | Z56: =IF($F$69,'FRED Indicies'!E68) -> FALSE | AB56: =IF($F$69,'FRED Indicies'!D68) -> FALSE | AF56: 71 | AG56: FALSE | AH56: =IF(AG56,#REF!) -> FALSE | AN56: 53 | AO56: FALSE | AP56: =IF(AO56,'Commodity Prices'!C68) -> FALSE | AR56: =IF(AO56,'Commodity Prices'!D68) -> FALSE | AV56: 71 | AW56: FALSE | AX56: =IF(AW56,'Yahoo Stocks'!D62) -> FALSE | AZ56: =IF(AW56,'Yahoo Stocks'!E62) -> FALSE | BD56: 52 | BE56: FALSE | BF56: =IF(BE56,#REF!) -> FALSE | BH56: =IF(BE56,#REF!) -> FALSE | BL56: 101 | BM56: FALSE | BN56: ='FRED Series'!D68 -> 0 | BO56: UK | BP56: =IF(BM56,'FRED Series'!E68) -> FALSE | BQ56: UK | BR56: B | BS56: FRED
L57: 54 | M57: PKR | N57: PKR | O57: B | P57: FRED | Q57: 54 | R57: FALSE | S57: =IF(R57,'Yahoo Index'!#REF!,"") ->  | T57: =IF(R57,'Yahoo Index'!E63,"") ->  | X57: 72 | Y57: FALSE | Z57: =IF($F$69,'FRED Indicies'!E69) -> FALSE | AB57: =IF($F$69,'FRED Indicies'!D69) -> FALSE | AF57: 72 | AG57: FALSE | AH57: =IF(AG57,#REF!) -> FALSE | AN57: 54 | AO57: FALSE | AP57: =IF(AO57,'Commodity Prices'!C69) -> FALSE | AR57: =IF(AO57,'Commodity Prices'!D69) -> FALSE | AV57: 72 | AW57: FALSE | AX57: =IF(AW57,'Yahoo Stocks'!D63) -> FALSE | AZ57: =IF(AW57,'Yahoo Stocks'!E63) -> FALSE | BD57: 53 | BE57: FALSE | BF57: =IF(BE57,#REF!) -> FALSE | BH57: =IF(BE57,#REF!) -> FALSE | BL57: 102 | BM57: FALSE | BN57: ='FRED Series'!D69 -> 0 | BO57: PKR | BP57: =IF(BM57,'FRED Series'!E69) -> FALSE | BQ57: PKR | BR57: B | BS57: FRED
L58: 55 | M58: US NOM GNP | N58: US NOM GNP | O58: B | P58: FRED | Q58: 55 | R58: FALSE | S58: =IF(R58,'Yahoo Index'!#REF!,"") ->  | T58: =IF(R58,'Yahoo Index'!E64,"") ->  | X58: 73 | Y58: FALSE | Z58: =IF($F$69,'FRED Indicies'!E70) -> FALSE | AB58: =IF($F$69,'FRED Indicies'!D70) -> FALSE | AF58: 73 | AG58: FALSE | AH58: =IF(AG58,#REF!) -> FALSE | AN58: 55 | AO58: FALSE | AP58: =IF(AO58,'Commodity Prices'!C70) -> FALSE | AR58: =IF(AO58,'Commodity Prices'!D70) -> FALSE | AV58: 73 | AW58: FALSE | AX58: =IF(AW58,'Yahoo Stocks'!D64) -> FALSE | AZ58: =IF(AW58,'Yahoo Stocks'!E64) -> FALSE | BD58: 54 | BE58: FALSE | BF58: =IF(BE58,#REF!) -> FALSE | BH58: =IF(BE58,#REF!) -> FALSE | BL58: 103 | BM58: FALSE | BN58: ='FRED Series'!D70 -> 0 | BO58: US NOM GNP | BP58: =IF(BM58,'FRED Series'!E70) -> FALSE | BQ58: US NOM GNP | BR58: B | BS58: FRED
L59: 56 | M59: 5 yr treasury | N59: 5 yr treasury | O59: B | P59: FRED | Q59: 56 | R59: FALSE | S59: =IF(R59,'Yahoo Index'!#REF!,"") ->  | T59: =IF(R59,'Yahoo Index'!E65,"") ->  | X59: 74 | Y59: FALSE | Z59: =IF($F$69,'FRED Indicies'!E71) -> FALSE | AB59: =IF($F$69,'FRED Indicies'!D71) -> FALSE | AF59: 74 | AG59: FALSE | AH59: =IF(AG59,#REF!) -> FALSE | AN59: 56 | AO59: FALSE | AP59: =IF(AO59,'Commodity Prices'!C71) -> FALSE | AR59: =IF(AO59,'Commodity Prices'!D71) -> FALSE | AV59: 74 | AW59: FALSE | AX59: =IF(AW59,'Yahoo Stocks'!D65) -> FALSE | AZ59: =IF(AW59,'Yahoo Stocks'!E65) -> FALSE | BD59: 55 | BE59: FALSE | BF59: =IF(BE59,#REF!) -> FALSE | BH59: =IF(BE59,#REF!) -> FALSE | BL59: 104 | BM59: FALSE | BN59: ='FRED Series'!D71 -> 0 | BO59: 5 yr treasury | BP59: =IF(BM59,'FRED Series'!E71) -> FALSE | BQ59: 5 yr treasury | BR59: B | BS59: FRED
L60: 57 | M60: 10 year treasury | N60: 10 year treasury | O60: B | P60: FRED | Q60: 57 | R60: FALSE | S60: =IF(R60,'Yahoo Index'!#REF!,"") ->  | T60: =IF(R60,'Yahoo Index'!E66,"") ->  | X60: 75 | Y60: FALSE | Z60: =IF($F$69,'FRED Indicies'!E72) -> FALSE | AB60: =IF($F$69,'FRED Indicies'!D72) -> FALSE | AF60: 75 | AG60: FALSE | AH60: =IF(AG60,#REF!) -> FALSE | AN60: 57 | AO60: FALSE | AP60: =IF(AO60,'Commodity Prices'!C72) -> FALSE | AR60: =IF(AO60,'Commodity Prices'!D72) -> FALSE | AV60: 75 | AW60: FALSE | AX60: =IF(AW60,'Yahoo Stocks'!D66) -> FALSE | AZ60: =IF(AW60,'Yahoo Stocks'!E66) -> FALSE | BD60: 56 | BE60: FALSE | BF60: =IF(BE60,#REF!) -> FALSE | BH60: =IF(BE60,#REF!) -> FALSE | BL60: 105 | BM60: FALSE | BN60: ='FRED Series'!D72 -> 0 | BO60: 10 year treasury | BP60: =IF(BM60,'FRED Series'!E72) -> FALSE | BQ60: 10 year treasury | BR60: B | BS60: FRED
L61: 58 | M61: US Med Inc Nom | N61: US Med Inc Nom | O61: B | P61: FRED | Q61: 58 | R61: FALSE | S61: =IF(R61,'Yahoo Index'!#REF!,"") ->  | T61: =IF(R61,'Yahoo Index'!E67,"") ->  | X61: 76 | Y61: FALSE | Z61: =IF($F$69,'FRED Indicies'!E73) -> FALSE | AB61: =IF($F$69,'FRED Indicies'!D73) -> FALSE | AF61: 76 | AG61: FALSE | AH61: =IF(AG61,#REF!) -> FALSE | AN61: 58 | AO61: FALSE | AP61: =IF(AO61,'Commodity Prices'!C73) -> FALSE | AR61: =IF(AO61,'Commodity Prices'!D73) -> FALSE | AV61: 76 | AW61: FALSE | AX61: =IF(AW61,'Yahoo Stocks'!D67) -> FALSE | AZ61: =IF(AW61,'Yahoo Stocks'!E67) -> FALSE | BD61: 57 | BE61: FALSE | BF61: =IF(BE61,#REF!) -> FALSE | BH61: =IF(BE61,#REF!) -> FALSE | BL61: 106 | BM61: FALSE | BN61: ='FRED Series'!D73 -> 0 | BO61: US Med Inc Nom | BP61: =IF(BM61,'FRED Series'!E73) -> FALSE | BQ61: US Med Inc Nom | BR61: B | BS61: FRED
L62: 59 | M62: Median Income | N62: Median Income | O62: B | P62: FRED | Q62: 59 | R62: FALSE | S62: =IF(R62,'Yahoo Index'!#REF!,"") ->  | T62: =IF(R62,'Yahoo Index'!E68,"") ->  | X62: 77 | Y62: FALSE | Z62: =IF($F$69,'FRED Indicies'!E74) -> FALSE | AB62: =IF($F$69,'FRED Indicies'!D74) -> FALSE | AF62: 77 | AG62: FALSE | AH62: =IF(AG62,#REF!) -> FALSE | AN62: 59 | AO62: FALSE | AP62: =IF(AO62,'Commodity Prices'!C74) -> FALSE | AR62: =IF(AO62,'Commodity Prices'!D74) -> FALSE | AV62: 77 | AW62: FALSE | AX62: =IF(AW62,'Yahoo Stocks'!D68) -> FALSE | AZ62: =IF(AW62,'Yahoo Stocks'!E68) -> FALSE | BD62: 58 | BE62: FALSE | BF62: =IF(BE62,#REF!) -> FALSE | BH62: =IF(BE62,#REF!) -> FALSE | BL62: 107 | BM62: FALSE | BN62: ='FRED Series'!D74 -> 0 | BO62: Median Income | BP62: =IF(BM62,'FRED Series'!E74) -> FALSE | BQ62: Median Income | BR62: B | BS62: FRED
F63: FALSE | G63: =H72+1 -> 1 | H63: 0 | I63: B | J63: FRED | L63: 60 | M63: Corp Profit | N63: Corp Profit | O63: B | P63: FRED | Q63: 60 | R63: FALSE | S63: =IF(R63,'Yahoo Index'!#REF!,"") ->  | T63: =IF(R63,'Yahoo Index'!E69,"") ->  | X63: 78 | Y63: FALSE | Z63: =IF($F$69,'FRED Indicies'!E75) -> FALSE | AB63: =IF($F$69,'FRED Indicies'!D75) -> FALSE | AF63: 78 | AG63: FALSE | AH63: =IF(AG63,#REF!) -> FALSE | AN63: 60 | AO63: FALSE | AP63: =IF(AO63,'Commodity Prices'!C75) -> FALSE | AR63: =IF(AO63,'Commodity Prices'!D75) -> FALSE | AV63: 78 | AW63: FALSE | AX63: =IF(AW63,'Yahoo Stocks'!D69) -> FALSE | AZ63: =IF(AW63,'Yahoo Stocks'!E69) -> FALSE | BD63: 59 | BE63: FALSE | BF63: =IF(BE63,#REF!) -> FALSE | BH63: =IF(BE63,#REF!) -> FALSE | BL63: 108 | BM63: FALSE | BN63: ='FRED Series'!D75 -> 0 | BO63: Corp Profit | BP63: =IF(BM63,'FRED Series'!E75) -> FALSE | BQ63: Corp Profit | BR63: B | BS63: FRED
L64: 61 | M64: Corp Nonfin | N64: Corp Nonfin | O64: B | P64: FRED | Q64: 61 | R64: FALSE | S64: =IF(R64,'Yahoo Index'!#REF!,"") ->  | T64: =IF(R64,'Yahoo Index'!E70,"") ->  | X64: 79 | Y64: FALSE | Z64: =IF($F$69,'FRED Indicies'!E76) -> FALSE | AB64: =IF($F$69,'FRED Indicies'!D76) -> FALSE | AF64: 79 | AG64: FALSE | AH64: =IF(AG64,#REF!) -> FALSE | AN64: 61 | AO64: FALSE | AP64: =IF(AO64,'Commodity Prices'!C76) -> FALSE | AR64: =IF(AO64,'Commodity Prices'!D76) -> FALSE | AV64: 79 | AW64: FALSE | AX64: =IF(AW64,'Yahoo Stocks'!D70) -> FALSE | AZ64: =IF(AW64,'Yahoo Stocks'!E70) -> FALSE | BD64: 60 | BE64: FALSE | BF64: =IF(BE64,#REF!) -> FALSE | BH64: =IF(BE64,#REF!) -> FALSE | BL64: 109 | BM64: FALSE | BN64: ='FRED Series'!D76 -> 0 | BO64: Corp Nonfin | BP64: =IF(BM64,'FRED Series'!E76) -> FALSE | BQ64: Corp Nonfin | BR64: B | BS64: FRED
L65: 62 | M65: Corp Aft Tax | N65: Corp Aft Tax | O65: B | P65: FRED | Q65: 62 | R65: FALSE | S65: =IF(R65,'Yahoo Index'!#REF!,"") ->  | T65: =IF(R65,'Yahoo Index'!E71,"") ->  | X65: 80 | Y65: FALSE | Z65: =IF($F$69,'FRED Indicies'!E77) -> FALSE | AB65: =IF($F$69,'FRED Indicies'!D77) -> FALSE | AF65: 80 | AG65: FALSE | AH65: =IF(AG65,#REF!) -> FALSE | AN65: 62 | AO65: FALSE | AP65: =IF(AO65,'Commodity Prices'!C77) -> FALSE | AR65: =IF(AO65,'Commodity Prices'!D77) -> FALSE | AV65: 80 | AW65: FALSE | AX65: =IF(AW65,'Yahoo Stocks'!D71) -> FALSE | AZ65: =IF(AW65,'Yahoo Stocks'!E71) -> FALSE | BD65: 61 | BE65: FALSE | BF65: =IF(BE65,#REF!) -> FALSE | BH65: =IF(BE65,#REF!) -> FALSE | BL65: 110 | BM65: FALSE | BN65: ='FRED Series'!D77 -> 0 | BO65: Corp Aft Tax | BP65: =IF(BM65,'FRED Series'!E77) -> FALSE | BQ65: Corp Aft Tax | BR65: B | BS65: FRED
F66: FALSE | G66: 0 | H66: =0*F66+G66 -> 0 | I66: D | J66: Google | L66: 63 | M66: Corp Inf Adjusted | N66: Corp Inf Adjusted | O66: B | P66: FRED | Q66: 63 | R66: FALSE | S66: =IF(R66,'Yahoo Index'!#REF!,"") ->  | T66: =IF(R66,'Yahoo Index'!E72,"") ->  | X66: 81 | Y66: FALSE | Z66: =IF($F$69,'FRED Indicies'!E78) -> FALSE | AB66: =IF($F$69,'FRED Indicies'!D78) -> FALSE | AF66: 81 | AG66: FALSE | AH66: =IF(AG66,#REF!) -> FALSE | AN66: 63 | AO66: FALSE | AP66: =IF(AO66,'Commodity Prices'!C78) -> FALSE | AR66: =IF(AO66,'Commodity Prices'!D78) -> FALSE | AV66: 81 | AW66: FALSE | AX66: =IF(AW66,'Yahoo Stocks'!D72) -> FALSE | AZ66: =IF(AW66,'Yahoo Stocks'!E72) -> FALSE | BD66: 62 | BE66: FALSE | BF66: =IF(BE66,#REF!) -> FALSE | BH66: =IF(BE66,#REF!) -> FALSE | BL66: 111 | BM66: FALSE | BN66: ='FRED Series'!D78 -> 0 | BO66: Corp Inf Adjusted | BP66: =IF(BM66,'FRED Series'!E78) -> FALSE | BQ66: Corp Inf Adjusted | BR66: B | BS66: FRED
L67: 64 | M67: GDP Inflation Index | N67: GDP Inflation Index | O67: B | P67: FRED | Q67: 64 | R67: FALSE | S67: =IF(R67,'Yahoo Index'!#REF!,"") ->  | T67: =IF(R67,'Yahoo Index'!E73,"") ->  | X67: 82 | Y67: FALSE | Z67: =IF($F$69,'FRED Indicies'!E79) -> FALSE | AB67: =IF($F$69,'FRED Indicies'!D79) -> FALSE | AF67: 82 | AG67: FALSE | AH67: =IF(AG67,#REF!) -> FALSE | AN67: 64 | AO67: FALSE | AP67: =IF(AO67,'Commodity Prices'!C79) -> FALSE | AR67: =IF(AO67,'Commodity Prices'!D79) -> FALSE | AV67: 82 | AW67: FALSE | AX67: =IF(AW67,'Yahoo Stocks'!D73) -> FALSE | AZ67: =IF(AW67,'Yahoo Stocks'!E73) -> FALSE | BD67: 63 | BE67: FALSE | BF67: =IF(BE67,#REF!) -> FALSE | BH67: =IF(BE67,#REF!) -> FALSE | BL67: 112 | BM67: FALSE | BN67: ='FRED Series'!D79 -> 0 | BO67: GDP Inflation Index | BP67: =IF(BM67,'FRED Series'!E79) -> FALSE | BQ67: GDP Inflation Index | BR67: B | BS67: FRED
L68: 65 | M68: CPI US Index | N68: CPI US Index | O68: =U68&AD68&AL68&AT68&BB68&BJ68&BR68 -> B | P68: =V68&AE68&AM68&AU68&BC68&BK68&BS68 -> FRED | Q68: 65 | R68: FALSE | S68: =IF(R68,'Yahoo Index'!#REF!,"") ->  | T68: =IF(R68,'Yahoo Index'!E74,"") ->  | U68: =IF(R68,$I$4,"") ->  | V68: =IF(R68,$J$4,"") ->  | X68: 83 | Y68: =IF(AND($F$69,X68<=$H$69),X68) -> FALSE | Z68: =IF($F$69,'FRED Indicies'!E80) -> FALSE | AA68: =IFERROR(INDEX(Z:Z,MATCH(L68,Y:Y,0)),"") ->  | AB68: =IF($F$69,'FRED Indicies'!D80) -> FALSE | AC68: =IFERROR(INDEX(AB:AB,MATCH(L68,Y:Y,0)),"") ->  | AD68: =IF(AA68<>"",$I$69,"") ->  | AE68: =IF(AA68<>"",$J$69,"") ->  | AF68: 83 | AG68: =IF(AND($F$72,AF68<=$H$72),AF68) -> FALSE | AH68: =IF(AG68,#REF!) -> FALSE | AI68: =IFERROR(INDEX(AH:AH,MATCH(Q68,AG:AG,0)),"") ->  | AK68: =IFERROR(INDEX(AJ:AJ,MATCH(Q68,AG:AG,0)),"") ->  | AL68: =IF(AI68<>"",$I$69,"") ->  | AM68: =IF(AK68<>"",$J$69,"") ->  | AN68: 65 | AO68: =IF(AND($F$63,AN68<=$H$63),AN68) -> FALSE | AP68: =IF(AO68,'Commodity Prices'!C80) -> FALSE | AQ68: =IFERROR(INDEX(AP:AP,MATCH(L68,AO:AO,0)),"") ->  | AR68: =IF(AO68,'Commodity Prices'!D80) -> FALSE | AS68: =IFERROR(INDEX(AR:AR,MATCH(L68,AO:AO,0)),"") ->  | AT68: =IF(AQ68<>"",$I$63,"") ->  | AU68: =IF(AS68<>"",$J$63,"") ->  | AV68: 83 | AW68: =IF(AND($F$6,AV68<=$H$6),AV68) -> FALSE | AX68: =IF(AW68,'Yahoo Stocks'!D74) -> FALSE | AZ68: =IF(AW68,'Yahoo Stocks'!E74) -> FALSE | BB68: =IF(AY68<>"",$I$6,"") ->  | BC68: =IF(BA68<>"",$J$6,"") ->  | BD68: 64 | BE68: =IF(AND($F$66,BD68<=$H$66),BD68) -> FALSE | BF68: =IF(BE68,#REF!) -> FALSE | BG68: =IFERROR(INDEX(BF:BF,MATCH(Q68,BE:BE,0)),"") ->  | BH68: =IF(BE68,#REF!) -> FALSE | BI68: =IFERROR(INDEX(BH:BH,MATCH(Q68,BE:BE,0)),"") ->  | BJ68: =IF(BI68<>"",$I$66,"") ->  | BK68: =IF(BI68<>"",$J$66,"") ->  | BL68: 113 | BM68: =IF(AND($F$9,BL68<=$H$9),BL68) -> FALSE | BN68: ='FRED Series'!D80 -> 0 | BO68: =IFERROR(INDEX(BN:BN,MATCH(L68,BM:BM,0)),"") -> CPI US Index | BP68: =IF(BM68,'FRED Series'!E80) -> FALSE | BQ68: CPI US Index | BR68: =IF(BQ68<>"",$I$9,"") -> B | BS68: =IF(BQ68<>"",$J$9,"") -> FRED
F69: FALSE | G69: =H4+1 -> 19 | H69: ='FRED Indicies'!Total_Index*F69+G69-1 -> 18 | I69: B | J69: FRED | L69: 66 | M69: US GDP | N69: US GDP | O69: B | P69: FRED | Q69: =Q68+1 -> 66 | R69: =IF(AND($F$4,Q69<=$H$4),Q69) -> FALSE | S69: =IF(R69,'Yahoo Index'!#REF!,"") ->  | T69: =IF(R69,'Yahoo Index'!E75,"") ->  | X69: =X68+1 -> 84 | Y69: FALSE | Z69: =IF($F$69,'FRED Indicies'!E81) -> FALSE | AB69: =IF($F$69,'FRED Indicies'!D81) -> FALSE | AF69: =AF68+1 -> 84 | AG69: FALSE | AH69: =IF(AG69,#REF!) -> FALSE | AN69: =AN68+1 -> 66 | AO69: FALSE | AP69: =IF(AO69,'Commodity Prices'!C81) -> FALSE | AR69: =IF(AO69,'Commodity Prices'!D81) -> FALSE | AV69: =AV68+1 -> 84 | AW69: FALSE | AX69: =IF(AW69,'Yahoo Stocks'!D75) -> FALSE | AZ69: =IF(AW69,'Yahoo Stocks'!E75) -> FALSE | BD69: =BD68+1 -> 65 | BE69: FALSE | BF69: =IF(BE69,#REF!) -> FALSE | BH69: =IF(BE69,#REF!) -> FALSE | BL69: =BL68+1 -> 114 | BM69: FALSE | BN69: ='FRED Series'!D81 -> 0 | BO69: US GDP | BP69: =IF(BM69,'FRED Series'!E81) -> FALSE | BQ69: =IFERROR(INDEX(BN:BN,MATCH(L69,BM:BM,0)),"") -> US GDP | BR69: B | BS69: FRED
L70: 67 | M70: Median Family Income | N70: Median Family Income | O70: B | P70: FRED | Q70: 67 | R70: FALSE | S70: =IF(R70,'Yahoo Index'!#REF!,"") ->  | T70: =IF(R70,'Yahoo Index'!E76,"") ->  | X70: 85 | Y70: FALSE | Z70: =IF($F$69,'FRED Indicies'!E82) -> FALSE | AB70: =IF($F$69,'FRED Indicies'!D82) -> FALSE | AF70: 85 | AG70: FALSE | AH70: =IF(AG70,#REF!) -> FALSE | AN70: 67 | AO70: FALSE | AP70: =IF(AO70,'Commodity Prices'!C82) -> FALSE | AR70: =IF(AO70,'Commodity Prices'!D82) -> FALSE | AV70: 85 | AW70: FALSE | AX70: =IF(AW70,'Yahoo Stocks'!D76) -> FALSE | AZ70: =IF(AW70,'Yahoo Stocks'!E76) -> FALSE | BD70: 66 | BE70: FALSE | BF70: =IF(BE70,#REF!) -> FALSE | BH70: =IF(BE70,#REF!) -> FALSE | BL70: 115 | BM70: FALSE | BN70: ='FRED Series'!D82 -> 0 | BO70: Median Family Income | BP70: =IF(BM70,'FRED Series'!E82) -> FALSE | BQ70: Median Family Income | BR70: B | BS70: FRED
L71: 68 | M71: US Real GDP | N71: US Real GDP | O71: B | P71: FRED | Q71: 68 | R71: FALSE | S71: =IF(R71,'Yahoo Index'!#REF!,"") ->  | T71: =IF(R71,'Yahoo Index'!E77,"") ->  | X71: 86 | Y71: FALSE | Z71: =IF($F$69,'FRED Indicies'!E83) -> FALSE | AB71: =IF($F$69,'FRED Indicies'!D83) -> FALSE | AF71: 86 | AG71: FALSE | AH71: =IF(AG71,#REF!) -> FALSE | AN71: 68 | AO71: FALSE | AP71: =IF(AO71,'Commodity Prices'!C83) -> FALSE | AR71: =IF(AO71,'Commodity Prices'!D83) -> FALSE | AV71: 86 | AW71: FALSE | AX71: =IF(AW71,'Yahoo Stocks'!D77) -> FALSE | AZ71: =IF(AW71,'Yahoo Stocks'!E77) -> FALSE | BD71: 67 | BE71: FALSE | BF71: =IF(BE71,#REF!) -> FALSE | BH71: =IF(BE71,#REF!) -> FALSE | BL71: 116 | BM71: FALSE | BN71: ='FRED Series'!D83 -> 0 | BO71: US Real GDP | BP71: =IF(BM71,'FRED Series'!E83) -> FALSE | BQ71: US Real GDP | BR71: B | BS71: FRED
F72: FALSE | G72: =H69+1 -> 19 | H72: 0 | I72: D | J72: Google | L72: 69 | M72: US Real GNP | N72: US Real GNP | O72: B | P72: FRED | Q72: 69 | R72: FALSE | S72: =IF(R72,'Yahoo Index'!#REF!,"") ->  | T72: =IF(R72,'Yahoo Index'!E78,"") ->  | X72: 87 | Y72: FALSE | Z72: =IF($F$69,'FRED Indicies'!E84) -> FALSE | AB72: =IF($F$69,'FRED Indicies'!D84) -> FALSE | AF72: 87 | AG72: FALSE | AH72: =IF(AG72,#REF!) -> FALSE | AN72: 69 | AO72: FALSE | AP72: =IF(AO72,'Commodity Prices'!C84) -> FALSE | AR72: =IF(AO72,'Commodity Prices'!D84) -> FALSE | AV72: 87 | AW72: FALSE | AX72: =IF(AW72,'Yahoo Stocks'!D78) -> FALSE | AZ72: =IF(AW72,'Yahoo Stocks'!E78) -> FALSE | BD72: 68 | BE72: FALSE | BF72: =IF(BE72,#REF!) -> FALSE | BH72: =IF(BE72,#REF!) -> FALSE | BL72: 117 | BM72: FALSE | BN72: ='FRED Series'!D84 -> 0 | BO72: US Real GNP | BP72: =IF(BM72,'FRED Series'!E84) -> FALSE | BQ72: US Real GNP | BR72: B | BS72: FRED
L73: 70 | M73: GDP GDI | N73: GDP GDI | O73: B | P73: FRED | Q73: 70 | R73: FALSE | S73: =IF(R73,'Yahoo Index'!#REF!,"") ->  | T73: =IF(R73,'Yahoo Index'!E79,"") ->  | X73: 88 | Y73: FALSE | Z73: =IF($F$69,'FRED Indicies'!E85) -> FALSE | AB73: =IF($F$69,'FRED Indicies'!D85) -> FALSE | AF73: 88 | AG73: FALSE | AH73: =IF(AG73,#REF!) -> FALSE | AN73: 70 | AO73: FALSE | AP73: =IF(AO73,'Commodity Prices'!C85) -> FALSE | AR73: =IF(AO73,'Commodity Prices'!D85) -> FALSE | AV73: 88 | AW73: FALSE | AX73: =IF(AW73,'Yahoo Stocks'!D79) -> FALSE | AZ73: =IF(AW73,'Yahoo Stocks'!E79) -> FALSE | BD73: 69 | BE73: FALSE | BF73: =IF(BE73,#REF!) -> FALSE | BH73: =IF(BE73,#REF!) -> FALSE | BL73: 118 | BM73: FALSE | BN73: ='FRED Series'!D85 -> 0 | BO73: GDP GDI | BP73: =IF(BM73,'FRED Series'!E85) -> FALSE | BQ73: GDP GDI | BR73: B | BS73: FRED
L74: 71 | M74: Crude Oil Price | N74: Crude Oil Price | O74: B | P74: FRED | Q74: 71 | R74: FALSE | S74: =IF(R74,'Yahoo Index'!#REF!,"") ->  | T74: =IF(R74,'Yahoo Index'!E80,"") ->  | X74: 89 | Y74: FALSE | Z74: =IF($F$69,'FRED Indicies'!E86) -> FALSE | AB74: =IF($F$69,'FRED Indicies'!D86) -> FALSE | AF74: 89 | AG74: FALSE | AH74: =IF(AG74,#REF!) -> FALSE | AN74: 71 | AO74: FALSE | AP74: =IF(AO74,'Commodity Prices'!C86) -> FALSE | AR74: =IF(AO74,'Commodity Prices'!D86) -> FALSE | AV74: 89 | AW74: FALSE | AX74: =IF(AW74,'Yahoo Stocks'!D80) -> FALSE | AZ74: =IF(AW74,'Yahoo Stocks'!E80) -> FALSE | BD74: 70 | BE74: FALSE | BF74: =IF(BE74,#REF!) -> FALSE | BH74: =IF(BE74,#REF!) -> FALSE | BL74: 119 | BM74: FALSE | BN74: ='FRED Series'!D86 -> 0 | BO74: Crude Oil Price | BP74: =IF(BM74,'FRED Series'!E86) -> FALSE | BQ74: Crude Oil Price | BR74: B | BS74: FRED
L75: 72 | M75: Gold Fixing Pr | N75: Gold Fixing Pr | O75: B | P75: FRED | Q75: 72 | R75: FALSE | S75: =IF(R75,'Yahoo Index'!#REF!,"") ->  | T75: =IF(R75,'Yahoo Index'!E81,"") ->  | X75: 90 | Y75: FALSE | Z75: =IF($F$69,'FRED Indicies'!E87) -> FALSE | AB75: =IF($F$69,'FRED Indicies'!D87) -> FALSE | AF75: 90 | AG75: FALSE | AH75: =IF(AG75,#REF!) -> FALSE | AN75: 72 | AO75: FALSE | AP75: =IF(AO75,'Commodity Prices'!C87) -> FALSE | AR75: =IF(AO75,'Commodity Prices'!D87) -> FALSE | AV75: 90 | AW75: FALSE | AX75: =IF(AW75,'Yahoo Stocks'!D81) -> FALSE | AZ75: =IF(AW75,'Yahoo Stocks'!E81) -> FALSE | BD75: 71 | BE75: FALSE | BF75: =IF(BE75,#REF!) -> FALSE | BH75: =IF(BE75,#REF!) -> FALSE | BL75: 120 | BM75: FALSE | BN75: ='FRED Series'!D87 -> 0 | BO75: Gold Fixing Pr | BP75: =IF(BM75,'FRED Series'!E87) -> FALSE | BQ75: Gold Fixing Pr | BR75: B | BS75: FRED
L76: 73 | M76: Henry Hub Natur | N76: Henry Hub Natur | O76: B | P76: FRED | Q76: 73 | R76: FALSE | S76: =IF(R76,'Yahoo Index'!#REF!,"") ->  | T76: =IF(R76,'Yahoo Index'!E82,"") ->  | X76: 91 | Y76: FALSE | Z76: =IF($F$69,'FRED Indicies'!E88) -> FALSE | AB76: =IF($F$69,'FRED Indicies'!D88) -> FALSE | AF76: 91 | AG76: FALSE | AH76: =IF(AG76,#REF!) -> FALSE | AN76: 73 | AO76: FALSE | AP76: =IF(AO76,'Commodity Prices'!C88) -> FALSE | AR76: =IF(AO76,'Commodity Prices'!D88) -> FALSE | AV76: 91 | AW76: FALSE | AX76: =IF(AW76,'Yahoo Stocks'!D82) -> FALSE | AZ76: =IF(AW76,'Yahoo Stocks'!E82) -> FALSE | BD76: 72 | BE76: FALSE | BF76: =IF(BE76,#REF!) -> FALSE | BH76: =IF(BE76,#REF!) -> FALSE | BL76: 121 | BM76: FALSE | BN76: ='FRED Series'!D88 -> 0 | BO76: Henry Hub Natur | BP76: =IF(BM76,'FRED Series'!E88) -> FALSE | BQ76: Henry Hub Natur | BR76: B | BS76: FRED
F77: TRUE | L77: 74 | M77: LNG, Asia (PNG | N77: LNG, Asia (PNG | O77: B | P77: FRED | Q77: 74 | R77: FALSE | S77: =IF(R77,'Yahoo Index'!#REF!,"") ->  | T77: =IF(R77,'Yahoo Index'!E83,"") ->  | X77: 92 | Y77: FALSE | Z77: =IF($F$69,'FRED Indicies'!E89) -> FALSE | AB77: =IF($F$69,'FRED Indicies'!D89) -> FALSE | AF77: 92 | AG77: FALSE | AH77: =IF(AG77,#REF!) -> FALSE | AN77: 74 | AO77: FALSE | AP77: =IF(AO77,'Commodity Prices'!C89) -> FALSE | AR77: =IF(AO77,'Commodity Prices'!D89) -> FALSE | AV77: 92 | AW77: FALSE | AX77: =IF(AW77,'Yahoo Stocks'!D83) -> FALSE | AZ77: =IF(AW77,'Yahoo Stocks'!E83) -> FALSE | BD77: 73 | BE77: FALSE | BF77: =IF(BE77,#REF!) -> FALSE | BH77: =IF(BE77,#REF!) -> FALSE | BL77: 122 | BM77: FALSE | BN77: ='FRED Series'!D89 -> 0 | BO77: LNG, Asia (PNG | BP77: =IF(BM77,'FRED Series'!E89) -> FALSE | BQ77: LNG, Asia (PNG | BR77: B | BS77: FRED
L78: 75 | M78: EU Natural Gas | N78: EU Natural Gas | O78: B | P78: FRED | Q78: 75 | R78: FALSE | S78: =IF(R78,'Yahoo Index'!#REF!,"") ->  | T78: =IF(R78,'Yahoo Index'!E84,"") ->  | X78: 93 | Y78: FALSE | Z78: =IF($F$69,'FRED Indicies'!E90) -> FALSE | AB78: =IF($F$69,'FRED Indicies'!D90) -> FALSE | AF78: 93 | AG78: FALSE | AH78: =IF(AG78,#REF!) -> FALSE | AN78: 75 | AO78: FALSE | AP78: =IF(AO78,'Commodity Prices'!C90) -> FALSE | AR78: =IF(AO78,'Commodity Prices'!D90) -> FALSE | AV78: 93 | AW78: FALSE | AX78: =IF(AW78,'Yahoo Stocks'!D84) -> FALSE | AZ78: =IF(AW78,'Yahoo Stocks'!E84) -> FALSE | BD78: 74 | BE78: FALSE | BF78: =IF(BE78,#REF!) -> FALSE | BH78: =IF(BE78,#REF!) -> FALSE | BL78: 123 | BM78: FALSE | BN78: ='FRED Series'!D90 -> 0 | BO78: EU Natural Gas | BP78: =IF(BM78,'FRED Series'!E90) -> FALSE | BQ78: EU Natural Gas | BR78: B | BS78: FRED
L79: 76 | M79: Uranium (PURAN | N79: Uranium (PURAN | O79: B | P79: FRED | Q79: 76 | R79: FALSE | S79: =IF(R79,'Yahoo Index'!#REF!,"") ->  | T79: =IF(R79,'Yahoo Index'!E85,"") ->  | X79: 94 | Y79: FALSE | Z79: =IF($F$69,'FRED Indicies'!E91) -> FALSE | AB79: =IF($F$69,'FRED Indicies'!D91) -> FALSE | AF79: 94 | AG79: FALSE | AH79: =IF(AG79,#REF!) -> FALSE | AN79: 76 | AO79: FALSE | AP79: =IF(AO79,'Commodity Prices'!C91) -> FALSE | AR79: =IF(AO79,'Commodity Prices'!D91) -> FALSE | AV79: 94 | AW79: FALSE | AX79: =IF(AW79,'Yahoo Stocks'!D85) -> FALSE | AZ79: =IF(AW79,'Yahoo Stocks'!E85) -> FALSE | BD79: 75 | BE79: FALSE | BF79: =IF(BE79,#REF!) -> FALSE | BH79: =IF(BE79,#REF!) -> FALSE | BL79: 124 | BM79: FALSE | BN79: ='FRED Series'!D91 -> 0 | BO79: Uranium (PURAN | BP79: =IF(BM79,'FRED Series'!E91) -> FALSE | BQ79: Uranium (PURAN | BR79: B | BS79: FRED
L80: 77 | M80: GDP Per Capital France | N80: GDP Per Capital France | O80: B | P80: FRED | Q80: 77 | R80: FALSE | S80: =IF(R80,'Yahoo Index'!#REF!,"") ->  | T80: =IF(R80,'Yahoo Index'!E86,"") ->  | X80: 95 | Y80: FALSE | Z80: =IF($F$69,'FRED Indicies'!E92) -> FALSE | AB80: =IF($F$69,'FRED Indicies'!D92) -> FALSE | AF80: 95 | AG80: FALSE | AH80: =IF(AG80,#REF!) -> FALSE | AN80: 77 | AO80: FALSE | AP80: =IF(AO80,'Commodity Prices'!C92) -> FALSE | AR80: =IF(AO80,'Commodity Prices'!D92) -> FALSE | AV80: 95 | AW80: FALSE | AX80: =IF(AW80,'Yahoo Stocks'!D86) -> FALSE | AZ80: =IF(AW80,'Yahoo Stocks'!E86) -> FALSE | BD80: 76 | BE80: FALSE | BF80: =IF(BE80,#REF!) -> FALSE | BH80: =IF(BE80,#REF!) -> FALSE | BL80: 125 | BM80: FALSE | BN80: ='FRED Series'!D92 -> 0 | BO80: GDP Per Capital France | BP80: =IF(BM80,'FRED Series'!E92) -> FALSE | BQ80: GDP Per Capital France | BR80: B | BS80: FRED
L81: 78 | M81: GDP Per Capital Germany | N81: GDP Per Capital Germany | O81: B | P81: FRED | Q81: 78 | R81: FALSE | S81: =IF(R81,'Yahoo Index'!E154,"") ->  | T81: =IF(R81,'Yahoo Index'!E87,"") ->  | X81: 96 | Y81: FALSE | Z81: =IF($F$69,'FRED Indicies'!E93) -> FALSE | AB81: =IF($F$69,'FRED Indicies'!D93) -> FALSE | AF81: 96 | AG81: FALSE | AH81: =IF(AG81,#REF!) -> FALSE | AN81: 78 | AO81: FALSE | AP81: =IF(AO81,'Commodity Prices'!C93) -> FALSE | AR81: =IF(AO81,'Commodity Prices'!D93) -> FALSE | AV81: 96 | AW81: FALSE | AX81: =IF(AW81,'Yahoo Stocks'!D87) -> FALSE | AZ81: =IF(AW81,'Yahoo Stocks'!E87) -> FALSE | BD81: 77 | BE81: FALSE | BF81: =IF(BE81,#REF!) -> FALSE | BH81: =IF(BE81,#REF!) -> FALSE | BL81: 126 | BM81: FALSE | BN81: ='FRED Series'!D93 -> 0 | BO81: GDP Per Capital Germany | BP81: =IF(BM81,'FRED Series'!E93) -> FALSE | BQ81: GDP Per Capital Germany | BR81: B | BS81: FRED
L82: 79 | M82: GDP Per Capital US | N82: GDP Per Capital US | O82: B | P82: FRED | Q82: 79 | R82: FALSE | S82: =IF(R82,'Yahoo Index'!E155,"") ->  | T82: =IF(R82,'Yahoo Index'!E88,"") ->  | X82: 97 | Y82: FALSE | Z82: =IF($F$69,'FRED Indicies'!E94) -> FALSE | AB82: =IF($F$69,'FRED Indicies'!D94) -> FALSE | AF82: 97 | AG82: FALSE | AH82: =IF(AG82,#REF!) -> FALSE | AN82: 79 | AO82: FALSE | AP82: =IF(AO82,'Commodity Prices'!C94) -> FALSE | AR82: =IF(AO82,'Commodity Prices'!D94) -> FALSE | AV82: 97 | AW82: FALSE | AX82: =IF(AW82,'Yahoo Stocks'!D88) -> FALSE | AZ82: =IF(AW82,'Yahoo Stocks'!E88) -> FALSE | BD82: 78 | BE82: FALSE | BF82: =IF(BE82,#REF!) -> FALSE | BH82: =IF(BE82,#REF!) -> FALSE | BL82: 127 | BM82: FALSE | BN82: ='FRED Series'!D94 -> 0 | BO82: GDP Per Capital US | BP82: =IF(BM82,'FRED Series'!E94) -> FALSE | BQ82: GDP Per Capital US | BR82: B | BS82: FRED
H83: Adj Close | I83: TRUE | L83: 80 | M83: GDP Per Capital China | N83: GDP Per Capital China | O83: B | P83: FRED | Q83: 80 | R83: FALSE | S83: =IF(R83,'Yahoo Index'!E156,"") ->  | T83: =IF(R83,'Yahoo Index'!E89,"") ->  | X83: 98 | Y83: FALSE | Z83: =IF($F$69,'FRED Indicies'!E95) -> FALSE | AB83: =IF($F$69,'FRED Indicies'!D95) -> FALSE | AF83: 98 | AG83: FALSE | AH83: =IF(AG83,#REF!) -> FALSE | AN83: 80 | AO83: FALSE | AP83: =IF(AO83,'Commodity Prices'!C95) -> FALSE | AR83: =IF(AO83,'Commodity Prices'!D95) -> FALSE | AV83: 98 | AW83: FALSE | AX83: =IF(AW83,'Yahoo Stocks'!D89) -> FALSE | AZ83: =IF(AW83,'Yahoo Stocks'!E89) -> FALSE | BD83: 79 | BE83: FALSE | BF83: =IF(BE83,#REF!) -> FALSE | BH83: =IF(BE83,#REF!) -> FALSE | BL83: 128 | BM83: FALSE | BN83: ='FRED Series'!D95 -> 0 | BO83: GDP Per Capital China | BP83: =IF(BM83,'FRED Series'!E95) -> FALSE | BQ83: GDP Per Capital China | BR83: B | BS83: FRED
L84: 81 | Q84: 81 | R84: FALSE | S84: =IF(R84,'Yahoo Index'!E157,"") ->  | T84: =IF(R84,'Yahoo Index'!E90,"") ->  | X84: 99 | Y84: FALSE | Z84: =IF($F$69,'FRED Indicies'!E96) -> FALSE | AB84: =IF($F$69,'FRED Indicies'!D96) -> FALSE | AF84: 99 | AG84: FALSE | AH84: =IF(AG84,#REF!) -> FALSE | AN84: 81 | AO84: FALSE | AP84: =IF(AO84,'Commodity Prices'!C96) -> FALSE | AR84: =IF(AO84,'Commodity Prices'!D96) -> FALSE | AV84: 99 | AW84: FALSE | AX84: =IF(AW84,'Yahoo Stocks'!D90) -> FALSE | AZ84: =IF(AW84,'Yahoo Stocks'!E90) -> FALSE | BD84: 80 | BE84: FALSE | BF84: =IF(BE84,#REF!) -> FALSE | BH84: =IF(BE84,#REF!) -> FALSE | BL84: 129 | BM84: FALSE | BN84: ='FRED Series'!D96 -> 0 | BP84: =IF(BM84,'FRED Series'!E96) -> FALSE
E85: Yahoo Column to Use in Summary | I85: =IF(Adj_Close,"B","B") -> B | L85: 82 | Q85: 82 | R85: FALSE | S85: =IF(R85,'Yahoo Index'!E158,"") ->  | T85: =IF(R85,'Yahoo Index'!E91,"") ->  | X85: 100 | Y85: FALSE | Z85: =IF($F$69,'FRED Indicies'!E97) -> FALSE | AB85: =IF($F$69,'FRED Indicies'!D97) -> FALSE | AF85: 100 | AG85: FALSE | AH85: =IF(AG85,#REF!) -> FALSE | AN85: 82 | AO85: FALSE | AP85: =IF(AO85,'Commodity Prices'!C97) -> FALSE | AR85: =IF(AO85,'Commodity Prices'!D97) -> FALSE | AV85: 100 | AW85: FALSE | AX85: =IF(AW85,'Yahoo Stocks'!D91) -> FALSE | AZ85: =IF(AW85,'Yahoo Stocks'!E91) -> FALSE | BD85: 81 | BE85: FALSE | BF85: =IF(BE85,#REF!) -> FALSE | BH85: =IF(BE85,#REF!) -> FALSE | BL85: 130 | BM85: FALSE | BN85: ='FRED Series'!D97 -> 0 | BP85: =IF(BM85,'FRED Series'!E97) -> FALSE
L86: 83 | Q86: 83 | R86: FALSE | S86: =IF(R86,'Yahoo Index'!E159,"") ->  | T86: =IF(R86,'Yahoo Index'!E92,"") ->  | X86: 101 | Y86: FALSE | Z86: =IF($F$69,'FRED Indicies'!E98) -> FALSE | AB86: =IF($F$69,'FRED Indicies'!D98) -> FALSE | AF86: 101 | AG86: FALSE | AH86: =IF(AG86,#REF!) -> FALSE | AN86: 83 | AO86: FALSE | AP86: =IF(AO86,'Commodity Prices'!C98) -> FALSE | AR86: =IF(AO86,'Commodity Prices'!D98) -> FALSE | AV86: 101 | AW86: FALSE | AX86: =IF(AW86,'Yahoo Stocks'!D92) -> FALSE | AZ86: =IF(AW86,'Yahoo Stocks'!E92) -> FALSE | BD86: 82 | BE86: FALSE | BF86: =IF(BE86,#REF!) -> FALSE | BH86: =IF(BE86,#REF!) -> FALSE | BL86: 131 | BM86: FALSE | BN86: ='FRED Series'!D98 -> 0 | BP86: =IF(BM86,'FRED Series'!E98) -> FALSE
E87: Monthly/Weekly Code | I87: =IF(monthly,"mo","wk") -> mo | L87: 84 | Q87: 84 | R87: FALSE | S87: =IF(R87,'Yahoo Index'!E160,"") ->  | T87: =IF(R87,'Yahoo Index'!E93,"") ->  | X87: 102 | Y87: FALSE | Z87: =IF($F$69,'FRED Indicies'!E99) -> FALSE | AB87: =IF($F$69,'FRED Indicies'!D99) -> FALSE | AF87: 102 | AG87: FALSE | AH87: =IF(AG87,#REF!) -> FALSE | AN87: 84 | AO87: FALSE | AP87: =IF(AO87,'Commodity Prices'!C99) -> FALSE | AR87: =IF(AO87,'Commodity Prices'!D99) -> FALSE | AV87: 102 | AW87: FALSE | AX87: =IF(AW87,'Yahoo Stocks'!D93) -> FALSE | AZ87: =IF(AW87,'Yahoo Stocks'!E93) -> FALSE | BD87: 83 | BE87: FALSE | BF87: =IF(BE87,#REF!) -> FALSE | BH87: =IF(BE87,#REF!) -> FALSE | BL87: 132 | BM87: FALSE | BN87: ='FRED Series'!D99 -> 0 | BP87: =IF(BM87,'FRED Series'!E99) -> FALSE
E88: Month | F88: &interval=1mo&events=history&crumb= | L88: 85 | Q88: 85 | R88: FALSE | S88: =IF(R88,'Yahoo Index'!E161,"") ->  | T88: =IF(R88,'Yahoo Index'!E94,"") ->  | X88: 103 | Y88: FALSE | Z88: =IF($F$69,'FRED Indicies'!E100) -> FALSE | AB88: =IF($F$69,'FRED Indicies'!D100) -> FALSE | AF88: 103 | AG88: FALSE | AH88: =IF(AG88,#REF!) -> FALSE | AN88: 85 | AO88: FALSE | AP88: =IF(AO88,'Commodity Prices'!C100) -> FALSE | AR88: =IF(AO88,'Commodity Prices'!D100) -> FALSE | AV88: 103 | AW88: FALSE | AX88: =IF(AW88,'Yahoo Stocks'!D94) -> FALSE | AZ88: =IF(AW88,'Yahoo Stocks'!E94) -> FALSE | BD88: 84 | BE88: FALSE | BF88: =IF(BE88,#REF!) -> FALSE | BH88: =IF(BE88,#REF!) -> FALSE | BL88: 133 | BM88: FALSE | BN88: ='FRED Series'!D100 -> 0 | BP88: =IF(BM88,'FRED Series'!E100) -> FALSE
E89: Week | F89: &interval=1wk&events=history&crumb= | L89: 86 | Q89: 86 | R89: FALSE | S89: =IF(R89,'Yahoo Index'!E162,"") ->  | T89: =IF(R89,'Yahoo Index'!E95,"") ->  | X89: 104 | Y89: FALSE | Z89: =IF($F$69,'FRED Indicies'!E101) -> FALSE | AB89: =IF($F$69,'FRED Indicies'!D101) -> FALSE | AF89: 104 | AG89: FALSE | AH89: =IF(AG89,#REF!) -> FALSE | AN89: 86 | AO89: FALSE | AP89: =IF(AO89,'Commodity Prices'!C101) -> FALSE | AR89: =IF(AO89,'Commodity Prices'!D101) -> FALSE | AV89: 104 | AW89: FALSE | AX89: =IF(AW89,'Yahoo Stocks'!D95) -> FALSE | AZ89: =IF(AW89,'Yahoo Stocks'!E95) -> FALSE | BD89: 85 | BE89: FALSE | BF89: =IF(BE89,#REF!) -> FALSE | BH89: =IF(BE89,#REF!) -> FALSE | BL89: 134 | BM89: FALSE | BN89: ='FRED Series'!D101 -> 0 | BP89: =IF(BM89,'FRED Series'!E101) -> FALSE
E90: Applied | F90: =IF(monthly,F88,F89) -> &interval=1mo&events=history&crumb= | L90: 87 | Q90: 87 | R90: FALSE | S90: =IF(R90,'Yahoo Index'!E163,"") ->  | T90: =IF(R90,'Yahoo Index'!E96,"") ->  | X90: 105 | Y90: FALSE | Z90: =IF($F$69,'FRED Indicies'!E102) -> FALSE | AB90: =IF($F$69,'FRED Indicies'!D102) -> FALSE | AF90: 105 | AG90: FALSE | AH90: =IF(AG90,#REF!) -> FALSE | AN90: 87 | AO90: FALSE | AP90: =IF(AO90,'Commodity Prices'!C102) -> FALSE | AR90: =IF(AO90,'Commodity Prices'!D102) -> FALSE | AV90: 105 | AW90: FALSE | AX90: =IF(AW90,'Yahoo Stocks'!D96) -> FALSE | AZ90: =IF(AW90,'Yahoo Stocks'!E96) -> FALSE | BD90: 86 | BE90: FALSE | BF90: =IF(BE90,#REF!) -> FALSE | BH90: =IF(BE90,#REF!) -> FALSE | BL90: 135 | BM90: FALSE | BN90: ='FRED Series'!D102 -> 0 | BP90: =IF(BM90,'FRED Series'!E102) -> FALSE
L91: 88 | Q91: 88 | R91: FALSE | S91: =IF(R91,'Yahoo Index'!E164,"") ->  | T91: =IF(R91,'Yahoo Index'!E97,"") ->  | X91: 106 | Y91: FALSE | Z91: =IF($F$69,'FRED Indicies'!E103) -> FALSE | AB91: =IF($F$69,'FRED Indicies'!D103) -> FALSE | AF91: 106 | AG91: FALSE | AH91: =IF(AG91,#REF!) -> FALSE | AN91: 88 | AO91: FALSE | AP91: =IF(AO91,'Commodity Prices'!C103) -> FALSE | AR91: =IF(AO91,'Commodity Prices'!D103) -> FALSE | AV91: 106 | AW91: FALSE | AX91: =IF(AW91,'Yahoo Stocks'!D97) -> FALSE | AZ91: =IF(AW91,'Yahoo Stocks'!E97) -> FALSE | BD91: 87 | BE91: FALSE | BF91: =IF(BE91,#REF!) -> FALSE | BH91: =IF(BE91,#REF!) -> FALSE | BL91: 136 | BM91: FALSE | BN91: ='FRED Series'!D103 -> 0 | BP91: =IF(BM91,'FRED Series'!E103) -> FALSE
E92: comment | F92: FALSE | L92: 89 | Q92: 89 | R92: FALSE | S92: =IF(R92,'Yahoo Index'!E165,"") ->  | T92: =IF(R92,'Yahoo Index'!E98,"") ->  | X92: 107 | Y92: FALSE | Z92: =IF($F$69,'FRED Indicies'!E104) -> FALSE | AB92: =IF($F$69,'FRED Indicies'!D104) -> FALSE | AF92: 107 | AG92: FALSE | AH92: =IF(AG92,#REF!) -> FALSE | AN92: 89 | AO92: FALSE | AP92: =IF(AO92,'Commodity Prices'!C104) -> FALSE | AR92: =IF(AO92,'Commodity Prices'!D104) -> FALSE | AV92: 107 | AW92: FALSE | AX92: =IF(AW92,'Yahoo Stocks'!D98) -> FALSE | AZ92: =IF(AW92,'Yahoo Stocks'!E98) -> FALSE | BD92: 88 | BE92: FALSE | BF92: =IF(BE92,#REF!) -> FALSE | BH92: =IF(BE92,#REF!) -> FALSE | BL92: 137 | BM92: FALSE | BN92: ='FRED Series'!D104 -> 0 | BP92: =IF(BM92,'FRED Series'!E104) -> FALSE
L93: 90 | Q93: 90 | R93: FALSE | S93: =IF(R93,'Yahoo Index'!E166,"") ->  | T93: =IF(R93,'Yahoo Index'!E99,"") ->  | X93: 108 | Y93: FALSE | Z93: =IF($F$69,'FRED Indicies'!E105) -> FALSE | AB93: =IF($F$69,'FRED Indicies'!D105) -> FALSE | AF93: 108 | AG93: FALSE | AH93: =IF(AG93,#REF!) -> FALSE | AN93: 90 | AO93: FALSE | AP93: =IF(AO93,'Commodity Prices'!C105) -> FALSE | AR93: =IF(AO93,'Commodity Prices'!D105) -> FALSE | AV93: 108 | AW93: FALSE | AX93: =IF(AW93,'Yahoo Stocks'!D99) -> FALSE | AZ93: =IF(AW93,'Yahoo Stocks'!E99) -> FALSE | BD93: 89 | BE93: FALSE | BF93: =IF(BE93,#REF!) -> FALSE | BH93: =IF(BE93,#REF!) -> FALSE | BL93: 138 | BM93: FALSE | BN93: ='FRED Series'!D105 -> 0 | BP93: =IF(BM93,'FRED Series'!E105) -> FALSE
L94: 91 | Q94: 91 | R94: FALSE | S94: =IF(R94,'Yahoo Index'!E167,"") ->  | T94: =IF(R94,'Yahoo Index'!E100,"") ->  | X94: 109 | Y94: FALSE | Z94: =IF($F$69,'FRED Indicies'!E106) -> FALSE | AB94: =IF($F$69,'FRED Indicies'!D106) -> FALSE | AF94: 109 | AG94: FALSE | AH94: =IF(AG94,#REF!) -> FALSE | AN94: 91 | AO94: FALSE | AP94: =IF(AO94,'Commodity Prices'!C106) -> FALSE | AR94: =IF(AO94,'Commodity Prices'!D106) -> FALSE | AV94: 109 | AW94: FALSE | AX94: =IF(AW94,'Yahoo Stocks'!D100) -> FALSE | AZ94: =IF(AW94,'Yahoo Stocks'!E100) -> FALSE | BD94: 90 | BE94: FALSE | BF94: =IF(BE94,#REF!) -> FALSE | BH94: =IF(BE94,#REF!) -> FALSE | BL94: 139 | BM94: FALSE | BN94: ='FRED Series'!D106 -> 0 | BP94: =IF(BM94,'FRED Series'!E106) -> FALSE
L95: 92 | Q95: 92 | R95: FALSE | S95: =IF(R95,'Yahoo Index'!E168,"") ->  | T95: =IF(R95,'Yahoo Index'!E101,"") ->  | X95: 110 | Y95: FALSE | Z95: =IF($F$69,'FRED Indicies'!E107) -> FALSE | AB95: =IF($F$69,'FRED Indicies'!D107) -> FALSE | AF95: 110 | AG95: FALSE | AH95: =IF(AG95,#REF!) -> FALSE | AN95: 92 | AO95: FALSE | AP95: =IF(AO95,'Commodity Prices'!C107) -> FALSE | AR95: =IF(AO95,'Commodity Prices'!D107) -> FALSE | AV95: 110 | AW95: FALSE | AX95: =IF(AW95,'Yahoo Stocks'!D101) -> FALSE | AZ95: =IF(AW95,'Yahoo Stocks'!E101) -> FALSE | BD95: 91 | BE95: FALSE | BF95: =IF(BE95,#REF!) -> FALSE | BH95: =IF(BE95,#REF!) -> FALSE | BL95: 140 | BM95: FALSE | BN95: ='FRED Series'!D107 -> 0 | BP95: =IF(BM95,'FRED Series'!E107) -> FALSE
L96: 93 | Q96: 93 | R96: FALSE | S96: =IF(R96,'Yahoo Index'!E169,"") ->  | T96: =IF(R96,'Yahoo Index'!E102,"") ->  | X96: 111 | Y96: FALSE | Z96: =IF($F$69,'FRED Indicies'!E108) -> FALSE | AB96: =IF($F$69,'FRED Indicies'!D108) -> FALSE | AF96: 111 | AG96: FALSE | AH96: =IF(AG96,#REF!) -> FALSE | AN96: 93 | AO96: FALSE | AP96: =IF(AO96,'Commodity Prices'!C108) -> FALSE | AR96: =IF(AO96,'Commodity Prices'!D108) -> FALSE | AV96: 111 | AW96: FALSE | AX96: =IF(AW96,'Yahoo Stocks'!D102) -> FALSE | AZ96: =IF(AW96,'Yahoo Stocks'!E102) -> FALSE | BD96: 92 | BE96: FALSE | BF96: =IF(BE96,#REF!) -> FALSE | BH96: =IF(BE96,#REF!) -> FALSE | BL96: 141 | BM96: FALSE | BN96: ='FRED Series'!D108 -> 0 | BP96: =IF(BM96,'FRED Series'!E108) -> FALSE
L97: 94 | Q97: 94 | R97: FALSE | S97: =IF(R97,'Yahoo Index'!E170,"") ->  | T97: =IF(R97,'Yahoo Index'!E103,"") ->  | X97: 112 | Y97: FALSE | Z97: =IF($F$69,'FRED Indicies'!E109) -> FALSE | AB97: =IF($F$69,'FRED Indicies'!D109) -> FALSE | AF97: 112 | AG97: FALSE | AH97: =IF(AG97,#REF!) -> FALSE | AN97: 94 | AO97: FALSE | AP97: =IF(AO97,'Commodity Prices'!C109) -> FALSE | AR97: =IF(AO97,'Commodity Prices'!D109) -> FALSE | AV97: 112 | AW97: FALSE | AX97: =IF(AW97,'Yahoo Stocks'!D103) -> FALSE | AZ97: =IF(AW97,'Yahoo Stocks'!E103) -> FALSE | BD97: 93 | BE97: FALSE | BF97: =IF(BE97,#REF!) -> FALSE | BH97: =IF(BE97,#REF!) -> FALSE | BL97: 142 | BM97: FALSE | BN97: ='FRED Series'!D109 -> 0 | BP97: =IF(BM97,'FRED Series'!E109) -> FALSE
L98: 95 | Q98: 95 | R98: FALSE | S98: =IF(R98,'Yahoo Index'!E171,"") ->  | T98: =IF(R98,'Yahoo Index'!E104,"") ->  | X98: 113 | Y98: FALSE | Z98: =IF($F$69,'FRED Indicies'!E110) -> FALSE | AB98: =IF($F$69,'FRED Indicies'!D110) -> FALSE | AF98: 113 | AG98: FALSE | AH98: =IF(AG98,#REF!) -> FALSE | AN98: 95 | AO98: FALSE | AP98: =IF(AO98,'Commodity Prices'!C110) -> FALSE | AR98: =IF(AO98,'Commodity Prices'!D110) -> FALSE | AV98: 113 | AW98: FALSE | AX98: =IF(AW98,'Yahoo Stocks'!D104) -> FALSE | AZ98: =IF(AW98,'Yahoo Stocks'!E104) -> FALSE | BD98: 94 | BE98: FALSE | BF98: =IF(BE98,#REF!) -> FALSE | BH98: =IF(BE98,#REF!) -> FALSE | BL98: 143 | BM98: FALSE | BN98: ='FRED Series'!D110 -> 0 | BP98: =IF(BM98,'FRED Series'!E110) -> FALSE
L99: 96 | Q99: 96 | R99: FALSE | S99: =IF(R99,'Yahoo Index'!E172,"") ->  | T99: =IF(R99,'Yahoo Index'!E105,"") ->  | X99: 114 | Y99: FALSE | Z99: =IF($F$69,'FRED Indicies'!E111) -> FALSE | AB99: =IF($F$69,'FRED Indicies'!D111) -> FALSE | AF99: 114 | AG99: FALSE | AH99: =IF(AG99,#REF!) -> FALSE | AN99: 96 | AO99: FALSE | AP99: =IF(AO99,'Commodity Prices'!C111) -> FALSE | AR99: =IF(AO99,'Commodity Prices'!D111) -> FALSE | AV99: 114 | AW99: FALSE | AX99: =IF(AW99,'Yahoo Stocks'!D105) -> FALSE | AZ99: =IF(AW99,'Yahoo Stocks'!E105) -> FALSE | BD99: 95 | BE99: FALSE | BF99: =IF(BE99,#REF!) -> FALSE | BH99: =IF(BE99,#REF!) -> FALSE | BL99: 144 | BM99: FALSE | BN99: ='FRED Series'!D111 -> 0 | BP99: =IF(BM99,'FRED Series'!E111) -> FALSE
L100: 97 | N100: =T100&AC100&AK100&AS100&BA100&BI100&BQ100 ->  | O100: =U100&AD100&AL100&AT100&BB100&BJ100&BR100 ->  | P100: =V100&AE100&AM100&AU100&BC100&BK100&BS100 ->  | Q100: 97 | R100: FALSE | S100: =IF(R100,'Yahoo Index'!E173,"") ->  | T100: =IF(R100,'Yahoo Index'!E106,"") ->  | U100: =IF(R100,$I$4,"") ->  | V100: =IF(R100,$J$4,"") ->  | X100: 115 | Y100: =IF(AND($F$69,X100<=$H$69),X100) -> FALSE | Z100: =IF($F$69,'FRED Indicies'!E112) -> FALSE | AA100: =IFERROR(INDEX(Z:Z,MATCH(L100,Y:Y,0)),"") ->  | AB100: =IF($F$69,'FRED Indicies'!D112) -> FALSE | AC100: =IFERROR(INDEX(AB:AB,MATCH(L100,Y:Y,0)),"") ->  | AD100: =IF(AA100<>"",$I$69,"") ->  | AE100: =IF(AA100<>"",$J$69,"") ->  | AF100: 115 | AG100: =IF(AND($F$72,AF100<=$H$72),AF100) -> FALSE | AH100: =IF(AG100,#REF!) -> FALSE | AI100: =IFERROR(INDEX(AH:AH,MATCH(Q100,AG:AG,0)),"") ->  | AK100: =IFERROR(INDEX(AJ:AJ,MATCH(Q100,AG:AG,0)),"") ->  | AL100: =IF(AI100<>"",$I$69,"") ->  | AM100: =IF(AK100<>"",$J$69,"") ->  | AN100: 97 | AO100: =IF(AND($F$63,AN100<=$H$63),AN100) -> FALSE | AP100: =IF(AO100,'Commodity Prices'!C112) -> FALSE | AQ100: =IFERROR(INDEX(AP:AP,MATCH(L100,AO:AO,0)),"") ->  | AR100: =IF(AO100,'Commodity Prices'!D112) -> FALSE | AS100: =IFERROR(INDEX(AR:AR,MATCH(L100,AO:AO,0)),"") ->  | AT100: =IF(AQ100<>"",$I$63,"") ->  | AU100: =IF(AS100<>"",$J$63,"") ->  | AV100: 115 | AW100: =IF(AND($F$6,AV100<=$H$6),AV100) -> FALSE | AX100: =IF(AW100,'Yahoo Stocks'!D106) -> FALSE | AY100: =IFERROR(INDEX(AX:AX,MATCH(L100,AW:AW,0)),"") ->  | AZ100: =IF(AW100,'Yahoo Stocks'!E106) -> FALSE | BA100: =IFERROR(INDEX(AZ:AZ,MATCH(L100,AW:AW,0)),"") ->  | BB100: =IF(AY100<>"",$I$6,"") ->  | BC100: =IF(BA100<>"",$J$6,"") ->  | BD100: 96 | BE100: FALSE | BF100: =IF(BE100,#REF!) -> FALSE | BH100: =IF(BE100,#REF!) -> FALSE | BL100: 145 | BM100: =IF(AND($F$9,BL100<=$H$9),BL100) -> FALSE | BN100: ='FRED Series'!D112 -> 0 | BP100: =IF(BM100,'FRED Series'!E112) -> FALSE | BR100: =IF(BQ100<>"",$I$9,"") ->  | BS100: =IF(BQ100<>"",$J$9,"") -> 
L101: 98 | Q101: =Q100+1 -> 98 | R101: =IF(AND($F$4,Q101<=$H$4),Q101) -> FALSE | S101: =IF(R101,'Yahoo Index'!E174,"") ->  | T101: =IF(R101,'Yahoo Index'!E107,"") ->  | X101: =X100+1 -> 116 | Y101: FALSE | Z101: =IF($F$69,'FRED Indicies'!E113) -> FALSE | AB101: =IF($F$69,'FRED Indicies'!D113) -> FALSE | AF101: =AF100+1 -> 116 | AG101: FALSE | AH101: =IF(AG101,#REF!) -> FALSE | AN101: =AN100+1 -> 98 | AO101: FALSE | AP101: =IF(AO101,'Commodity Prices'!C113) -> FALSE | AR101: =IF(AO101,'Commodity Prices'!D113) -> FALSE | AV101: =AV100+1 -> 116 | AW101: FALSE | AX101: =IF(AW101,'Yahoo Stocks'!D107) -> FALSE | AZ101: =IF(AW101,'Yahoo Stocks'!E107) -> FALSE | BD101: =BD100+1 -> 97 | BE101: FALSE | BF101: =IF(BE101,#REF!) -> FALSE | BH101: =IF(BE101,#REF!) -> FALSE | BL101: =BL100+1 -> 146 | BM101: FALSE | BN101: ='FRED Series'!D113 -> 0 | BP101: =IF(BM101,'FRED Series'!E113) -> FALSE
L102: 99 | Q102: 99 | R102: FALSE | S102: =IF(R102,'Yahoo Index'!E175,"") ->  | T102: =IF(R102,'Yahoo Index'!E108,"") ->  | X102: 117 | Y102: FALSE | Z102: =IF($F$69,'FRED Indicies'!E114) -> FALSE | AB102: =IF($F$69,'FRED Indicies'!D114) -> FALSE | AF102: 117 | AG102: FALSE | AH102: =IF(AG102,#REF!) -> FALSE | AN102: 99 | AO102: FALSE | AP102: =IF(AO102,'Commodity Prices'!C114) -> FALSE | AR102: =IF(AO102,'Commodity Prices'!D114) -> FALSE | AV102: 117 | AW102: FALSE | AX102: =IF(AW102,'Yahoo Stocks'!D108) -> FALSE | AZ102: =IF(AW102,'Yahoo Stocks'!E108) -> FALSE | BD102: 98 | BE102: FALSE | BF102: =IF(BE102,#REF!) -> FALSE | BH102: =IF(BE102,#REF!) -> FALSE | BL102: 147 | BM102: FALSE | BN102: ='FRED Series'!D114 -> 0 | BP102: =IF(BM102,'FRED Series'!E114) -> FALSE
L103: 100 | Q103: 100 | R103: FALSE | S103: =IF(R103,'Yahoo Index'!E176,"") ->  | T103: =IF(R103,'Yahoo Index'!E109,"") ->  | X103: 118 | Y103: FALSE | Z103: =IF($F$69,'FRED Indicies'!E115) -> FALSE | AB103: =IF($F$69,'FRED Indicies'!D115) -> FALSE | AF103: 118 | AG103: FALSE | AH103: =IF(AG103,#REF!) -> FALSE | AN103: 100 | AO103: FALSE | AP103: =IF(AO103,'Commodity Prices'!C115) -> FALSE | AR103: =IF(AO103,'Commodity Prices'!D115) -> FALSE | AV103: 118 | AW103: FALSE | AX103: =IF(AW103,'Yahoo Stocks'!D109) -> FALSE | AZ103: =IF(AW103,'Yahoo Stocks'!E109) -> FALSE | BD103: 99 | BE103: FALSE | BF103: =IF(BE103,#REF!) -> FALSE | BH103: =IF(BE103,#REF!) -> FALSE | BL103: 148 | BM103: FALSE | BN103: ='FRED Series'!D115 -> 0 | BP103: =IF(BM103,'FRED Series'!E115) -> FALSE
L104: 101 | Q104: 101 | R104: FALSE | S104: =IF(R104,'Yahoo Index'!E177,"") ->  | T104: =IF(R104,'Yahoo Index'!E110,"") ->  | X104: 119 | Y104: FALSE | Z104: =IF($F$69,'FRED Indicies'!E116) -> FALSE | AB104: =IF($F$69,'FRED Indicies'!D116) -> FALSE | AF104: 119 | AG104: FALSE | AH104: =IF(AG104,#REF!) -> FALSE | AN104: 101 | AO104: FALSE | AP104: =IF(AO104,'Commodity Prices'!C116) -> FALSE | AR104: =IF(AO104,'Commodity Prices'!D116) -> FALSE | AV104: 119 | AW104: FALSE | AX104: =IF(AW104,'Yahoo Stocks'!D110) -> FALSE | AZ104: =IF(AW104,'Yahoo Stocks'!E110) -> FALSE | BD104: 100 | BE104: FALSE | BF104: =IF(BE104,#REF!) -> FALSE | BH104: =IF(BE104,#REF!) -> FALSE | BL104: 149 | BM104: FALSE | BN104: ='FRED Series'!D116 -> 0 | BP104: =IF(BM104,'FRED Series'!E116) -> FALSE
L105: 102 | M105: =S105&AA105&AI105&AQ105&AY105&BG105&BO105 ->  | Q105: 102 | R105: FALSE | S105: =IF(R105,'Yahoo Index'!E178,"") ->  | T105: =IF(R105,'Yahoo Index'!E111,"") ->  | X105: 120 | Y105: FALSE | Z105: =IF($F$69,'FRED Indicies'!E117) -> FALSE | AB105: =IF($F$69,'FRED Indicies'!D117) -> FALSE | AF105: 120 | AG105: FALSE | AH105: =IF(AG105,#REF!) -> FALSE | AN105: 102 | AO105: FALSE | AP105: =IF(AO105,'Commodity Prices'!C117) -> FALSE | AR105: =IF(AO105,'Commodity Prices'!D117) -> FALSE | AV105: 120 | AW105: FALSE | AX105: =IF(AW105,'Yahoo Stocks'!D111) -> FALSE | AZ105: =IF(AW105,'Yahoo Stocks'!E111) -> FALSE | BD105: 101 | BE105: FALSE | BF105: =IF(BE105,#REF!) -> FALSE | BH105: =IF(BE105,#REF!) -> FALSE | BL105: 150 | BM105: FALSE | BN105: ='FRED Series'!D117 -> 0 | BP105: =IF(BM105,'FRED Series'!E117) -> FALSE
L106: 103 | Q106: 103 | R106: FALSE | S106: =IF(R106,'Yahoo Index'!E179,"") ->  | T106: =IF(R106,'Yahoo Index'!E112,"") ->  | X106: 121 | Y106: FALSE | Z106: =IF($F$69,'FRED Indicies'!E118) -> FALSE | AB106: =IF($F$69,'FRED Indicies'!D118) -> FALSE | AF106: 121 | AG106: FALSE | AH106: =IF(AG106,#REF!) -> FALSE | AN106: 103 | AO106: FALSE | AP106: =IF(AO106,'Commodity Prices'!C118) -> FALSE | AR106: =IF(AO106,'Commodity Prices'!D118) -> FALSE | AV106: 121 | AW106: FALSE | AX106: =IF(AW106,'Yahoo Stocks'!D112) -> FALSE | AZ106: =IF(AW106,'Yahoo Stocks'!E112) -> FALSE | BD106: 102 | BE106: FALSE | BF106: =IF(BE106,#REF!) -> FALSE | BH106: =IF(BE106,#REF!) -> FALSE | BL106: 151 | BM106: FALSE | BN106: ='FRED Series'!D118 -> 0 | BP106: =IF(BM106,'FRED Series'!E118) -> FALSE
L107: 104 | Q107: 104 | R107: FALSE | S107: =IF(R107,'Yahoo Index'!E180,"") ->  | T107: =IF(R107,'Yahoo Index'!E113,"") ->  | X107: 122 | Y107: FALSE | Z107: =IF($F$69,'FRED Indicies'!E119) -> FALSE | AB107: =IF($F$69,'FRED Indicies'!D119) -> FALSE | AF107: 122 | AG107: FALSE | AH107: =IF(AG107,#REF!) -> FALSE | AN107: 104 | AO107: FALSE | AP107: =IF(AO107,'Commodity Prices'!C119) -> FALSE | AR107: =IF(AO107,'Commodity Prices'!D119) -> FALSE | AV107: 122 | AW107: FALSE | AX107: =IF(AW107,'Yahoo Stocks'!D113) -> FALSE | AZ107: =IF(AW107,'Yahoo Stocks'!E113) -> FALSE | BD107: 103 | BE107: FALSE | BF107: =IF(BE107,#REF!) -> FALSE | BH107: =IF(BE107,#REF!) -> FALSE | BL107: 152 | BM107: FALSE | BN107: ='FRED Series'!D119 -> 0 | BP107: =IF(BM107,'FRED Series'!E119) -> FALSE
L108: 105 | Q108: 105 | R108: FALSE | S108: =IF(R108,'Yahoo Index'!E181,"") ->  | T108: =IF(R108,'Yahoo Index'!E114,"") ->  | X108: 123 | Y108: FALSE | Z108: =IF($F$69,'FRED Indicies'!E120) -> FALSE | AB108: =IF($F$69,'FRED Indicies'!D120) -> FALSE | AF108: 123 | AG108: FALSE | AH108: =IF(AG108,#REF!) -> FALSE | AN108: 105 | AO108: FALSE | AP108: =IF(AO108,'Commodity Prices'!C120) -> FALSE | AR108: =IF(AO108,'Commodity Prices'!D120) -> FALSE | AV108: 123 | AW108: FALSE | AX108: =IF(AW108,'Yahoo Stocks'!D114) -> FALSE | AZ108: =IF(AW108,'Yahoo Stocks'!E114) -> FALSE | BD108: 104 | BE108: FALSE | BF108: =IF(BE108,#REF!) -> FALSE | BH108: =IF(BE108,#REF!) -> FALSE | BL108: 153 | BM108: FALSE | BN108: ='FRED Series'!D120 -> 0 | BP108: =IF(BM108,'FRED Series'!E120) -> FALSE
L109: 106 | Q109: 106 | R109: FALSE | S109: =IF(R109,'Yahoo Index'!E182,"") ->  | T109: =IF(R109,'Yahoo Index'!E115,"") ->  | X109: 124 | Y109: FALSE | Z109: =IF($F$69,'FRED Indicies'!E121) -> FALSE | AB109: =IF($F$69,'FRED Indicies'!D121) -> FALSE | AF109: 124 | AG109: FALSE | AH109: =IF(AG109,#REF!) -> FALSE | AN109: 106 | AO109: FALSE | AP109: =IF(AO109,'Commodity Prices'!C121) -> FALSE | AR109: =IF(AO109,'Commodity Prices'!D121) -> FALSE | AV109: 124 | AW109: FALSE | AX109: =IF(AW109,'Yahoo Stocks'!D115) -> FALSE | AZ109: =IF(AW109,'Yahoo Stocks'!E115) -> FALSE | BD109: 105 | BE109: FALSE | BF109: =IF(BE109,#REF!) -> FALSE | BH109: =IF(BE109,#REF!) -> FALSE | BL109: 154 | BM109: FALSE | BN109: ='FRED Series'!D121 -> 0 | BP109: =IF(BM109,'FRED Series'!E121) -> FALSE
L110: 107 | Q110: 107 | R110: FALSE | S110: =IF(R110,'Yahoo Index'!E183,"") ->  | T110: =IF(R110,'Yahoo Index'!E116,"") ->  | X110: 125 | Y110: FALSE | Z110: =IF($F$69,'FRED Indicies'!E122) -> FALSE | AB110: =IF($F$69,'FRED Indicies'!D122) -> FALSE | AF110: 125 | AG110: FALSE | AH110: =IF(AG110,#REF!) -> FALSE | AN110: 107 | AO110: FALSE | AP110: =IF(AO110,'Commodity Prices'!C122) -> FALSE | AR110: =IF(AO110,'Commodity Prices'!D122) -> FALSE | AV110: 125 | AW110: FALSE | AX110: =IF(AW110,'Yahoo Stocks'!D116) -> FALSE | AZ110: =IF(AW110,'Yahoo Stocks'!E116) -> FALSE | BD110: 106 | BE110: FALSE | BF110: =IF(BE110,#REF!) -> FALSE | BH110: =IF(BE110,#REF!) -> FALSE | BL110: 155 | BM110: FALSE | BN110: ='FRED Series'!D122 -> 0 | BP110: =IF(BM110,'FRED Series'!E122) -> FALSE
L111: 108 | Q111: 108 | R111: FALSE | S111: =IF(R111,'Yahoo Index'!E184,"") ->  | T111: =IF(R111,'Yahoo Index'!E117,"") ->  | X111: 126 | Y111: FALSE | Z111: =IF($F$69,'FRED Indicies'!E123) -> FALSE | AB111: =IF($F$69,'FRED Indicies'!D123) -> FALSE | AF111: 126 | AG111: FALSE | AH111: =IF(AG111,#REF!) -> FALSE | AN111: 108 | AO111: FALSE | AP111: =IF(AO111,'Commodity Prices'!C123) -> FALSE | AR111: =IF(AO111,'Commodity Prices'!D123) -> FALSE | AV111: 126 | AW111: FALSE | AX111: =IF(AW111,'Yahoo Stocks'!D117) -> FALSE | AZ111: =IF(AW111,'Yahoo Stocks'!E117) -> FALSE | BD111: 107 | BE111: FALSE | BF111: =IF(BE111,#REF!) -> FALSE | BH111: =IF(BE111,#REF!) -> FALSE | BL111: 156 | BM111: FALSE | BN111: ='FRED Series'!D123 -> 0 | BP111: =IF(BM111,'FRED Series'!E123) -> FALSE
L112: 109 | Q112: 109 | R112: FALSE | S112: =IF(R112,'Yahoo Index'!E185,"") ->  | T112: =IF(R112,'Yahoo Index'!E118,"") ->  | X112: 127 | Y112: FALSE | Z112: =IF($F$69,'FRED Indicies'!E124) -> FALSE | AB112: =IF($F$69,'FRED Indicies'!D124) -> FALSE | AF112: 127 | AG112: FALSE | AH112: =IF(AG112,#REF!) -> FALSE | AN112: 109 | AO112: FALSE | AP112: =IF(AO112,'Commodity Prices'!C124) -> FALSE | AR112: =IF(AO112,'Commodity Prices'!D124) -> FALSE | AV112: 127 | AW112: FALSE | AX112: =IF(AW112,'Yahoo Stocks'!D118) -> FALSE | AZ112: =IF(AW112,'Yahoo Stocks'!E118) -> FALSE | BD112: 108 | BE112: FALSE | BF112: =IF(BE112,#REF!) -> FALSE | BH112: =IF(BE112,#REF!) -> FALSE | BL112: 157 | BM112: FALSE | BN112: ='FRED Series'!D124 -> 0 | BP112: =IF(BM112,'FRED Series'!E124) -> FALSE
L113: 110 | Q113: 110 | R113: FALSE | S113: =IF(R113,'Yahoo Index'!E186,"") ->  | T113: =IF(R113,'Yahoo Index'!E119,"") ->  | X113: 128 | Y113: FALSE | Z113: =IF($F$69,'FRED Indicies'!E125) -> FALSE | AB113: =IF($F$69,'FRED Indicies'!D125) -> FALSE | AF113: 128 | AG113: FALSE | AH113: =IF(AG113,#REF!) -> FALSE | AN113: 110 | AO113: FALSE | AP113: =IF(AO113,'Commodity Prices'!C125) -> FALSE | AR113: =IF(AO113,'Commodity Prices'!D125) -> FALSE | AV113: 128 | AW113: FALSE | AX113: =IF(AW113,'Yahoo Stocks'!D119) -> FALSE | AZ113: =IF(AW113,'Yahoo Stocks'!E119) -> FALSE | BD113: 109 | BE113: FALSE | BF113: =IF(BE113,#REF!) -> FALSE | BH113: =IF(BE113,#REF!) -> FALSE | BL113: 158 | BM113: FALSE | BN113: ='FRED Series'!D125 -> 0 | BP113: =IF(BM113,'FRED Series'!E125) -> FALSE
L114: 111 | Q114: 111 | R114: FALSE | S114: =IF(R114,'Yahoo Index'!E187,"") ->  | T114: =IF(R114,'Yahoo Index'!E120,"") ->  | X114: 129 | Y114: FALSE | Z114: =IF($F$69,'FRED Indicies'!E126) -> FALSE | AB114: =IF($F$69,'FRED Indicies'!D126) -> FALSE | AF114: 129 | AG114: FALSE | AH114: =IF(AG114,#REF!) -> FALSE | AN114: 111 | AO114: FALSE | AP114: =IF(AO114,'Commodity Prices'!C126) -> FALSE | AR114: =IF(AO114,'Commodity Prices'!D126) -> FALSE | AV114: 129 | AW114: FALSE | AX114: =IF(AW114,'Yahoo Stocks'!D120) -> FALSE | AZ114: =IF(AW114,'Yahoo Stocks'!E120) -> FALSE | BD114: 110 | BE114: FALSE | BF114: =IF(BE114,#REF!) -> FALSE | BH114: =IF(BE114,#REF!) -> FALSE | BL114: 159 | BM114: FALSE | BN114: ='FRED Series'!D126 -> 0 | BP114: =IF(BM114,'FRED Series'!E126) -> FALSE
L115: 112 | Q115: 112 | R115: FALSE | S115: =IF(R115,'Yahoo Index'!E188,"") ->  | T115: =IF(R115,'Yahoo Index'!E121,"") ->  | X115: 130 | Y115: FALSE | Z115: =IF($F$69,'FRED Indicies'!E127) -> FALSE | AB115: =IF($F$69,'FRED Indicies'!D127) -> FALSE | AF115: 130 | AG115: FALSE | AH115: =IF(AG115,#REF!) -> FALSE | AN115: 112 | AO115: FALSE | AP115: =IF(AO115,'Commodity Prices'!C127) -> FALSE | AR115: =IF(AO115,'Commodity Prices'!D127) -> FALSE | AV115: 130 | AW115: FALSE | AX115: =IF(AW115,'Yahoo Stocks'!D121) -> FALSE | AZ115: =IF(AW115,'Yahoo Stocks'!E121) -> FALSE | BD115: 111 | BE115: FALSE | BF115: =IF(BE115,#REF!) -> FALSE | BH115: =IF(BE115,#REF!) -> FALSE | BL115: 160 | BM115: FALSE | BN115: ='FRED Series'!D127 -> 0 | BP115: =IF(BM115,'FRED Series'!E127) -> FALSE
L116: 113 | Q116: 113 | R116: FALSE | S116: =IF(R116,'Yahoo Index'!E189,"") ->  | T116: =IF(R116,'Yahoo Index'!E122,"") ->  | X116: 131 | Y116: FALSE | Z116: =IF($F$69,'FRED Indicies'!E128) -> FALSE | AB116: =IF($F$69,'FRED Indicies'!D128) -> FALSE | AF116: 131 | AG116: FALSE | AH116: =IF(AG116,#REF!) -> FALSE | AN116: 113 | AO116: FALSE | AP116: =IF(AO116,'Commodity Prices'!C128) -> FALSE | AR116: =IF(AO116,'Commodity Prices'!D128) -> FALSE | AV116: 131 | AW116: FALSE | AX116: =IF(AW116,'Yahoo Stocks'!D122) -> FALSE | AZ116: =IF(AW116,'Yahoo Stocks'!E122) -> FALSE | BD116: 112 | BE116: FALSE | BF116: =IF(BE116,#REF!) -> FALSE | BH116: =IF(BE116,#REF!) -> FALSE | BL116: 161 | BM116: FALSE | BN116: ='FRED Series'!D128 -> 0 | BP116: =IF(BM116,'FRED Series'!E128) -> FALSE
L117: 114 | Q117: 114 | R117: FALSE | S117: =IF(R117,'Yahoo Index'!E190,"") ->  | T117: =IF(R117,'Yahoo Index'!E123,"") ->  | X117: 132 | Y117: FALSE | Z117: =IF($F$69,'FRED Indicies'!E129) -> FALSE | AB117: =IF($F$69,'FRED Indicies'!D129) -> FALSE | AF117: 132 | AG117: FALSE | AH117: =IF(AG117,#REF!) -> FALSE | AN117: 114 | AO117: FALSE | AP117: =IF(AO117,'Commodity Prices'!C129) -> FALSE | AR117: =IF(AO117,'Commodity Prices'!D129) -> FALSE | AV117: 132 | AW117: FALSE | AX117: =IF(AW117,'Yahoo Stocks'!D123) -> FALSE | AZ117: =IF(AW117,'Yahoo Stocks'!E123) -> FALSE | BD117: 113 | BE117: FALSE | BF117: =IF(BE117,#REF!) -> FALSE | BH117: =IF(BE117,#REF!) -> FALSE | BL117: 162 | BM117: FALSE | BN117: ='FRED Series'!D129 -> 0 | BP117: =IF(BM117,'FRED Series'!E129) -> FALSE
L118: 115 | Q118: 115 | R118: FALSE | S118: =IF(R118,'Yahoo Index'!E191,"") ->  | T118: =IF(R118,'Yahoo Index'!E124,"") ->  | X118: 133 | Y118: FALSE | Z118: =IF($F$69,'FRED Indicies'!E130) -> FALSE | AB118: =IF($F$69,'FRED Indicies'!D130) -> FALSE | AF118: 133 | AG118: FALSE | AH118: =IF(AG118,#REF!) -> FALSE | AN118: 115 | AO118: FALSE | AP118: =IF(AO118,'Commodity Prices'!C130) -> FALSE | AR118: =IF(AO118,'Commodity Prices'!D130) -> FALSE | AV118: 133 | AW118: FALSE | AX118: =IF(AW118,'Yahoo Stocks'!D124) -> FALSE | AZ118: =IF(AW118,'Yahoo Stocks'!E124) -> FALSE | BD118: 114 | BE118: FALSE | BF118: =IF(BE118,#REF!) -> FALSE | BH118: =IF(BE118,#REF!) -> FALSE | BL118: 163 | BM118: FALSE | BN118: ='FRED Series'!D130 -> 0 | BP118: =IF(BM118,'FRED Series'!E130) -> FALSE
L119: 116 | Q119: 116 | R119: FALSE | S119: =IF(R119,'Yahoo Index'!E192,"") ->  | T119: =IF(R119,'Yahoo Index'!E125,"") ->  | X119: 134 | Y119: FALSE | Z119: =IF($F$69,'FRED Indicies'!E131) -> FALSE | AB119: =IF($F$69,'FRED Indicies'!D131) -> FALSE | AF119: 134 | AG119: FALSE | AH119: =IF(AG119,#REF!) -> FALSE | AN119: 116 | AO119: FALSE | AP119: =IF(AO119,'Commodity Prices'!C131) -> FALSE | AR119: =IF(AO119,'Commodity Prices'!D131) -> FALSE | AV119: 134 | AW119: FALSE | AX119: =IF(AW119,'Yahoo Stocks'!D125) -> FALSE | AZ119: =IF(AW119,'Yahoo Stocks'!E125) -> FALSE | BD119: 115 | BE119: FALSE | BF119: =IF(BE119,#REF!) -> FALSE | BH119: =IF(BE119,#REF!) -> FALSE | BL119: 164 | BM119: FALSE | BN119: ='FRED Series'!D131 -> 0 | BP119: =IF(BM119,'FRED Series'!E131) -> FALSE
L120: 117 | Q120: 117 | R120: FALSE | S120: =IF(R120,'Yahoo Index'!E193,"") ->  | T120: =IF(R120,'Yahoo Index'!E126,"") ->  | X120: 135 | Y120: FALSE | Z120: =IF($F$69,'FRED Indicies'!E132) -> FALSE | AB120: =IF($F$69,'FRED Indicies'!D132) -> FALSE | AF120: 135 | AG120: FALSE | AH120: =IF(AG120,#REF!) -> FALSE | AN120: 117 | AO120: FALSE | AP120: =IF(AO120,'Commodity Prices'!C132) -> FALSE | AR120: =IF(AO120,'Commodity Prices'!D132) -> FALSE | AV120: 135 | AW120: FALSE | AX120: =IF(AW120,'Yahoo Stocks'!D126) -> FALSE | AZ120: =IF(AW120,'Yahoo Stocks'!E126) -> FALSE | BD120: 116 | BE120: FALSE | BF120: =IF(BE120,#REF!) -> FALSE | BH120: =IF(BE120,#REF!) -> FALSE | BL120: 165 | BM120: FALSE | BN120: ='FRED Series'!D132 -> 0 | BP120: =IF(BM120,'FRED Series'!E132) -> FALSE
L121: 118 | Q121: 118 | R121: FALSE | S121: =IF(R121,'Yahoo Index'!E194,"") ->  | T121: =IF(R121,'Yahoo Index'!E127,"") ->  | X121: 136 | Y121: FALSE | Z121: =IF($F$69,'FRED Indicies'!E133) -> FALSE | AB121: =IF($F$69,'FRED Indicies'!D133) -> FALSE | AF121: 136 | AG121: FALSE | AH121: =IF(AG121,#REF!) -> FALSE | AN121: 118 | AO121: FALSE | AP121: =IF(AO121,'Commodity Prices'!C133) -> FALSE | AR121: =IF(AO121,'Commodity Prices'!D133) -> FALSE | AV121: 136 | AW121: FALSE | AX121: =IF(AW121,'Yahoo Stocks'!D127) -> FALSE | AZ121: =IF(AW121,'Yahoo Stocks'!E127) -> FALSE | BD121: 117 | BE121: FALSE | BF121: =IF(BE121,#REF!) -> FALSE | BH121: =IF(BE121,#REF!) -> FALSE | BL121: 166 | BM121: FALSE | BN121: ='FRED Series'!D133 -> 0 | BP121: =IF(BM121,'FRED Series'!E133) -> FALSE
L122: 119 | Q122: 119 | R122: FALSE | S122: =IF(R122,'Yahoo Index'!E195,"") ->  | T122: =IF(R122,'Yahoo Index'!E128,"") ->  | X122: 137 | Y122: FALSE | Z122: =IF($F$69,'FRED Indicies'!E134) -> FALSE | AB122: =IF($F$69,'FRED Indicies'!D134) -> FALSE | AF122: 137 | AG122: FALSE | AH122: =IF(AG122,#REF!) -> FALSE | AN122: 119 | AO122: FALSE | AP122: =IF(AO122,'Commodity Prices'!C134) -> FALSE | AR122: =IF(AO122,'Commodity Prices'!D134) -> FALSE | AV122: 137 | AW122: FALSE | AX122: =IF(AW122,'Yahoo Stocks'!D128) -> FALSE | AZ122: =IF(AW122,'Yahoo Stocks'!E128) -> FALSE | BD122: 118 | BE122: FALSE | BF122: =IF(BE122,#REF!) -> FALSE | BH122: =IF(BE122,#REF!) -> FALSE | BL122: 167 | BM122: FALSE | BN122: ='FRED Series'!D134 -> 0 | BP122: =IF(BM122,'FRED Series'!E134) -> FALSE
L123: 120 | Q123: 120 | R123: FALSE | S123: =IF(R123,'Yahoo Index'!E196,"") ->  | T123: =IF(R123,'Yahoo Index'!E129,"") ->  | X123: 138 | Y123: FALSE | Z123: =IF($F$69,'FRED Indicies'!E135) -> FALSE | AB123: =IF($F$69,'FRED Indicies'!D135) -> FALSE | AF123: 138 | AG123: FALSE | AH123: =IF(AG123,#REF!) -> FALSE | AN123: 120 | AO123: FALSE | AP123: =IF(AO123,'Commodity Prices'!C135) -> FALSE | AR123: =IF(AO123,'Commodity Prices'!D135) -> FALSE | AV123: 138 | AW123: FALSE | AX123: =IF(AW123,'Yahoo Stocks'!D129) -> FALSE | AZ123: =IF(AW123,'Yahoo Stocks'!E129) -> FALSE | BD123: 119 | BE123: FALSE | BF123: =IF(BE123,#REF!) -> FALSE | BH123: =IF(BE123,#REF!) -> FALSE | BL123: 168 | BM123: FALSE | BN123: ='FRED Series'!D135 -> 0 | BP123: =IF(BM123,'FRED Series'!E135) -> FALSE
L124: 121 | Q124: 121 | R124: FALSE | S124: =IF(R124,'Yahoo Index'!E197,"") ->  | T124: =IF(R124,'Yahoo Index'!E130,"") ->  | X124: 139 | Y124: FALSE | Z124: =IF($F$69,'FRED Indicies'!E136) -> FALSE | AB124: =IF($F$69,'FRED Indicies'!D136) -> FALSE | AF124: 139 | AG124: FALSE | AH124: =IF(AG124,#REF!) -> FALSE | AN124: 121 | AO124: FALSE | AP124: =IF(AO124,'Commodity Prices'!C136) -> FALSE | AR124: =IF(AO124,'Commodity Prices'!D136) -> FALSE | AV124: 139 | AW124: FALSE | AX124: =IF(AW124,'Yahoo Stocks'!D130) -> FALSE | AZ124: =IF(AW124,'Yahoo Stocks'!E130) -> FALSE | BD124: 120 | BE124: FALSE | BF124: =IF(BE124,#REF!) -> FALSE | BH124: =IF(BE124,#REF!) -> FALSE | BL124: 169 | BM124: FALSE | BN124: ='FRED Series'!D136 -> 0 | BP124: =IF(BM124,'FRED Series'!E136) -> FALSE
L125: 122 | Q125: 122 | R125: FALSE | S125: =IF(R125,'Yahoo Index'!E198,"") ->  | T125: =IF(R125,'Yahoo Index'!E131,"") ->  | X125: 140 | Y125: FALSE | Z125: =IF($F$69,'FRED Indicies'!E137) -> FALSE | AB125: =IF($F$69,'FRED Indicies'!D137) -> FALSE | AF125: 140 | AG125: FALSE | AH125: =IF(AG125,#REF!) -> FALSE | AN125: 122 | AO125: FALSE | AP125: =IF(AO125,'Commodity Prices'!C137) -> FALSE | AR125: =IF(AO125,'Commodity Prices'!D137) -> FALSE | AV125: 140 | AW125: FALSE | AX125: =IF(AW125,'Yahoo Stocks'!D131) -> FALSE | AZ125: =IF(AW125,'Yahoo Stocks'!E131) -> FALSE | BD125: 121 | BE125: FALSE | BF125: =IF(BE125,#REF!) -> FALSE | BH125: =IF(BE125,#REF!) -> FALSE | BL125: 170 | BM125: FALSE | BN125: ='FRED Series'!D137 -> 0 | BP125: =IF(BM125,'FRED Series'!E137) -> FALSE
L126: 123 | Q126: 123 | R126: FALSE | S126: =IF(R126,'Yahoo Index'!E199,"") ->  | T126: =IF(R126,'Yahoo Index'!E132,"") ->  | X126: 141 | Y126: FALSE | Z126: =IF($F$69,'FRED Indicies'!E138) -> FALSE | AB126: =IF($F$69,'FRED Indicies'!D138) -> FALSE | AF126: 141 | AG126: FALSE | AH126: =IF(AG126,#REF!) -> FALSE | AN126: 123 | AO126: FALSE | AP126: =IF(AO126,'Commodity Prices'!C138) -> FALSE | AR126: =IF(AO126,'Commodity Prices'!D138) -> FALSE | AV126: 141 | AW126: FALSE | AX126: =IF(AW126,'Yahoo Stocks'!D132) -> FALSE | AZ126: =IF(AW126,'Yahoo Stocks'!E132) -> FALSE | BD126: 122 | BE126: FALSE | BF126: =IF(BE126,#REF!) -> FALSE | BH126: =IF(BE126,#REF!) -> FALSE | BL126: 171 | BM126: FALSE | BN126: ='FRED Series'!D138 -> 0 | BP126: =IF(BM126,'FRED Series'!E138) -> FALSE
L127: 124 | Q127: 124 | R127: FALSE | S127: =IF(R127,'Yahoo Index'!E200,"") ->  | T127: =IF(R127,'Yahoo Index'!E133,"") ->  | X127: 142 | Y127: FALSE | Z127: =IF($F$69,'FRED Indicies'!E139) -> FALSE | AB127: =IF($F$69,'FRED Indicies'!D139) -> FALSE | AF127: 142 | AG127: FALSE | AH127: =IF(AG127,#REF!) -> FALSE | AN127: 124 | AO127: FALSE | AP127: =IF(AO127,'Commodity Prices'!C139) -> FALSE | AR127: =IF(AO127,'Commodity Prices'!D139) -> FALSE | AV127: 142 | AW127: FALSE | AX127: =IF(AW127,'Yahoo Stocks'!D133) -> FALSE | AZ127: =IF(AW127,'Yahoo Stocks'!E133) -> FALSE | BD127: 123 | BE127: FALSE | BF127: =IF(BE127,#REF!) -> FALSE | BH127: =IF(BE127,#REF!) -> FALSE | BL127: 172 | BM127: FALSE | BN127: ='FRED Series'!D139 -> 0 | BP127: =IF(BM127,'FRED Series'!E139) -> FALSE
L128: 125 | Q128: 125 | R128: FALSE | S128: =IF(R128,'Yahoo Index'!E201,"") ->  | T128: =IF(R128,'Yahoo Index'!E134,"") ->  | X128: 143 | Y128: FALSE | Z128: =IF($F$69,'FRED Indicies'!E140) -> FALSE | AB128: =IF($F$69,'FRED Indicies'!D140) -> FALSE | AF128: 143 | AG128: FALSE | AH128: =IF(AG128,#REF!) -> FALSE | AN128: 125 | AO128: FALSE | AP128: =IF(AO128,'Commodity Prices'!C140) -> FALSE | AR128: =IF(AO128,'Commodity Prices'!D140) -> FALSE | AV128: 143 | AW128: FALSE | AX128: =IF(AW128,'Yahoo Stocks'!D134) -> FALSE | AZ128: =IF(AW128,'Yahoo Stocks'!E134) -> FALSE | BD128: 124 | BE128: FALSE | BF128: =IF(BE128,#REF!) -> FALSE | BH128: =IF(BE128,#REF!) -> FALSE | BL128: 173 | BM128: FALSE | BN128: ='FRED Series'!D140 -> 0 | BP128: =IF(BM128,'FRED Series'!E140) -> FALSE
L129: 126 | Q129: 126 | R129: FALSE | X129: 144 | Y129: FALSE | Z129: =IF($F$69,'FRED Indicies'!E141) -> FALSE | AB129: =IF($F$69,'FRED Indicies'!D141) -> FALSE | AF129: 144 | AG129: FALSE | AH129: =IF(AG129,#REF!) -> FALSE | AN129: 126 | AO129: FALSE | AP129: =IF(AO129,'Commodity Prices'!C141) -> FALSE | AR129: =IF(AO129,'Commodity Prices'!D141) -> FALSE | AV129: 144 | AW129: FALSE | AX129: =IF(AW129,'Yahoo Stocks'!D135) -> FALSE | AZ129: =IF(AW129,'Yahoo Stocks'!E135) -> FALSE | BD129: 125 | BE129: FALSE | BF129: =IF(BE129,#REF!) -> FALSE | BH129: =IF(BE129,#REF!) -> FALSE | BL129: 174 | BM129: FALSE | BN129: ='FRED Series'!D141 -> 0 | BP129: =IF(BM129,'FRED Series'!E141) -> FALSE
L130: 127 | Q130: 127 | R130: FALSE | X130: 145 | Y130: FALSE | Z130: =IF($F$69,'FRED Indicies'!E142) -> FALSE | AB130: =IF($F$69,'FRED Indicies'!D142) -> FALSE | AF130: 145 | AG130: FALSE | AH130: =IF(AG130,#REF!) -> FALSE | AN130: 127 | AO130: FALSE | AP130: =IF(AO130,'Commodity Prices'!C142) -> FALSE | AR130: =IF(AO130,'Commodity Prices'!D142) -> FALSE | AV130: 145 | AW130: FALSE | AX130: =IF(AW130,'Yahoo Stocks'!D136) -> FALSE | AZ130: =IF(AW130,'Yahoo Stocks'!E136) -> FALSE | BD130: 126 | BE130: FALSE | BF130: =IF(BE130,#REF!) -> FALSE | BH130: =IF(BE130,#REF!) -> FALSE | BL130: 175 | BM130: FALSE | BN130: ='FRED Series'!D142 -> 0 | BP130: =IF(BM130,'FRED Series'!E142) -> FALSE
L131: 128 | Q131: 128 | R131: FALSE | X131: 146 | Y131: FALSE | Z131: =IF($F$69,'FRED Indicies'!E143) -> FALSE | AB131: =IF($F$69,'FRED Indicies'!D143) -> FALSE | AF131: 146 | AG131: FALSE | AH131: =IF(AG131,#REF!) -> FALSE | AN131: 128 | AO131: FALSE | AP131: =IF(AO131,'Commodity Prices'!C143) -> FALSE | AR131: =IF(AO131,'Commodity Prices'!D143) -> FALSE | AV131: 146 | AW131: FALSE | AX131: =IF(AW131,'Yahoo Stocks'!D137) -> FALSE | AZ131: =IF(AW131,'Yahoo Stocks'!E137) -> FALSE | BD131: 127 | BE131: FALSE | BF131: =IF(BE131,#REF!) -> FALSE | BH131: =IF(BE131,#REF!) -> FALSE | BL131: 176 | BM131: FALSE | BN131: ='FRED Series'!D143 -> 0 | BP131: =IF(BM131,'FRED Series'!E143) -> FALSE
L132: 129 | O132: =U132&AD132&AL132&AT132&BB132&BJ132&BR132 ->  | P132: =V132&AE132&AM132&AU132&BC132&BK132&BS132 ->  | Q132: 129 | R132: FALSE | X132: 147 | Y132: =IF(AND($F$69,X132<=$H$69),X132) -> FALSE | Z132: =IF($F$69,'FRED Indicies'!E144) -> FALSE | AA132: =IFERROR(INDEX(Z:Z,MATCH(L132,Y:Y,0)),"") ->  | AB132: =IF($F$69,'FRED Indicies'!D144) -> FALSE | AC132: =IFERROR(INDEX(AB:AB,MATCH(L132,Y:Y,0)),"") ->  | AD132: =IF(AA132<>"",$I$69,"") ->  | AE132: =IF(AA132<>"",$J$69,"") ->  | AF132: 147 | AG132: =IF(AND($F$72,AF132<=$H$72),AF132) -> FALSE | AH132: =IF(AG132,#REF!) -> FALSE | AI132: =IFERROR(INDEX(AH:AH,MATCH(Q132,AG:AG,0)),"") ->  | AK132: =IFERROR(INDEX(AJ:AJ,MATCH(Q132,AG:AG,0)),"") ->  | AL132: =IF(AI132<>"",$I$69,"") ->  | AM132: =IF(AK132<>"",$J$69,"") ->  | AN132: 129 | AO132: =IF(AND($F$63,AN132<=$H$63),AN132) -> FALSE | AP132: =IF(AO132,'Commodity Prices'!C144) -> FALSE | AQ132: =IFERROR(INDEX(AP:AP,MATCH(L132,AO:AO,0)),"") ->  | AR132: =IF(AO132,'Commodity Prices'!D144) -> FALSE | AS132: =IFERROR(INDEX(AR:AR,MATCH(L132,AO:AO,0)),"") ->  | AT132: =IF(AQ132<>"",$I$63,"") ->  | AU132: =IF(AS132<>"",$J$63,"") ->  | AV132: 147 | AW132: =IF(AND($F$6,AV132<=$H$6),AV132) -> FALSE | AX132: =IF(AW132,'Yahoo Stocks'!D138) -> FALSE | AZ132: =IF(AW132,'Yahoo Stocks'!E138) -> FALSE | BB132: =IF(AY132<>"",$I$6,"") ->  | BC132: =IF(BA132<>"",$J$6,"") ->  | BD132: 128 | BE132: =IF(AND($F$66,BD132<=$H$66),BD132) -> FALSE | BF132: =IF(BE132,#REF!) -> FALSE | BG132: =IFERROR(INDEX(BF:BF,MATCH(Q132,BE:BE,0)),"") ->  | BH132: =IF(BE132,#REF!) -> FALSE | BI132: =IFERROR(INDEX(BH:BH,MATCH(Q132,BE:BE,0)),"") ->  | BJ132: =IF(BI132<>"",$I$66,"") ->  | BK132: =IF(BI132<>"",$J$66,"") ->  | BL132: 177 | BM132: =IF(AND($F$9,BL132<=$H$9),BL132) -> FALSE | BN132: ='FRED Series'!D144 -> 0 | BO132: =IFERROR(INDEX(BN:BN,MATCH(L132,BM:BM,0)),"") ->  | BP132: =IF(BM132,'FRED Series'!E144) -> FALSE | BR132: =IF(BQ132<>"",$I$9,"") ->  | BS132: =IF(BQ132<>"",$J$9,"") -> 
L133: 130 | Q133: =Q132+1 -> 130 | R133: =IF(AND($F$4,Q133<=$H$4),Q133) -> FALSE | X133: =X132+1 -> 148 | Y133: FALSE | Z133: =IF($F$69,'FRED Indicies'!E145) -> FALSE | AB133: =IF($F$69,'FRED Indicies'!D145) -> FALSE | AF133: =AF132+1 -> 148 | AG133: FALSE | AH133: =IF(AG133,#REF!) -> FALSE | AN133: =AN132+1 -> 130 | AO133: FALSE | AP133: =IF(AO133,'Commodity Prices'!C145) -> FALSE | AR133: =IF(AO133,'Commodity Prices'!D145) -> FALSE | AV133: =AV132+1 -> 148 | AW133: FALSE | AX133: =IF(AW133,'Yahoo Stocks'!D139) -> FALSE | AZ133: =IF(AW133,'Yahoo Stocks'!E139) -> FALSE | BD133: =BD132+1 -> 129 | BE133: FALSE | BF133: =IF(BE133,#REF!) -> FALSE | BH133: =IF(BE133,#REF!) -> FALSE | BL133: =BL132+1 -> 178 | BM133: FALSE | BN133: ='FRED Series'!D145 -> 0 | BP133: =IF(BM133,'FRED Series'!E145) -> FALSE | BQ133: =IFERROR(INDEX(BN:BN,MATCH(L133,BM:BM,0)),"") -> 
L134: 131 | Q134: 131 | R134: FALSE | X134: 149 | Y134: FALSE | Z134: =IF($F$69,'FRED Indicies'!E146) -> FALSE | AB134: =IF($F$69,'FRED Indicies'!D146) -> FALSE | AF134: 149 | AG134: FALSE | AH134: =IF(AG134,#REF!) -> FALSE | AN134: 131 | AO134: FALSE | AP134: =IF(AO134,'Commodity Prices'!C146) -> FALSE | AR134: =IF(AO134,'Commodity Prices'!D146) -> FALSE | AV134: 149 | AW134: FALSE | AX134: =IF(AW134,'Yahoo Stocks'!D140) -> FALSE | AZ134: =IF(AW134,'Yahoo Stocks'!E140) -> FALSE | BD134: 130 | BE134: FALSE | BF134: =IF(BE134,#REF!) -> FALSE | BH134: =IF(BE134,#REF!) -> FALSE | BL134: 179 | BM134: FALSE | BN134: ='FRED Series'!D146 -> 0 | BP134: =IF(BM134,'FRED Series'!E146) -> FALSE
L135: 132 | Q135: 132 | R135: FALSE | X135: 150 | Y135: FALSE | Z135: =IF($F$69,'FRED Indicies'!E147) -> FALSE | AB135: =IF($F$69,'FRED Indicies'!D147) -> FALSE | AF135: 150 | AG135: FALSE | AH135: =IF(AG135,#REF!) -> FALSE | AN135: 132 | AO135: FALSE | AP135: =IF(AO135,'Commodity Prices'!C147) -> FALSE | AR135: =IF(AO135,'Commodity Prices'!D147) -> FALSE | AV135: 150 | AW135: FALSE | AX135: =IF(AW135,'Yahoo Stocks'!D141) -> FALSE | AZ135: =IF(AW135,'Yahoo Stocks'!E141) -> FALSE | BD135: 131 | BE135: FALSE | BF135: =IF(BE135,#REF!) -> FALSE | BH135: =IF(BE135,#REF!) -> FALSE | BL135: 180 | BM135: FALSE | BN135: ='FRED Series'!D147 -> 0 | BP135: =IF(BM135,'FRED Series'!E147) -> FALSE
L136: 133 | Q136: 133 | R136: FALSE | X136: 151 | Y136: FALSE | Z136: =IF($F$69,'FRED Indicies'!E148) -> FALSE | AB136: =IF($F$69,'FRED Indicies'!D148) -> FALSE | AF136: 151 | AG136: FALSE | AH136: =IF(AG136,#REF!) -> FALSE | AN136: 133 | AO136: FALSE | AP136: =IF(AO136,'Commodity Prices'!C148) -> FALSE | AR136: =IF(AO136,'Commodity Prices'!D148) -> FALSE | AV136: 151 | AW136: FALSE | AX136: =IF(AW136,'Yahoo Stocks'!D142) -> FALSE | AZ136: =IF(AW136,'Yahoo Stocks'!E142) -> FALSE | BD136: 132 | BE136: FALSE | BF136: =IF(BE136,#REF!) -> FALSE | BH136: =IF(BE136,#REF!) -> FALSE | BL136: 181 | BM136: FALSE | BN136: ='FRED Series'!D148 -> 0 | BP136: =IF(BM136,'FRED Series'!E148) -> FALSE
L137: 134 | Q137: 134 | R137: FALSE | X137: 152 | Y137: FALSE | Z137: =IF($F$69,'FRED Indicies'!E149) -> FALSE | AB137: =IF($F$69,'FRED Indicies'!D149) -> FALSE | AF137: 152 | AG137: FALSE | AH137: =IF(AG137,#REF!) -> FALSE | AN137: 134 | AO137: FALSE | AP137: =IF(AO137,'Commodity Prices'!C149) -> FALSE | AR137: =IF(AO137,'Commodity Prices'!D149) -> FALSE | AV137: 152 | AW137: FALSE | AX137: =IF(AW137,'Yahoo Stocks'!D143) -> FALSE | AZ137: =IF(AW137,'Yahoo Stocks'!E143) -> FALSE | BD137: 133 | BE137: FALSE | BF137: =IF(BE137,#REF!) -> FALSE | BH137: =IF(BE137,#REF!) -> FALSE | BL137: 182 | BM137: FALSE | BN137: ='FRED Series'!D149 -> 0 | BP137: =IF(BM137,'FRED Series'!E149) -> FALSE
L138: 135 | Q138: 135 | R138: FALSE | X138: 153 | Y138: FALSE | Z138: =IF($F$69,'FRED Indicies'!E150) -> FALSE | AB138: =IF($F$69,'FRED Indicies'!D150) -> FALSE | AF138: 153 | AG138: FALSE | AH138: =IF(AG138,#REF!) -> FALSE | AN138: 135 | AO138: FALSE | AP138: =IF(AO138,'Commodity Prices'!C150) -> FALSE | AR138: =IF(AO138,'Commodity Prices'!D150) -> FALSE | AV138: 153 | AW138: FALSE | AX138: =IF(AW138,'Yahoo Stocks'!D144) -> FALSE | AZ138: =IF(AW138,'Yahoo Stocks'!E144) -> FALSE | BD138: 134 | BE138: FALSE | BF138: =IF(BE138,#REF!) -> FALSE | BH138: =IF(BE138,#REF!) -> FALSE | BL138: 183 | BM138: FALSE | BN138: ='FRED Series'!D150 -> 0 | BP138: =IF(BM138,'FRED Series'!E150) -> FALSE
L139: 136 | Q139: 136 | R139: FALSE | X139: 154 | Y139: FALSE | Z139: =IF($F$69,'FRED Indicies'!E151) -> FALSE | AB139: =IF($F$69,'FRED Indicies'!D151) -> FALSE | AF139: 154 | AG139: FALSE | AH139: =IF(AG139,#REF!) -> FALSE | AN139: 136 | AO139: FALSE | AP139: =IF(AO139,'Commodity Prices'!C151) -> FALSE | AR139: =IF(AO139,'Commodity Prices'!D151) -> FALSE | AV139: 154 | AW139: FALSE | AX139: =IF(AW139,'Yahoo Stocks'!D145) -> FALSE | AZ139: =IF(AW139,'Yahoo Stocks'!E145) -> FALSE | BD139: 135 | BE139: FALSE | BF139: =IF(BE139,#REF!) -> FALSE | BH139: =IF(BE139,#REF!) -> FALSE | BL139: 184 | BM139: FALSE | BN139: ='FRED Series'!D151 -> 0 | BP139: =IF(BM139,'FRED Series'!E151) -> FALSE
L140: 137 | Q140: 137 | R140: FALSE | X140: 155 | Y140: FALSE | Z140: =IF($F$69,'FRED Indicies'!E152) -> FALSE | AB140: =IF($F$69,'FRED Indicies'!D152) -> FALSE | AF140: 155 | AG140: FALSE | AH140: =IF(AG140,#REF!) -> FALSE | AN140: 137 | AO140: FALSE | AP140: =IF(AO140,'Commodity Prices'!C152) -> FALSE | AR140: =IF(AO140,'Commodity Prices'!D152) -> FALSE | AV140: 155 | AW140: FALSE | AX140: =IF(AW140,'Yahoo Stocks'!D146) -> FALSE | AZ140: =IF(AW140,'Yahoo Stocks'!E146) -> FALSE | BD140: 136 | BE140: FALSE | BF140: =IF(BE140,#REF!) -> FALSE | BH140: =IF(BE140,#REF!) -> FALSE | BL140: 185 | BM140: FALSE | BN140: ='FRED Series'!D152 -> 0 | BP140: =IF(BM140,'FRED Series'!E152) -> FALSE
L141: 138 | Q141: 138 | R141: FALSE | X141: 156 | Y141: FALSE | Z141: =IF($F$69,'FRED Indicies'!E153) -> FALSE | AB141: =IF($F$69,'FRED Indicies'!D153) -> FALSE | AF141: 156 | AG141: FALSE | AH141: =IF(AG141,#REF!) -> FALSE | AN141: 138 | AO141: FALSE | AP141: =IF(AO141,'Commodity Prices'!C153) -> FALSE | AR141: =IF(AO141,'Commodity Prices'!D153) -> FALSE | AV141: 156 | AW141: FALSE | AX141: =IF(AW141,'Yahoo Stocks'!D147) -> FALSE | AZ141: =IF(AW141,'Yahoo Stocks'!E147) -> FALSE | BD141: 137 | BE141: FALSE | BF141: =IF(BE141,#REF!) -> FALSE | BH141: =IF(BE141,#REF!) -> FALSE | BL141: 186 | BM141: FALSE | BN141: ='FRED Series'!D153 -> 0 | BP141: =IF(BM141,'FRED Series'!E153) -> FALSE
L142: 139 | Q142: 139 | R142: FALSE | X142: 157 | Y142: FALSE | Z142: =IF($F$69,'FRED Indicies'!E154) -> FALSE | AB142: =IF($F$69,'FRED Indicies'!D154) -> FALSE | AF142: 157 | AG142: FALSE | AH142: =IF(AG142,#REF!) -> FALSE | AN142: 139 | AO142: FALSE | AP142: =IF(AO142,'Commodity Prices'!C154) -> FALSE | AR142: =IF(AO142,'Commodity Prices'!D154) -> FALSE | AV142: 157 | AW142: FALSE | AX142: =IF(AW142,'Yahoo Stocks'!D148) -> FALSE | AZ142: =IF(AW142,'Yahoo Stocks'!E148) -> FALSE | BD142: 138 | BE142: FALSE | BF142: =IF(BE142,#REF!) -> FALSE | BH142: =IF(BE142,#REF!) -> FALSE | BL142: 187 | BM142: FALSE | BN142: ='FRED Series'!D154 -> 0 | BP142: =IF(BM142,'FRED Series'!E154) -> FALSE
L143: 140 | Q143: 140 | R143: FALSE | X143: 158 | Y143: FALSE | Z143: =IF($F$69,'FRED Indicies'!E155) -> FALSE | AB143: =IF($F$69,'FRED Indicies'!D155) -> FALSE | AF143: 158 | AG143: FALSE | AH143: =IF(AG143,#REF!) -> FALSE | AN143: 140 | AO143: FALSE | AP143: =IF(AO143,'Commodity Prices'!C155) -> FALSE | AR143: =IF(AO143,'Commodity Prices'!D155) -> FALSE | AV143: 158 | AW143: FALSE | AX143: =IF(AW143,'Yahoo Stocks'!D149) -> FALSE | AZ143: =IF(AW143,'Yahoo Stocks'!E149) -> FALSE | BD143: 139 | BE143: FALSE | BF143: =IF(BE143,#REF!) -> FALSE | BH143: =IF(BE143,#REF!) -> FALSE | BL143: 188 | BM143: FALSE | BN143: ='FRED Series'!D155 -> 0 | BP143: =IF(BM143,'FRED Series'!E155) -> FALSE
L144: 141 | Q144: 141 | R144: FALSE | X144: 159 | Y144: FALSE | Z144: =IF($F$69,'FRED Indicies'!E156) -> FALSE | AB144: =IF($F$69,'FRED Indicies'!D156) -> FALSE | AF144: 159 | AG144: FALSE | AH144: =IF(AG144,#REF!) -> FALSE | AN144: 141 | AO144: FALSE | AP144: =IF(AO144,'Commodity Prices'!C156) -> FALSE | AR144: =IF(AO144,'Commodity Prices'!D156) -> FALSE | AV144: 159 | AW144: FALSE | AX144: =IF(AW144,'Yahoo Stocks'!D150) -> FALSE | AZ144: =IF(AW144,'Yahoo Stocks'!E150) -> FALSE | BD144: 140 | BE144: FALSE | BF144: =IF(BE144,#REF!) -> FALSE | BH144: =IF(BE144,#REF!) -> FALSE | BL144: 189 | BM144: FALSE | BN144: ='FRED Series'!D156 -> 0 | BP144: =IF(BM144,'FRED Series'!E156) -> FALSE
L145: 142 | Q145: 142 | R145: FALSE | X145: 160 | Y145: FALSE | Z145: =IF($F$69,'FRED Indicies'!E157) -> FALSE | AB145: =IF($F$69,'FRED Indicies'!D157) -> FALSE | AF145: 160 | AG145: FALSE | AH145: =IF(AG145,#REF!) -> FALSE | AN145: 142 | AO145: FALSE | AP145: =IF(AO145,'Commodity Prices'!C157) -> FALSE | AR145: =IF(AO145,'Commodity Prices'!D157) -> FALSE | AV145: 160 | AW145: FALSE | AX145: =IF(AW145,'Yahoo Stocks'!D151) -> FALSE | AZ145: =IF(AW145,'Yahoo Stocks'!E151) -> FALSE | BD145: 141 | BE145: FALSE | BF145: =IF(BE145,#REF!) -> FALSE | BH145: =IF(BE145,#REF!) -> FALSE | BL145: 190 | BM145: FALSE | BN145: ='FRED Series'!D157 -> 0 | BP145: =IF(BM145,'FRED Series'!E157) -> FALSE
L146: 143 | Q146: 143 | R146: FALSE | X146: 161 | Y146: FALSE | Z146: =IF($F$69,'FRED Indicies'!E158) -> FALSE | AB146: =IF($F$69,'FRED Indicies'!D158) -> FALSE | AF146: 161 | AG146: FALSE | AH146: =IF(AG146,#REF!) -> FALSE | AN146: 143 | AO146: FALSE | AP146: =IF(AO146,'Commodity Prices'!C158) -> FALSE | AR146: =IF(AO146,'Commodity Prices'!D158) -> FALSE | AV146: 161 | AW146: FALSE | AX146: =IF(AW146,'Yahoo Stocks'!D152) -> FALSE | AZ146: =IF(AW146,'Yahoo Stocks'!E152) -> FALSE | BD146: 142 | BE146: FALSE | BF146: =IF(BE146,#REF!) -> FALSE | BH146: =IF(BE146,#REF!) -> FALSE | BL146: 191 | BM146: FALSE | BN146: ='FRED Series'!D158 -> 0 | BP146: =IF(BM146,'FRED Series'!E158) -> FALSE
L147: 144 | Q147: 144 | R147: FALSE | X147: 162 | Y147: FALSE | Z147: =IF($F$69,'FRED Indicies'!E159) -> FALSE | AB147: =IF($F$69,'FRED Indicies'!D159) -> FALSE | AF147: 162 | AG147: FALSE | AH147: =IF(AG147,#REF!) -> FALSE | AN147: 144 | AO147: FALSE | AP147: =IF(AO147,'Commodity Prices'!C159) -> FALSE | AR147: =IF(AO147,'Commodity Prices'!D159) -> FALSE | AV147: 162 | AW147: FALSE | AX147: =IF(AW147,'Yahoo Stocks'!D153) -> FALSE | AZ147: =IF(AW147,'Yahoo Stocks'!E153) -> FALSE | BD147: 143 | BE147: FALSE | BF147: =IF(BE147,#REF!) -> FALSE | BH147: =IF(BE147,#REF!) -> FALSE | BL147: 192 | BM147: FALSE | BN147: ='FRED Series'!D159 -> 0 | BP147: =IF(BM147,'FRED Series'!E159) -> FALSE
L148: 145 | Q148: 145 | R148: FALSE | X148: 163 | Y148: FALSE | Z148: =IF($F$69,'FRED Indicies'!E160) -> FALSE | AB148: =IF($F$69,'FRED Indicies'!D160) -> FALSE | AF148: 163 | AG148: FALSE | AH148: =IF(AG148,#REF!) -> FALSE | AN148: 145 | AO148: FALSE | AP148: =IF(AO148,'Commodity Prices'!C160) -> FALSE | AR148: =IF(AO148,'Commodity Prices'!D160) -> FALSE | AV148: 163 | AW148: FALSE | AX148: =IF(AW148,'Yahoo Stocks'!D154) -> FALSE | AZ148: =IF(AW148,'Yahoo Stocks'!E154) -> FALSE | BD148: 144 | BE148: FALSE | BF148: =IF(BE148,#REF!) -> FALSE | BH148: =IF(BE148,#REF!) -> FALSE | BL148: 193 | BM148: FALSE | BN148: ='FRED Series'!D160 -> 0 | BP148: =IF(BM148,'FRED Series'!E160) -> FALSE
L149: 146 | Q149: 146 | R149: FALSE | X149: 164 | Y149: FALSE | Z149: =IF($F$69,'FRED Indicies'!E161) -> FALSE | AB149: =IF($F$69,'FRED Indicies'!D161) -> FALSE | AF149: 164 | AG149: FALSE | AH149: =IF(AG149,#REF!) -> FALSE | AN149: 146 | AO149: FALSE | AP149: =IF(AO149,'Commodity Prices'!C161) -> FALSE | AR149: =IF(AO149,'Commodity Prices'!D161) -> FALSE | AV149: 164 | AW149: FALSE | AX149: =IF(AW149,'Yahoo Stocks'!D155) -> FALSE | AZ149: =IF(AW149,'Yahoo Stocks'!E155) -> FALSE | BD149: 145 | BE149: FALSE | BF149: =IF(BE149,#REF!) -> FALSE | BH149: =IF(BE149,#REF!) -> FALSE | BL149: 194 | BM149: FALSE | BN149: ='FRED Series'!D161 -> 0 | BP149: =IF(BM149,'FRED Series'!E161) -> FALSE
L150: 147 | Q150: 147 | R150: FALSE | X150: 165 | Y150: FALSE | Z150: =IF($F$69,'FRED Indicies'!E162) -> FALSE | AB150: =IF($F$69,'FRED Indicies'!D162) -> FALSE | AF150: 165 | AG150: FALSE | AH150: =IF(AG150,#REF!) -> FALSE | AN150: 147 | AO150: FALSE | AP150: =IF(AO150,'Commodity Prices'!C162) -> FALSE | AR150: =IF(AO150,'Commodity Prices'!D162) -> FALSE | AV150: 165 | AW150: FALSE | AX150: =IF(AW150,'Yahoo Stocks'!D156) -> FALSE | AZ150: =IF(AW150,'Yahoo Stocks'!E156) -> FALSE | BD150: 146 | BE150: FALSE | BF150: =IF(BE150,#REF!) -> FALSE | BH150: =IF(BE150,#REF!) -> FALSE | BL150: 195 | BM150: FALSE | BN150: ='FRED Series'!D162 -> 0 | BP150: =IF(BM150,'FRED Series'!E162) -> FALSE
L151: 148 | Q151: 148 | R151: FALSE | X151: 166 | Y151: FALSE | Z151: =IF($F$69,'FRED Indicies'!E163) -> FALSE | AB151: =IF($F$69,'FRED Indicies'!D163) -> FALSE | AF151: 166 | AG151: FALSE | AH151: =IF(AG151,#REF!) -> FALSE | AN151: 148 | AO151: FALSE | AP151: =IF(AO151,'Commodity Prices'!C163) -> FALSE | AR151: =IF(AO151,'Commodity Prices'!D163) -> FALSE | AV151: 166 | AW151: FALSE | AX151: =IF(AW151,'Yahoo Stocks'!D157) -> FALSE | AZ151: =IF(AW151,'Yahoo Stocks'!E157) -> FALSE | BD151: 147 | BE151: FALSE | BF151: =IF(BE151,#REF!) -> FALSE | BH151: =IF(BE151,#REF!) -> FALSE | BL151: 196 | BM151: FALSE | BN151: ='FRED Series'!D163 -> 0 | BP151: =IF(BM151,'FRED Series'!E163) -> FALSE
L152: 149 | Q152: 149 | R152: FALSE | X152: 167 | Y152: FALSE | Z152: =IF($F$69,'FRED Indicies'!E164) -> FALSE | AB152: =IF($F$69,'FRED Indicies'!D164) -> FALSE | AF152: 167 | AG152: FALSE | AH152: =IF(AG152,#REF!) -> FALSE | AN152: 149 | AO152: FALSE | AP152: =IF(AO152,'Commodity Prices'!C164) -> FALSE | AR152: =IF(AO152,'Commodity Prices'!D164) -> FALSE | AV152: 167 | AW152: FALSE | AX152: =IF(AW152,'Yahoo Stocks'!D158) -> FALSE | AZ152: =IF(AW152,'Yahoo Stocks'!E158) -> FALSE | BD152: 148 | BE152: FALSE | BF152: =IF(BE152,#REF!) -> FALSE | BH152: =IF(BE152,#REF!) -> FALSE | BL152: 197 | BM152: FALSE | BN152: ='FRED Series'!D164 -> 0 | BP152: =IF(BM152,'FRED Series'!E164) -> FALSE
L153: 150 | Q153: 150 | R153: FALSE | X153: 168 | Y153: FALSE | Z153: =IF($F$69,'FRED Indicies'!E165) -> FALSE | AB153: =IF($F$69,'FRED Indicies'!D165) -> FALSE | AF153: 168 | AG153: FALSE | AH153: =IF(AG153,#REF!) -> FALSE | AN153: 150 | AO153: FALSE | AP153: =IF(AO153,'Commodity Prices'!C165) -> FALSE | AR153: =IF(AO153,'Commodity Prices'!D165) -> FALSE | AV153: 168 | AW153: FALSE | AX153: =IF(AW153,'Yahoo Stocks'!D159) -> FALSE | AZ153: =IF(AW153,'Yahoo Stocks'!E159) -> FALSE | BD153: 149 | BE153: FALSE | BF153: =IF(BE153,#REF!) -> FALSE | BH153: =IF(BE153,#REF!) -> FALSE | BL153: 198 | BM153: FALSE | BN153: ='FRED Series'!D165 -> 0 | BP153: =IF(BM153,'FRED Series'!E165) -> FALSE
L154: 151 | Q154: 151 | R154: FALSE | X154: 169 | Y154: FALSE | Z154: =IF($F$69,'FRED Indicies'!E166) -> FALSE | AB154: =IF($F$69,'FRED Indicies'!D166) -> FALSE | AF154: 169 | AG154: FALSE | AH154: =IF(AG154,#REF!) -> FALSE | AN154: 151 | AO154: FALSE | AP154: =IF(AO154,'Commodity Prices'!C166) -> FALSE | AR154: =IF(AO154,'Commodity Prices'!D166) -> FALSE | AV154: 169 | AW154: FALSE | AX154: =IF(AW154,'Yahoo Stocks'!D160) -> FALSE | AZ154: =IF(AW154,'Yahoo Stocks'!E160) -> FALSE | BD154: 150 | BE154: FALSE | BF154: =IF(BE154,#REF!) -> FALSE | BH154: =IF(BE154,#REF!) -> FALSE | BL154: 199 | BM154: FALSE | BN154: ='FRED Series'!D166 -> 0 | BP154: =IF(BM154,'FRED Series'!E166) -> FALSE
L155: 152 | X155: 170 | Y155: FALSE | Z155: =IF($F$69,'FRED Indicies'!E167) -> FALSE | AB155: =IF($F$69,'FRED Indicies'!D167) -> FALSE | AF155: 170 | AG155: FALSE | AH155: =IF(AG155,#REF!) -> FALSE | AN155: 152 | AO155: FALSE | AP155: =IF(AO155,'Commodity Prices'!C167) -> FALSE | AR155: =IF(AO155,'Commodity Prices'!D167) -> FALSE | AV155: 170 | AW155: FALSE | AX155: =IF(AW155,'Yahoo Stocks'!D161) -> FALSE | AZ155: =IF(AW155,'Yahoo Stocks'!E161) -> FALSE | BD155: 151 | BE155: FALSE | BF155: =IF(BE155,#REF!) -> FALSE | BH155: =IF(BE155,#REF!) -> FALSE | BL155: 200 | BM155: FALSE | BN155: ='FRED Series'!D167 -> 0 | BP155: =IF(BM155,'FRED Series'!E167) -> FALSE
L156: 153 | X156: 171 | Y156: FALSE | Z156: =IF($F$69,'FRED Indicies'!E168) -> FALSE | AB156: =IF($F$69,'FRED Indicies'!D168) -> FALSE | AF156: 171 | AG156: FALSE | AH156: =IF(AG156,#REF!) -> FALSE | AN156: 153 | AO156: FALSE | AP156: =IF(AO156,'Commodity Prices'!C168) -> FALSE | AR156: =IF(AO156,'Commodity Prices'!D168) -> FALSE | AV156: 171 | AW156: FALSE | AX156: =IF(AW156,'Yahoo Stocks'!D162) -> FALSE | AZ156: =IF(AW156,'Yahoo Stocks'!E162) -> FALSE | BD156: 152 | BE156: FALSE | BF156: =IF(BE156,#REF!) -> FALSE | BH156: =IF(BE156,#REF!) -> FALSE | BL156: 201 | BM156: FALSE | BN156: ='FRED Series'!D168 -> 0 | BP156: =IF(BM156,'FRED Series'!E168) -> FALSE
L157: 154 | X157: 172 | Y157: FALSE | Z157: =IF($F$69,'FRED Indicies'!E169) -> FALSE | AB157: =IF($F$69,'FRED Indicies'!D169) -> FALSE | AF157: 172 | AG157: FALSE | AH157: =IF(AG157,#REF!) -> FALSE | AN157: 154 | AO157: FALSE | AP157: =IF(AO157,'Commodity Prices'!C169) -> FALSE | AR157: =IF(AO157,'Commodity Prices'!D169) -> FALSE | AV157: 172 | AW157: FALSE | AX157: =IF(AW157,'Yahoo Stocks'!D163) -> FALSE | AZ157: =IF(AW157,'Yahoo Stocks'!E163) -> FALSE | BD157: 153 | BE157: FALSE | BF157: =IF(BE157,#REF!) -> FALSE | BH157: =IF(BE157,#REF!) -> FALSE | BL157: 202 | BM157: FALSE | BN157: ='FRED Series'!D169 -> 0 | BP157: =IF(BM157,'FRED Series'!E169) -> FALSE
L158: 155 | X158: 173 | Y158: FALSE | Z158: =IF($F$69,'FRED Indicies'!E170) -> FALSE | AB158: =IF($F$69,'FRED Indicies'!D170) -> FALSE | AF158: 173 | AG158: FALSE | AH158: =IF(AG158,#REF!) -> FALSE | AN158: 155 | AO158: FALSE | AP158: =IF(AO158,'Commodity Prices'!C170) -> FALSE | AR158: =IF(AO158,'Commodity Prices'!D170) -> FALSE | AV158: 173 | AW158: FALSE | AX158: =IF(AW158,'Yahoo Stocks'!D164) -> FALSE | AZ158: =IF(AW158,'Yahoo Stocks'!E164) -> FALSE | BD158: 154 | BE158: FALSE | BF158: =IF(BE158,#REF!) -> FALSE | BH158: =IF(BE158,#REF!) -> FALSE | BL158: 203 | BM158: FALSE | BN158: ='FRED Series'!D170 -> 0 | BP158: =IF(BM158,'FRED Series'!E170) -> FALSE
L159: 156 | X159: 174 | Y159: FALSE | Z159: =IF($F$69,'FRED Indicies'!E171) -> FALSE | AB159: =IF($F$69,'FRED Indicies'!D171) -> FALSE | AF159: 174 | AG159: FALSE | AH159: =IF(AG159,#REF!) -> FALSE | AN159: 156 | AO159: FALSE | AP159: =IF(AO159,'Commodity Prices'!C171) -> FALSE | AR159: =IF(AO159,'Commodity Prices'!D171) -> FALSE | AV159: 174 | AW159: FALSE | AX159: =IF(AW159,'Yahoo Stocks'!D165) -> FALSE | AZ159: =IF(AW159,'Yahoo Stocks'!E165) -> FALSE | BD159: 155 | BE159: FALSE | BF159: =IF(BE159,#REF!) -> FALSE | BH159: =IF(BE159,#REF!) -> FALSE | BL159: 204 | BM159: FALSE | BN159: ='FRED Series'!D171 -> 0 | BP159: =IF(BM159,'FRED Series'!E171) -> FALSE
L160: 157 | X160: 175 | Y160: FALSE | Z160: =IF($F$69,'FRED Indicies'!E172) -> FALSE | AB160: =IF($F$69,'FRED Indicies'!D172) -> FALSE | AF160: 175 | AG160: FALSE | AH160: =IF(AG160,#REF!) -> FALSE | AN160: 157 | AO160: FALSE | AP160: =IF(AO160,'Commodity Prices'!C172) -> FALSE | AR160: =IF(AO160,'Commodity Prices'!D172) -> FALSE | AV160: 175 | AW160: FALSE | AX160: =IF(AW160,'Yahoo Stocks'!D166) -> FALSE | AZ160: =IF(AW160,'Yahoo Stocks'!E166) -> FALSE | BD160: 156 | BE160: FALSE | BF160: =IF(BE160,#REF!) -> FALSE | BH160: =IF(BE160,#REF!) -> FALSE | BL160: 205 | BM160: FALSE | BN160: ='FRED Series'!D172 -> 0 | BP160: =IF(BM160,'FRED Series'!E172) -> FALSE
L161: 158 | X161: 176 | Y161: FALSE | Z161: =IF($F$69,'FRED Indicies'!E173) -> FALSE | AB161: =IF($F$69,'FRED Indicies'!D173) -> FALSE | AF161: 176 | AG161: FALSE | AH161: =IF(AG161,#REF!) -> FALSE | AN161: 158 | AO161: FALSE | AP161: =IF(AO161,'Commodity Prices'!C173) -> FALSE | AR161: =IF(AO161,'Commodity Prices'!D173) -> FALSE | AV161: 176 | AW161: FALSE | AX161: =IF(AW161,'Yahoo Stocks'!D167) -> FALSE | AZ161: =IF(AW161,'Yahoo Stocks'!E167) -> FALSE | BD161: 157 | BE161: FALSE | BF161: =IF(BE161,#REF!) -> FALSE | BH161: =IF(BE161,#REF!) -> FALSE | BL161: 206 | BM161: FALSE | BN161: ='FRED Series'!D173 -> 0 | BP161: =IF(BM161,'FRED Series'!E173) -> FALSE
L162: 159 | X162: 177 | Y162: FALSE | Z162: =IF($F$69,'FRED Indicies'!E174) -> FALSE | AB162: =IF($F$69,'FRED Indicies'!D174) -> FALSE | AF162: 177 | AG162: FALSE | AH162: =IF(AG162,#REF!) -> FALSE | AN162: 159 | AO162: FALSE | AP162: =IF(AO162,'Commodity Prices'!C174) -> FALSE | AR162: =IF(AO162,'Commodity Prices'!D174) -> FALSE | AV162: 177 | AW162: FALSE | AX162: =IF(AW162,'Yahoo Stocks'!D168) -> FALSE | AZ162: =IF(AW162,'Yahoo Stocks'!E168) -> FALSE | BD162: 158 | BE162: FALSE | BF162: =IF(BE162,#REF!) -> FALSE | BH162: =IF(BE162,#REF!) -> FALSE | BL162: 207 | BM162: FALSE | BN162: ='FRED Series'!D174 -> 0 | BP162: =IF(BM162,'FRED Series'!E174) -> FALSE
L163: 160 | X163: 178 | Y163: FALSE | Z163: =IF($F$69,'FRED Indicies'!E175) -> FALSE | AB163: =IF($F$69,'FRED Indicies'!D175) -> FALSE | AF163: 178 | AG163: FALSE | AH163: =IF(AG163,#REF!) -> FALSE | AN163: 160 | AO163: FALSE | AP163: =IF(AO163,'Commodity Prices'!C175) -> FALSE | AR163: =IF(AO163,'Commodity Prices'!D175) -> FALSE | AV163: 178 | AW163: FALSE | AX163: =IF(AW163,'Yahoo Stocks'!D169) -> FALSE | AZ163: =IF(AW163,'Yahoo Stocks'!E169) -> FALSE | BD163: 159 | BE163: FALSE | BF163: =IF(BE163,#REF!) -> FALSE | BH163: =IF(BE163,#REF!) -> FALSE | BL163: 208 | BM163: FALSE | BN163: ='FRED Series'!D175 -> 0 | BP163: =IF(BM163,'FRED Series'!E175) -> FALSE
L164: 161 | N164: =T164&AC164&AK164&AS164&BA164&BI164&BQ164 ->  | O164: =U164&AD164&AL164&AT164&BB164&BJ164&BR164 ->  | P164: =V164&AE164&AM164&AU164&BC164&BK164&BS164 ->  | X164: 179 | Y164: =IF(AND($F$69,X164<=$H$69),X164) -> FALSE | Z164: =IF($F$69,'FRED Indicies'!E176) -> FALSE | AA164: =IFERROR(INDEX(Z:Z,MATCH(L164,Y:Y,0)),"") ->  | AB164: =IF($F$69,'FRED Indicies'!D176) -> FALSE | AC164: =IFERROR(INDEX(AB:AB,MATCH(L164,Y:Y,0)),"") ->  | AD164: =IF(AA164<>"",$I$69,"") ->  | AE164: =IF(AA164<>"",$J$69,"") ->  | AF164: 179 | AG164: =IF(AND($F$72,AF164<=$H$72),AF164) -> FALSE | AH164: =IF(AG164,#REF!) -> FALSE | AI164: =IFERROR(INDEX(AH:AH,MATCH(Q164,AG:AG,0)),"") ->  | AK164: =IFERROR(INDEX(AJ:AJ,MATCH(Q164,AG:AG,0)),"") ->  | AL164: =IF(AI164<>"",$I$69,"") ->  | AM164: =IF(AK164<>"",$J$69,"") ->  | AN164: 161 | AO164: =IF(AND($F$63,AN164<=$H$63),AN164) -> FALSE | AP164: =IF(AO164,'Commodity Prices'!C176) -> FALSE | AQ164: =IFERROR(INDEX(AP:AP,MATCH(L164,AO:AO,0)),"") ->  | AR164: =IF(AO164,'Commodity Prices'!D176) -> FALSE | AS164: =IFERROR(INDEX(AR:AR,MATCH(L164,AO:AO,0)),"") ->  | AT164: =IF(AQ164<>"",$I$63,"") ->  | AU164: =IF(AS164<>"",$J$63,"") ->  | AV164: 179 | AW164: =IF(AND($F$6,AV164<=$H$6),AV164) -> FALSE | AX164: =IF(AW164,'Yahoo Stocks'!D170) -> FALSE | AY164: =IFERROR(INDEX(AX:AX,MATCH(L164,AW:AW,0)),"") ->  | AZ164: =IF(AW164,'Yahoo Stocks'!E170) -> FALSE | BA164: =IFERROR(INDEX(AZ:AZ,MATCH(L164,AW:AW,0)),"") ->  | BB164: =IF(AY164<>"",$I$6,"") ->  | BC164: =IF(BA164<>"",$J$6,"") ->  | BD164: 160 | BE164: FALSE | BF164: =IF(BE164,#REF!) -> FALSE | BH164: =IF(BE164,#REF!) -> FALSE | BL164: 209 | BM164: =IF(AND($F$9,BL164<=$H$9),BL164) -> FALSE | BN164: ='FRED Series'!D176 -> 0 | BP164: =IF(BM164,'FRED Series'!E176) -> FALSE | BR164: =IF(BQ164<>"",$I$9,"") ->  | BS164: =IF(BQ164<>"",$J$9,"") -> 
L165: 162 | X165: =X164+1 -> 180 | Y165: FALSE | Z165: =IF($F$69,'FRED Indicies'!E177) -> FALSE | AB165: =IF($F$69,'FRED Indicies'!D177) -> FALSE | AF165: =AF164+1 -> 180 | AG165: FALSE | AH165: =IF(AG165,#REF!) -> FALSE | AN165: =AN164+1 -> 162 | AO165: FALSE | AP165: =IF(AO165,'Commodity Prices'!C177) -> FALSE | AR165: =IF(AO165,'Commodity Prices'!D177) -> FALSE | AV165: =AV164+1 -> 180 | AW165: FALSE | AX165: =IF(AW165,'Yahoo Stocks'!D171) -> FALSE | AZ165: =IF(AW165,'Yahoo Stocks'!E171) -> FALSE | BD165: =BD164+1 -> 161 | BE165: FALSE | BF165: =IF(BE165,#REF!) -> FALSE | BH165: =IF(BE165,#REF!) -> FALSE | BL165: =BL164+1 -> 210 | BM165: FALSE | BN165: ='FRED Series'!D177 -> 0 | BP165: =IF(BM165,'FRED Series'!E177) -> FALSE
L166: 163 | X166: 181 | Y166: FALSE | Z166: =IF($F$69,'FRED Indicies'!E178) -> FALSE | AB166: =IF($F$69,'FRED Indicies'!D178) -> FALSE | AF166: 181 | AG166: FALSE | AH166: =IF(AG166,#REF!) -> FALSE | AN166: 163 | AO166: FALSE | AP166: =IF(AO166,'Commodity Prices'!C178) -> FALSE | AR166: =IF(AO166,'Commodity Prices'!D178) -> FALSE | AV166: 181 | AW166: FALSE | AX166: =IF(AW166,'Yahoo Stocks'!D172) -> FALSE | AZ166: =IF(AW166,'Yahoo Stocks'!E172) -> FALSE | BD166: 162 | BE166: FALSE | BF166: =IF(BE166,#REF!) -> FALSE | BH166: =IF(BE166,#REF!) -> FALSE | BL166: 211 | BM166: FALSE | BN166: ='FRED Series'!D178 -> 0 | BP166: =IF(BM166,'FRED Series'!E178) -> FALSE
L167: 164 | X167: 182 | Y167: FALSE | Z167: =IF($F$69,'FRED Indicies'!E179) -> FALSE | AB167: =IF($F$69,'FRED Indicies'!D179) -> FALSE | AF167: 182 | AG167: FALSE | AH167: =IF(AG167,#REF!) -> FALSE | AN167: 164 | AO167: FALSE | AP167: =IF(AO167,'Commodity Prices'!C179) -> FALSE | AR167: =IF(AO167,'Commodity Prices'!D179) -> FALSE | AV167: 182 | AW167: FALSE | AX167: =IF(AW167,'Yahoo Stocks'!D173) -> FALSE | AZ167: =IF(AW167,'Yahoo Stocks'!E173) -> FALSE | BD167: 163 | BE167: FALSE | BF167: =IF(BE167,#REF!) -> FALSE | BH167: =IF(BE167,#REF!) -> FALSE | BL167: 212 | BM167: FALSE | BN167: ='FRED Series'!D179 -> 0 | BP167: =IF(BM167,'FRED Series'!E179) -> FALSE
L168: 165 | X168: 183 | Y168: FALSE | Z168: =IF($F$69,'FRED Indicies'!E180) -> FALSE | AB168: =IF($F$69,'FRED Indicies'!D180) -> FALSE | AF168: 183 | AG168: FALSE | AH168: =IF(AG168,#REF!) -> FALSE | AN168: 165 | AO168: FALSE | AP168: =IF(AO168,'Commodity Prices'!C180) -> FALSE | AR168: =IF(AO168,'Commodity Prices'!D180) -> FALSE | AV168: 183 | AW168: FALSE | AX168: =IF(AW168,'Yahoo Stocks'!D174) -> FALSE | AZ168: =IF(AW168,'Yahoo Stocks'!E174) -> FALSE | BD168: 164 | BE168: FALSE | BF168: =IF(BE168,#REF!) -> FALSE | BH168: =IF(BE168,#REF!) -> FALSE | BL168: 213 | BM168: FALSE | BN168: ='FRED Series'!D180 -> 0 | BP168: =IF(BM168,'FRED Series'!E180) -> FALSE
L169: 166 | M169: =S169&AA169&AI169&AQ169&AY169&BG169&BO169 ->  | X169: 184 | Y169: FALSE | Z169: =IF($F$69,'FRED Indicies'!E181) -> FALSE | AB169: =IF($F$69,'FRED Indicies'!D181) -> FALSE | AF169: 184 | AG169: FALSE | AH169: =IF(AG169,#REF!) -> FALSE | AN169: 166 | AO169: FALSE | AP169: =IF(AO169,'Commodity Prices'!C181) -> FALSE | AR169: =IF(AO169,'Commodity Prices'!D181) -> FALSE | AV169: 184 | AW169: FALSE | AX169: =IF(AW169,'Yahoo Stocks'!D175) -> FALSE | AZ169: =IF(AW169,'Yahoo Stocks'!E175) -> FALSE | BD169: 165 | BE169: FALSE | BF169: =IF(BE169,#REF!) -> FALSE | BH169: =IF(BE169,#REF!) -> FALSE | BL169: 214 | BM169: FALSE | BN169: ='FRED Series'!D181 -> 0 | BP169: =IF(BM169,'FRED Series'!E181) -> FALSE
L170: 167 | X170: 185 | Y170: FALSE | Z170: =IF($F$69,'FRED Indicies'!E182) -> FALSE | AB170: =IF($F$69,'FRED Indicies'!D182) -> FALSE | AF170: 185 | AG170: FALSE | AH170: =IF(AG170,#REF!) -> FALSE | AN170: 167 | AO170: FALSE | AP170: =IF(AO170,'Commodity Prices'!C182) -> FALSE | AR170: =IF(AO170,'Commodity Prices'!D182) -> FALSE | AV170: 185 | AW170: FALSE | AX170: =IF(AW170,'Yahoo Stocks'!D176) -> FALSE | AZ170: =IF(AW170,'Yahoo Stocks'!E176) -> FALSE | BD170: 166 | BE170: FALSE | BF170: =IF(BE170,#REF!) -> FALSE | BH170: =IF(BE170,#REF!) -> FALSE | BL170: 215 | BM170: FALSE | BN170: ='FRED Series'!D182 -> 0 | BP170: =IF(BM170,'FRED Series'!E182) -> FALSE
L171: 168 | X171: 186 | Y171: FALSE | Z171: =IF($F$69,'FRED Indicies'!E183) -> FALSE | AB171: =IF($F$69,'FRED Indicies'!D183) -> FALSE | AF171: 186 | AG171: FALSE | AH171: =IF(AG171,#REF!) -> FALSE | AN171: 168 | AO171: FALSE | AP171: =IF(AO171,'Commodity Prices'!C183) -> FALSE | AR171: =IF(AO171,'Commodity Prices'!D183) -> FALSE | AV171: 186 | AW171: FALSE | AX171: =IF(AW171,'Yahoo Stocks'!D177) -> FALSE | AZ171: =IF(AW171,'Yahoo Stocks'!E177) -> FALSE | BD171: 167 | BE171: FALSE | BF171: =IF(BE171,#REF!) -> FALSE | BH171: =IF(BE171,#REF!) -> FALSE | BL171: 216 | BM171: FALSE | BN171: ='FRED Series'!D183 -> 0 | BP171: =IF(BM171,'FRED Series'!E183) -> FALSE
L172: 169 | X172: 187 | Y172: FALSE | Z172: =IF($F$69,'FRED Indicies'!E184) -> FALSE | AB172: =IF($F$69,'FRED Indicies'!D184) -> FALSE | AF172: 187 | AG172: FALSE | AH172: =IF(AG172,#REF!) -> FALSE | AN172: 169 | AO172: FALSE | AP172: =IF(AO172,'Commodity Prices'!C184) -> FALSE | AR172: =IF(AO172,'Commodity Prices'!D184) -> FALSE | AV172: 187 | AW172: FALSE | AX172: =IF(AW172,'Yahoo Stocks'!D178) -> FALSE | AZ172: =IF(AW172,'Yahoo Stocks'!E178) -> FALSE | BD172: 168 | BE172: FALSE | BF172: =IF(BE172,#REF!) -> FALSE | BH172: =IF(BE172,#REF!) -> FALSE | BL172: 217 | BM172: FALSE | BN172: ='FRED Series'!D184 -> 0 | BP172: =IF(BM172,'FRED Series'!E184) -> FALSE
L173: 170 | BD173: 169 | BE173: FALSE | BF173: =IF(BE173,#REF!) -> FALSE | BH173: =IF(BE173,#REF!) -> FALSE | BL173: 218 | BM173: FALSE | BN173: ='FRED Series'!D185 -> https://research.stlouisfed.org/fred2/data/PCAGDPCNA646NWDB.txt | BP173: =IF(BM173,'FRED Series'!E185) -> FALSE
L174: 171 | BD174: 170 | BE174: FALSE | BF174: =IF(BE174,#REF!) -> FALSE | BH174: =IF(BE174,#REF!) -> FALSE | BL174: 219 | BM174: FALSE | BN174: ='FRED Series'!D186 -> https://research.stlouisfed.org/fred2/data/ | BP174: =IF(BM174,'FRED Series'!E186) -> FALSE
L175: 172 | BD175: 171 | BE175: FALSE | BF175: =IF(BE175,#REF!) -> FALSE | BH175: =IF(BE175,#REF!) -> FALSE | BL175: 220 | BM175: FALSE | BN175: ='FRED Series'!D187 -> 0 | BP175: =IF(BM175,'FRED Series'!E187) -> FALSE
L176: 173 | BD176: 172 | BE176: FALSE | BF176: =IF(BE176,#REF!) -> FALSE | BH176: =IF(BE176,#REF!) -> FALSE | BL176: 221 | BM176: FALSE | BN176: ='FRED Series'!D188 -> 0 | BP176: =IF(BM176,'FRED Series'!E188) -> FALSE
L177: 174 | BD177: 173 | BE177: FALSE | BF177: =IF(BE177,#REF!) -> FALSE | BH177: =IF(BE177,#REF!) -> FALSE | BL177: 222 | BM177: FALSE | BN177: ='FRED Series'!D189 -> 0 | BP177: =IF(BM177,'FRED Series'!E189) -> FALSE
BD178: 174 | BE178: FALSE | BF178: =IF(BE178,#REF!) -> FALSE | BH178: =IF(BE178,#REF!) -> FALSE | BL178: 223 | BM178: FALSE | BN178: ='FRED Series'!D190 -> 0 | BP178: =IF(BM178,'FRED Series'!E190) -> FALSE
BD179: 175 | BE179: FALSE | BF179: =IF(BE179,#REF!) -> FALSE | BH179: =IF(BE179,#REF!) -> FALSE | BL179: 224 | BM179: FALSE | BN179: ='FRED Series'!D191 -> 0 | BP179: =IF(BM179,'FRED Series'!E191) -> FALSE
BD180: 176 | BE180: FALSE | BF180: =IF(BE180,#REF!) -> FALSE | BH180: =IF(BE180,#REF!) -> FALSE | BL180: 225 | BM180: FALSE | BN180: ='FRED Series'!D192 -> 0 | BP180: =IF(BM180,'FRED Series'!E192) -> FALSE
BD181: 177 | BE181: FALSE | BF181: =IF(BE181,#REF!) -> FALSE | BH181: =IF(BE181,#REF!) -> FALSE | BL181: 226 | BM181: FALSE | BN181: ='FRED Series'!D193 -> 0 | BP181: =IF(BM181,'FRED Series'!E193) -> FALSE
BD182: 178 | BE182: FALSE | BF182: =IF(BE182,#REF!) -> FALSE | BH182: =IF(BE182,#REF!) -> FALSE | BL182: 227 | BM182: FALSE | BN182: ='FRED Series'!D194 -> 0 | BP182: =IF(BM182,'FRED Series'!E194) -> FALSE
BD183: 179 | BE183: FALSE | BF183: =IF(BE183,#REF!) -> FALSE | BH183: =IF(BE183,#REF!) -> FALSE | BL183: 228 | BM183: FALSE | BN183: ='FRED Series'!D195 -> 0 | BP183: =IF(BM183,'FRED Series'!E195) -> FALSE
BD184: 180 | BE184: FALSE | BF184: =IF(BE184,#REF!) -> FALSE | BH184: =IF(BE184,#REF!) -> FALSE | BL184: 229 | BM184: FALSE | BN184: ='FRED Series'!D196 -> 0 | BP184: =IF(BM184,'FRED Series'!E196) -> FALSE
BD185: 181 | BE185: FALSE | BF185: =IF(BE185,#REF!) -> FALSE | BH185: =IF(BE185,#REF!) -> FALSE | BL185: 230 | BM185: FALSE | BN185: ='FRED Series'!D197 -> 0 | BP185: =IF(BM185,'FRED Series'!E197) -> FALSE
BD186: 182 | BE186: FALSE | BF186: =IF(BE186,#REF!) -> FALSE | BH186: =IF(BE186,#REF!) -> FALSE | BL186: 231 | BM186: FALSE | BN186: ='FRED Series'!D198 -> 0 | BP186: =IF(BM186,'FRED Series'!E198) -> FALSE
BD187: 183 | BE187: FALSE | BF187: =IF(BE187,#REF!) -> FALSE | BH187: =IF(BE187,#REF!) -> FALSE | BL187: 232 | BM187: FALSE | BN187: ='FRED Series'!D199 -> 0 | BP187: =IF(BM187,'FRED Series'!E199) -> FALSE
BD188: 184 | BE188: FALSE | BF188: =IF(BE188,#REF!) -> FALSE | BH188: =IF(BE188,#REF!) -> FALSE | BL188: 233 | BM188: FALSE | BN188: ='FRED Series'!D200 -> 0 | BP188: =IF(BM188,'FRED Series'!E200) -> FALSE
BD189: 185 | BE189: FALSE | BF189: =IF(BE189,#REF!) -> FALSE | BH189: =IF(BE189,#REF!) -> FALSE | BL189: 234 | BM189: FALSE | BN189: ='FRED Series'!D201 -> 0 | BP189: =IF(BM189,'FRED Series'!E201) -> FALSE
BD190: 186 | BE190: FALSE | BF190: =IF(BE190,#REF!) -> FALSE | BH190: =IF(BE190,#REF!) -> FALSE | BL190: 235 | BM190: FALSE | BN190: ='FRED Series'!D202 -> 0 | BP190: =IF(BM190,'FRED Series'!E202) -> FALSE
BD191: 187 | BE191: FALSE | BF191: =IF(BE191,#REF!) -> FALSE | BH191: =IF(BE191,#REF!) -> FALSE | BL191: 236 | BM191: FALSE | BN191: ='FRED Series'!D203 -> 0 | BP191: =IF(BM191,'FRED Series'!E203) -> FALSE
BD192: 188 | BE192: FALSE | BF192: =IF(BE192,#REF!) -> FALSE | BH192: =IF(BE192,#REF!) -> FALSE | BL192: 237 | BM192: FALSE | BN192: ='FRED Series'!D204 -> 0 | BP192: =IF(BM192,'FRED Series'!E204) -> FALSE
BD193: 189 | BE193: FALSE | BF193: =IF(BE193,#REF!) -> FALSE | BH193: =IF(BE193,#REF!) -> FALSE | BL193: 238 | BM193: FALSE | BN193: ='FRED Series'!D205 -> 0 | BP193: =IF(BM193,'FRED Series'!E205) -> FALSE
BD194: 190 | BE194: FALSE | BF194: =IF(BE194,#REF!) -> FALSE | BH194: =IF(BE194,#REF!) -> FALSE | BL194: 239 | BM194: FALSE | BN194: ='FRED Series'!D206 -> 0 | BP194: =IF(BM194,'FRED Series'!E206) -> FALSE
BD195: 191 | BE195: FALSE | BF195: =IF(BE195,#REF!) -> FALSE | BH195: =IF(BE195,#REF!) -> FALSE | BL195: 240 | BM195: FALSE | BN195: ='FRED Series'!D207 -> 0 | BP195: =IF(BM195,'FRED Series'!E207) -> FALSE
BD196: 192 | BE196: =IF(AND($F$66,BD196<=$H$66),BD196) -> FALSE | BF196: =IF(BE196,#REF!) -> FALSE | BG196: =IFERROR(INDEX(BF:BF,MATCH(Q196,BE:BE,0)),"") ->  | BH196: =IF(BE196,#REF!) -> FALSE | BI196: =IFERROR(INDEX(BH:BH,MATCH(Q196,BE:BE,0)),"") ->  | BJ196: =IF(BI196<>"",$I$66,"") ->  | BK196: =IF(BI196<>"",$J$66,"") ->  | BL196: 241 | BM196: =IF(AND($F$9,BL196<=$H$9),BL196) -> FALSE | BN196: ='FRED Series'!D208 -> 0 | BO196: =IFERROR(INDEX(BN:BN,MATCH(L196,BM:BM,0)),"") ->  | BP196: =IF(BM196,'FRED Series'!E208) -> FALSE | BR196: =IF(BQ196<>"",$I$9,"") ->  | BS196: =IF(BQ196<>"",$J$9,"") -> 
BD197: 193 | BE197: FALSE | BF197: =IF(BE197,#REF!) -> FALSE | BH197: =IF(BE197,#REF!) -> FALSE | BL197: 242 | BM197: FALSE | BN197: ='FRED Series'!D209 -> 0 | BP197: =IF(BM197,'FRED Series'!E209) -> FALSE | BQ197: =IFERROR(INDEX(BN:BN,MATCH(L197,BM:BM,0)),"") -> 
BD198: =BD197+1 -> 194 | BE198: FALSE | BF198: =IF(BE198,#REF!) -> FALSE | BH198: =IF(BE198,#REF!) -> FALSE | BL198: =BL197+1 -> 243 | BM198: FALSE | BN198: ='FRED Series'!D210 -> 0 | BP198: =IF(BM198,'FRED Series'!E210) -> FALSE
BD199: 195 | BE199: FALSE | BF199: =IF(BE199,#REF!) -> FALSE | BH199: =IF(BE199,#REF!) -> FALSE | BL199: 244 | BM199: FALSE | BN199: ='FRED Series'!D211 -> 0 | BP199: =IF(BM199,'FRED Series'!E211) -> FALSE
BD200: 196 | BE200: FALSE | BF200: =IF(BE200,#REF!) -> FALSE | BH200: =IF(BE200,#REF!) -> FALSE | BL200: 245 | BM200: FALSE | BN200: ='FRED Series'!D212 -> 0 | BP200: =IF(BM200,'FRED Series'!E212) -> FALSE
BD201: 197 | BE201: FALSE | BF201: =IF(BE201,#REF!) -> FALSE | BH201: =IF(BE201,#REF!) -> FALSE | BL201: 246 | BM201: FALSE | BN201: ='FRED Series'!D213 -> 0 | BP201: =IF(BM201,'FRED Series'!E213) -> FALSE
... 6 more rows

Sheet Multiple Stock Graph
C1: Index | K1: IRR | L1: Vol | M1: Beta | O1: =IF(K28," Monthly","Weekly") -> Monthly | Q1: From | R1: =Forms!X22 -> 2008-03-01 | S1: to | T1: =Forms!X35 -> 2025-07-31
J2: =O38 -> S&P 500 | K2: =Summary!Q3 -> 0.09415639734 | L2: =Summary!BN5 -> 0.1581959206 | M2: =Summary!BN3 -> 1
B3: Comparison vs Base | G3: Counter | H3: Match | I3: Selection
A4: 1 | B4: ='Read Stocks'!M4 -> ^GSPC | C4: ='Read Stocks'!N4 -> S&P 500 | D4: FALSE | F4: =D4*1 -> 0 | G4: 1 | H4: =MATCH(G4,F$1:F$555,0) -> 22 | I4: =INDEX(B:B,H4) -> ORSTED.CO | J4: =IFERROR(INDEX($C:$C,H4),"") -> ORSTED.CO | K4: =IFERROR(TRANSPOSE(Summary!BU4:BZ4),"") -> 0.02203927766 | L4: =IFERROR(TRANSPOSE(Summary!BO5:BT5),"") -> 0.2997085708 | M4: =IFERROR(TRANSPOSE(Summary!BO3:BT3),"") -> 0.6090510095
A5: 2 | B5: ='Read Stocks'!M5 -> ^GDAXI | C5: ='Read Stocks'!N5 -> DAX | D5: FALSE | F5: =F4+D5 -> 0 | G5: 2 | H5: =MATCH(G5,F$1:F$555,0) -> 33 | I5: =INDEX(B:B,H5) -> EDPR.LS | J5: =IFERROR(INDEX($C:$C,H5),"") -> EDPR.LS | K5: 0.02700319927 | L5: 0.2848094922 | M5: 0.5489653556
A6: 3 | B6: ='Read Stocks'!M6 -> ^NSEI | C6: ='Read Stocks'!N6 -> Nifty Fifty | D6: FALSE | F6: 0 | G6: 3 | H6: 41 | I6: ENGI.PA | J6: ENGIE | K6: 0.02624861548 | L6: 0.2480042486 | M6: 0.7166880015
A7: 4 | B7: ='Read Stocks'!M7 -> ^FCHI | C7: ='Read Stocks'!N7 -> CAC 40 | D7: FALSE | F7: 0 | G7: 4 | H7: =MATCH(G7,F$1:F$555,0) ->  | I7: =INDEX(B:B,H7) ->  | L7: 0 | M7: 0
A8: 5 | B8: ='Read Stocks'!M8 -> ^NDX | C8: ='Read Stocks'!N8 -> Nasdaq 100 | D8: FALSE | F8: 0 | G8: 5 | L8: 0 | M8: 0 | X8: =CHOOSE(timing_code,"Monthly","Weekly","daily") -> Monthly
A9: 6 | B9: ='Read Stocks'!M9 -> ^DJI | C9: ='Read Stocks'!N9 -> 30 Industrials | D9: FALSE | F9: 0 | G9: 6 | H9: =MATCH(G9,F$1:F$555,0) ->  | I9: =INDEX(B:B,H9) ->  | L9: 0 | M9: 0
A10: 7 | B10: ='Read Stocks'!M10 -> ^SSMI | C10: ='Read Stocks'!N10 -> Swiss | D10: FALSE | F10: 0 | G10: 7 | J10: =IFERROR(INDEX($C:$C,H10),"") -> 
A11: 8 | B11: ='Read Stocks'!M11 -> ^KLSE | C11: ='Read Stocks'!N11 -> Malaysia | D11: FALSE | F11: 0 | G11: 8 | K11: Series Start | L11: Final | M11: Years
A12: 9 | B12: ='Read Stocks'!M12 -> ^SP500TR | C12: ='Read Stocks'!N12 -> S&P TR | D12: FALSE | F12: 0 | G12: 9 | J12: =J2 -> S&P 500 | K12: =start_of_date -> 1927-12-01 | L12: =Summary!Q2 -> 4.79276508 | M12: =Summary!Q4 -> 17.41546886
A13: 10 | B13: ='Read Stocks'!M13 -> ^JKSE | C13: ='Read Stocks'!N13 -> Indonesia | D13: FALSE | F13: 0 | G13: 10 | J13: =J4 -> ORSTED.CO | K13: =IFERROR(TRANSPOSE(Summary!AH3:AM3),"") -> 2016-06-01 | L13: =TRANSPOSE(Summary!BU3:BZ3) -> 1.46178148
A14: 11 | B14: ='Read Stocks'!M14 -> ^KS11 | C14: ='Read Stocks'!N14 -> Seoul Composite | D14: FALSE | F14: 0 | G14: 11 | J14: EDPR.LS | K14: 2008-06-01 | L14: 1.59048018
A15: 12 | B15: ='Read Stocks'!M15 -> ^N225 | C15: ='Read Stocks'!N15 -> Nikkei 225 | D15: FALSE | F15: 0 | G15: 12 | J15: ENGIE | K15: 2000-01-01 | L15: 1.570250824
A16: 13 | B16: ='Read Stocks'!M16 -> ^FTSE | C16: ='Read Stocks'!N16 -> FTSE 100 | D16: FALSE | F16: 0 | G16: 13 | J16: =J7 ->  | K16: FALSE | L16: 1
A17: 14 | B17: ='Read Stocks'!M17 -> NGE | C17: ='Read Stocks'!N17 -> Nigeria | D17: FALSE | F17: 0 | G17: 14 | K17: FALSE | L17: 1
A18: 15 | B18: ='Read Stocks'!M18 -> ^TWII | C18: ='Read Stocks'!N18 -> Taiwan Weighted | D18: FALSE | F18: 0 | G18: 15 | K18: FALSE | L18: 1
A19: 16 | B19: ='Read Stocks'!M19 -> ^STI | C19: ='Read Stocks'!N19 -> Straits Times | D19: FALSE | F19: 0 | G19: 16 | J19: Graph Dates
A20: 17 | B20: ='Read Stocks'!M20 -> 000001.SS | C20: ='Read Stocks'!N20 -> SSE Composite | D20: FALSE | F20: 0 | G20: 17 | J20: Start Date | K20: =Summary!I1 -> 2008-03-01
A21: 18 | B21: ='Read Stocks'!M21 -> Tadawul Saudi | C21: ='Read Stocks'!N21 -> Tadawul Saudi | D21: FALSE | F21: 0 | G21: 18 | J21: Final Date | K21: =Summary!I2 -> 2025-07-31 | O21: Start Date | R21: End Date
A22: 19 | B22: ='Read Stocks'!M22 -> ORSTED.CO | C22: ORSTED.CO | D22: TRUE | F22: 1 | G22: 19 | J22: Months | K22: =DATEDIF(K20,K21,"m") -> 208 | O22: =INDEX(C:C,H14) -> 
A23: 20 | B23: ='Read Stocks'!M23 -> TNABY | C23: ='Read Stocks'!N23 -> Tenaga Malaysia | D23: FALSE | F23: 1 | G23: 20 | J23: Graph Type
A24: 21 | B24: ='Read Stocks'!M24 -> 600900.SS | C24: ='Read Stocks'!N24 -> China Yangtze Power Co | D24: FALSE | F24: 1 | G24: 21
A25: 22 | B25: ='Read Stocks'!M25 -> RWE.DE | C25: ='Read Stocks'!N25 -> RWE | D25: FALSE | F25: 1 | G25: 22 | J25: Number of Series for Range | K25: =COUNTIF(D:D,TRUE)+2 -> 5 | O25: Adjustments for Inflation or Currency
A26: 23 | B26: ='Read Stocks'!M26 -> NEE | C26: ='Read Stocks'!N26 -> Nextera | D26: FALSE | F26: 1 | G26: 23 | J26: Turn off Calc After Change | K26: FALSE | AA26: Indices used for Adjustment
A27: 24 | B27: ='Read Stocks'!M27 -> 015760.KS | C27: ='Read Stocks'!N27 -> Korea Electric Power | D27: FALSE | F27: 1 | G27: 24 | J27: Adjusted Closing Price | K27: =Adj_Close -> TRUE | O27: =J2 -> S&P 500 | Q27: 0 | R27: =IF(Q27,INDEX('Read Stocks'!$BN$4:$BN$12,'Multiple Stock Graph'!Q27),"USD") -> USD
A28: 25 | B28: ='Read Stocks'!M28 -> ED | C28: ='Read Stocks'!N28 -> Consolidated Edison | D28: FALSE | F28: 1 | G28: 25 | J28: Monthly Data | K28: =timing_code=1 -> TRUE | O28: =J4 -> ORSTED.CO | Q28: 0 | R28: =IF(Q28,INDEX('Read Stocks'!$BN$4:$BN$12,'Multiple Stock Graph'!Q28),"USD") -> USD | AA28: =TRANSPOSE(Summary!AU6:BA6) -> GDP Inf | AB28: Divide
A29: 26 | B29: ='Read Stocks'!M29 -> EOAN.DE | C29: ='Read Stocks'!N29 -> EON | D29: FALSE | F29: 1 | G29: 26 | O29: EDPR.LS | Q29: 0 | R29: =IF(Q29,INDEX('Read Stocks'!$BN$4:$BN$12,'Multiple Stock Graph'!Q29),"USD") -> USD | AA29: CPI US | AB29: Divide
A30: 27 | B30: ='Read Stocks'!M30 -> 0HAH.IL | C30: ='Read Stocks'!N30 -> FORTUM | D30: FALSE | F30: 1 | G30: 27 | J30: Start Date of Analysis | K30: =Summary!I1 -> 2008-03-01 | O30: ENGIE | Q30: 0 | R30: =IF(Q30,INDEX('Read Stocks'!$BN$4:$BN$12,'Multiple Stock Graph'!Q30),"USD") -> USD | AA30: Euro | AB30: Divide
A31: 28 | B31: ='Read Stocks'!M31 -> IBE.MC | C31: ='Read Stocks'!N31 -> Ibederola | D31: FALSE | F31: 1 | G31: 28 | J31: End Date of Analysis | K31: =Summary!I2 -> 2025-07-31 | Q31: 0 | R31: =IF(Q31,INDEX('Read Stocks'!$BN$4:$BN$12,'Multiple Stock Graph'!Q31),"USD") -> USD | AA31: INR | AB31: Divide | AE31: Instructions at www.edbodmer.com
A32: 29 | B32: ='Read Stocks'!M32 -> SSE.L | C32: ='Read Stocks'!N32 -> SSE PLC | D32: FALSE | F32: 1 | G32: 29 | Q32: 0 | R32: =IF(Q32,INDEX('Read Stocks'!$BN$4:$BN$12,'Multiple Stock Graph'!Q32),"USD") -> USD | AA32: UK | AB32: Multiply | AE32: Questions: e-mail edwardbodmer@gmail.com
A33: 30 | B33: ='Read Stocks'!M33 -> EDPR.LS | C33: EDPR.LS | D33: TRUE | F33: 2 | G33: 30 | Q33: 0 | R33: =IF(Q33,INDEX('Read Stocks'!$BN$4:$BN$12,'Multiple Stock Graph'!Q33),"USD") -> USD | AA33: PKR | AB33: Divide
A34: 31 | B34: ='Read Stocks'!M34 -> FTS.TO | C34: ='Read Stocks'!N34 -> FORTIS | D34: FALSE | F34: 2 | G34: 31 | AA34: US NOM GNP | AB34: Divide
A35: 32 | B35: ='Read Stocks'!M35 -> 1038.HK | C35: ='Read Stocks'!N35 -> CK Infrastructure | D35: FALSE | F35: 2 | G35: 32
A36: 33 | B36: ='Read Stocks'!M36 -> ETR | C36: ='Read Stocks'!N36 -> Entergy Corporation | D36: FALSE | F36: 2 | G36: 33
A37: 34 | B37: ='Read Stocks'!M37 -> ENEL.MI | C37: ='Read Stocks'!N37 -> ENEL | D37: FALSE | F37: 2 | G37: 34
A38: 35 | B38: ='Read Stocks'!M38 -> DUK | C38: ='Read Stocks'!N38 -> DUKE ENERGY CORPORATION | D38: FALSE | F38: 2 | G38: 35 | L38: Primary Stock | N38: =Forms!AA11 -> 1 | O38: =INDEX(C4:C195,Forms!AA11) -> S&P 500
A39: 36 | B39: ='Read Stocks'!M39 -> D | C39: ='Read Stocks'!N39 -> DOMINION ENERGY INC | D39: FALSE | F39: 2 | G39: 36 | L39: Use the Drop Down Box for Selecting the Index Value for the base and the date
A40: 37 | B40: ='Read Stocks'!M40 -> SO | C40: ='Read Stocks'!N40 -> SOUTHERN COMPANY (THE) | D40: FALSE | F40: 2 | G40: 37 | L40: Use the check boxes for comparison
A41: 38 | B41: ='Read Stocks'!M41 -> ENGI.PA | C41: ='Read Stocks'!N41 -> ENGIE | D41: TRUE | F41: 3 | G41: 38 | L41: Use the first check box for index in computing beta and other statistics
A42: 39 | B42: ='Read Stocks'!M42 -> AEP | C42: ='Read Stocks'!N42 -> AMERICAN ELECTRIC POWER COMPANY INC | D42: FALSE | F42: 3 | G42: 39
A43: 40 | B43: ='Read Stocks'!M43 -> EXC | C43: ='Read Stocks'!N43 -> EXELON CORPORATION | D43: FALSE | F43: 3 | G43: 40 | L43: When looking at FRED data in individual sheets, shift, CNTL F re-formats.
A44: 41 | B44: ='Read Stocks'!M44 -> NGG | C44: ='Read Stocks'!N44 -> NATIONAL GRID TRANSCO PLC | D44: FALSE | F44: =F43+D44 -> 3 | G44: 41 | I44: =INDEX(B:B,H44) -> 
A45: 42 | B45: ='Read Stocks'!M45 -> MAEOY | C45: ='Read Stocks'!N45 -> MERALCO | D45: FALSE | F45: =F44+D45 -> 3 | G45: 42 | L45: A range name called graph_output allows you to put in flexible ranges
A46: 43 | B46: ='Read Stocks'!M46 -> NTPC.NS | C46: ='Read Stocks'!N46 -> NTPC | D46: FALSE | F46: 3 | G46: 43
A47: 44 | B47: ='Read Stocks'!M47 -> ELE.MC | C47: ='Read Stocks'!N47 -> ENDESA SA | D47: FALSE | F47: 3 | G47: 44
A48: 45 | B48: ='Read Stocks'!M48 -> PNM | C48: ='Read Stocks'!N48 -> PNM Resources | D48: FALSE | F48: 3 | G48: 45 | L48: Graph_Output Range
A49: 46 | B49: ='Read Stocks'!M49 -> TSLA | C49: ='Read Stocks'!N49 -> Tesla | D49: FALSE | F49: =F48+D49 -> 3 | G49: 45 | I49: =INDEX(B:B,H49) -> 
A50: 47 | B50: ='Read Stocks'!M50 -> AAPL | C50: ='Read Stocks'!N50 -> Apple | D50: FALSE | F50: 3 | G50: 45 | L50: =graph_output
A51: 48 | B51: ='Read Stocks'!M51 -> AMZN | C51: ='Read Stocks'!N51 -> Amazon | D51: FALSE | F51: 3 | G51: 45
A52: 49 | B52: ='Read Stocks'!M52 -> GDP Inf | C52: ='Read Stocks'!N52 -> GDP Inf | D52: FALSE | F52: 3 | G52: 45
A53: 50 | B53: ='Read Stocks'!M53 -> CPI US | C53: ='Read Stocks'!N53 -> CPI US | D53: FALSE | F53: 3 | G53: 45
A54: 51 | B54: ='Read Stocks'!M54 -> Euro | C54: ='Read Stocks'!N54 -> Euro | D54: FALSE | F54: 3 | G54: 45
A55: 52 | B55: ='Read Stocks'!M55 -> INR | C55: ='Read Stocks'!N55 -> INR | D55: FALSE | F55: 3 | G55: 45
A56: 53 | B56: ='Read Stocks'!M56 -> UK | C56: ='Read Stocks'!N56 -> UK | D56: FALSE | F56: 3 | G56: 45
A57: 54 | B57: ='Read Stocks'!M57 -> PKR | C57: ='Read Stocks'!N57 -> PKR | D57: FALSE | F57: 3 | G57: 45
A58: 55 | B58: ='Read Stocks'!M58 -> US NOM GNP | C58: ='Read Stocks'!N58 -> US NOM GNP | D58: FALSE | F58: 3 | G58: 45
A59: 56 | B59: ='Read Stocks'!M59 -> 5 yr treasury | C59: ='Read Stocks'!N59 -> 5 yr treasury | D59: FALSE | F59: 3 | G59: 45
A60: 57 | B60: ='Read Stocks'!M60 -> 10 year treasury | C60: ='Read Stocks'!N60 -> 10 year treasury | D60: FALSE | F60: 3 | G60: 45
A61: 58 | B61: ='Read Stocks'!M61 -> US Med Inc Nom | C61: ='Read Stocks'!N61 -> US Med Inc Nom | D61: FALSE | F61: 3 | G61: 45
A62: 59 | B62: ='Read Stocks'!M62 -> Median Income | C62: ='Read Stocks'!N62 -> Median Income | D62: FALSE | F62: 3 | G62: 45
A63: 60 | B63: ='Read Stocks'!M63 -> Corp Profit | C63: ='Read Stocks'!N63 -> Corp Profit | D63: FALSE | F63: 3 | G63: 45
A64: 61 | B64: ='Read Stocks'!M64 -> Corp Nonfin | C64: ='Read Stocks'!N64 -> Corp Nonfin | D64: FALSE | F64: 3 | G64: 45
A65: 62 | B65: ='Read Stocks'!M65 -> Corp Aft Tax | C65: ='Read Stocks'!N65 -> Corp Aft Tax | D65: FALSE | F65: 3 | G65: 45
A66: 63 | B66: ='Read Stocks'!M66 -> Corp Inf Adjusted | C66: ='Read Stocks'!N66 -> Corp Inf Adjusted | D66: FALSE | F66: 3 | G66: 45
A67: 64 | B67: ='Read Stocks'!M67 -> GDP Inflation Index | C67: ='Read Stocks'!N67 -> GDP Inflation Index | D67: FALSE | F67: 3 | G67: 45
A68: 65 | B68: ='Read Stocks'!M68 -> CPI US Index | C68: ='Read Stocks'!N68 -> CPI US Index | D68: FALSE | F68: 3 | G68: 45
A69: 66 | B69: ='Read Stocks'!M69 -> US GDP | C69: ='Read Stocks'!N69 -> US GDP | D69: FALSE | F69: 3 | G69: 45 | H69: =MATCH(G69,F$1:F$555,0) -> 
A70: 67 | B70: ='Read Stocks'!M70 -> Median Family Income | C70: ='Read Stocks'!N70 -> Median Family Income | D70: FALSE | F70: 3 | G70: 45
A71: 68 | B71: ='Read Stocks'!M71 -> US Real GDP | C71: ='Read Stocks'!N71 -> US Real GDP | D71: FALSE | F71: 3 | G71: 45
A72: 69 | B72: ='Read Stocks'!M72 -> US Real GNP | C72: ='Read Stocks'!N72 -> US Real GNP | D72: FALSE | F72: 3 | G72: 45
A73: 70 | B73: ='Read Stocks'!M73 -> GDP GDI | C73: ='Read Stocks'!N73 -> GDP GDI | D73: FALSE | F73: 3 | G73: 45
A74: 71 | B74: ='Read Stocks'!M74 -> Crude Oil Price | C74: ='Read Stocks'!N74 -> Crude Oil Price | D74: FALSE | F74: 3 | G74: 45
A75: 72 | B75: ='Read Stocks'!M75 -> Gold Fixing Pr | C75: ='Read Stocks'!N75 -> Gold Fixing Pr | D75: FALSE | F75: 3 | G75: 45
A76: 73 | B76: ='Read Stocks'!M76 -> Henry Hub Natur | C76: ='Read Stocks'!N76 -> Henry Hub Natur | D76: FALSE | F76: 3 | G76: 45
A77: 74 | B77: ='Read Stocks'!M77 -> LNG, Asia (PNG | C77: ='Read Stocks'!N77 -> LNG, Asia (PNG | D77: FALSE | F77: 3 | G77: 45
A78: 75 | B78: ='Read Stocks'!M78 -> EU Natural Gas | C78: ='Read Stocks'!N78 -> EU Natural Gas | D78: FALSE | F78: 3 | G78: 45
A79: 76 | B79: ='Read Stocks'!M79 -> Uranium (PURAN | C79: ='Read Stocks'!N79 -> Uranium (PURAN | D79: FALSE | F79: 3 | G79: 45
A80: 77 | B80: ='Read Stocks'!M80 -> GDP Per Capital France | C80: ='Read Stocks'!N80 -> GDP Per Capital France | D80: FALSE | F80: 3 | G80: 45
A81: 78 | B81: ='Read Stocks'!M81 -> GDP Per Capital Germany | C81: ='Read Stocks'!N81 -> GDP Per Capital Germany | D81: FALSE | F81: 3 | G81: 45
A82: 79 | B82: ='Read Stocks'!M82 -> GDP Per Capital US | C82: ='Read Stocks'!N82 -> GDP Per Capital US | D82: FALSE | F82: 3 | G82: 45
A83: 80 | B83: ='Read Stocks'!M83 -> GDP Per Capital China | C83: ='Read Stocks'!N83 -> GDP Per Capital China | D83: FALSE | F83: 3 | G83: 45
A84: 81 | B84: ='Read Stocks'!M84 ->  | C84: ='Read Stocks'!N84 ->  | D84: FALSE | F84: 3 | G84: 45
A85: 82 | B85: ='Read Stocks'!M85 ->  | C85: ='Read Stocks'!N85 ->  | D85: FALSE | F85: 3 | G85: 45
A86: 83 | B86: ='Read Stocks'!M86 ->  | C86: ='Read Stocks'!N86 ->  | D86: FALSE | F86: 3 | G86: 45
A87: 84 | B87: ='Read Stocks'!M87 ->  | C87: ='Read Stocks'!N87 ->  | D87: FALSE | F87: 3 | G87: 45
A88: 85 | B88: ='Read Stocks'!M88 ->  | C88: ='Read Stocks'!N88 ->  | D88: FALSE | F88: 3 | G88: 45
A89: 86 | B89: ='Read Stocks'!M89 ->  | C89: ='Read Stocks'!N89 ->  | D89: FALSE | F89: 3 | G89: 45
A90: 87 | B90: ='Read Stocks'!M90 ->  | C90: ='Read Stocks'!N90 ->  | D90: FALSE | F90: 3 | G90: 45
A91: 88 | B91: ='Read Stocks'!M91 ->  | C91: ='Read Stocks'!N91 ->  | D91: FALSE | F91: 3 | G91: 45
A92: 89 | B92: ='Read Stocks'!M92 ->  | C92: ='Read Stocks'!N92 ->  | D92: FALSE | F92: 3 | G92: 45
A93: 90 | B93: ='Read Stocks'!M93 ->  | C93: ='Read Stocks'!N93 ->  | D93: FALSE | F93: 3 | G93: 45
A94: 91 | B94: ='Read Stocks'!M94 ->  | C94: ='Read Stocks'!N94 ->  | D94: FALSE | F94: 3 | G94: 45
A95: 92 | B95: ='Read Stocks'!M95 ->  | C95: ='Read Stocks'!N95 ->  | D95: FALSE | F95: 3 | G95: 45
A96: 93 | B96: ='Read Stocks'!M96 ->  | C96: ='Read Stocks'!N96 ->  | D96: FALSE | F96: 3 | G96: 45
A97: 94 | B97: ='Read Stocks'!M97 ->  | C97: ='Read Stocks'!N97 ->  | D97: FALSE | F97: 3 | G97: 45
A98: 95 | B98: ='Read Stocks'!M98 ->  | C98: ='Read Stocks'!N98 ->  | D98: FALSE | F98: 3 | G98: 45
A99: 96 | B99: ='Read Stocks'!M99 ->  | C99: ='Read Stocks'!N99 ->  | D99: FALSE | F99: 3 | G99: 45
A100: 97 | B100: ='Read Stocks'!M100 ->  | C100: ='Read Stocks'!N100 ->  | D100: FALSE | F100: 3 | G100: 45
A101: 98 | B101: ='Read Stocks'!M101 ->  | C101: ='Read Stocks'!N101 ->  | D101: FALSE | F101: 3 | G101: 45
A102: 99 | B102: ='Read Stocks'!M102 ->  | C102: ='Read Stocks'!N102 ->  | D102: FALSE | F102: 3 | G102: 45
A103: 100 | B103: ='Read Stocks'!M103 ->  | C103: ='Read Stocks'!N103 ->  | D103: FALSE | F103: 3 | G103: 45
A104: 101 | B104: ='Read Stocks'!M104 ->  | C104: ='Read Stocks'!N104 ->  | D104: FALSE | F104: 3 | G104: 45
A105: 102 | B105: ='Read Stocks'!M105 ->  | C105: ='Read Stocks'!N105 ->  | D105: FALSE | F105: 3 | G105: 45
A106: 103 | B106: ='Read Stocks'!M106 ->  | C106: ='Read Stocks'!N106 ->  | D106: FALSE | F106: 3 | G106: 45
A107: 104 | B107: ='Read Stocks'!M107 ->  | C107: ='Read Stocks'!N107 ->  | D107: FALSE | F107: 3 | G107: 45
A108: 105 | B108: ='Read Stocks'!M108 ->  | C108: ='Read Stocks'!N108 ->  | D108: FALSE | F108: 3 | G108: 45
A109: 106 | B109: ='Read Stocks'!M109 ->  | C109: ='Read Stocks'!N109 ->  | D109: FALSE | F109: 3 | G109: 45
A110: 107 | B110: ='Read Stocks'!M110 ->  | C110: ='Read Stocks'!N110 ->  | D110: FALSE | F110: 3 | G110: 45
A111: 108 | B111: ='Read Stocks'!M111 ->  | C111: ='Read Stocks'!N111 ->  | D111: FALSE | F111: 3 | G111: 45
A112: 109 | B112: ='Read Stocks'!M112 ->  | C112: ='Read Stocks'!N112 ->  | D112: FALSE | F112: 3 | G112: 45
A113: 110 | B113: ='Read Stocks'!M113 ->  | C113: ='Read Stocks'!N113 ->  | D113: FALSE | F113: =F112+D113 -> 3 | G113: 45 | I113: =INDEX(B:B,H113) -> 
A114: 111 | B114: ='Read Stocks'!M114 ->  | C114: ='Read Stocks'!N114 ->  | D114: FALSE | F114: 3 | G114: 45
A115: 112 | B115: ='Read Stocks'!M115 ->  | C115: ='Read Stocks'!N115 ->  | D115: FALSE | F115: 3 | G115: 45
A116: 113 | B116: ='Read Stocks'!M116 ->  | C116: ='Read Stocks'!N116 ->  | D116: FALSE | F116: 3 | G116: 45
A117: 114 | B117: ='Read Stocks'!M117 ->  | C117: ='Read Stocks'!N117 ->  | D117: FALSE | F117: 3 | G117: 45
A118: 115 | B118: ='Read Stocks'!M118 ->  | C118: ='Read Stocks'!N118 ->  | D118: FALSE | F118: 3 | G118: 45
A119: 116 | B119: ='Read Stocks'!M119 ->  | C119: ='Read Stocks'!N119 ->  | D119: FALSE | F119: 3 | G119: 45
A120: 117 | B120: ='Read Stocks'!M120 ->  | C120: ='Read Stocks'!N120 ->  | D120: FALSE | F120: 3 | G120: 45
A121: 118 | B121: ='Read Stocks'!M121 ->  | C121: ='Read Stocks'!N121 ->  | D121: FALSE | F121: 3 | G121: 45
A122: 119 | B122: ='Read Stocks'!M122 ->  | C122: ='Read Stocks'!N122 ->  | D122: FALSE | F122: 3 | G122: 45
A123: 120 | B123: ='Read Stocks'!M123 ->  | C123: ='Read Stocks'!N123 ->  | D123: FALSE | F123: 3 | G123: 45
A124: 121 | B124: ='Read Stocks'!M124 ->  | C124: ='Read Stocks'!N124 ->  | D124: FALSE | F124: 3 | G124: 45
A125: 122 | B125: ='Read Stocks'!M125 ->  | C125: ='Read Stocks'!N125 ->  | D125: FALSE | F125: 3 | G125: 45
A126: 123 | B126: ='Read Stocks'!M126 ->  | C126: ='Read Stocks'!N126 ->  | D126: FALSE | F126: 3 | G126: 45
A127: 124 | B127: ='Read Stocks'!M127 ->  | C127: ='Read Stocks'!N127 ->  | D127: FALSE | F127: 3 | G127: 45
A128: 125 | B128: ='Read Stocks'!M128 ->  | C128: ='Read Stocks'!N128 ->  | D128: FALSE | F128: 3 | G128: 45
A129: 126 | B129: ='Read Stocks'!M129 ->  | C129: ='Read Stocks'!N129 ->  | D129: FALSE | F129: 3 | G129: 45
A130: 127 | B130: ='Read Stocks'!M130 ->  | C130: ='Read Stocks'!N130 ->  | D130: FALSE | F130: 3 | G130: 45
A131: 128 | B131: ='Read Stocks'!M131 ->  | C131: ='Read Stocks'!N131 ->  | D131: FALSE | F131: 3 | G131: 45
A132: 129 | B132: ='Read Stocks'!M132 ->  | C132: ='Read Stocks'!N132 ->  | D132: FALSE | F132: 3 | G132: 45
A133: 130 | B133: ='Read Stocks'!M133 ->  | C133: ='Read Stocks'!N133 ->  | D133: FALSE | F133: 3 | G133: 45 | H133: =MATCH(G133,F$1:F$555,0) -> 
A134: 131 | B134: ='Read Stocks'!M134 ->  | C134: ='Read Stocks'!N134 ->  | D134: FALSE | F134: 3 | G134: 45
A135: 132 | B135: ='Read Stocks'!M135 ->  | C135: ='Read Stocks'!N135 ->  | D135: FALSE | F135: 3 | G135: 45
A136: 133 | B136: ='Read Stocks'!M136 ->  | C136: ='Read Stocks'!N136 ->  | D136: FALSE | F136: 3 | G136: 45
A137: 134 | B137: ='Read Stocks'!M137 ->  | C137: ='Read Stocks'!N137 ->  | D137: FALSE | F137: 3 | G137: 45
A138: 135 | B138: ='Read Stocks'!M138 ->  | C138: ='Read Stocks'!N138 ->  | D138: FALSE | F138: 3 | G138: 45
A139: 136 | B139: ='Read Stocks'!M139 ->  | C139: ='Read Stocks'!N139 ->  | D139: FALSE | F139: 3 | G139: 45
A140: 137 | B140: ='Read Stocks'!M140 ->  | C140: ='Read Stocks'!N140 ->  | D140: FALSE | F140: 3 | G140: 45
A141: 138 | B141: ='Read Stocks'!M141 ->  | C141: ='Read Stocks'!N141 ->  | D141: FALSE | F141: 3 | G141: 45
A142: 139 | B142: ='Read Stocks'!M142 ->  | C142: ='Read Stocks'!N142 ->  | D142: FALSE | F142: 3 | G142: 45
A143: 140 | B143: ='Read Stocks'!M143 ->  | C143: ='Read Stocks'!N143 ->  | D143: FALSE | F143: 3 | G143: 45
A144: 141 | B144: ='Read Stocks'!M144 ->  | C144: ='Read Stocks'!N144 ->  | D144: FALSE | F144: 3 | G144: 45
A145: 142 | B145: ='Read Stocks'!M145 ->  | C145: ='Read Stocks'!N145 ->  | D145: FALSE | F145: 3 | G145: 45
A146: 143 | B146: ='Read Stocks'!M146 ->  | C146: ='Read Stocks'!N146 ->  | D146: FALSE | F146: 3 | G146: 45
A147: 144 | B147: ='Read Stocks'!M147 ->  | C147: ='Read Stocks'!N147 ->  | D147: FALSE | F147: 3 | G147: 45
A148: 145 | B148: ='Read Stocks'!M148 ->  | C148: ='Read Stocks'!N148 ->  | D148: FALSE | F148: 3 | G148: 45
A149: 146 | B149: ='Read Stocks'!M149 ->  | C149: ='Read Stocks'!N149 ->  | D149: FALSE | F149: 3 | G149: 45
A150: 147 | B150: ='Read Stocks'!M150 ->  | C150: ='Read Stocks'!N150 ->  | D150: FALSE | F150: 3 | G150: 45
A151: 148 | B151: ='Read Stocks'!M151 ->  | C151: ='Read Stocks'!N151 ->  | D151: FALSE | F151: 3 | G151: 45
A152: 149 | B152: ='Read Stocks'!M152 ->  | C152: ='Read Stocks'!N152 ->  | D152: FALSE | F152: 3 | G152: 45
A153: 150 | B153: ='Read Stocks'!M153 ->  | C153: ='Read Stocks'!N153 ->  | D153: FALSE | F153: 3 | G153: 45
A154: 151 | B154: ='Read Stocks'!M154 ->  | C154: ='Read Stocks'!N154 ->  | D154: FALSE | F154: 3 | G154: 45
A155: 152 | B155: ='Read Stocks'!M155 ->  | C155: ='Read Stocks'!N155 ->  | D155: FALSE | F155: 3 | G155: 45
A156: 153 | B156: ='Read Stocks'!M156 ->  | C156: ='Read Stocks'!N156 ->  | D156: FALSE | F156: 3 | G156: 45
A157: 154 | B157: ='Read Stocks'!M157 ->  | C157: ='Read Stocks'!N157 ->  | D157: FALSE | F157: 3 | G157: 45
A158: 155 | B158: ='Read Stocks'!M158 ->  | C158: ='Read Stocks'!N158 ->  | D158: FALSE | F158: 3 | G158: 45
A159: 156 | B159: ='Read Stocks'!M159 ->  | C159: ='Read Stocks'!N159 ->  | D159: FALSE | F159: 3 | G159: 45
A160: 157 | B160: ='Read Stocks'!M160 ->  | C160: ='Read Stocks'!N160 ->  | D160: FALSE | F160: 3 | G160: 45
A161: 158 | B161: ='Read Stocks'!M161 ->  | C161: ='Read Stocks'!N161 ->  | D161: FALSE | F161: 3 | G161: 45
A162: 159 | B162: ='Read Stocks'!M162 ->  | C162: ='Read Stocks'!N162 ->  | D162: FALSE | F162: 3 | G162: 45
A163: 160 | B163: ='Read Stocks'!M163 ->  | C163: ='Read Stocks'!N163 ->  | D163: FALSE | F163: 3 | G163: 45
A164: 161 | B164: ='Read Stocks'!M164 ->  | C164: ='Read Stocks'!N164 ->  | D164: FALSE | F164: 3 | G164: 45
A165: 162 | B165: ='Read Stocks'!M165 ->  | C165: ='Read Stocks'!N165 ->  | D165: FALSE | F165: 3 | G165: 45
A166: 163 | B166: ='Read Stocks'!M166 ->  | C166: ='Read Stocks'!N166 ->  | D166: FALSE | F166: 3 | G166: 45
A167: 164 | B167: ='Read Stocks'!M167 ->  | C167: ='Read Stocks'!N167 ->  | D167: FALSE | F167: 3 | G167: 45
A168: 165 | B168: ='Read Stocks'!M168 ->  | C168: ='Read Stocks'!N168 ->  | D168: FALSE | F168: 3 | G168: 45
A169: 166 | B169: ='Read Stocks'!M169 ->  | C169: ='Read Stocks'!N169 ->  | D169: FALSE | F169: 3 | G169: 45
A170: 167 | B170: ='Read Stocks'!M170 ->  | C170: ='Read Stocks'!N170 ->  | D170: FALSE | F170: 3 | G170: 45
A171: 168 | B171: ='Read Stocks'!M171 ->  | C171: ='Read Stocks'!N171 ->  | D171: FALSE | F171: 3 | G171: 45
A172: 169 | B172: ='Read Stocks'!M172 ->  | C172: ='Read Stocks'!N172 ->  | D172: FALSE | F172: 3 | G172: 45
A173: 170 | B173: ='Read Stocks'!M173 ->  | C173: ='Read Stocks'!N173 ->  | D173: FALSE | F173: 3 | G173: 45
A174: 171 | B174: ='Read Stocks'!M174 ->  | C174: ='Read Stocks'!N174 ->  | D174: FALSE | F174: 3 | G174: 45
A175: 172 | B175: ='Read Stocks'!M175 ->  | C175: ='Read Stocks'!N175 ->  | D175: FALSE | F175: 3 | G175: 45
A176: 173 | B176: ='Read Stocks'!M176 ->  | C176: ='Read Stocks'!N176 ->  | D176: FALSE | F176: 3 | G176: 45
A177: 174 | B177: ='Read Stocks'!M177 ->  | C177: ='Read Stocks'!N177 ->  | D177: FALSE | F177: =F176+D177 -> 3 | G177: 45 | I177: =INDEX(B:B,H177) -> 
A178: 175 | B178: ='Read Stocks'!M178 -> 0 | C178: ='Read Stocks'!N178 -> 0 | D178: FALSE | F178: 3 | G178: 45
A179: 176 | B179: ='Read Stocks'!M179 -> 0 | C179: ='Read Stocks'!N179 -> 0 | D179: FALSE | F179: 3 | G179: 45
A180: 177 | B180: ='Read Stocks'!M180 -> 0 | C180: ='Read Stocks'!N180 -> 0 | D180: FALSE | F180: 3 | G180: 45
A181: 178 | B181: ='Read Stocks'!M181 -> 0 | C181: ='Read Stocks'!N181 -> 0 | D181: FALSE | F181: 3 | G181: 45
A182: 179 | B182: ='Read Stocks'!M182 -> 0 | C182: ='Read Stocks'!N182 -> 0 | D182: FALSE | F182: 3 | G182: 45
A183: 180 | B183: ='Read Stocks'!M183 -> 0 | C183: ='Read Stocks'!N183 -> 0 | D183: FALSE | F183: 3 | G183: 45
A184: 181 | B184: ='Read Stocks'!M184 -> 0 | C184: ='Read Stocks'!N184 -> 0 | D184: FALSE | F184: 3 | G184: 45
A185: 182 | B185: ='Read Stocks'!M185 -> 0 | C185: ='Read Stocks'!N185 -> 0 | D185: FALSE | F185: 3 | G185: 45
A186: 183 | B186: ='Read Stocks'!M186 -> 0 | C186: ='Read Stocks'!N186 -> 0 | D186: FALSE | F186: 3 | G186: 45
A187: 184 | B187: ='Read Stocks'!M187 -> 0 | C187: ='Read Stocks'!N187 -> 0 | D187: FALSE | F187: 3 | G187: 45
A188: 185 | B188: ='Read Stocks'!M188 -> 0 | C188: ='Read Stocks'!N188 -> 0 | D188: FALSE | F188: 3 | G188: 45
A189: 186 | B189: ='Read Stocks'!M189 -> 0 | C189: ='Read Stocks'!N189 -> 0 | D189: FALSE | F189: 3 | G189: 45
A190: 187 | B190: ='Read Stocks'!M190 -> 0 | C190: ='Read Stocks'!N190 -> 0 | D190: FALSE | F190: 3 | G190: 45
A191: 188 | B191: ='Read Stocks'!M191 -> 0 | C191: ='Read Stocks'!N191 -> 0 | D191: FALSE | F191: 3 | G191: 45
A192: 189 | B192: ='Read Stocks'!M192 -> 0 | C192: ='Read Stocks'!N192 -> 0 | D192: FALSE | F192: 3 | G192: 45
A193: 190 | B193: ='Read Stocks'!M193 -> 0 | C193: ='Read Stocks'!N193 -> 0 | D193: FALSE | F193: 3 | G193: 45
A194: 191 | B194: ='Read Stocks'!M194 -> 0 | C194: ='Read Stocks'!N194 -> 0 | D194: FALSE | F194: 3 | G194: 45
A195: 192 | B195: ='Read Stocks'!M195 -> 0 | C195: ='Read Stocks'!N195 -> 0 | D195: FALSE | F195: 3 | G195: 45
D196: FALSE | F196: 3 | G196: 45
D197: FALSE | F197: 3 | G197: 45 | H197: =MATCH(G197,F$1:F$555,0) -> 
D198: FALSE | F198: 3 | G198: 45
D199: FALSE | F199: 3 | G199: 45
D200: FALSE | F200: 3 | G200: 45
... 100 more rows

Sheet Scatter Plot
M3: ='Multiple Stock Graph'!O1 -> Monthly | N3: ='Multiple Stock Graph'!Q1 -> From | O3: ='Multiple Stock Graph'!R1 -> 2008-03-01 | P3: to | Q3: ='Multiple Stock Graph'!T1 -> 2025-07-31
O6: =Summary!CW8 -> Simple not LN | P6: =Summary!CX9 -> ORSTED.CO
N7: =Summary!CU11 -> 2008-04-30 | O7: =Summary!CW11 -> 0 | P7: =Summary!CX11 -> FALSE
N8: =Summary!CU12 -> 2008-05-31 | O8: =Summary!CW12 -> 0.04754669764 | P8: =Summary!CX12 -> FALSE
N9: =Summary!CU13 -> 2008-06-30 | O9: =Summary!CW13 -> 0.0106741817 | P9: =Summary!CX13 -> FALSE
N10: =Summary!CU14 -> 2008-07-31 | O10: =Summary!CW14 -> -0.08596238483 | P10: =Summary!CX14 -> FALSE
N11: =Summary!CU15 -> 2008-08-31 | O11: =Summary!CW15 -> -0.009859371185 | P11: =Summary!CX15 -> FALSE
N12: =Summary!CU16 -> 2008-09-30 | O12: =Summary!CW16 -> 0.01219046467 | P12: =Summary!CX16 -> FALSE
N13: =Summary!CU17 -> 2008-10-31 | O13: =Summary!CW17 -> -0.09079143354 | P13: =Summary!CX17 -> FALSE
N14: =Summary!CU18 -> 2008-11-30 | O14: =Summary!CW18 -> -0.169424524 | P14: =Summary!CX18 -> FALSE
N15: =Summary!CU19 -> 2008-12-31 | O15: =Summary!CW19 -> -0.07484904234 | P15: =Summary!CX19 -> FALSE
N16: =Summary!CU20 -> 2009-01-31 | O16: =Summary!CW20 -> 0.007821576633 | P16: =Summary!CX20 -> FALSE
N17: =Summary!CU21 -> 2009-02-28 | O17: =Summary!CW21 -> -0.08565734306 | P17: =Summary!CX21 -> FALSE
N18: =Summary!CU22 -> 2009-03-31 | O18: =Summary!CW22 -> -0.1099311976 | P18: =Summary!CX22 -> FALSE
N31: =M3&" "&O6 -> Monthly Simple not LN
N32: =M3&" "&P6 -> Monthly ORSTED.CO
N35: =Forms!AC28 -> ORSTED.CO | P35: Alpha | Q35: =INDEX(Summary!BO2:BT2,Summary!CW5) -> 0.0004433327476 | R35: =IF(Summary!H7,Q35*52,Q35*12) -> 0.005319992971 | S35: Beta | T35: =INDEX(Summary!BO3:BT3,Summary!CW5) -> 0.6090510095

Sheet Yahoo Index
A1: Input Stock Indicies with finance.yahoo tickers
A2: Do not Insert Rows because of the Python Program
C3: Inputs to Python Code
C4: Timing | D4: 1mo
C5: Yahoo Index Ticker | D5: 9
C6: Index Tickers | D6: =COUNTA(D10:D114) -> 18
C7: python script | D7: IndexTickersM.py | U7: Symbol | V7: Name
D9: Ticker | E9: Sheet Name | F9: Description | I9: 1 | J9: ^GSPC | K9: S&P 500 | L9: US S&P 500 | M9: USD | O9: ^GSPC | P9: S&P 500 | Q9: US S&P 500 | T9: 2 | U9: ^DJI | V9: Dow 30 | Y9: 29
C10: 1 | D10: ^GSPC | E10: =K9 -> S&P 500 | F10: US S&P 500 | I10: 2 | J10: ^GDAXI | K10: DAX | L10: Germany DAX in Euro | M10: Euro | O10: ^GDAXI | P10: DAX | Q10: DAX | T10: 3 | U10: ^IXIC | V10: Nasdaq | Y10: 30
C11: 2 | D11: ^GDAXI | E11: DAX | F11: Germany DAX in Euro | I11: 3 | J11: ^FCHI | K11: CAC 40 | L11: France CAC 40 | M11: Euro | O11: ^FTSE | P11: FTSE 100 | Q11: FTSE 100 | T11: 4 | U11: ^NYA | V11: NYSE COMPOSITE (DJ) | Y11: 31
C12: 3 | D12: =J38 -> ^NSEI | E12: =K38 -> Nifty Fifty | F12: Nifty Fifty | I12: 4 | J12: FTSEMIB.MI | K12: Milan | L12: Italy Milan | M12: Euro | O12: ^DJI | P12: 30 Industrials | Q12: 30 Industrials | T12: 5 | U12: ^XAX | V12: NYSE AMEX COMPOSITE INDEX | Y12: 32
C13: 4 | D13: =J11 -> ^FCHI | E13: =K11 -> CAC 40 | F13: =L11 -> France CAC 40 | I13: 5 | J13: ^IBEX | K13: IBEX 35 | L13: Spain IBEX 35 | M13: Euro | O13: ^SSMI | P13: Swiss | Q13: Swiss SMI | T13: 6 | U13: ^BUK100P | V13: Cboe UK 100 Price Return | Y13: 33
C14: 5 | D14: =J20 -> ^NDX | E14: =K20 -> Nasdaq 100 | F14: Nasdaq 100 | I14: 6 | J14: ^OMX | K14: Sweeden | L14: Sweeden Index | M14: SEK | O14: ^N225 | P14: Nikkei 225 | Q14: Japan 225 | T14: 7 | U14: ^RUT | V14: Russell 2000 | Y14: 34
C15: 6 | D15: =J18 -> ^DJI | E15: =K18 -> 30 Industrials | F15: Dow Jones 30 Industrials | I15: 7 | J15: ^OSEAX | K15: Oslo | L15: Finland | M15: NOK | O15: ^FCHI | P15: CAC 40 | Q15: France CAC 40 | T15: 8 | U15: ^VIX | V15: Vix | Y15: 35
C16: 7 | D16: =J16 -> ^SSMI | E16: =K16 -> Swiss | F16: =L16 -> Swiss SMI | I16: 8 | J16: ^SSMI | K16: Swiss | L16: Swiss SMI | M16: CFH | O16: ^OEX | P16: Chi Options | Q16: Chicago Options | T16: 9 | U16: ^FTSE | V16: FTSE 100 | Y16: 36
C17: 8 | D17: =J26 -> ^KLSE | E17: =K26 -> Malaysia | F17: =L26 -> Malaysia | I17: 9 | J17: ^BFX | K17: Brussels | L17: Brussels | M17: Euro | T17: 10 | U17: ^GDAXI | V17: DAX PERFORMANCE-INDEX | Y17: 37
C18: 9 | D18: ^SP500TR | E18: S&P TR | F18: US S&P 500 Div | I18: 10 | J18: ^DJI | K18: 30 Industrials | L18: Dow Jones 30 Industrials | M18: USD | T18: 11 | U18: ^FCHI | V18: CAC 40 | Y18: 38
C19: 10 | D19: =J25 -> ^JKSE | E19: =K25 -> Indonesia | F19: Indonesia | I19: 11 | J19: ^OEX | K19: Chi Options | L19: Chicago Options | M19: USD | T19: 12 | U19: ^STOXX50E | V19: ESTX 50 PR.EUR | Y19: 39
C20: 11 | D20: =J29 -> ^KS11 | E20: =K29 -> Seoul Composite | F20: Seoul Composite | I20: 12 | J20: ^NDX | K20: Nasdaq 100 | L20: Nasdaq 100 | M20: USD | T20: 13 | U20: ^N100 | V20: EURONEXT 100 | Y20: 40
C21: 12 | D21: =J21 -> ^N225 | E21: =K21 -> Nikkei 225 | F21: Japan 225 | I21: 14 | J21: ^N225 | K21: Nikkei 225 | L21: Japan 225 | M21: JPY | T21: 14 | U21: ^BFX | V21: BEL 20
C22: 13 | D22: =J34 -> ^FTSE | E22: =K34 -> FTSE 100 | F22: UK FTSE 100 | I22: 15 | J22: ^HSI | K22: Hang Seng | L22: Hong Kong Hang Seng | M22: HKD | T22: 15 | U22: IMOEX.ME | V22: MOEX Russia Index
C23: 14 | D23: =J31 -> NGE | E23: =K31 -> Nigeria | F23: Nigeria | I23: 16 | J23: ^AORD | K23: Austrailian | L23: Austrailian | M23: AUD | T23: 16 | U23: ^N225 | V23: Nikkei 225
C24: 15 | D24: =J30 -> ^TWII | E24: =K30 -> Taiwan Weighted | F24: Taiwan Weighted | I24: 17 | J24: ^BSESN | K24: India | L24: =K24 -> India | M24: INR | T24: 17 | U24: ^HSI | V24: HANG SENG INDEX
C25: 16 | D25: =J37 -> ^STI | E25: =K37 -> Straits Times | F25: Straits Times | I25: 18 | J25: ^JKSE | K25: Indonesia | L25: =K25 -> Indonesia | M25: IDR | T25: 18 | U25: 000001.SS | V25: SSE Composite Index
C26: 17 | D26: =J39 -> 000001.SS | E26: =K39 -> SSE Composite | F26: China Index | I26: 19 | J26: ^KLSE | K26: Malaysia | L26: Malaysia | M26: MYR | T26: 19 | U26: ^STI | V26: STI Index
C27: 18 | D27: ^TASI.SR | E27: Tadawul Saudi | F27: Tadawul Saudi | I27: 20 | J27: ^NZ50 | K27: New Zealand | L27: New Zealand | M27: NZD | T27: 20 | U27: ^AXJO | V27: S&P/ASX 200
C28: 19 | I28: 21 | J28: ^NSEI | K28: S&P CNX NIFTY | L28: S&P CNX NIFTY | M28: INR | T28: 21 | U28: ^AORD | V28: ALL ORDINARIES
C29: 20 | I29: 22 | J29: ^KS11 | K29: Seoul Composite | L29: Seoul Composite | M29: KWR | T29: 22 | U29: ^BSESN | V29: S&P BSE SENSEX
C30: 21 | I30: 23 | J30: ^TWII | K30: Taiwan Weighted | L30: Taiwan Weighted | M30: TWII | T30: 23 | U30: ^JKSE | V30: Jakarta Composite Index
C31: 22 | I31: 24 | J31: NGE | K31: Nigeria | L31: Nigeria | M31: USD | T31: 24 | U31: ^KLSE | V31: FTSE Bursa Malaysia KLCI
C32: 23 | I32: 30 | J32: 000001.SS | K32: CMA | L32: CMA | M32: Yuan | T32: 25 | U32: ^NZ50 | V32: S&P/NZX 50 INDEX GROSS
C33: 24 | I33: 25 | J33: ^BATSK | K33: BATS 1000 Index | L33: BATS 1000 Index | M33: USD | T33: 26 | U33: ^KS11 | V33: KOSPI Composite Index
C34: 25 | I34: 26 | J34: ^FTSE | K34: FTSE 100 | L34: UK FTSE 100 | M34: GBP | T34: 27 | U34: ^TWII | V34: TSEC weighted index
C35: 26 | I35: 27 | J35: RTS.RS | K35: Russia Index | L35: Russia Index | M35: RUB | T35: 28 | U35: ^GSPTSE | V35: S&P/TSX Composite index
C36: 27 | I36: 28 | J36: FPXAA.PR | K36: Prague | L36: Prague | M36: CZX | T36: 29 | U36: ^BVSP | V36: IBOVESPA
C37: 28 | I37: 29 | J37: ^STI | K37: Straits Times | L37: Straits Times | M37: SGD | T37: 30 | U37: ^MXX | V37: IPC MEXICO
C38: 29 | I38: 30 | J38: ^NSEI | K38: Nifty Fifty | L38: Nifty Fifty | M38: INR | T38: 31 | U38: ^IPSA | V38: IPSA SANTIAGO DE CHILE
C39: 30 | I39: 31 | J39: 000001.SS | K39: SSE Composite | L39: China Index | M39: CNY | T39: 32 | U39: ^MERV | V39: MERVAL
C40: 31 | I40: 32 | J40: ^TASI.SR | K40: Tadawul Index Saudi | M40: SAR | T40: 33 | U40: ^TA125.TA | V40: TA-125
C41: 32 | T41: 34 | U41: ^CASE30 | V41: EGX 30 Price Return Index
C42: 33 | T42: 35 | U42: ^JN0U.JO | V42: Top 40 USD Net TRI Index
C43: 34 | U43: NIFTY 50 (^NSEI)
C44: 35
C45: 36
E109: Index_Sheet_Name
A114: URL to Read Yahoo with WEBREQUEST
C116: yahoo index url | D116: =D134 -> 
C117: Fixed | D117: https://query1.finance.yahoo.com/v7/finance/download/GE?period1=-631152000&period2=1510444800&interval=1wk&events=history&crumb=icbgE5Cs2YY
Y119: 1 | Z119: TGfSWDsZJYT
Y120: 2 | Z120: CQ6.CdbO7Vs
A121: Putting Together the URL for WEBREQUEST | Y121: 3 | Z121: O8FSIw42rxF
Y122: 4 | Z122: CSlGI2sdBG0
C123: Part 1 | D123: https://query1.finance.yahoo.com/v7/finance/download/ | Y123: 5 | Z123: XqOSmY3l4xa
C124: Symbol | D124: =Google_Ticker ->  | Z124: bZ13SIJ1ujV
C125: Part 2 | D125: ?period1= | Z125: eifZc4X.5c9
C126: Start Date | D126: =D138 -> -1356998400 | Z126: o5GkgmuQPjR
C127: Part 3 | D127: &period2= | Y127: 6 | Z127: atAaPiixhv3
C128: End Date | D128: =D137 -> 1757980800 | Y128: 7 | Z128: HMInudozYZG
C129: Part 4 | D129: &interval=1 | L129: =(A1-DATE(1970,1,1))*86400 | Y129: 8 | Z129: 1tWBOBQnX2t
C130: Period | D130: ='Read Stocks'!I87 -> mo | K130: =TODAY() -> 2025-09-16 | L130: =(K130-DATE(1970,1,1))*86400 -> 1757980800 | Y130: 9 | Z130: 2rRQ4y6.uzL
C131: Part 5 | D131: &events=history&crumb= | Y131: 10 | Z131: a5Us3Rk4hyO
C132: Crumb | D132: hoU8VCPeEIq | Z132: 0kqOBm4nIld
Z133: vByltQk3sUB
C134: URL | D134: =D123&D124&D125&D126&D127&D128&D129&D130&D131&Crumb ->  | Z134: vVmUXvpBskH
D135: https://query1.finance.yahoo.com/v7/finance/download/%5EGSPC?period1=-1325635200&period2=1586563200&interval=1mo&events=history | Z135: z2LXjkN7s9F
C136: Date | D136: Unix Date | Z136: P5BIJQPrhY2
C137: =TODAY() -> 2025-09-16 | D137: =(C137-DATE(1970,1,1))*86400 -> 1757980800 | E137: =_xlfn.FORMULATEXT(D137) -> =(C137-DATE(1970,1,1))*86400 | Z137: gEkJpIMXCpF
C138: 1927-01-01 | D138: =(C138-DATE(1970,1,1))*86400 -> -1356998400 | E138: =_xlfn.FORMULATEXT(D138) -> =(C138-DATE(1970,1,1))*86400 | G138: =24*60*60 -> 86400 | H138: =_xlfn.FORMULATEXT(G138) -> =24*60*60 | Z138: cramylo4rtq
C140: cookie | D140: B=ft3rqr9fmfq88&b=3&s=5i
Y141: 14 | Z141: 647kXnSPl6G
C142: Yahoo Index | D142: =D144&#REF!&D145&E151&D146&F151&D147 ->  | Y142: 15 | Z142: mmD9oHwXc4Q
Y143: 16 | Z143: QGPH.wTFCEz
D144: http://www.google.com/finance/historical?q= | Y144: 17 | Z144: 2oXbf.DMbbF
D145: &startdate= | Y145: 18 | Z145: dIkNm9YBdCc
D146: &enddate= | I146: Data from Google Site | N146: Single Stock with Combo Box and Check Box | S146: Step 1: Insert and Modify Checkbox | Y146: 19 | Z146: NYteS5Qvgrn
D147: &output=csv | I147: Getting the Data Directly | N147: Create and Attach Checkboxes | S147: Step 2: Find the number of the first checkbox | Y147: 20 | Z147: XV0zNccsK.P
I148: Alternative URL | N148: Re-set Checkboxes | S148: Step 3: Open the macro file to put together checkboxes | Y148: 21
E149: Start | F149: End | I149: Creating Macro Workbooks.open | N149: Set-up Master Date and Forms | S149: Step 4: Run the macro (Shift, CNTL, E) | Y149: 22
E150: =C138 -> 9863 | F150: =TODAY() -> 45916 | I150: Adding Macro to Move Data | N150: Option for Raw, Index or Pct Change | S150: Step 5: Insert the standard count, match and index | Y150: 23
E151: =TEXT(E150,"MMM DD, YYYY") -> Jan 01, 1927 | F151: =TEXT(F150,"MMM DD, YYYY") -> Sep 16, 2025 | I151: Loop with Multiple Stocks | N151: Analysis of Single Stock vs Index | S151: Step 6: Use Indirect and lookup to read selected stocks | Y151: 24
I152: Import Stocks to Power BI | N152: Frequency Distribution vs Normal | S152: Step 7: Create growth and index for each stock | Y152: 25
C153: Read Stocks Switch | D153: ='Read Stocks'!F4 -> TRUE | S153: Step 8: Compute statistics and frequency vs normal | Y153: 26

Sheet Yahoo Stocks
A1: Stock Tickers and Company Names from Yahoo
A2: Do not Insert Rows because of the Python Program
C3: Inputs to Python Code
C4: Timing | D4: =timing -> 1mo | AT4: 17 | AU4: 2oXbf.DMbbF
C5: Yahoo Counter | D5: =COUNTA(D10:D93) -> 30 | AT5: 24
C6: Total to Summary | D6: =Counter -> 30 | E6: Total_Tickers | AT6: 25
C7: python script stocks | D7: IndexTickersM.py | E7: python_script_stocks | AT7: 26
D9: Ticker | E9: Company Name | J9: General | O9: Oil Companies | T9: Oil Companies | X9: Food Companies | AB9: Telecom Companies | AG9: Utility Companies | AK9: Insurance Company | AN9: Collection | AS9: Renewable | AY9: India Companies | BH9: Dow
C10: =_xlfn.SEQUENCE(200,) -> 1 | D10: =BO11 -> ORSTED.CO | E10: =BP11 -> ORSTED A/S
C11: 2 | D11: =BO12 -> TNABY | E11: =BP12 -> Tenaga Malaysia | I11: 1 | J11: GE | K11: General Electric | O11: Ticker | T11: CHK | U11: Cheasapeak Energy | X11: NSRGY | Y11: Nestle | AA11: DTE.DE | AB11: Deutsche Telekom AG (ADR) | AG11: AAPL | AH11: Apple | AK11: L&G | AL11: LGEN.L | AN11: FB | AO11: Facebook | AS11: ^GSPC | AT11: S&P 500 | AY11: RELIANCE.NS | BA11: Reliance | BD11: IBE.MC | BE11: Ibdrola | BH11: MMM | BI11: 3M | BL11: TSLA | BM11: Tesla | BO11: ORSTED.CO | BP11: ORSTED A/S
C12: 3 | D12: 600900.SS | E12: China Yangtze Power Co | I12: 2 | J12: AAPL | K12: Apple | N12: 1 | O12: CHK | P12: Cheasapeak Energy | T12: RRC | U12: Range Resources | X12: KRFT | Y12: Kraft | AA12: FTE | AB12: France Telecom SA (ADR) | AG12: GOOG | AH12: Google | AK12: L&G ADR | AL12: LGGNY | AN12: MSFT | AO12: Microsoft | AS12: GE | AT12: General Electric | AY12: INFY.NS | BA12: Infosys | BD12: 5347.KL | BE12: Tenaga | BH12: AAPL | BI12: Apple | BL12: META | BM12: Facebook | BO12: TNABY | BP12: Tenaga Malaysia
C13: 4 | D13: RWE.DE | E13: RWE | I13: 3 | J13: GOOG | K13: Google | N13: 2 | O13: RRC | P13: Range Resources | T13: CLR | U13: Contential Resources | X13: HSY | Y13: Hershey | AA13: BT | AB13: BT Group plc (ADR) (BT) | AG13: AMZN | AH13: Amazon | AK13: Met Life | AL13: MET | AN13: BBRY | AO13: Blackberry | AS13: VWS.CO | AT13: Vestas (Denmark) | AY13: HDFC.NS | BA13: HDFC | BD13: MAEOY | BE13: Meralco | BH13: BA | BI13: Boeing | BL13: NVDA | BM13: Navida | BO13: 600900.SS | BP13: China Yangtze Power Co
C14: 5 | D14: NEE | E14: Nextera | I14: 4 | J14: AMZN | K14: Amazon | N14: 3 | O14: CLR | P14: Contential Resources | T14: SD | U14: Sandy Ridge | X14: BN.PA | Y14: Dannone | AA14: VOD | AB14: Vodafone Group plc | AG14: FB | AH14: Facebook | AK14: AIG | AL14: AIG | AN14: HPQ | AO14: HP | AS14: GAM.MC | AT14: Gamesa Wind (Spain) | AY14: ICICIBANK.NS | BA14: ICIC Bank | BD14: ED | BE14: ConEd | BH14: CAT | BI14: Caterpillar | BL14: GOOG | BM14: Google | BO14: RWE.DE | BP14: RWE
C15: 6 | D15: 015760.KS | E15: Korea Electric Power | I15: 5 | J15: FB | K15: Facebook | N15: 4 | O15: SD | P15: Sandy Ridge | T15: MPO | U15: Midstates Petroleum | X15: PEP | Y15: Pepsi Co | AA15: VZ | AB15: Verizon Communications... | AG15: MSFT | AH15: Microsoft | AK15: Prudential | AL15: PRU | AN15: 005930.KS | AO15: Samsung Electronics | AS15: NDX1.DE | AT15: Nordex Wind SE: German On-Shore Wind | AY15: TATAMOTORS.NS | BA15: Tata Motors | BD15: 015760.KS | BE15: Kepco | BH15: CVX | BI15: Chevron | BL15: AMZN | BM15: Amazon | BO15: NEE | BP15: Nextera
C16: 7 | D16: ED | E16: Consolidated Edison | I16: 6 | J16: MSFT | K16: Microsoft | N16: 5 | O16: MPO | P16: Midstates Petroleum | T16: RDS-B | U16: Shell Oil | X16: COKE | Y16: Coca Cola | AA16: S | AB16: Sprint | AG16: JPM | AH16: JP Morgan | AK16: Genworth | AL16: GWO.TO | AN16: 010140.KS | AO16: Samsung Heavy Industries | AS16: 601558.SS | AT16: Sinovel Wind: Chinese Wind Manufactrer | AY16: WIPRO.NS | BA16: Wipro, Ltd. | BD16: TKECF | BE16: Tepco | BH16: CSCO | BI16: Cisco | BL16: WEC | BM16: Wisconsin Electric | BO16: 015760.KS | BP16: Korea Electric Power
C17: 8 | D17: EOAN.DE | E17: EON | I17: 7 | J17: BBRY | K17: Blackberry | N17: 6 | O17: SHEL | P17: Shell Oil | T17: XOM | U17: Exxon Mobil | X17: K | Y17: Kellog | AA17: PHI | AB17: Philippine Long Distance (PHI) | AG17: MCD | AH17: McDonalds | AK17: Genworth ADR | AL17: GNW | AN17: BT | AO17: Brittish Telecom | AS17: SUZLON.NS | AT17: Suzlon: Indian Wind Manufacturer | AY17: DRREDDY.NS | BA17: Dr. Reddy's Laboratories | BD17: SO | BE17: Southern Companies | BH17: KO | BI17: Coca-Cola | BL17: ORSTED.CO | BM17: Orsted Denmark | BO17: ED | BP17: Consolidated Edison
C18: 9 | D18: 0HAH.IL | E18: FORTUM | I18: 8 | J18: HPQ | K18: HP | N18: 7 | O18: XOM | P18: Exxon Mobil | T18: CVX | U18: Chevron | X18: GIS | Y18: General Mills | AA18: TKC | AB18: Turkcell Iletisim Hizm... | AG18: WMT | AH18: Wall Mart | AK18: China Insurance Company | AL18: LFC | AN18: NOK | AO18: Nokia | AS18: 002202.SZ | AT18: Goldwind: Chinese Wind Manufacturer | AY18: WNS | BA18: WNS Holdings | BD18: EDF.PA | BE18: EDF | BH18: DIS | BI18: Disney | BL18: BYDDY | BM18: BYD Motors | BO18: EOAN.DE | BP18: EON
C19: 10 | D19: IBE.MC | E19: Ibederola | I19: 9 | J19: 005930.KS | K19: Samsung Electronics | N19: 8 | O19: CVX | P19: Chevron | T19: BECC | U19: Breitling Energy Corp. | X19: CAG | Y19: ConAgra | AA19: CHU | AB19: China Unicom Limited (ADR (CHU) | AG19: NEE | AH19: NEXTERA ENERGY INC USD | AK19: AIA Group | AL19: AAGIY | AN19: USM | AO19: US Cellular | AS19: RTJ.F | AT19: RE Power: Wind Manufacturer owned by Suzlon | AY19: SIFY | BA19: Sify Technologies | BD19: ENGI.PA | BE19: Engie | BH19: DWDP | BI19: E I du Pont de Nemours and Co | BL19: GM | BM19: General Motors | BO19: 0HAH.IL | BP19: FORTUM
C20: 11 | D20: SSE.L | E20: SSE PLC | I20: 10 | J20: 010140.KS | K20: Samsung Heavy Industries | N20: 9 | O20: TOT | P20: Total | T20: TOT | U20: Total | X20: HNZ | Y20: Heinz | AA20: CN | AB20: China Netcom Group Corp ( (CN) | AG20: ENEL.MI | AH20: ENEL EURO | AK20: China Pacific Insrance | AL20: 2601.HK | AN20: VOD | AO20: Vodaphone | AS20: MY | AT20: Ming Yang: Chinese Wind Manufacturer | AY20: REDFY | BA20: Rediff | BD20: NG.L | BE20: National Grid | BH20: XOM | BI20: Exxon Mobil | BL20: TM | BM20: Toyota | BO20: IBE.MC | BP20: Ibederola
C21: 12 | D21: EDPR.LS | E21: EDP Renovaveis S/A | I21: 11 | J21: BT | K21: Brittish Telecom | N21: 10 | O21: BP | P21: BP | T21: BP | U21: BP | X21: SLE | Y21: Sara Lee | AA21: CTL | AB21: CenturyTel, Inc. (CTL) | AG21: DUK | AH21: DUKE ENERGY CORPORATION USD | AK21: Aflac | AL21: AFL | AN21: S | AO21: Sprint | AS21: FSLR | AT21: First Solar (U.S.) | AY21: VEDL.NS | BA21: Vedanta | BD21: ENEL.MI | BE21: Enel | BH21: GE | BI21: General Electric | BL21: BMW.DE | BM21: BMW Motors | BO21: SSE.L | BP21: SSE PLC
C22: 13 | D22: FTS.TO | E22: FORTIS | I22: 12 | J22: NOK | K22: Nokia | N22: 11 | O22: GDP | P22: Goodrich Petroleum Corp. | T22: GDP | U22: Goodrich Petroleum Corp. | X22: SENEB | Y22: Seneca Foods Corp | AA22: DCM | AB22: NTT DoCoMo, Inc. (ADR) | AG22: D | AH22: DOMINION ENERGY INC USD | AK22: Dai-ichi Life Holdings Inc | AL22: DSNKY | AN22: CBB | AO22: Cincinnati Bell Inc. (CBB) | AS22: RECSOL.OL | AT22: REC: Solar Manufacturer Norway | AY22: AZRE | BA22: Azure | BD22: EOAN.DE | BE22: E.on | BH22: HD | BI22: Home Depot | BL22: WMT | BM22: Wall Mart | BO22: EDPR.LS | BP22: EDP Renovaveis S/A
C23: 14 | D23: 1038.HK | E23: CK Infrastructure | I23: 13 | J23: USM | K23: US Cellular | N23: 12 | O23: SN | P23: Sanchez Energy Corp. | T23: SN | U23: Sanchez Energy Corp. | X23: CZZ | Y23: Cosan LTD | AA23: NIHD | AB23: NII Holdings, Inc. (NIHD) | AG23: SO | AH23: SOUTHERN COMPANY (THE) USD | AK23: Old Mutual | AL23: ODMTY | AN23: JPM | AO23: JP Morgan | AS23: SPWR | AT23: SunPower Corporation (U.S.) | AY23: GRSXY | BA23: Grasim | BD23: EXC | BE23: Exelon | BH23: IBM | BI23: IBM | BL23: SD | BM23: Sandy Ridge | BO23: FTS.TO | BP23: FORTIS
C24: 15 | D24: ETR | E24: Entergy Corporation | I24: 14 | J24: VOD | K24: Vodaphone | N24: 14 | O24: CWEI | P24: Clayton Williams Energy Inc. | T24: CWEI | U24: Clayton Williams Energy Inc. | X24: JBSS | Y24: John B Snfillippo | AA24: NTT | AB24: Nippon Telegraph & Teleph (NTT) | AG24: IBE.MC | AH24: IBERDROLA EURO | AK24: Power Financial Corp | AL24: PWF.TO | AN24: MCD | AO24: McDonalds | AS24: TSL | AT24: Trina Solar Limited (China) | AY24: MTENY | BA24: Mahanagar | BD24: DTE | BE24: Detroit Edison | BH24: INTC | BI24: Intel | BL24: MPO | BM24: Midstates Petroleum | BO24: 1038.HK | BP24: CK Infrastructure
C25: 16 | D25: ENEL.MI | E25: ENEL | I25: 15 | J25: S | K25: Sprint | N25: 15 | O25: CPE | P25: Callon Petroleum Co. | T25: CPE | U25: Callon Petroleum Co. | X25: CMFP | Y25: China Marine | AA25: GNCMA | AB25: General Communication, In (GNCMA) | AG25: AEP | AH25: AMERICAN ELECTRIC POWER COMPANY INC USD | AK25: Lincoln National Corp | AL25: LNC | AN25: WMT | AO25: Wall Mart | AS25: SCTY | AT25: Solar City | AY25: MMYT | BA25: MakeMyTrip | BD25: AES | BE25: AES | BH25: JNJ | BI25: Johnson & Johnson | BL25: SHEL | BM25: Shell Oil | BO25: ETR | BP25: Entergy Corporation
C26: 17 | D26: DUK | E26: DUKE ENERGY CORPORATION | I26: 16 | J26: CBB | K26: Cincinnati Bell Inc. (CBB) | N26: 16 | O26: LPI | P26: Laredo Petroleum Co. | T26: LPI | U26: Laredo Petroleum Co. | X26: DF | Y26: Dean Foods | AA26: IIT | AB26: P.T. Indosat Tbk (ADR) (IIT) | AG26: EXC | AH26: EXELON CORPORATION USD | AK26: Principal Financial Group | AL26: PFG | AN26: NG.L | AO26: National Grid | AS26: SRWRY | AT26: SolarWorld (German Roof-top) | AY26: YTRA | BA26: Yatra | BD26: NRG | BE26: NRG Energy | BH26: MCD | BI26: McDonald's | BL26: XOM | BM26: Exxon Mobil | BO26: ENEL.MI | BP26: ENEL
C27: 18 | D27: D | E27: DOMINION ENERGY INC | I27: 17 | J27: JPM | K27: JP Morgan | N27: 17 | O27: OAS | P27: Oasis Petroleum Inc. | T27: OAS | U27: Oasis Petroleum Inc. | X27: DLM | Y27: Delmonte | AA27: JCOM | AB27: j2 Global Communications (JCOM) | AG27: NGG | AH27: NATIONAL GRID TRANSCO PLC GBP | AK27: Allianz | AL27: ALIZF | AN27: EXC | AO27: Exelon | AS27: ASTI | AT27: Ascent Solar Tech., Inc. | AY27: TCS.NS | BA27: TCS | BD27: PCG | BE27: PG&E | BH27: MRK | BI27: Merck | BL27: CVX | BM27: Chevron | BO27: DUK | BP27: DUKE ENERGY CORPORATION
C28: 19 | D28: SO | E28: SOUTHERN COMPANY (THE) | I28: 18 | J28: MCD | K28: McDonalds | N28: 18 | O28: SGY | P28: Stone Energy Corp. | T28: SGY | U28: Stone Energy Corp. | X28: LANC | Y28: Lancaster Colony | AA28: LEAP.OB | AB28: Leap Wireless Internation (LEAP.OB) | AG28: ENGI.PA | AH28: ENGIE EURO | AK28: Zurich Insurance Group | AL28: ZFSVF | AN28: ENGI.PA | AO28: GDF Suez | AS28: CSIQ | AT28: Canadian Solar | AY28: HDFCBANK.NS | BA28: HDFC Bank | BD28: RWE.DE | BE28: RWE | BH28: MSFT | BI28: Microsoft | BL28: KEP | BM28: KOREA ELECTRIC POWER | BO28: D | BP28: DOMINION ENERGY INC
C29: 20 | D29: ENGI.PA | E29: ENGIE | I29: 19 | J29: WMT | K29: Wall Mart | N29: 19 | O29: TPLM | P29: Triangle Petroleum Corp. | T29: TPLM | U29: Triangle Petroleum Corp. | X29: SJM | Y29: The JM Smucker Company | AA29: MBT | AB29: Mobile TeleSystems OJS... | AG29: DNNGY | AH29: ORSTED A/S USD | AK29: Swiss Life | AL29: SWSDF | AN29: EDF.PA | AO29: EDF | AS29: BR6.F | AT29: Bard (Germany) | AY29: HINDUNILVR.NS | BA29: HUL | BD29: MGEE | BE29: Madison Gas and Electric | BH29: NKE | BI29: Nike | BL29: ENGI.PA | BM29: Engie | BO29: SO | BP29: SOUTHERN COMPANY (THE)
C30: 21 | D30: AEP | E30: AMERICAN ELECTRIC POWER COMPANY INC | I30: 20 | J30: NG.L | K30: National Grid | N30: 20 | O30: EPE | P30: EP Energy Corp. Class A | T30: EPE | U30: EP Energy Corp. Class A | X30: SNAK | Y30: Inventure Foods | AA30: NZT | AB30: Telecom Corp of New Zeala (NZT) | AG30: EDF.PA | AH30: EDF (Electricite de France) EURO | AK30: Sun Life | AL30: SLF | AN30: ED | AO30: Consolidated Edison | AS30: HQCL | AT30: Q-Cells: German Solar Company | AY30: ITC.NS | BA30: ITC | BD30: WEC | BE30: Wisconsin Public Service | BH30: PFE | BI30: Pfizer | BL30: AES | BM30: AES | BO30: ENGI.PA | BP30: ENGIE
C31: 22 | D31: EXC | E31: EXELON CORPORATION | I31: 21 | J31: EXC | K31: Exelon | N31: 21 | O31: SWN | P31: Southwestern | T31: NBL | U31: Noble Energy | X31: FLO | Y31: Flowers Foods | AA31: PGI | AB31: Premiere Global Services (PGI) | AG31: ELE.MC | AH31: ENDESA SA EURO | AK31: AXA SA | AL31: AXAHY | AN31: 5347.KL | AO31: Tenaga | AS31: SGFRF | AT31: Solon: German Solar Manufacturer | AY31: HDFC.NS | BA31: HDFC | BD31: AEE | BE31: Ameren | BH31: PG | BI31: Procter & Gamble | BL31: NG.L | BM31: National Grid | BO31: AEP | BP31: AMERICAN ELECTRIC POWER COMPANY INC
C32: 23 | D32: NGG | E32: NATIONAL GRID TRANSCO PLC | I32: 22 | J32: ENGI.PA | K32: Engie | N32: 22 | O32: CXO | P32: Concho | T32: SWN | U32: Southwestern | X32: YMZBY | Y32: Yamazaki Baking Co. Ltd. (YMZBY) | AA32: PT | AB32: Portugal Telecom, SGPS (A (PT) | AG32: 0002.HK | AH32: CLP HOLDINGS HKD | AK32: Sumpo Holdings | AL32: SMPNY | AN32: MAEOY | AO32: Meralco | AS32: YGE | AT32: Yingili: Chinese Solar Manufacturer | AY32: INFY.NS | BA32: Infosys | BD32: CMS | BE32: CMS Energy | BL32: BN.PA | BM32: Dannone | BO32: EXC | BP32: EXELON CORPORATION
C33: 24 | D33: MAEOY | E33: MERALCO | I33: 23 | J33: EDF.PA | K33: EDF | N33: 23 | O33: CNX | P33: CNX | T33: CXO | U33: Concho | X33: WN.TO | Y33: George Weston Limited (WN.TO) | AA33: PTNR | AB33: Partner Communications Co (PTNR) | AG33: ES | AH33: EVERSOURCE ENERGY USD | AK33: Aegon NV | AL33: AEG | AN33: TATAPOWER.BO | AO33: TATA Power | AS33: JKS | AT33: Jinko Solar: Chinese Solar Manufacturer | AY33: SBIN.NS | BA33: SBI | BL33: PEP | BM33: Pepsi Co | BO33: NGG | BP33: NATIONAL GRID TRANSCO PLC
C34: 25 | D34: NTPC.NS | E34: NTPC | I34: 24 | J34: ED | K34: Consolidated Edison | N34: 24 | O34: COG | P34: COG | T34: CNX | U34: CNX | X34: TR | Y34: Tootsie Roll Industries Inc. (TR | AA34: CBB | AB34: Cincinnati Bell Inc. (CBB) | AG34: FE | AH34: FIRSTENERGY CORP USD | AK34: NN Group NV | AL34: NNGRY | AN34: AES | AO34: AES | AS34: 3576.TW | AT34: Neo Solar: Tawinese Solar Manufacturer | AY34: HTMEDIA.NS | BA34: HT Media | BL34: COKE | BM34: Coca Cola | BO34: MAEOY | BP34: MERALCO
C35: 26 | D35: ELE.MC | E35: ENDESA SA | I35: 25 | J35: TENA.KL | K35: Tenaga | N35: 30 | O35: CPE | P35: CPE | T35: COG | U35: COG | X35: DMND | Y35: Diamond Foods Inc | AA35: CHA | AB35: China Telecom Corporation (CHA) | AG35: PPL | AH35: PPL CORPORATION USD | AN35: ED | AO35: Consolidated Edison | AS35: LDKYQ | AT35: LDK Solar Co., Ltd (China) | BL35: K | BM35: Kellog | BO35: NTPC.NS | BP35: NTPC
C36: 27 | D36: PNM | E36: PNM Resources | I36: 26 | J36: MAEOY | K36: Meralco | N36: 25 | O36: CRZO | P36: CRZO | T36: CPE | U36: CPE | X36: C | Y36: Citibank | AA36: CHL | AB36: China Mobile (Hong Kong) (CHL) | AG36: EXI | AH36: EDISON INTERNATIONAL USD | AN36: KEP | AO36: Korean Electric Power | AS36: S92.DE | AT36: SMA Solar: Solar Inverter | BL36: GIS | BM36: General Mills | BO36: ELE.MC | BP36: ENDESA SA
C37: 28 | D37: TSLA | E37: Tesla | I37: 27 | J37: TATAPOWER.BO | K37: TATA Power | N37: 26 | O37: DVN | P37: Devon Energy | T37: CRZO | U37: CRZO | X37: JPM | Y37: JP Morgan Chase | AA37: CHT | AB37: Chung Hwa Telecom Co., Lt (CHT) | AG37: 5110.SR | AH37: SAUDI ELECTRICITY COMPANY SAR | AN37: NRG | AO37: NRG Energy | AS37: PWER | AT37: Power-one | BL37: TXNM | BM37: PNM Resources | BO37: PNM | BP37: PNM Resources
C38: 29 | D38: AAPL | E38: Apple | I38: 28 | J38: AES | K38: AES | N38: 27 | O38: ERF | P38: ERF | T38: DVN | U38: Devon Energy | X38: MSFT | Y38: Microsoft | AA38: SKM | AB38: SK Telecom Co., Ltd. (ADR (SKM) | AG38: DTE | AH38: DTE ENERGY COMPANY USD | AN38: ENER | AO38: Energy Conversion Devices | AS38: 3800.HK | AT38: GCL-Poly: Polysilicon in China | BL38: ED | BM38: Consolidated Edison | BO38: TSLA | BP38: Tesla
C39: 30 | D39: AMZN | E39: Amazon | I39: 29 | J39: ED | K39: Consolidated Edison | N39: 28 | O39: GDP | P39: Goodrich Energy | T39: ERF | U39: ERF | X39: NOK | Y39: Nokia | AA39: SNGNF.PK | AB39: Singapore Telecommunicati (SNGNF.PK) | AG39: ETR | AH39: ENTERGY CORPORATION USD | AN39: FOE | AO39: Ferro | AS39: WKCMF.PK | AT39: Wacker (Germany Polysilicon | BL39: ALE | BM39: ALLETE, Inc. | BO39: AAPL | BP39: Apple
C40: 31 | I40: 30 | J40: KEP | K40: Korean Electric Power | N40: 29 | O40: IDT | P40: IDT | T40: GDP | U40: Goodrich Energy | X40: VOD | Y40: Vodaphone | AA40: SSI | AB40: SpectraSite Inc. (SSI) | AG40: EOAN.DE | AH40: E.ON SE NA EURO | AN40: FSLR | AO40: First Solar | AS40: WFR | AT40: MEMC Electronic Materi... | BL40: LNT | BM40: Alliant Energy Corporation | BO40: AMZN | BP40: Amazon
C41: 32 | I41: 31 | J41: NRG | K41: NRG Energy | O41: LEI | P41: Lucas Energy Company | T41: IDT | U41: IDT | AA41: TDS | AB41: Telephone & Data Systems (TDS) | AG41: FORTUM.HE | AH41: FORTUM OYJ EURO | AN41: GIS | AO41: General Mills | AS41: DSTI | AT41: DayStar Technologies Inc. | BL41: DTE | BM41: DTE ENERGY COMPANY USD
C42: 33 | I42: 32 | J42: ENER | K42: Energy Conversion Devices | O42: NFG | P42: National Fuel Gas | T42: LEI | U42: Lucas Energy Company | AA42: TEF | AB42: Telefonica S.A. (ADR) | AG42: AEE | AH42: AMEREN CORPORATION USD | AN42: K | AO42: Kellogs | AS42: WTL.NZ | AT42: Windflow Technology Limited | BL42: NEE | BM42: NEXTERA ENERGY INC USD
C43: 34 | I43: 33 | J43: FOE | K43: Ferro | O43: NGS | P43: Natonal Gas Services | T43: NFG | U43: National Fuel Gas | AA43: TELNY | AB43: Telenor ASA (ADR) | AG43: 5347.KL | AH43: TENAGA NASIONAL BERHAD MYR | AN43: CAG | AO43: Conagra | AS43: IBE.MC | AT43: Iberdrola SA | BL43: ENEL.MI | BM43: ENEL EURO
C44: 35 | I44: 34 | J44: FSLR | K44: First Solar | O44: PQ | P44: Petroquest Energy | T44: NGS | U44: Natonal Gas Services | AA44: TI | AB44: Telecom Italia S.p.A. (AD (TI) | AG44: FTS | AH44: FORTIS INC USD | AN44: CCE | AO44: Coca Cola | AS44: FRS.MC | AT44: Fersa Energias Renovables, S.A. | BL44: DUK | BM44: DUKE ENERGY CORPORATION USD
C45: 36 | J45: GIS | K45: General Mills | O45: PXD | P45: Pioneer Energy | T45: PQ | U45: Petroquest Energy | AA45: TLK | AB45: PT Telekomunikasi Indones (TLK) | AG45: CMS | AH45: CMS ENERGY CORPORATION USD | AN45: PEP | AO45: Pepsico | AS45: ANA.MC | AT45: Acciona,S.A. | BL45: D | BM45: DOMINION ENERGY INC USD
C46: 37 | J46: K | K46: Kellogs | O46: REXX | P46: Rex Energy Company | T46: PXD | U46: Pioneer Energy | AA46: TNE | AB46: Tele Norte Leste Particip (TNE) | AG46: NTPC.NS | AH46: NTPC LTD. INR | AN46: MSI | AO46: Motarola | AS46: AYO.DE | AT46: Abengoa S | BL46: SO | BM46: SOUTHERN COMPANY (THE) USD
C47: 38 | J47: CAG | K47: Conagra | O47: UNT | P47: UNT | T47: REXX | U47: Rex Energy Company | AA47: USM | AB47: United States Cellular Co (USM) | AG47: SSE.L | AH47: SSE PLC GBP | AN47: NYT | AO47: New York Times | AS47: AWNE.PK | AT47: Americas Wind Energy Corporation | BL47: IBE.MC | BM47: IBERDROLA EURO
C48: 39 | J48: CCE | K48: Coca Cola | O48: TPLM | P48: Triangle Petroleum Corporation | T48: UNT | U48: UNT | AA48: USMO | AB48: USA Mobility, Inc. (USMO) | AG48: JXHGF | AH48: JXTG HOLDINGS,INC. USD | AN48: 066570.KS | AO48: LG Electronics | AS48: 300129.SZ | AT48: Shanghai Taisheng Wind Power | BL48: AEE | BM48: Ameren Corporation
C49: 40 | J49: PEP | K49: Pepsico | O49: AR | P49: Antero | T49: TPLM | U49: Triangle Petroleum Corporation | AA49: UTSI | AB49: UTStarcom, Inc. (UTSI) | AG49: KEP | AH49: KOREA ELECTRIC POWER | AN49: CARL-B.CO | AO49: Carlesberg | AS49: SUNE | AT49: Sun Edison (Bankrupt Developer) | BL49: EXC | BM49: Excelon
C50: 41 | J50: MSI | K50: Motarola | O50: LNG | P50: Cheniere Energy | T50: AR | U50: Antero | AA50: VIP | AB50: Vimpel-Communications (AD (VIP) | AG50: 0006.HK | AH50: POWER ASSETS USD | AN50: BUD | AO50: Anheuser-Busch Inbev SA (USD) | AS50: HASI | AT50: Hannanon Armstrong (Yieldco) | BL50: GE | BM50: General Electric
C51: 42 | J51: NYT | K51: New York Times | O51: ROSE | P51: Rosetta Resources | T51: LNG | U51: Cheniere Energy | AA51: T | AB51: AT&T | AG51: AGR | AH51: AVANGRID INC USD | AN51: ABEV | AO51: Ambev SA (USD,BRL) | AS51: NYLD | AT51: NRG Yield (Yieldco) | BL51: BKNG | BM51: Priceline
C52: 43 | J52: 066570.KS | K52: LG Electronics | T52: 4K2.F | U52: Kodiak Oil and Gas | AA52: AT | AB52: Alltel Corporation (AT) | AG52: EDP.LS | AH52: EDP - ENERGIAS DE PORTUGAL, S.A EURO | AN52: TAP | AO52: Molson Coors Brewing Company | AS52: RNW.TO | AT52: TransAlta Renewables (Yieldco) | BL52: PYPL | BM52: Paypal
C53: 44 | J53: CARL-B.CO | K53: Carlesberg | T53: ROSE | U53: Rosetta Resources | AA53: BCE | AB53: BCE Inc. (USA) (BCE) | AG53: 0270.HK | AH53: GUANGDONG INVESTMENT HKD | AN53: STBFY | AO53: Suntory Beverage & Food Limited | AS53: PEGI | AT53: Pattern Energy Group (Yieldco) | BL53: CSIQ | BM53: Canadian Solar
C54: 45 | J54: BUD | K54: Anheuser-Busch Inbev SA (USD) | T54: MHR | U54: Magmum Hunter | AG54: CPN | AH54: CENTERPOINT ENERGY INC USD | AN54: SAM | AO54: Boston Beer | AS54: BEP | AT54: BEP (Yieldco) | BL54: FSLR | BM54: First Solar
C55: 46 | J55: ABEV | K55: Ambev SA (USD,BRL) | AG55: ENIA | AH55: ENEL AMERICAS S.A. USD | AN55: STZ | AO55: Constellation Brands | AS55: ABY | AT55: Abengoa Yield (Yieldco) | BL55: BA | BM55: Boeing
C56: 47 | J56: TAP | K56: Molson Coors Brewing Company | AG56: POWERGRID.NS | AH56: POWER GRID CORPORATION OF INDIA LTD. INR | AN56: BREW | AO56: Craft Brew Alliance | AS56: NEP | AT56: NextEra Partners (Yieldco) | BL56: AIR.PA | BM56: Airbus
C57: 48 | J57: STBFY | K57: Suntory Beverage & Food Limited | AG57: TRN.MI | AH57: TERNA - RETE ELETTRICA NAZIONALE EURO | AN57: WVVI | AO57: Willamett Valley | AS57: TERP | AT57: TerraForm Power (Yieldco) | BL57: LMT | BM57: Lockeed Martin
C58: 49 | J58: SAM | K58: Boston Beer | AG58: VST | AH58: VISTRA ENERGY CORP USD | AN58: KOF | AO58: Coca Cola | AS58: CAFD | AT58: 8point3 (Yieldco) | BL58: AM.PA | BM58: Dassault Aviation
C59: 50 | J59: STZ | K59: Constellation Brands | AG59: EBK.F | AH59: ENBW ENERGIE BAD.-WUE. ON EURO | AN59: COKE | AO59: Coca Cola Botteling | AS59: CMW.V | AT59: China Windpower Group Limited | BL59: ECL | BM59: Eco Lab
C60: 51 | J60: BREW | K60: Craft Brew Alliance | AG60: ELET6.SA | AH60: CENTRAIS ELECTRICAS BRASILEIRAS S.A.- ELETROBRAS BRL | AN60: DPS | AO60: Dr Pepper | AS60: APWR | AT60: A Power - Chinese Wind
C61: 52 | J61: WVVI | K61: Willamett Valley | AG61: CEZ.F | AH61: CEZ GROUP EURO | AN61: LTEA | AO61: Long Island Tea | AS61: AS1.DU | AT61: Alero Solar (Germany)
C62: 53 | J62: KOF | K62: Coca Cola | AG62: AES | AH62: THE AES CORPORATION USD | AN62: PEP | AO62: Pepsi Co | AS62: ENER | AT62: Energy Conversion
C63: 54 | J63: COKE | K63: Coca Cola Botteling | AG63: UN01.DE | AH63: UNIPER SE NA. EURO | AN63: HEINY | AO63: Heineken | AS63: STPFQ | AT63: Suntech Power Hldgs. China
C64: 55 | J64: DPS | K64: Dr Pepper | AG64: CHUEF | AH64: CHUBU ELECTRIC POWER COMPANY USD | AN64: FMOCY | AO64: Fomento Economico Mexicano SAB de CV (USD,MXN)
C65: 56 | J65: LTEA | K65: Long Island Tea | AG65: KAEPY | AH65: THE KANSAI ELECTRIC POWER COMPANY USD | AN65: KNBWY | AO65: Kirin Holdings Company, Limited
C66: 57 | J66: PEP | K66: Pepsi Co | AG66: NRG | AH66: NRG ENERGY INC USD | AN66: TSGTF | AO66: Tsingtao Brewery Company Limited
C67: 58 | J67: HEINY | K67: Heineken | AG67: NI | AH67: NISOURCE INC USD | AN67: DEO | AO67: Diageo
C68: 59 | J68: FMOCY | K68: Fomento Economico Mexicano SAB de CV (USD,MXN) | AG68: PNW | AH68: PINNACLE WEST CAPITAL CORPORATION USD | AN68: CHK | AO68: Cheasapeak Energy
C69: 60 | J69: KNBWY | K69: Kirin Holdings Company, Limited | AG69: ORG.AX | AH69: ORIGIN ENERGY AUD | AN69: RRC | AO69: Range Resources
C70: 61 | J70: TSGTF | K70: Tsingtao Brewery Company Limited | AG70: 601669.SS | AH70: CN POWER CONSTRU CNY | AN70: CLR | AO70: Contential Resources
C71: 62 | J71: DEO | K71: Diageo | AG71: AGL.AX | AH71: AGL ENERGY LIMITED AUD | AN71: SD | AO71: Sandy Ridge
C72: 63 | J72: CHK | K72: Cheasapeak Energy | AG72: CPFE3.SA | AH72: CPFL ENERGIA S.A. BRL | AN72: CAT | AO72: Catepillar
C73: 64 | J73: RRC | K73: Range Resources | AG73: OGE | AH73: OGE ENERGY CORPORATION USD | AN73: ECL | AO73: Eco Lab
C74: 65 | J74: CLR | K74: Contential Resources | AG74: CU.TO | AH74: CANADIAN UTILITIES LIMITED CAD | AN74: MFIN | AO74: Medallion Financial Corp.
C75: 66 | J75: SD | K75: Sandy Ridge | AG75: BEP | AH75: BROOKFIELD RENEWABLE PARTNERS L.P. USD | AN75: PYPL | AO75: Paypal
C76: 67 | J76: CAT | K76: Catepillar | AG76: HNP | AH76: HUANENG POWER INTERNATIONAL INC USD | AN76: PCLN | AO76: Priceline
C77: 68 | J77: ECL | K77: Eco Lab | AG77: TKECY | AH77: TOKYO ELECTRIC POWER COMPANY HOLDINGS USD | AN77: EBAY | AO77: Ebay
C78: 69 | J78: MFIN | K78: Medallion Financial Corp. | AG78: AQN | AH78: ALGONQUIN POWER & UTILITIES CORP USD | AN78: LGEN.L | AO78: L&G
C79: 70 | J79: PYPL | K79: Paypal | AG79: MDU | AH79: MDU RESOURCES GROUP INC USD | AN79: LGGNY | AO79: L&G ADR
C80: 71 | J80: BKNG | K80: Priceline | AG80: ELI.BR | AH80: ELIA EURO | AN80: MET | AO80: Met Life
C81: 72 | J81: EBAY | K81: Ebay | AG81: ENELCHILE.SN | AH81: ENEL CHILE S.A. CLP | AN81: AIG | AO81: AIG
C82: 73 | J82: BYDDY | K82: BYD | AG82: IDA | AH82: IDACORP INC USD | AN82: PRU | AO82: Prudential
C83: 74 | J83: YGE | K83: Yingili | AG83: POR | AH83: PORTLAND GENERAL ELECTRIC COMPANY USD | AN83: GWO.TO | AO83: Genworth
C84: 75 | J84: JKS | K84: Jinko Solar | AG84: QEWS.QA | AH84: QATAR ELECTRICITY AND WATER COMPANY QAR | AN84: GNW | AO84: Genworth ADR
C85: 76 | J85: 3576.TW | K85: Neo Solar | AG85: AST.AX | AH85: AUSNET SERVICES LIMITED AUD | AN85: LFC | AO85: China Insurance Company
C86: 77 | J86: LDKYQ | K86: LDK Solar Co | AG86: HE | AH86: HAWAIIAN ELECTRIC INDUSTRIES INC USD | AN86: AAGIY | AO86: AIA Group
C87: 78 | J87: S92.DE | K87: SMA Solar | AG87: CIG | AH87: COMP EN DE MN CEMIG ADS USD | AN87: 2601.HK | AO87: China Pacific Insrance
C88: 79 | AG88: BKH | AH88: BLACK HILLS CORPORATION USD | AN88: AFL | AO88: Aflac
C89: 80 | AG89: ACO-X.TO | AH89: ATCO LTD. CAD | AN89: DSNKY | AO89: Dai-ichi Life Holdings Inc
C90: 81 | AG90: ORA | AH90: ORMAT TECHNOLOGIES INC USD | AN90: ODMTY | AO90: Old Mutual
C91: 82 | AG91: ELP | AH91: COMPANHIA PARANAENSE DE ENERGIA (COPEL) USD | AN91: PWF.TO | AO91: Power Financial Corp
C92: 83 | AG92: PNM | AH92: PNM RESOURCES INC (HOLDING CO.) USD | AN92: LNC | AO92: Lincoln National Corp
C93: 84 | AG93: TERP | AH93: TERRAFORM POWER INC USD | AN93: PFG | AO93: Principal Financial Group
C94: 85 | D94: Stock_Ticker | E94: Stock_Sheet_Name | AG94: RSTI.ME | AH94: ROSSETI RUB | AN94: ALIZF | AO94: Allianz
C95: 86 | AG95: PCG | AH95: PACIFIC GAS & ELECTRIC CO. USD | AN95: ZFSVF | AO95: Zurich Insurance Group
C96: 87 | AG96: NEP | AH96: NEXTERA ENERGY PARTNERS LP USD | AN96: SWSDF | AO96: Swiss Life
C97: 88
C98: 89
C99: 90
C100: 91
C101: 92
C102: 93
C103: 94
C104: 95
C105: 96
C106: 97
C107: 98
C108: 99
C109: 100
C110: 101
C111: 102
C112: 103
C113: 104
C114: 105
C115: 106
C116: 107
C117: 108
C118: 109
C119: 110
C120: 111
C121: 112
C122: 113
C123: 114
C124: 115
C125: 116
C126: 117
C127: 118
C128: 119
C129: 120
C130: 121
C131: 122
C132: 123
C133: 124
C134: 125
C135: 126
C136: 127
C137: 128
C138: 129
C139: 130
C140: 131
C141: 132
C142: 133
C143: 134
C144: 135
C145: 136
C146: 137
C147: 138
C148: 139
C149: 140
C150: 141
C151: 142
C152: 143
C153: 144
C154: 145
C155: 146
C156: 147
C157: 148
C158: 149
C159: 150
C160: 151
C161: 152
C162: 153
C163: 154
C164: 155
C165: 156
C166: 157
C167: 158
C168: 159
C169: 160
C170: 161
C171: 162
C172: 163
C173: 164
C174: 165
C175: 166
C176: 167
C177: 168
C178: 169
C179: 170
C180: 171
C181: 172
C182: 173
C183: 174
C184: 175
C185: 176
C186: 177
C187: 178
C188: 179
C189: 180
C190: 181
C191: 182
C192: 183
C193: 184
C194: 185
C195: 186
C196: 187
C197: 188
C198: 189
C199: 190
C200: 191
C201: 192
... 35 more rows

Sheet FRED Series
M6: Flag for
C7: FRED Counter | D7: 32 | M7: Creating
C8: Total FRED Codes | D8: =COUNTA(E16:E151) -> 32 | M8: Index | P8: FRED Code | R8: Title from FRED Series
C10: Fred Code | D10: Sheet Name | E10: FRED Description | H10: Convert Rate to Index
C12: =INDEX(C16:C168,$D$7) -> PCAGDPCNA646NWDB | D12: =INDEX(D16:D168,$D$7) -> GDP Per Capital China | E12: =INDEX(E16:E168,$D$7) -> Gross Domestic Product Per Capita for China (PCAGDPCNA646NWDB) | H12: =INDEX(H16:H168,$D$7) -> FALSE
A14: Inflation, Exchange Rate and Economic Series from FRED
M15: Create Index
C16: =AD16 -> GDPDEF | D16: =AE16 -> GDP Inf | E16: =AF16 -> Implicit Price Deflator | H16: FALSE | J16: Deflator/Index: Divide | M16: FALSE | N16: =FIND("(",R16,1) -> 35 | O16: =FIND(")",R16,1) -> 42 | P16: =MID(R16,N16+1,O16-N16-1) -> EXUSEU | Q16: Euro | R16: U.S. / Euro Foreign Exchange Rate (EXUSEU) | AD16: GDPDEF | AE16: GDP Inf | AF16: Implicit Price Deflator
C17: =AD17 -> CPIAUCSL | D17: =AE17 -> CPI US | E17: =AF17 -> Consumer Price Inflation | H17: FALSE | J17: Deflator/Index: Divide | M17: FALSE | N17: =FIND("(",R17,1) -> 35 | O17: =FIND(")",R17,1) -> 42 | P17: =MID(R17,N17+1,O17-N17-1) -> EXUSUK | Q17: UK | R17: U.S. / U.K. Foreign Exchange Rate (EXUSUK) | AD17: CPIAUCSL | AE17: CPI US | AF17: Consumer Price Inflation
C18: =P172 -> CCUSMA02EZM618N | D18: Euro | E18: U.S. / Euro Foreign Exchange Rate (EXUSEU) | H18: FALSE | J18: Deflator/Index: Divide | M18: FALSE | N18: 62 | O18: 78 | P18: CCUSSP01SEQ650N | Q18: SEK | R18: US Dollar to National Currency Spot Exchange Rate for Sweden (CCUSSP01SEQ650N) | AD18: EXUSEU | AE18: Euro | AF18: U.S. / Euro Foreign Exchange Rate (EXUSEU)
C19: DEXINUS | D19: INR | E19: India / U.S. Foreign Exchange Rate (DEXINUS) | H19: FALSE | J19: Deflator/Index: Multiply | M19: FALSE | N19: 37 | O19: 45 | P19: DEXNOUS | Q19: NOK | R19: Norway / U.S. Foreign Exchange Rate (DEXNOUS) | AD19: DEXINUS | AE19: INR | AF19: India / U.S. Foreign Exchange Rate (DEXINUS)
C20: EXUSUK | D20: UK | E20: U.S. / U.K. Foreign Exchange Rate (EXUSUK) | H20: FALSE | J20: Deflator/Index: Multiply | M20: FALSE | N20: 42 | O20: 50 | P20: DEXSZUS | Q20: CFH | R20: Switzerland / U.S. Foreign Exchange Rate (DEXSZUS) | AD20: EXUSUK | AE20: UK | AF20: U.S. / U.K. Foreign Exchange Rate (EXUSUK)
C21: XRNCUSPKA618NRUG | D21: PKR | E21: Pakistan Exchange Rate | H21: FALSE | J21: Deflator/Index: Multiply | M21: FALSE | N21: 74 | O21: 90 | P21: CCUSSP01CZM650N | Q21: CZX | R21: US Dollar to National Currency Spot Exchange Rate for the Czech Republic (CCUSSP01CZM650N) | AD21: DEXSZUS | AE21: CFH | AF21: Switzerland / U.S. Foreign Exchange Rate (DEXSZUS)
C22: GNP | D22: US NOM GNP | E22: Gross National Product (GNP) | H22: FALSE | M22: FALSE | N22: 41 | O22: 58 | P22: FXRATERUA618NUPN | Q22: RUB | R22: Exchange Rate to U.S. Dollar for Russia (FXRATERUA618NUPN) | AD22: GNP | AE22: US NOM GNP | AF22: Gross National Product (GNP)
C23: =P72 -> GS5 | D23: 5 yr treasury | E23: =R72 -> 5-Year Treasury Constant Maturity Rate (GS5) | H23: =M72 -> TRUE | M23: FALSE | N23: 61 | O23: 77 | P23: CCUSSP01JPM650N | Q23: JPY | R23: US Dollar to National Currency Spot Exchange Rate for Japan (CCUSSP01JPM650N)
C24: =P73 -> GS10 | D24: 10 year treasury | E24: =R73 -> 10-Year Treasury Constant Maturity Rate (GS10) | H24: =M73 -> TRUE | M24: FALSE | N24: 40 | O24: 48 | P24: DEXHKUS | Q24: HKD | R24: Hong Kong / U.S. Foreign Exchange Rate (DEXHKUS)
C25: =P60 -> MEHOINUSA646N | D25: US Med Inc Nom | E25: Median Household Income in the United States (MEHOINUSA646N) | H25: FALSE | M25: FALSE | N25: 40 | O25: 48 | P25: DEXSIUS | Q25: SGD | R25: Singapore / U.S. Foreign Exchange Rate (DEXSIUS)
C26: LES1252881600Q | D26: Median Income | E26: Employed full time: Median usual weekly real earnings: d over (LES1252881600Q) | H26: FALSE | M26: FALSE | N26: 40 | O26: 47 | P26: EXUSAL | Q26: AUD | R26: U.S. / Australia Foreign Exchange Rate (EXUSAL)
C27: =P78 -> CP | D27: =Q78 -> Corp Profit | E27: =R78 -> Corporate Profits | H27: FALSE | M27: FALSE | N27: 36 | O27: 44 | P27: DEXINUS | Q27: INR | R27: India / U.S. Foreign Exchange Rate (DEXINUS)
C28: =P81 -> NFCPATAX | D28: =Q81 -> Corp Nonfin | E28: =R81 -> Non Financial Corporate Profits | H28: FALSE | M28: FALSE | N28: 65 | O28: 81 | P28: CCUSSP02IDQ650N | Q28: IDR | R28: National Currency to US Dollar Spot Exchange Rate for Indonesia (CCUSSP02IDQ650N)
C29: =P86 -> A055RC0A144NBEA | D29: Corp Aft Tax | E29: Corporate Profits After Tax | H29: FALSE | M29: FALSE | N29: 39 | O29: 47 | P29: DEXMAUS | Q29: MYR | R29: Malaysia / U.S. Foreign Exchange Rate (DEXMAUS)
C30: A445RC1Q027SBEA | D30: Corp Inf Adjusted | E30: Corporate Profits with Inflation Adj | H30: FALSE | M30: FALSE | N30: 42 | O30: 50 | P30: DEXUSNZ | Q30: NZD | R30: U.S. / New Zealand Foreign Exchange Rate (DEXUSNZ)
C31: =C16 -> GDPDEF | D31: GDP Inflation Index | E31: =D31 -> GDP Inflation Index | H31: TRUE | M31: FALSE | N31: 42 | O31: 49 | P31: EXKOUS | Q31: KWR | R31: South Korea / U.S. Foreign Exchange Rate (EXKOUS)
C32: =C17 -> CPIAUCSL | D32: CPI US Index | E32: =D32 -> CPI US Index | H32: TRUE | M32: FALSE | N32: 37 | O32: 45 | P32: DEXTAUS | Q32: TWII | R32: Taiwan / U.S. Foreign Exchange Rate (DEXTAUS)
C33: =P67 -> GDP | D33: =Q67 -> US GDP | E33: =R67 -> US GDP Gross Domestic Product (GDP) | H33: FALSE | M33: FALSE | N33: 61 | O33: 77 | P33: CCUSSP02CNQ650N | Q33: Yuan | R33: National Currency to US Dollar Spot Exchange Rate for China (CCUSSP02CNQ650N)
C34: =P74 -> MEFAINUSA646N | D34: =Q74 -> Median Family Income | E34: =R74 -> Median Family Income in the United States (MEFAINUSA646N) | H34: FALSE | M34: FALSE | N34: 45 | O34: 53 | P34: NBXMBIS | Q34: Euro 1 | R34: Broad Effective Exchange Rate for Euro Area (NBXMBIS)
C35: GDPC1 | D35: US Real GDP | E35: Real Gross Domestic Product (GDPC1) | H35: FALSE | M35: FALSE | N35: 40 | O35: 57 | P35: FXRATEGHA618NUPN | Q35: GHS | R35: Exchange Rate to U.S. Dollar for Ghana (FXRATEGHA618NUPN)
C36: GNPC96 | D36: US Real GNP | E36: Real Gross National Product (GNPC96) | H36: FALSE | M36: FALSE | N36: 81 | O36: 97 | P36: CCUSMA02FRM618N | Q36: France | R36: National Currency to US Dollar Exchange Rate: Average of Daily Rates for France (CCUSMA02FRM618N)
C37: LB0000091Q020SBEA | D37: GDP GDI | E37: Real Average of GDP and GDI (LB0000091Q020SBEA) | H37: FALSE | M37: FALSE | N37: =FIND("(",R37,1) -> 63 | O37: =FIND(")",R37,1) -> 79 | P37: =MID(R37,N37+1,O37-N37-1) -> CCUSSP01DEM650N | Q37: Germany | R37: US Dollar to National Currency Spot Exchange Rate for Germany (CCUSSP01DEM650N)
C38: =P94 -> DCOILBRENTEU | D38: =Q94 -> Crude Oil Price | E38: Crude Oil Prices: Brent - Europe (DCOILBRENTEU) | H38: FALSE | M38: TRUE | N38: =FIND("(",R38,1) -> 66 | O38: =FIND(")",R38,1) -> 80 | P38: =MID(R38,N38+1,O38-N38-1) -> INTGSTMXM193N | Q38: Mex Int | R38: Interest Rates, Government Securities, Treasury Bills for Mexico (INTGSTMXM193N)
C39: =P96 -> GOLDAMGBD228NLBM | D39: =Q96 -> Gold Fixing Pr | E39: Gold Fixing Price 10:30 A.M. London time in London Bullion Market, based in U.S. Dollars (GOLDAMGBD228NLBM) | H39: FALSE | M39: TRUE | N39: =FIND("(",R39,1) -> 80 | O39: =FIND(")",R39,1) -> 96 | P39: =MID(R39,N39+1,O39-N39-1) -> IRLTLT01MXM156N | Q39: Mex Bnd | R39: Long-Term Government Bond Yields: 10-year: Main Including Benchmark for Mexico (IRLTLT01MXM156N)
C40: =P97 -> MHHNGSP | D40: =Q97 -> Henry Hub Natur | E40: =R97 -> Henry Hub Natural Gas Spot Price (MHHNGSP) | H40: FALSE | M40: FALSE | N40: 81 | O40: 97 | P40: CPGRLE01MXM659N | Q40: Mex CP! | R40: Consumer Price Index: OECD Groups: All Items Non-Food and Non-Energy for Mexico (CPGRLE01MXM659N)
C41: =P111 -> PNGASJPUSDM | D41: =Q111 -> LNG, Asia (PNG | E41: Global price of LNG, Asia (PNGASJPUSDM) | H41: FALSE | M41: FALSE | N41: 81 | O41: 97 | P41: CPGRLE01MXM657N | Q41: Mex CPI 1 | R41: Consumer Price Index: OECD Groups: All Items Non-Food and Non-Energy for Mexico (CPGRLE01MXM657N)
C42: =P100 -> PNGASEUUSDM | D42: EU Natural Gas | E42: =R100 -> Global price of Natural gas, EU (PNGASEUUSDM) | H42: FALSE | M42: FALSE | N42: 37 | O42: 44 | P42: EXMXUS | Q42: Mex exch | R42: Mexico / U.S. Foreign Exchange Rate (EXMXUS)
C43: =P101 -> PURANUSDM | D43: =Q101 -> Uranium (PURAN | E43: Global price of Uranium (PURANUSDM) | H43: FALSE | M43: FALSE | N43: 67 | O43: 83 | P43: IR3TIB01IDQ156N | Q43: INDO Int | R43: 3-Month or 90-day Rates and Yields: Interbank Rates for Indonesia (IR3TIB01IDQ156N)
C44: =P168 -> PCAGDPFRA646NWDB | D44: =Q168 -> GDP Per Capital France | E44: Gross Domestic Product Per Capita for France (PCAGDPFRA646NWDB) | H44: FALSE | M44: FALSE | N44: 45 | O44: 59 | P44: INTDSRIDM193N | Q44: INDO Int1 | R44: Interest Rates, Discount Rate for Indonesia (INTDSRIDM193N)
C45: =P169 -> PCAGDPDEA646NWDB | D45: GDP Per Capital Germany | E45: Gross Domestic Product Per Capita for Germany (PCAGDPDEA646NWDB) | H45: FALSE | M45: FALSE | N45: 42 | O45: 57 | P45: FPCPITOTLZGIDN | Q45: INDO Inf | R45: Inflation, consumer prices for Indonesia (FPCPITOTLZGIDN)
C46: A939RC0Q052SBEA | D46: GDP Per Capital US | E46: Gross domestic product per capita (A939RC0Q052SBEA) | H46: FALSE | M46: FALSE | N46: 65 | O46: 81 | P46: CCUSSP02IDM650N | Q46: INDO Exch | R46: National Currency to US Dollar Spot Exchange Rate for Indonesia (CCUSSP02IDM650N)
C47: PCAGDPCNA646NWDB | D47: GDP Per Capital China | E47: Gross Domestic Product Per Capita for China (PCAGDPCNA646NWDB) | H47: FALSE | M47: FALSE | N47: 43 | O47: 59 | P47: INDCPIALLMINMEI | Q47: IND CPI | R47: Consumer Price Index: All Items for India (INDCPIALLMINMEI)
M48: FALSE | N48: =FIND("(",R48,1) -> 57 | O48: =FIND(")",R48,1) -> 66 | P48: CPIAUCSL | Q48: US CPI | R48: Consumer Price Index for All Urban Consumers: All Items (CPIAUCSL)
M49: FALSE | N49: 30 | O49: 34 | P49: GDI | Q49: US GDI | R49: US GDI Gross Domestic Income (GDI)
M50: FALSE | N50: 29 | O50: 35 | P50: GDPC1 | Q50: US Real GDP | R50: Real Gross Domestic Product (GDPC1)
M51: FALSE | N51: 29 | O51: 35 | P51: GDPCA | Q51: US Real GDP A | R51: Real Gross Domestic Product (GDPCA)
M52: FALSE | N52: 24 | O52: 29 | P52: GDPA | Q52: US GDP | R52: Gross Domestic Product (GDPA)
M53: FALSE | N53: 40 | O53: 56 | P53: A939RX0Q048SBEA | Q53: US REAL GDP CAP | R53: Real gross domestic product per capita (A939RX0Q048SBEA)
M54: FALSE | N54: 24 | O54: 28 | P54: GNP | Q54: US NOM GNP | R54: Gross National Product (GNP)
M55: FALSE | N55: 42 | O55: 50 | P55: NGDPPOT | Q55: US NOM GDP | R55: Nominal Potential Gross Domestic Product (NGDPPOT)
M56: FALSE | N56: 35 | O56: 51 | P56: A939RC0Q052SBEA | Q56: US GDP CAP | R56: Gross domestic product per capita (A939RC0Q052SBEA)
M57: FALSE | N57: 35 | O57: 51 | P57: A791RC0Q052SBEA | Q57: US GNP CAP | R57: Gross national product per capita (A791RC0Q052SBEA)
M58: FALSE | N58: 23 | O58: 39 | P58: A023RC1Q027SBEA | Q58: US GNI | R58: Gross national income (A023RC1Q027SBEA)
M59: FALSE | N59: =FIND("(",R59,1) -> 51 | O59: =FIND(")",R59,1) -> 65 | P59: =MID(R59,N59+1,O59-N59-1) -> MEHOINUSA672N | Q59: Real Median Income | R59: Real Median Household Income in the United States (MEHOINUSA672N)
M60: FALSE | N60: 46 | O60: 60 | P60: MEHOINUSA646N | Q60: US Med Inc Nom | R60: Median Household Income in the United States (MEHOINUSA646N)
M61: FALSE | N61: 63 | O61: 78 | P61: LES1252881600Q | Q61: Median Income | R61: Employed full time: Median usual weekly real earnings: d over (LES1252881600Q)
M62: FALSE | N62: 117 | O62: 132 | P62: LEU0252881500Q | Q62: Median Income 1 | R62: Employed full time: Median usual weekly nominal earnings second quartile Wage and salary workers: 16 years and over (LEU0252881500Q)
M63: FALSE | N63: 74 | O63: 90 | P63: N3291C0A144NBEA | Q63: Insurance | R63: Corporate profits after tax: Domestic industries: Finance and insurance (N3291C0A144NBEA)
M64: FALSE | N64: 37 | O64: 54 | P64: POPTOTUSA647NWDB | Q64: US Population | R64: Population, Total for United States (POPTOTUSA647NWDB)
M65: FALSE | N65: =FIND("(",R65,1) -> 30 | O65: =FIND(")",R65,1) -> 43 | P65: =MID(R65,N65+1,O65-N65-1) -> SPPOPTOTLWLD | Q65: World Population | R65: Population, Total for World (SPPOPTOTLWLD)
M66: FALSE | N66: =FIND("(",R66,1) -> 35 | O66: =FIND(")",R66,1) -> 39 | P66: =MID(R66,N66+1,O66-N66-1) -> PCE | Q66: Consumption | R66: Personal Consumption Expenditures (PCE)
M67: FALSE | N67: =FIND("(",R67,1) -> 31 | O67: =FIND(")",R67,1) -> 35 | P67: =MID(R67,N67+1,O67-N67-1) -> GDP | Q67: US GDP | R67: US GDP Gross Domestic Product (GDP)
M68: TRUE | N68: =FIND("(",R68,1) -> 41 | O68: =FIND(")",R68,1) -> 55 | P68: =MID(R68,N68+1,O68-N68-1) -> INTDSRINM193N | Q68: India Disc Rate | R68: Interest Rates, Discount Rate for India (INTDSRINM193N)
M69: TRUE | N69: =FIND("(",R69,1) -> 68 | O69: =FIND(")",R69,1) -> 82 | P69: =MID(R69,N69+1,O69-N69-1) -> INTGSBINM193N | Q69: India Gvt Bonds | R69: Interest Rates, Government Securities, Government Bonds for India (INTGSBINM193N)
M70: TRUE | N70: =FIND("(",R70,1) -> 96 | O70: =FIND(")",R70,1) -> 111 | P70: =MID(R70,N70+1,O70-N70-1) -> INDIRLTLT01STM | Q70: India 10 Yr Main | R70: Interest Rates: Long-term government bond yields: 10-year: Main including benchmark for India (INDIRLTLT01STM)
M71: TRUE | N71: =FIND("(",R71,1) -> 49 | O71: =FIND(")",R71,1) -> 65 | P71: =MID(R71,N71+1,O71-N71-1) -> CPALTT01INM659N | Q71: India Inflation | R71: Consumer Price Index: Total All Items for India (CPALTT01INM659N)
M72: TRUE | N72: =FIND("(",R72,1) -> 40 | O72: =FIND(")",R72,1) -> 44 | P72: =MID(R72,N72+1,O72-N72-1) -> GS5 | Q72: 5-Year Treasury Constant Maturity Rate (GS5) | R72: 5-Year Treasury Constant Maturity Rate (GS5)
M73: TRUE | N73: 41 | O73: 46 | P73: GS10 | Q73: 10-Year Treasury Constant Maturity Rate (GS10) | R73: 10-Year Treasury Constant Maturity Rate (GS10)
M74: FALSE | N74: 43 | O74: 57 | P74: MEFAINUSA646N | Q74: Median Family Income | R74: Median Family Income in the United States (MEFAINUSA646N)
M75: TRUE | N75: 65 | O75: 81 | P75: CCUSSP02IDM650N | Q75: IDR | R75: National Currency to US Dollar Spot Exchange Rate for Indonesia (CCUSSP02IDM650N)
M76: TRUE | N76: 120 | O76: 126 | P76: DFII5 | Q76: INF5 | R76: Market Yield on U.S. Treasury Securities at 5-Year Constant Maturity, Quoted on an Investment Basis, Inflation-Indexed (DFII5)
M77: TRUE | N77: 121 | O77: 128 | P77: DFII10 | Q77: INF10 | R77: Market Yield on U.S. Treasury Securities at 10-Year Constant Maturity, Quoted on an Investment Basis, Inflation-Indexed (DFII10)
M78: FALSE | P78: CP | Q78: Corp Profit | R78: Corporate Profits
M79: FALSE | P79: CPATAX | Q79: Adj Corp Profit | R79: Adjusted Corporate Profits
M80: FALSE | P80: WASCUR | Q80: Comp Emp | R80: Compenstation of Employees
M81: FALSE | P81: NFCPATAX | Q81: Corp Nonfin | R81: Non Financial Corporate Profits
M82: FALSE | P82: NFCPATAX | Q82: Corp Nonfin Adj | R82: Non Financial Corporate Profits No Adj
M83: FALSE | P83: A466RD3Q052SBEA | Q83: Corp Val Added | R83: Corporate per Unit Value Added
M84: FALSE | P84: COE | Q84: Employee Comp | R84: Compensation of Employees
M85: FALSE | P85: COFC | Q85: Comp Cap | R85: Compensation of Capital
M86: FALSE | P86: A055RC0A144NBEA | Q86: Corp Aft Tax | R86: Corporate Profits After Tax
M87: FALSE | P87: A445RC1Q027SBEA | Q87: Corp Inf Adjusted | R87: Corporate Profits with Inflation Adj
M88: FALSE | P88: B394RC1Q027SBEA | Q88: Corp Non Dom | R88: Corporate Profits non Domestic
M89: FALSE | P89: GDI | Q89: GDI US | R89: Gross Domestic Income
M90: FALSE | P90: GDPC1 | Q90: GDP Real | R90: Real Gross Domestic Product
M91: FALSE | P91: GDP | Q91: GDP US | R91: Gross Domestic Product
M92: FALSE | P92: GDPDEF | Q92: GDP Inf | R92: Implicit Price Deflator
M93: FALSE | P93: CPIAUCSL | Q93: CPI US | R93: Consumer Price Inflation
M94: FALSE | P94: =MID(R94,AC94,AD94-AC94) -> DCOILBRENTEU | Q94: =LEFT(SUBSTITUTE(R94,"Global price of",""),15) -> Crude Oil Price | R94: Crude Oil Prices: Brent - Europe (DCOILBRENTEU) | AC94: =FIND("(",R94,1)+1 -> 35 | AD94: =FIND(")",R94,1) -> 47 | AF94: =R94 -> Crude Oil Prices: Brent - Europe (DCOILBRENTEU) | AG94: =AL97 -> (MHHNGSP) | AL94: (DCOILBRENTEU)
M95: FALSE | P95: DCOILBRENTEU | Q95: =LEFT(SUBSTITUTE(R95,"Global price of",""),15) -> Crude Oil Price | R95: Crude Oil Prices: Brent - Europe (DCOILBRENTEU) | AC95: 35 | AD95: 47 | AF95: Crude Oil Prices: Brent - Europe (DCOILBRENTEU) | AG95: =AL100 -> (PNGASEUUSDM) | AL95: (MCOILBRENTEU)
M96: FALSE | P96: GOLDAMGBD228NLBM | Q96: Gold Fixing Pr | R96: Gold Fixing Price 10:30 A.M. London time in London Bullion Market, based in U.S. Dollars (GOLDAMGBD228NLBM) | AC96: 92 | AD96: 108 | AF96: Gold Fixing Price 10:30 A.M. London time in London Bullion Market, based in U.S. Dollars (GOLDAMGBD228NLBM) | AG96: =AL99 -> (WDFUELUSGULF) | AL96: (GOLDAMGBD228NLBM)
M97: FALSE | P97: MHHNGSP | Q97: Henry Hub Natur | R97: Henry Hub Natural Gas Spot Price (MHHNGSP) | AC97: 35 | AD97: 42 | AF97: Henry Hub Natural Gas Spot Price (MHHNGSP) | AG97: =AL111 -> (PNGASJPUSDM) | AL97: (MHHNGSP)
M98: FALSE | P98: PALLFNFINDEXQ | Q98: Global Price I | R98: Global Price Index of All Commodities (PALLFNFINDEXQ) | AC98: 41 | AD98: 54 | AF98: Global Price Index of All Commodities (PALLFNFINDEXQ) | AG98: =AL137 -> (PNGASEUUSDM) | AL98: (PALLFNFINDEXQ)
M99: FALSE | P99: WDFUELUSGULF | Q99: Ultra-Low-Sulf | R99: Ultra-Low-Sulfur No. 2 Diesel Fuel Prices: U.S. Gulf Coast (WDFUELUSGULF) | AC99: 62 | AD99: 74 | AF99: Ultra-Low-Sulfur No. 2 Diesel Fuel Prices: U.S. Gulf Coast (WDFUELUSGULF) | AG99: =AL101 -> (PURANUSDM) | AL99: (WDFUELUSGULF)
M100: FALSE | P100: PNGASEUUSDM | Q100: Natural gas, | R100: Global price of Natural gas, EU (PNGASEUUSDM) | AC100: 35 | AD100: 46 | AF100: Global price of Natural gas, EU (PNGASEUUSDM) | AG100: =AL110 -> (PCOPPUSDM) | AL100: (PNGASEUUSDM)
M101: FALSE | P101: PURANUSDM | Q101: Uranium (PURAN | R101: Global price of Uranium (PURANUSDM) | AC101: 26 | AD101: 35 | AF101: Global price of Uranium (PURANUSDM) | AG101: =AL112 -> (PMAIZMTUSDM) | AL101: (PURANUSDM)
M102: FALSE | P102: WDFUELNYH | Q102: Ultra-Low-Sulfu | R102: Ultra-Low-Sulfur No. 2 Diesel Fuel Prices: New York Harbor (WDFUELNYH) | AC102: 61 | AD102: 70 | AF102: Ultra-Low-Sulfur No. 2 Diesel Fuel Prices: New York Harbor (WDFUELNYH) | AG102: =AL158 -> (PHIDEUSDQ) | AL102: (WDFUELNYH)
M103: FALSE | P103: WHOILNYH | Q103: No. 2 Heating | R103: No. 2 Heating Oil Prices: New York Harbor (WHOILNYH) | AC103: 45 | AD103: 53 | AF103: No. 2 Heating Oil Prices: New York Harbor (WHOILNYH) | AG103: =AL124 -> (PCOTTINDUSDM) | AL103: (WHOILNYH)
M104: FALSE | P104: MNGLCP | Q104: U.S. Natural Ga | R104: U.S. Natural Gas Liquid Composite Price (MNGLCP) | AC104: 42 | AD104: 48 | AF104: U.S. Natural Gas Liquid Composite Price (MNGLCP) | AL104: (MNGLCP)
M105: FALSE | P105: PHIDEUSDQ | Q105: Hides (PHIDEUS | R105: Global price of Hides (PHIDEUSDQ) | AC105: 24 | AD105: 33 | AF105: Global price of Hides (PHIDEUSDQ) | AL105: (PHIDEUSDQ)
M106: FALSE | P106: DGASUSGULF | Q106: Conventional G | R106: Conventional Gasoline Prices: U.S. Gulf Coast, Regular (DGASUSGULF) | AC106: 58 | AD106: 68 | AF106: Conventional Gasoline Prices: U.S. Gulf Coast, Regular (DGASUSGULF) | AL106: (DGASUSGULF)
M107: FALSE | P107: GASREGW | Q107: US Regular All | R107: US Regular All Formulations Gas Price (GASREGW) | AC107: 40 | AD107: 47 | AF107: US Regular All Formulations Gas Price (GASREGW) | AL107: (GASREGW)
M108: FALSE | P108: WHHNGSP | Q108: Henry Hub Natur | R108: Henry Hub Natural Gas Spot Price (WHHNGSP) | AC108: 35 | AD108: 42 | AF108: Henry Hub Natural Gas Spot Price (WHHNGSP) | AL108: (WHHNGSP)
M109: FALSE | P109: DHHNGSP | Q109: Henry Hub Natur | R109: Henry Hub Natural Gas Spot Price (DHHNGSP) | AC109: 35 | AD109: 42 | AF109: Henry Hub Natural Gas Spot Price (DHHNGSP) | AL109: (DHHNGSP)
M110: FALSE | P110: PCOPPUSDM | Q110: Copper (PCOPPU | R110: Global price of Copper (PCOPPUSDM) | AC110: 25 | AD110: 34 | AF110: Global price of Copper (PCOPPUSDM) | AL110: (PCOPPUSDM)
M111: FALSE | P111: PNGASJPUSDM | Q111: LNG, Asia (PNG | R111: Global price of LNG, Asia (PNGASJPUSDM) | AC111: 28 | AD111: 39 | AF111: Global price of LNG, Asia (PNGASJPUSDM) | AL111: (PNGASJPUSDM)
M112: FALSE | P112: PMAIZMTUSDM | Q112: Corn (PMAIZMTU | R112: Global price of Corn (PMAIZMTUSDM) | AC112: 23 | AD112: 34 | AF112: Global price of Corn (PMAIZMTUSDM) | AL112: (PMAIZMTUSDM)
M113: FALSE | P113: PWHEAMTUSDM | Q113: Wheat (PWHEAMT | R113: Global price of Wheat (PWHEAMTUSDM) | AC113: 24 | AD113: 35 | AF113: Global price of Wheat (PWHEAMTUSDM) | AL113: (PWHEAMTUSDM)
M114: FALSE | P114: DPROPANEMBTX | Q114: Propane Prices: | R114: Propane Prices: Mont Belvieu, Texas (DPROPANEMBTX) | AC114: 38 | AD114: 50 | AF114: Propane Prices: Mont Belvieu, Texas (DPROPANEMBTX) | AL114: (DPROPANEMBTX)
M115: FALSE | P115: PIORECRUSDM | Q115: Iron Ore (PIOR | R115: Global price of Iron Ore (PIORECRUSDM) | AC115: 27 | AD115: 38 | AF115: Global price of Iron Ore (PIORECRUSDM) | AL115: (PIORECRUSDM)
M116: FALSE | P116: GASREGW | Q116: US Regular All | R116: US Regular All Formulations Gas Price (GASREGW) | AC116: 40 | AD116: 47 | AF116: US Regular All Formulations Gas Price (GASREGW) | AL116: (GASREGW)
M117: FALSE | P117: PALUMUSDM | Q117: Aluminum (PALU | R117: Global price of Aluminum (PALUMUSDM) | AC117: 27 | AD117: 36 | AF117: Global price of Aluminum (PALUMUSDM) | AL117: (PALUMUSDM)
M118: FALSE | P118: PCOALAUUSDM | Q118: Coal, Australi | R118: Global price of Coal, Australia (PCOALAUUSDM) | AC118: 34 | AD118: 45 | AF118: Global price of Coal, Australia (PCOALAUUSDM) | AL118: (PCOALAUUSDM)
M119: FALSE | P119: POILDUBUSDM | Q119: Dubai Crude (P | R119: Global price of Dubai Crude (POILDUBUSDM) | AC119: 30 | AD119: 41 | AF119: Global price of Dubai Crude (POILDUBUSDM) | AL119: (POILDUBUSDM)
M120: FALSE | P120: PSOYBUSDM | Q120: Soybeans (PSOY | R120: Global price of Soybeans (PSOYBUSDM) | AC120: 27 | AD120: 36 | AF120: Global price of Soybeans (PSOYBUSDM) | AL120: (PSOYBUSDM)
M121: FALSE | P121: PSHRIUSDM | Q121: Shrimp (PSHRIU | R121: Global price of Shrimp (PSHRIUSDM) | AC121: 25 | AD121: 34 | AF121: Global price of Shrimp (PSHRIUSDM) | AL121: (PSHRIUSDM)
M122: FALSE | P122: DJFUELUSGULF | Q122: Kerosene-Type J | R122: Kerosene-Type Jet Fuel Prices: U.S. Gulf Coast (DJFUELUSGULF) | AC122: 49 | AD122: 61 | AF122: Kerosene-Type Jet Fuel Prices: U.S. Gulf Coast (DJFUELUSGULF) | AL122: (DJFUELUSGULF)
M123: FALSE | P123: PRUBBUSDM | Q123: Rubber (PRUBBU | R123: Global price of Rubber (PRUBBUSDM) | AC123: 25 | AD123: 34 | AF123: Global price of Rubber (PRUBBUSDM) | AL123: (PRUBBUSDM)
M124: FALSE | P124: PCOTTINDUSDM | Q124: Cotton (PCOTTI | R124: Global price of Cotton (PCOTTINDUSDM) | AC124: 25 | AD124: 37 | AF124: Global price of Cotton (PCOTTINDUSDM) | AL124: (PCOTTINDUSDM)
M125: FALSE | P125: PBEEFUSDQ | Q125: Beef (PBEEFUSD | R125: Global price of Beef (PBEEFUSDQ) | AC125: 23 | AD125: 32 | AF125: Global price of Beef (PBEEFUSDQ) | AL125: (PBEEFUSDQ)
M126: FALSE | P126: =MID(R126,AC126,AD126-AC126) -> PSUNOUSDM | Q126: Sunflower Oil | R126: Global price of Sunflower Oil (PSUNOUSDM) | AC126: =FIND("(",R126,1)+1 -> 32 | AD126: =FIND(")",R126,1) -> 41 | AF126: =R126 -> Global price of Sunflower Oil (PSUNOUSDM) | AL126: (PSUNOUSDM)
M127: FALSE | P127: PBANSOPUSDM | Q127: Bananas (PBANS | R127: Global price of Bananas (PBANSOPUSDM) | AC127: 26 | AD127: 37 | AF127: Global price of Bananas (PBANSOPUSDM) | AL127: (PBANSOPUSDM)
M128: FALSE | P128: PBARLUSDM | Q128: Barley (PBARLU | R128: Global price of Barley (PBARLUSDM) | AC128: 25 | AD128: 34 | AF128: Global price of Barley (PBARLUSDM) | AL128: (PBARLUSDM)
M129: FALSE | P129: CP0111E3CCM086NEST | Q129: Harmonized Inde | R129: Harmonized Index of Consumer Prices: Bread and Cereals for European Economic Area EEA18-2004, EEA28-2006, EEA30 (CP0111E3CCM086NEST) | AC129: 114 | AD129: 132 | AF129: Harmonized Index of Consumer Prices: Bread and Cereals for European Economic Area EEA18-2004, EEA28-2006, EEA30 (CP0111E3CCM086NEST) | AL129: (CP0111E3CCM086NEST)
M130: FALSE | P130: CP0111EZ18M086NEST | Q130: Harmonized Inde | R130: Harmonized Index of Consumer Prices: Bread and Cereals for Euro Area 18 countries (CP0111EZ18M086NEST) | AC130: 84 | AD130: 102 | AF130: Harmonized Index of Consumer Prices: Bread and Cereals for Euro Area 18 countries (CP0111EZ18M086NEST) | AL130: (CP0111EZ18M086NEST)
M131: FALSE | P131: PCOFFOTMUSDQ | Q131: Coffee, Other | R131: Global price of Coffee, Other Mild Arabica (PCOFFOTMUSDQ) | AC131: 45 | AD131: 57 | AF131: Global price of Coffee, Other Mild Arabica (PCOFFOTMUSDQ) | AL131: (PCOFFOTMUSDQ)
M132: FALSE | P132: GASDESW | Q132: US Diesel Sales | R132: US Diesel Sales Price (GASDESW) | AC132: 24 | AD132: 31 | AF132: US Diesel Sales Price (GASDESW) | AL132: (GASDESW)
M133: FALSE | P133: PZINCUSDA | Q133: Zinc (PZINCUSD | R133: Global price of Zinc (PZINCUSDA) | AC133: 23 | AD133: 32 | AF133: Global price of Zinc (PZINCUSDA) | AL133: (PZINCUSDA)
M134: FALSE | P134: PSUGAISAUSDM | Q134: Sugar, No. 11, | R134: Global price of Sugar, No. 11, World (PSUGAISAUSDM) | AC134: 39 | AD134: 51 | AF134: Global price of Sugar, No. 11, World (PSUGAISAUSDM) | AL134: (PSUGAISAUSDM)
M135: FALSE | P135: PINDUINDEXM | Q135: Industrial Mat | R135: Global price of Industrial Materials index (PINDUINDEXM) | AC135: 45 | AD135: 56 | AF135: Global price of Industrial Materials index (PINDUINDEXM) | AL135: (PINDUINDEXM)
M136: FALSE | P136: PNICKUSDA | Q136: Nickel (PNICKU | R136: Global price of Nickel (PNICKUSDA) | AC136: 25 | AD136: 34 | AF136: Global price of Nickel (PNICKUSDA) | AL136: (PNICKUSDA)
M137: FALSE | P137: PNGASEUUSDM | Q137: Natural gas, E | R137: Global price of Natural gas, EU (PNGASEUUSDM) | AC137: 34 | AD137: 45 | AF137: Global price of Natural gas, EU (PNGASEUUSDM) | AL137: (PNGASEUUSDM)
M138: FALSE | P138: PRICENPQUSDM | Q138: Rice, Thailand | R138: Global price of Rice, Thailand (PRICENPQUSDM) | AC138: 33 | AD138: 45 | AF138: Global price of Rice, Thailand (PRICENPQUSDM) | AL138: (PRICENPQUSDM)
M139: FALSE | P139: PFISHUSDM | Q139: Fish Meal (PFI | R139: Global price of Fish Meal (PFISHUSDM) | AC139: 28 | AD139: 37 | AF139: Global price of Fish Meal (PFISHUSDM) | AL139: (PFISHUSDM)
M140: FALSE | P140: PMETAINDEXM | Q140: Metal index (P | R140: Global price of Metal index (PMETAINDEXM) | AC140: 30 | AD140: 41 | AF140: Global price of Metal index (PMETAINDEXM) | AL140: (PMETAINDEXM)
M141: FALSE | P141: PRAWMINDEXM | Q141: Agr. Raw Mater | R141: Global price of Agr. Raw Material Index (PRAWMINDEXM) | AC141: 42 | AD141: 53 | AF141: Global price of Agr. Raw Material Index (PRAWMINDEXM) | AL141: (PRAWMINDEXM)
M142: FALSE | P142: PCOCOUSDM | Q142: Cocoa (PCOCOUS | R142: Global price of Cocoa (PCOCOUSDM) | AC142: 24 | AD142: 33 | AF142: Global price of Cocoa (PCOCOUSDM) | AL142: (PCOCOUSDM)
M143: FALSE | P143: PORANGUSDM | Q143: Orange (PORANG | R143: Global price of Orange (PORANGUSDM) | AC143: 25 | AD143: 35 | AF143: Global price of Orange (PORANGUSDM) | AL143: (PORANGUSDM)
M144: FALSE | P144: PFOODINDEXM | Q144: Food index (PF | R144: Global price of Food index (PFOODINDEXM) | AC144: 29 | AD144: 40 | AF144: Global price of Food index (PFOODINDEXM) | AL144: (PFOODINDEXM)
M145: FALSE | P145: PPOILUSDM | Q145: Palm Oil (PPOI | R145: Global price of Palm Oil (PPOILUSDM) | AC145: 27 | AD145: 36 | AF145: Global price of Palm Oil (PPOILUSDM) | AL145: (PPOILUSDM)
M146: FALSE | P146: MNGLCP | Q146: U.S. Natural Ga | R146: U.S. Natural Gas Liquid Composite Price (MNGLCP) | AC146: 42 | AD146: 48 | AF146: U.S. Natural Gas Liquid Composite Price (MNGLCP) | AL146: (MNGLCP)
M147: FALSE | P147: PPOULTUSDA | Q147: Poultry (PPOUL | R147: Global price of Poultry (PPOULTUSDA) | AC147: 26 | AD147: 36 | AF147: Global price of Poultry (PPOULTUSDA) | AL147: (PPOULTUSDA)
M148: FALSE | P148: PTINUSDM | Q148: Tin (PTINUSDM) | R148: Global price of Tin (PTINUSDM) | AC148: 22 | AD148: 30 | AF148: Global price of Tin (PTINUSDM) | AL148: (PTINUSDM)
M149: FALSE | P149: PCOFFROBUSDM | Q149: Coffee, Robust | R149: Global price of Coffee, Robustas (PCOFFROBUSDM) | AC149: 35 | AD149: 47 | AF149: Global price of Coffee, Robustas (PCOFFROBUSDM) | AL149: (PCOFFROBUSDM)
M150: FALSE | P150: PSMEAUSDM | Q150: Soybean Meal ( | R150: Global price of Soybean Meal (PSMEAUSDM) | AC150: 31 | AD150: 40 | AF150: Global price of Soybean Meal (PSMEAUSDM) | AL150: (PSMEAUSDM)
M151: FALSE | P151: POLVOILUSDM | Q151: Olive Oil (POL | R151: Global price of Olive Oil (POLVOILUSDM) | AC151: 28 | AD151: 39 | AF151: Global price of Olive Oil (POLVOILUSDM) | AL151: (POLVOILUSDM)
M152: FALSE | P152: PSOILUSDA | Q152: Soybeans Oil ( | R152: Global price of Soybeans Oil (PSOILUSDA) | AC152: 31 | AD152: 40 | AF152: Global price of Soybeans Oil (PSOILUSDA) | AL152: (PSOILUSDA)
M153: FALSE | P153: PSUGAEECUSDA | Q153: Sugar, EU (PSU | R153: Global price of Sugar, EU (PSUGAEECUSDA) | AC153: 28 | AD153: 40 | AF153: Global price of Sugar, EU (PSUGAEECUSDA) | AL153: (PSUGAEECUSDA)
M154: FALSE | P154: PWOOLFUSDM | Q154: Wool, Fine (PW | R154: Global price of Wool, Fine (PWOOLFUSDM) | AC154: 29 | AD154: 39 | AF154: Global price of Wool, Fine (PWOOLFUSDM) | AL154: (PWOOLFUSDM)
M155: FALSE | P155: PSALMUSDM | Q155: Fish (PSALMUSD | R155: Global price of Fish (PSALMUSDM) | AC155: 23 | AD155: 32 | AF155: Global price of Fish (PSALMUSDM) | AL155: (PSALMUSDM)
M156: FALSE | P156: PTEAUSDM | Q156: Tea, Kenyan (P | R156: Global price of Tea, Kenyan (PTEAUSDM) | AC156: 30 | AD156: 38 | AF156: Global price of Tea, Kenyan (PTEAUSDM) | AL156: (PTEAUSDM)
M157: FALSE | P157: PLOGOREUSDM | Q157: Soft Logs (PLO | R157: Global price of Soft Logs (PLOGOREUSDM) | AC157: 28 | AD157: 39 | AF157: Global price of Soft Logs (PLOGOREUSDM) | AL157: (PLOGOREUSDM)
M158: FALSE | P158: =MID(R158,AC158,AD158-AC158) -> PHIDEUSDQ | Q158: Hides (PHIDEUS | R158: Global price of Hides (PHIDEUSDQ) | AC158: =FIND("(",R158,1)+1 -> 24 | AD158: =FIND(")",R158,1) -> 33 | AF158: =R158 -> Global price of Hides (PHIDEUSDQ) | AL158: (PHIDEUSDQ)
M159: FALSE | P159: PFANDBINDEXA | Q159: =LEFT(SUBSTITUTE(R159,"Global price of",""),15) -> Food and bever | R159: Global price of Food and beverage index (PFANDBINDEXA) | AC159: 42 | AD159: 54 | AF159: Global price of Food and beverage index (PFANDBINDEXA) | AL159: (PFANDBINDEXA)
M160: FALSE | P160: PSAWOREUSDA | Q160: Soft Sawnwood, | R160: Global price of Soft Sawnwood, Average of Softwoods, (PSAWOREUSDA) | AC160: 55 | AD160: 66 | AF160: Global price of Soft Sawnwood, Average of Softwoods, (PSAWOREUSDA) | AL160: (PSAWOREUSDA)
M161: FALSE | P161: PLAMBUSDA | Q161: Lamb (PLAMBUSD | R161: Global price of Lamb (PLAMBUSDA) | AC161: 23 | AD161: 32 | AF161: Global price of Lamb (PLAMBUSDA) | AL161: (PLAMBUSDA)
M162: FALSE | P162: PROILUSDA | Q162: Rapeseed Oil ( | R162: Global price of Rapeseed Oil (PROILUSDA) | AC162: 31 | AD162: 40 | AF162: Global price of Rapeseed Oil (PROILUSDA) | AL162: (PROILUSDA)
M163: FALSE | P163: PWOOLCUSDM | Q163: Wool, Coarse ( | R163: Global price of Wool, Coarse (PWOOLCUSDM) | AC163: 31 | AD163: 41 | AF163: Global price of Wool, Coarse (PWOOLCUSDM) | AL163: (PWOOLCUSDM)
M164: FALSE | P164: PGNUTSUSDA | Q164: Groundnuts (PG | R164: Global price of Groundnuts (PGNUTSUSDA) | AC164: 29 | AD164: 39 | AF164: Global price of Groundnuts (PGNUTSUSDA) | AL164: (PGNUTSUSDA)
M165: FALSE | P165: PLOGSKUSDM | Q165: Hard Logs, Imp | R165: Global price of Hard Logs, Import Price Japan (PLOGSKUSDM) | AC165: 48 | AD165: 58 | AF165: Global price of Hard Logs, Import Price Japan (PLOGSKUSDM) | AL165: (PLOGSKUSDM)
M166: FALSE | P166: PSAWMALUSDQ | Q166: Hard Sawnwood, | R166: Global price of Hard Sawnwood, Dark Red Meranti (PSAWMALUSDQ) | AC166: 50 | AD166: 61 | AF166: Global price of Hard Sawnwood, Dark Red Meranti (PSAWMALUSDQ) | AL166: (PSAWMALUSDQ)
M167: FALSE | P167: GASMIDREFM | Q167: US Midgrade Ref | R167: US Midgrade Reformulated Gas Price (GASMIDREFM) | AC167: 37 | AD167: 47 | AF167: US Midgrade Reformulated Gas Price (GASMIDREFM) | AL167: (GASMIDREFM)
M168: FALSE | N168: =AC168 -> 47 | O168: 63 | P168: PCAGDPFRA646NWDB | Q168: GDP Per Capital France | R168: Gross Domestic Product Per Capita for France (PCAGDPFRA646NWDB) | AC168: 47 | AD168: 63 | AF168: Gross Domestic Product Per Capita for France (PCAGDPFRA646NWDB)
M169: FALSE | N169: 48 | O169: 64 | P169: PCAGDPDEA646NWDB | Q169: GDP Per Capital Germany | R169: Gross Domestic Product Per Capita for Germany (PCAGDPDEA646NWDB) | AC169: 48 | AD169: 64 | AF169: Gross Domestic Product Per Capita for Germany (PCAGDPDEA646NWDB)
M170: FALSE | N170: 36 | O170: 51 | P170: A939RC0Q052SBEA | Q170: GDP Per Capital US | R170: Gross domestic product per capita (A939RC0Q052SBEA) | AC170: 36 | AD170: 51 | AF170: Gross domestic product per capita (A939RC0Q052SBEA)
M171: FALSE | N171: 46 | O171: 62 | P171: PCAGDPCNA646NWDB | Q171: GDP Per Capital China | R171: Gross Domestic Product Per Capita for China (PCAGDPCNA646NWDB) | AC171: 46 | AD171: 62 | AF171: Gross Domestic Product Per Capita for China (PCAGDPCNA646NWDB)
M172: FALSE | N172: =AC172 -> 123 | O172: =AD172 -> 138 | P172: =MID(R172,AC172,AD172-AC172) -> CCUSMA02EZM618N | Q172: Currency Conversions: US Dollar Exchange Rate: Average of Daily Rates: National Currency: USD for Euro Area 19 Countries(CCUSMA02EZM618N) | R172: Currency Conversions: US Dollar Exchange Rate: Average of Daily Rates: National Currency: USD for Euro Area 19 Countries (CCUSMA02EZM618N) | AC172: =FIND("(",R172,1)+1 -> 123 | AD172: =FIND(")",R172,1) -> 138 | AF172: =R172 -> Currency Conversions: US Dollar Exchange Rate: Average of Daily Rates: National Currency: USD for Euro Area 19 Countries (CCUSMA02EZM618N) | AL172: (CCUSMA02EZM618N)
C185: Currency_URL | D185: =D186&C12&".txt" -> https://research.stlouisfed.org/fred2/data/PCAGDPCNA646NWDB.txt
C186: Base URL | D186: https://research.stlouisfed.org/fred2/data/

Sheet Summary
H1: Selected Start | I1: =Forms!X22 -> 2008-03-01 | R1: Graph Code for Index etc. --> | S1: =Forms!AG10 -> 3 | T1: =COUNT(H:H)+1 -> 2722 | W1: =COUNTIF('Multiple Stock Graph'!D:D,TRUE)+2 -> 5 | AB1: Part 4 -- Reading Data with Match and Index for Time Series (e.g. Stocks) Selected Before Re-arrange | AH1: Part 5: Re-arrange the data with Dates Corresponding to Dates in Yellow with LOOKUP | AN1: Part 6: Retrieve Data with Indirect and Lookup for Adjustment Series | AU1: Part 7: Multiply or Divide the Adjustment Series which will be used | BB1: Part 8: Adjustment Code Selected for Each Series after the first S&P 500 series | BH1: Part 9: Raw Data Arranged by Date Multiplied by the Adjustment Factor | BM1: Periods in Yr | BN1: =timing_code -> 1 | BO1: =CHOOSE(BN1,12,52,232) -> 12 | BU1: IRR's and Index | BV1: =I2 -> 2025-07-31 | BW1: Years | BX1: =Q4 -> 17.41546886
H2: End Date | I2: =Forms!X35 -> 2025-07-31 | K2: Part 2: Adjustment to Primary Index, Growth Rate and IRR -------------------> | P2: Final Value | Q2: =LOOKUP(I2,H:H,Q:Q) -> 4.79276508 | T2: The Data Shaded in Grey is the Selection for the Graph | AU2: First two are inflation, next 5 are exchange rates with multiplication | BM2: Alpha | BN2: =IFERROR(INTERCEPT(BN11:BN2000,BM11:BM2000),0) -> 0 | BO2: 0.0004433327476 | BP2: 0.004035611952 | BQ2: 0.003233369208 | BR2: 0 | BS2: 0 | BT2: 0 | CU2: Monthly | CV2: =monthly -> TRUE
D3: Part 1 -- Primary Index (S&P) Read and Re-arrange --------> | H3: Start of Series | I3: =I1 -> 2008-03-01 | P3: IRR | Q3: =(Q2)^(1/($Q$4))-1 -> 0.09415639734 | T3: This uses graph_output -- a range name with offset (Height and width above) | AH3: =IFERROR(MIN(INDIRECT("'"&AH5&"'!A:A")),FALSE) -> 2016-06-01 | AI3: 2008-06-01 | AJ3: 2000-01-01 | AK3: FALSE | AL3: FALSE | AM3: FALSE | BB3: Inflation and Exchange Rate Adjustments to Individual Stocks; The code comes from the multiple graph page | BH3: Adjusted Values for Exchange Rate | BM3: Beta | BN3: =IFERROR(SLOPE(BN10:BN2000,$BN$10:$BN$2000),0) -> 1 | BO3: 0.6090510095 | BP3: 0.5489653556 | BQ3: 0.7166880015 | BR3: 0 | BS3: 0 | BT3: 0 | BU3: =LOOKUP($BV$1,$H:$H,BU:BU) -> 1.46178148 | BV3: =LOOKUP($I$2,$H:$H,BV:BV) -> 1.59048018 | BW3: =LOOKUP($I$2,$H:$H,BW:BW) -> 1.570250824 | BX3: =LOOKUP($I$2,$H:$H,BX:BX) -> 1 | BY3: =LOOKUP($I$2,$H:$H,BY:BY) -> 1 | BZ3: =LOOKUP($I$2,$H:$H,BZ:BZ) -> 1
B4: Raw Date | H4: Final Start | I4: =MAX(I3,I1) -> 2008-03-01 | K4: See Right Data | P4: Years for IRR | Q4: =(I2-I4)/365.25 -> 17.41546886 | T4: Use CNTL F3 to look at range | AB4: Raw Values without Index, Inflation Adj from INDIRECT Function | AH4: Raw Numbers without Adjustment Matched to Dates in the Yellow Column from Raw Read | AN4: Retrieves first seven items downloaded from FRED; You could change this | AU4: Selection of Series Used from the Graph Page for the Adjustments | BM4: Std Dev | BN4: =IFERROR(STDEV(BN10:BN2000),0) -> 0.04566722868 | BO4: 0.08651841202 | BP4: 0.08221741849 | BQ4: 0.07159265984 | BR4: 0 | BS4: 0 | BT4: 0 | BU4: =IF(BU3<>1,(BU3)^(1/($BX$1))-1,"") -> 0.02203927766 | BV4: =IF(BV3<>1,(BV3)^(1/($Q$4))-1,"") -> 0.02700319927 | BW4: 0.02624861548
B5: Base Index | G5: =timing_code -> 1 | I5: Base S&P 500 | J5: Date in the | K5: Exchange Rate | L5: Adjusted | M5: Adjusted Base | S5: Single | U5: Main | V5: Comparators from Choose and Data to Right | AA5: Code | AB5: =TRANSPOSE('Multiple Stock Graph'!J4:J9) -> ORSTED.CO | AC5: EDPR.LS | AD5: ENGIE | AH5: =AB5 -> ORSTED.CO | AI5: =AC5 -> EDPR.LS | AJ5: ENGIE | BM5: Volatiltiy | BN5: =BN4*$BO$1^0.5 -> 0.1581959206 | BO5: 0.2997085708 | BP5: 0.2848094922 | BQ5: 0.2480042486 | BR5: 0 | BS5: 0 | BT5: 0 | CW5: =Forms!AC26 -> 1
A6: Base Date | B6: S&P 500 Complete | D6: Monthly | E6: Weekly | F6: Daily | G6: Timing Code | I6: Lookup to Yellow | J6: Selected Range | K6: or Inflation | L6: Index | M6: For Exch or Inf | N6: Change S&P 500 | O6: Change S&P 500 | P6: Change S&P 500 | Q6: Index | S6: Graph | U6: =Forms!AA11 -> 1 | V6: First Comparator(Stats) | AB6: B | AC6: B | AD6: B | AE6: B | AF6: B | AG6: B | AN6: =AU6 -> GDP Inf | AO6: =AV6 -> CPI US | AP6: Euro | AQ6: INR | AR6: UK | AS6: =AZ6 -> PKR | AT6: =BA6 -> US NOM GNP | AU6: =TRANSPOSE('FRED Series'!D16:D50) -> GDP Inf | AV6: CPI US | AW6: Euro | AX6: INR | AY6: UK | AZ6: PKR | BA6: US NOM GNP | BB6: Adjustment Code | BC6: Adjustment Code | BD6: Adjustment Code | BE6: Adjustment Code | BF6: Adjustment Code | BG6: Adjustment Code | BN6: Growth Rate | BO6: Growth Rate | BU6: Index
A7: Fixed Copied | B7: Raw Data | D7: Date from | E7: Date from | F7: Date from | G7: 1 - Monthly | I7: from Dates in | J7: (Yellow) | K7: Adjustment | L7: for Zero | M7: =B6 -> S&P 500 Complete | N7: Simple not LN | O7: LN and Continual | P7: Applied Using | Q7: From Left | R7: X-Axis | S7: =CHOOSE($S$1,B6,N7,Q7) -> From Left | T7: x-axis | U7: =INDEX('Read Stocks'!N4:N203,Summary!U6) -> S&P 500 | V7: =TRANSPOSE('Multiple Stock Graph'!J4:J9) -> ORSTED.CO | W7: EDPR.LS | X7: ENGIE | AB7: B | AC7: B | AD7: B | AE7: B | AF7: B | AG7: B | AU7: B | AV7: B | AW7: B | AX7: B | AY7: B | AZ7: B | BA7: B | BB7: =TRANSPOSE('Multiple Stock Graph'!Q28:Q33) -> 0 | BC7: 0 | BD7: 0 | BE7: 0 | BF7: 0 | BG7: 0 | BH7: =V7 -> ORSTED.CO | BI7: EDPR.LS | BJ7: ENGIE | BN7: =N7 -> Simple not LN | BO7: =AB5 -> ORSTED.CO | BP7: EDPR.LS | BQ7: ENGIE | BU7: =BO7 -> ORSTED.CO | BV7: EDPR.LS | BW7: ENGIE | CU7: Weekely
A8: S&P 500 | B8: From Start | D8: Selected Start | E8: Selected Start | F8: Selected Start | G8: 2 - Weekly | H8: Month or Day | I8: First | J8: Switch | K8: ='Multiple Stock Graph'!Q27 -> 0 | M8: Absolute | N8: Applied Flag Below | O8: Applied Flag Below | P8: Flag | Q8: Changes | S8: Choose | V8: 1 | W8: 2 | X8: 3 | Y8: 4 | Z8: 5 | AA8: 6 | AB8: 1 | AC8: 2 | AD8: 3 | AE8: 4 | AF8: 5 | AG8: 6 | AU8: =TRANSPOSE('Multiple Stock Graph'!AB28:AB34) -> Divide | AV8: Divide | AW8: Divide | AX8: Divide | AY8: Multiply | AZ8: Divide | BA8: Divide | BB8: =IFERROR(INDEX($AU$6:$BA$6,BB7),"") ->  | BC8: =IFERROR(INDEX($AU$6:$BA$6,BC7),"") ->  | BH8: 1 | BI8: 2 | BJ8: 3 | BK8: 4 | BL8: 5 | BM8: 6 | CU8: Date | CW8: =BN7 -> Simple not LN
A9: Index for Read | B9: B | D9: Date | E9: Date | F9: Date | G9: 3 - Daily | H9: Date | I9: Column | N9: TRUE | O9: =NOT(N9) -> FALSE | P9: =N9*1+O9*2 -> 1 | Q9: 1 | U9: =U7&" IRR "&TEXT(Q3,"##.00%") -> S&P 500 IRR 9.42% | V9: =V7&" IRR "&TEXT(BU4,"##.00%") -> ORSTED.CO IRR 2.20% | W9: EDPR.LS IRR 2.70% | X9: ENGIE IRR 2.62% | Y9: IRR | Z9: IRR | AA9: IRR | BU9: 1 | BV9: 1 | BW9: 1 | BX9: 1 | BY9: 1 | BZ9: 1 | CU9: =IF(H7,"Applied","Not Used") -> Not Used | CX9: =INDEX(BO7:BT7,CW5) -> ORSTED.CO
A10: 1927-12-01 | B10: =IFERROR(LOOKUP($A10,INDIRECT("'"&B$6&"'!A:A"),INDIRECT("'"&B$6&"'!"&$B$9&":"&$B$9)),0) -> 0 | C10: 1 | D10: =MAX($I$3,$I$1) -> 2008-03-01 | E10: =MAX($I$3,$I$1) -> 2008-03-01 | F10: =MAX($I$3,$I$1) -> 2008-03-01 | G10: =CHOOSE(timing_code,D10,E10,F10) -> 2008-03-01 | H10: =G10 -> 2008-03-01 | I10: =LOOKUP(H10,A:A,B:B) -> 1322.699951 | J10: =AND(H10>=$I$4,H10<=$I$2) -> TRUE | K10: =IF(K$8<>0,INDEX($AU10:$BA10,K$8),1) -> 1 | L10: =IF(K10,K10,IF(L11,L11,1)) -> 1 | M10: =IF(ISNUMBER(I10),I10,M11)*L10 -> 1322.699951 | N10: =IFERROR(($M10/$M9-1),FALSE) -> FALSE | O10: =IFERROR(LN($M10/$M9),FALSE) -> FALSE | P10: =CHOOSE($P$9,N10,O10) -> FALSE | Q10: =IF($J10,(Q9*(1+P10)),Q9) -> 1 | R10: =IF(J10,H10,NA()) -> 2008-03-01 | S10: =CHOOSE($S$1,M10,N10,Q10) -> 1 | T10: =R10 -> 2008-03-01 | U10: =IF(ISNUMBER(T10),S10,NA()) -> 1 | V10: =IF(ISNUMBER(T10),CHOOSE($S$1,BH10,BO10,BU10),NA()) -> 1 | W10: =IF(ISNUMBER(T10),CHOOSE($S$1,BI10,BP10,BV10),NA()) -> 1 | X10: =IF(ISNUMBER(T10),CHOOSE($S$1,BJ10,BQ10,BW10),NA()) -> 1 | Y10: =IF(ISNUMBER(T10),CHOOSE($S$1,BK10,BR10,BX10),NA()) -> 1 | Z10: =IF(ISNUMBER(T10),CHOOSE($S$1,BL10,BS10,BY10),NA()) -> 1 | AA10: =IF(ISNUMBER(T10),CHOOSE($S$1,BM10,BT10,BZ10),NA()) -> 1 | AB10: =LOOKUP($A10,INDIRECT("'"&AB$5&"'!A:A"),INDIRECT("'"&AB$5&"'!"&AB$7&":"&AB$7)) ->  | AH10: =IF(ISNUMBER(LOOKUP($H10,$A:$A,AB:AB)),LOOKUP($H10,$A:$A,AB:AB),AH9) -> 0 | AI10: =IF(ISNUMBER(LOOKUP($H10,$A:$A,AC:AC)),LOOKUP($H10,$A:$A,AC:AC),AI9) -> 0 | AJ10: =IF(ISNUMBER(LOOKUP($H10,$A:$A,AD:AD)),LOOKUP($H10,$A:$A,AD:AD),AJ9) -> 12.49481964 | AK10: =IF(ISNUMBER(LOOKUP($H10,$A:$A,AE:AE)),LOOKUP($H10,$A:$A,AE:AE),AK9) -> 0 | AL10: =IF(ISNUMBER(LOOKUP($H10,$A:$A,AF:AF)),LOOKUP($H10,$A:$A,AF:AF),AL9) -> 0 | AM10: =IF(ISNUMBER(LOOKUP($H10,$A:$A,AG:AG)),LOOKUP($H10,$A:$A,AG:AG),AM9) -> 0 | AN10: =IFERROR(LOOKUP($A10,INDIRECT("'"&AU$6&"'!A:A"),INDIRECT("'"&AU$6&"'!"&AU$7&":"&AU$7)),1) -> 1 | AO10: =IFERROR(LOOKUP($A10,INDIRECT("'"&AV$6&"'!A:A"),INDIRECT("'"&AV$6&"'!"&AV$7&":"&AV$7)),1) -> 1 | AP10: =IFERROR(LOOKUP($A10,INDIRECT("'"&AW$6&"'!A:A"),INDIRECT("'"&AW$6&"'!"&AW$7&":"&AW$7)),0) -> 0 | AQ10: 0 | AR10: 0 | AS10: 0 | AT10: 0 | AU10: =IFERROR(IF(AU$8="Divide",1/LOOKUP($H10,$A:$A,AN:AN)*1,LOOKUP($H10,$A:$A,AN:AN)*1),AU11) -> 0.01145278589 | AV10: =IFERROR(IF(AV$8="Divide",1/LOOKUP($H10,$A:$A,AO:AO)*1,LOOKUP($H10,$A:$A,AO:AO)*1),AV11) -> 0.004684981822 | AW10: =IFERROR(IF(AW$8="Divide",1/LOOKUP($H10,$A:$A,AP:AP)*1,LOOKUP($H10,$A:$A,AP:AP)*1),AW11) -> 1.552559759 | AX10: =IFERROR(IF(AX$8="Divide",1/LOOKUP($H10,$A:$A,AQ:AQ)*1,LOOKUP($H10,$A:$A,AQ:AQ)*1),AX11) -> 0.02502502503 | AY10: =IFERROR(IF(AY$8="Divide",1/LOOKUP($H10,$A:$A,AR:AR)*1,LOOKUP($H10,$A:$A,AR:AR)*1),AY11) -> 2.0015 | AZ10: =IFERROR(IF(AZ$8="Divide",1/LOOKUP($H10,$A:$A,AS:AS)*1,LOOKUP($H10,$A:$A,AS:AS)*1),AZ11) -> 0.01420292476 | BA10: =IFERROR(IF(BA$8="Divide",1/LOOKUP($H10,$A:$A,AT:AT)*1,LOOKUP($H10,$A:$A,AT:AT)*1),BA11) -> 6.730679014e-05 | BB10: =IF(BB$7,INDEX($AU10:$BA10,BB$7),1) -> 1 | BC10: 1 | BD10: 1 | BE10: 1 | BF10: 1 | BG10: 1 | BH10: =IF(ISNUMBER(AH10)>0.1,AH10,BH11)*BB10 -> 0 | BI10: =IFERROR(IF(ISNUMBER(AI10)>0.1,AI10,BI11)*BC10,BI11) -> 0 | BJ10: =IFERROR(IF(ISNUMBER(AJ10)>0.1,AJ10,BJ11)*BD10,BJ11) -> 12.49481964 | BK10: =IFERROR(IF(ISNUMBER(AK10)>0.1,AK10,BK11)*BE10,BK11) -> 0 | BL10: =IFERROR(IF(ISNUMBER(AL10)>0.1,AL10,BL11)*BF10,BL11) -> 0 | BM10: =IFERROR(IF(ISNUMBER(AM10)>0.1,AM10,BM11)*BG10,BM11) -> 0 | BN10: =N10 -> FALSE | BO10: =IFERROR(IF(J10,(BH10/BH9-1)),FALSE) -> FALSE | BP10: =IFERROR(IF(J10,(BI10/BI9-1)),FALSE) -> FALSE | BQ10: =IFERROR(IF(J10,(BJ10/BJ9-1)),FALSE) -> FALSE | BR10: =IFERROR(IF(J10,(BK10/BK9-1)),FALSE) -> FALSE | BS10: =IFERROR(IF(J10,(BL10/BL9-1)),FALSE) -> FALSE | BT10: =IFERROR(IF(J10,(BM10/BM9-1)),FALSE) -> FALSE | BU10: =BU9*(1+BO10) -> 1 | BV10: =BV9*(1+BP10) -> 1 | BW10: 1 | BX10: 1 | BY10: 1 | BZ10: 1 | CU10: =D10 -> 2008-03-01 | CV10: =NA() -> 
A11: 1928-01-01 | B11: =IFERROR(LOOKUP($A11,INDIRECT("'"&B$6&"'!A:A"),INDIRECT("'"&B$6&"'!"&$B$9&":"&$B$9)),0) -> 17.65999985 | C11: 2 | D11: =EOMONTH(D10,0) -> 2008-03-31 | E11: =E10+7 -> 2008-03-08 | F11: =IF(WEEKDAY(F10)=5,F10+3,F10+1) -> 2008-03-02 | G11: 2008-03-31 | H11: =G11 -> 2008-03-31 | I11: 1322.699951 | J11: =AND(H11>=$I$4,H11<=$I$2) -> TRUE | K11: 1 | L11: =IF(K11,K11,IF(L12,L12,1)) -> 1 | M11: 1322.699951 | N11: =IFERROR((M11/M10-1),FALSE) -> 0 | O11: =IFERROR(LN($M11/$M10),FALSE) -> 0 | P11: =CHOOSE($P$9,N11,O11) -> 0 | Q11: =IF($J11,(Q10*(1+P11)),Q10) -> 1 | R11: 2008-03-31 | S11: 1 | T11: 2008-03-31 | U11: =IF(ISNUMBER(T11),S11,NA()) -> 1 | V11: =IF(ISNUMBER(T11),CHOOSE($S$1,BH11,BO11,BU11),NA()) -> 1 | W11: =IF(ISNUMBER(T11),CHOOSE($S$1,BI11,BP11,BV11),NA()) -> 1 | X11: =IF(ISNUMBER(T11),CHOOSE($S$1,BJ11,BQ11,BW11),NA()) -> 1 | Y11: =IF(ISNUMBER(T11),CHOOSE($S$1,BK11,BR11,BX11),NA()) -> 1 | Z11: =IF(ISNUMBER(T11),CHOOSE($S$1,BL11,BS11,BY11),NA()) -> 1 | AA11: =IF(ISNUMBER(T11),CHOOSE($S$1,BM11,BT11,BZ11),NA()) -> 1 | AH11: 0 | AI11: 0 | AJ11: 12.49481964 | AK11: 0 | AL11: 0 | AM11: 0 | AN11: =IFERROR(LOOKUP($A11,INDIRECT("'"&AU$6&"'!A:A"),INDIRECT("'"&AU$6&"'!"&AU$7&":"&AU$7)),1) -> 1 | AO11: =IFERROR(LOOKUP($A11,INDIRECT("'"&AV$6&"'!A:A"),INDIRECT("'"&AV$6&"'!"&AV$7&":"&AV$7)),1) -> 1 | AP11: 0 | AQ11: 0 | AR11: 0 | AS11: 0 | AT11: 0 | AU11: 0.01145278589 | AV11: 0.004684981822 | AW11: 1.552559759 | AX11: 0.02502502503 | AY11: 2.0015 | AZ11: 0.01420292476 | BA11: 6.730679014e-05 | BB11: 1 | BC11: 1 | BD11: 1 | BE11: 1 | BF11: 1 | BG11: 1 | BH11: =IFERROR(IF(ISNUMBER(AH11)>0.1,AH11,BH12)*BB11,BH12) -> 0 | BI11: 0 | BJ11: 12.49481964 | BK11: 0 | BL11: 0 | BM11: 0 | BN11: =IF(J11,N11) -> 0 | BO11: =IFERROR(IF(J11,(BH11/BH10-1)),FALSE) -> FALSE | BP11: =IFERROR(IF(J11,(BI11/BI10-1)),FALSE) -> FALSE | BQ11: =IFERROR(IF(J11,(BJ11/BJ10-1)),FALSE) -> 0 | BR11: =IFERROR(IF(J11,(BK11/BK10-1)),FALSE) -> FALSE | BS11: =IFERROR(IF(J11,(BL11/BL10-1)),FALSE) -> FALSE | BT11: =IFERROR(IF(J11,(BM11/BM10-1)),FALSE) -> FALSE | BU11: =BU10*(1+BO11) -> 1 | BV11: 1 | BW11: 1 | BX11: 1 | BY11: 1 | BZ11: 1 | CU11: =IF($CV$2,EOMONTH(CU10,1),IF(CU10<=$I$2,CU10+7)) -> 2008-04-30 | CV11: =T11 -> 2008-03-31 | CW11: =IF(J11,BN11,NA()) -> 0 | CX11: =INDEX(BO11:BT11,$CW$5) -> FALSE
A12: 1928-02-01 | B12: =IFERROR(LOOKUP($A12,INDIRECT("'"&B$6&"'!A:A"),INDIRECT("'"&B$6&"'!"&$B$9&":"&$B$9)),0) -> 17.53000069 | C12: 3 | D12: =EOMONTH(D11,1) -> 2008-04-30 | E12: =E11+7 -> 2008-03-15 | F12: =IF(WEEKDAY(F11)=5,F11+3,F11+1) -> 2008-03-03 | G12: 2008-04-30 | H12: 2008-04-30 | I12: 1385.589966 | J12: TRUE | K12: 1 | L12: 1 | M12: 1385.589966 | N12: 0.04754669764 | O12: 0.04645095191 | P12: 0.04754669764 | Q12: 1.047546698 | R12: 2008-04-30 | S12: 1.047546698 | T12: 2008-04-30 | U12: 1.047546698 | V12: 1 | W12: 1 | X12: 1.107217285 | Y12: 1 | Z12: 1 | AA12: 1 | AH12: 0 | AI12: 0 | AJ12: 13.83448029 | AK12: 0 | AL12: 0 | AM12: 0 | AN12: 1 | AO12: 1 | AP12: 0 | AQ12: 0 | AR12: 0 | AS12: 0 | AT12: 0 | AU12: 0.01139757004 | AV12: 0.004674164026 | AW12: 1.574572658 | AX12: 0.02507522568 | AY12: 1.9816 | AZ12: 0.01420292476 | BA12: 6.656367048e-05 | BB12: 1 | BC12: 1 | BD12: 1 | BE12: 1 | BF12: 1 | BG12: 1 | BH12: 0 | BI12: 0 | BJ12: 13.83448029 | BK12: 0 | BL12: 0 | BM12: 0 | BN12: 0.04754669764 | BO12: FALSE | BP12: FALSE | BQ12: 0.1072172855 | BR12: FALSE | BS12: FALSE | BT12: FALSE | BU12: 1 | BV12: 1 | BW12: 1.107217285 | BX12: 1 | BY12: 1 | BZ12: 1 | CU12: 2008-05-31 | CV12: 2008-04-30 | CW12: 0.04754669764 | CX12: =INDEX(BO12:BT12,$CW$5) -> FALSE
A13: 1928-03-01 | B13: 17.29999924 | C13: 4 | D13: =EOMONTH(D12,1) -> 2008-05-31 | E13: 2008-03-22 | F13: 2008-03-04 | G13: 2008-05-31 | H13: 2008-05-31 | I13: 1400.380005 | J13: TRUE | K13: 1 | L13: 1 | M13: 1400.380005 | N13: 0.0106741817 | O13: 0.01061761481 | P13: 0.0106741817 | Q13: 1.058728401 | R13: 2008-05-31 | S13: 1.058728401 | T13: 2008-05-31 | U13: 1.058728401 | V13: 1 | W13: 1 | X13: 1.145135985 | Y13: 1 | Z13: 1 | AA13: 1 | AH13: 0 | AI13: 0 | AJ13: 14.30826759 | AK13: 0 | AL13: 0 | AM13: 0 | AN13: 1 | AO13: 1 | AP13: 0 | AQ13: 0 | AR13: 0 | AS13: 0 | AT13: 0 | AU13: 0.01139757004 | AV13: 0.00464666741 | AW13: 1.55631013 | AX13: 0.02464268112 | AY13: 1.965 | AZ13: 0.01420292476 | BA13: 6.656367048e-05 | BB13: 1 | BC13: 1 | BD13: 1 | BE13: 1 | BF13: 1 | BG13: 1 | BH13: 0 | BI13: 0 | BJ13: 14.30826759 | BK13: 0 | BL13: 0 | BM13: 0 | BN13: 0.0106741817 | BO13: FALSE | BP13: FALSE | BQ13: 0.03424684541 | BR13: FALSE | BS13: FALSE | BT13: FALSE | BU13: 1 | BV13: 1 | BW13: 1.145135985 | BX13: 1 | BY13: 1 | BZ13: 1 | CU13: 2008-06-30 | CV13: 2008-05-31 | CW13: 0.0106741817 | CX13: =INDEX(BO13:BT13,$CW$5) -> FALSE
A14: 1928-04-01 | B14: 19.28000069 | C14: 5 | D14: 2008-06-30 | E14: 2008-03-29 | F14: 2008-03-05 | G14: 2008-06-30 | H14: 2008-06-30 | I14: 1280 | J14: TRUE | K14: 1 | L14: 1 | M14: 1280 | N14: -0.08596238483 | O14: -0.08988355392 | P14: -0.08596238483 | Q14: 0.9677175832 | R14: 2008-06-30 | S14: 0.9677175832 | T14: 2008-06-30 | U14: 0.9677175832 | V14: 1 | W14: 1 | X14: 1.098974963 | Y14: 1 | Z14: 1 | AA14: 1 | AH14: 0 | AI14: 6.47603178 | AJ14: 13.73149395 | AK14: 0 | AL14: 0 | AM14: 0 | AN14: 1 | AO14: 1 | AP14: 0 | AQ14: 0 | AR14: 0 | AS14: 0 | AT14: 0 | AU14: 0.01139757004 | AV14: 0.00459848342 | AW14: 1.555440338 | AX14: 0.02372479241 | AY14: 1.9664 | AZ14: 0.01420292476 | BA14: 6.656367048e-05 | BB14: 1 | BC14: 1 | BD14: 1 | BE14: 1 | BF14: 1 | BG14: 1 | BH14: 0 | BI14: 6.47603178 | BJ14: 13.73149395 | BK14: 0 | BL14: 0 | BM14: 0 | BN14: -0.08596238483 | BO14: FALSE | BP14: FALSE | BQ14: -0.04031051556 | BR14: FALSE | BS14: FALSE | BT14: FALSE | BU14: 1 | BV14: 1 | BW14: 1.098974963 | BX14: 1 | BY14: 1 | BZ14: 1 | CU14: 2008-07-31 | CV14: 2008-06-30 | CW14: -0.08596238483 | CX14: =INDEX(BO14:BT14,$CW$5) -> FALSE
A15: 1928-05-01 | B15: 19.78000069 | C15: 6 | D15: 2008-07-31 | E15: 2008-04-05 | F15: 2008-03-06 | G15: 2008-07-31 | H15: 2008-07-31 | I15: 1267.380005 | J15: TRUE | K15: 1 | L15: 1 | M15: 1267.380005 | N15: -0.009859371185 | O15: -0.009908296634 | P15: -0.009859371185 | Q15: 0.9581764963 | R15: 2008-07-31 | S15: 0.9581764963 | T15: 2008-07-31 | U15: 0.9581764963 | V15: 1 | W15: 0.874829903 | X15: 1.086052127 | Y15: 1 | Z15: 1 | AA15: 1 | AH15: 0 | AI15: 5.665426254 | AJ15: 13.57002544 | AK15: 0 | AL15: 0 | AM15: 0 | AN15: 1 | AO15: 1 | AP15: 0 | AQ15: 0 | AR15: 0 | AS15: 0 | AT15: 0 | AU15: 0.01131234516 | AV15: 0.004565876466 | AW15: 1.575774185 | AX15: 0.0231320842 | AY15: 1.9888 | AZ15: 0.01420292476 | BA15: 6.633177962e-05 | BB15: 1 | BC15: 1 | BD15: 1 | BE15: 1 | BF15: 1 | BG15: 1 | BH15: 0 | BI15: 5.665426254 | BJ15: 13.57002544 | BK15: 0 | BL15: 0 | BM15: 0 | BN15: -0.009859371185 | BO15: FALSE | BP15: -0.125170097 | BQ15: -0.01175899042 | BR15: FALSE | BS15: FALSE | BT15: FALSE | BU15: 1 | BV15: 0.874829903 | BW15: 1.086052127 | BX15: 1 | BY15: 1 | BZ15: 1 | CU15: 2008-08-31 | CV15: 2008-07-31 | CW15: -0.009859371185 | CX15: =INDEX(BO15:BT15,$CW$5) -> FALSE
A16: 1928-06-01 | B16: 20.06999969 | C16: 7 | D16: 2008-08-31 | E16: 2008-04-12 | F16: 2008-03-09 | G16: 2008-08-31 | H16: 2008-08-31 | I16: 1282.829956 | J16: TRUE | K16: 1 | L16: 1 | M16: 1282.829956 | N16: 0.01219046467 | O16: 0.01211675935 | P16: 0.01219046467 | Q16: 0.969857113 | R16: 2008-08-31 | S16: 0.969857113 | T16: 2008-08-31 | U16: 0.969857113 | V16: 1 | W16: 0.9482994278 | X16: 1.060745008 | Y16: 1 | Z16: 1 | AA16: 1 | AH16: 0 | AI16: 6.141217232 | AJ16: 13.25381756 | AK16: 0 | AL16: 0 | AM16: 0 | AN16: 1 | AO16: 1 | AP16: 0 | AQ16: 0 | AR16: 0 | AS16: 0 | AT16: 0 | AU16: 0.01131234516 | AV16: 0.004572682793 | AW16: 1.494768311 | AX16: 0.02366303833 | AY16: 1.8865 | AZ16: 0.01420292476 | BA16: 6.633177962e-05 | BB16: 1 | BC16: 1 | BD16: 1 | BE16: 1 | BF16: 1 | BG16: 1 | BH16: 0 | BI16: 6.141217232 | BJ16: 13.25381756 | BK16: 0 | BL16: 0 | BM16: 0 | BN16: 0.01219046467 | BO16: FALSE | BP16: 0.08398149691 | BQ16: -0.02330193757 | BR16: FALSE | BS16: FALSE | BT16: FALSE | BU16: 1 | BV16: 0.9482994278 | BW16: 1.060745008 | BX16: 1 | BY16: 1 | BZ16: 1 | CU16: 2008-09-30 | CV16: 2008-08-31 | CW16: 0.01219046467 | CX16: =INDEX(BO16:BT16,$CW$5) -> FALSE
A17: 1928-07-01 | B17: 19.13999939 | C17: 8 | D17: 2008-09-30 | E17: 2008-04-19 | F17: 2008-03-10 | G17: 2008-09-30 | H17: 2008-09-30 | I17: 1166.359985 | J17: TRUE | K17: 1 | L17: 1 | M17: 1166.359985 | N17: -0.09079143354 | O17: -0.09518076508 | P17: -0.09079143354 | Q17: 0.8818023954 | R17: 2008-09-30 | S17: 0.8818023954 | T17: 2008-09-30 | U17: 0.8818023954 | V17: 1 | W17: 0.7605443192 | X17: 0.9826700488 | Y17: 1 | Z17: 1 | AA17: 1 | AH17: 0 | AI17: 4.925309181 | AJ17: 12.27828503 | AK17: 0 | AL17: 0 | AM17: 0 | AN17: 1 | AO17: 1 | AP17: 0 | AQ17: 0 | AR17: 0 | AS17: 0 | AT17: 0 | AU17: 0.01131234516 | AV17: 0.004568776071 | AW17: 1.434626671 | AX17: 0.02151925974 | AY17: 1.7973 | AZ17: 0.01420292476 | BA17: 6.633177962e-05 | BB17: 1 | BC17: 1 | BD17: 1 | BE17: 1 | BF17: 1 | BG17: 1 | BH17: 0 | BI17: 4.925309181 | BJ17: 12.27828503 | BK17: 0 | BL17: 0 | BM17: 0 | BN17: -0.09079143354 | BO17: FALSE | BP17: -0.1979913761 | BQ17: -0.07360389016 | BR17: FALSE | BS17: FALSE | BT17: FALSE | BU17: 1 | BV17: 0.7605443192 | BW17: 0.9826700488 | BX17: 1 | BY17: 1 | BZ17: 1 | CU17: 2008-10-31 | CV17: 2008-09-30 | CW17: -0.09079143354 | CX17: =INDEX(BO17:BT17,$CW$5) -> FALSE
A18: 1928-08-01 | B18: 19.42000008 | C18: 9 | D18: 2008-10-31 | E18: 2008-04-26 | F18: 2008-03-11 | G18: 2008-10-31 | H18: 2008-10-31 | I18: 968.75 | J18: TRUE | K18: 1 | L18: 1 | M18: 968.75 | N18: -0.169424524 | O18: -0.1856364739 | P18: -0.169424524 | Q18: 0.7324034443 | R18: 2008-10-31 | S18: 0.7324034443 | T18: 2008-10-31 | U18: 0.7324034443 | V18: 1 | W18: 0.551020442 | X18: 0.932997974 | Y18: 1 | Z18: 1 | AA18: 1 | AH18: 0 | AI18: 3.568425894 | AJ18: 11.65764141 | AK18: 0 | AL18: 0 | AM18: 0 | AN18: 1 | AO18: 1 | AP18: 0 | AQ18: 0 | AR18: 0 | AS18: 0 | AT18: 0 | AU18: 0.0112850259 | AV18: 0.004608401115 | AW18: 1.327408091 | AX18: 0.02151925974 | AY18: 1.6862 | AZ18: 0.01420292476 | BA18: 6.800860336e-05 | BB18: 1 | BC18: 1 | BD18: 1 | BE18: 1 | BF18: 1 | BG18: 1 | BH18: 0 | BI18: 3.568425894 | BJ18: 11.65764141 | BK18: 0 | BL18: 0 | BM18: 0 | BN18: -0.169424524 | BO18: FALSE | BP18: -0.2754920021 | BQ18: -0.05054807038 | BR18: FALSE | BS18: FALSE | BT18: FALSE | BU18: 1 | BV18: 0.551020442 | BW18: 0.932997974 | BX18: 1 | BY18: 1 | BZ18: 1 | CU18: 2008-11-30 | CV18: 2008-10-31 | CW18: -0.169424524 | CX18: =INDEX(BO18:BT18,$CW$5) -> FALSE
A19: 1928-09-01 | B19: 20.87000084 | C19: 10 | D19: 2008-11-30 | E19: 2008-05-03 | F19: 2008-03-12 | G19: 2008-11-30 | H19: 2008-11-30 | I19: 896.2399902 | J19: TRUE | K19: 1 | L19: 1 | M19: 896.2399902 | N19: -0.07484904234 | O19: -0.07779835731 | P19: -0.07484904234 | Q19: 0.6775837479 | R19: 2008-11-30 | S19: 0.6775837479 | T19: 2008-11-30 | U19: 0.6775837479 | V19: 1 | W19: 0.6653061363 | X19: 0.8468461661 | Y19: 1 | Z19: 1 | AA19: 1 | AH19: 0 | AI19: 4.308543682 | AJ19: 10.58119011 | AK19: 0 | AL19: 0 | AM19: 0 | AN19: 1 | AO19: 1 | AP19: 0 | AQ19: 0 | AR19: 0 | AS19: 0 | AT19: 0 | AU19: 0.0112850259 | AV19: 0.004691465755 | AW19: 1.272102786 | AX19: 0.02024291498 | AY19: 1.5327 | AZ19: 0.01420292476 | BA19: 6.800860336e-05 | BB19: 1 | BC19: 1 | BD19: 1 | BE19: 1 | BF19: 1 | BG19: 1 | BH19: 0 | BI19: 4.308543682 | BJ19: 10.58119011 | BK19: 0 | BL19: 0 | BM19: 0 | BN19: -0.07484904234 | BO19: FALSE | BP19: 0.2074073584 | BQ19: -0.09233868702 | BR19: FALSE | BS19: FALSE | BT19: FALSE | BU19: 1 | BV19: 0.6653061363 | BW19: 0.8468461661 | BX19: 1 | BY19: 1 | BZ19: 1 | CU19: 2008-12-31 | CV19: 2008-11-30 | CW19: -0.07484904234 | CX19: =INDEX(BO19:BT19,$CW$5) -> FALSE
A20: 1928-10-01 | B20: 21.36000061 | C20: 11 | D20: 2008-12-31 | E20: 2008-05-10 | F20: 2008-03-13 | G20: 2008-12-31 | H20: 2008-12-31 | I20: 903.25 | J20: TRUE | K20: 1 | L20: 1 | M20: 903.25 | N20: 0.007821576633 | O20: 0.007791146673 | P20: 0.007821576633 | Q20: 0.6828835211 | R20: 2008-12-31 | S20: 0.6828835211 | T20: 2008-12-31 | U20: 0.6828835211 | V20: 1 | W20: 0.6806803776 | X20: 0.9757182389 | Y20: 1 | Z20: 1 | AA20: 1 | AH20: 0 | AI20: 4.408107758 | AJ20: 12.19142342 | AK20: 0 | AL20: 0 | AM20: 0 | AN20: 1 | AO20: 1 | AP20: 0 | AQ20: 0 | AR20: 0 | AS20: 0 | AT20: 0 | AU20: 0.0112850259 | AV20: 0.004730413722 | AW20: 1.342732461 | AX20: 0.02002402883 | AY20: 1.4854 | AZ20: 0.01420292476 | BA20: 6.800860336e-05 | BB20: =IF(BB$7,INDEX($AU20:$BA20,BB$7),1) -> 1 | BC20: 1 | BD20: 1 | BE20: 1 | BF20: 1 | BG20: 1 | BH20: 0 | BI20: 4.408107758 | BJ20: 12.19142342 | BK20: 0 | BL20: 0 | BM20: 0 | BN20: 0.007821576633 | BO20: FALSE | BP20: 0.02310852177 | BQ20: 0.1521788466 | BR20: FALSE | BS20: FALSE | BT20: FALSE | BU20: 1 | BV20: 0.6806803776 | BW20: 0.9757182389 | BX20: 1 | BY20: 1 | BZ20: 1 | CU20: 2009-01-31 | CV20: 2008-12-31 | CW20: 0.007821576633 | CX20: =INDEX(BO20:BT20,$CW$5) -> FALSE
A21: 1928-11-01 | B21: 21.98999977 | C21: 12 | D21: 2009-01-31 | E21: 2008-05-17 | F21: 2008-03-16 | G21: 2009-01-31 | H21: 2009-01-31 | I21: 825.8800049 | J21: TRUE | K21: 1 | L21: 1 | M21: 825.8800049 | N21: -0.08565734306 | O21: -0.0895498796 | P21: -0.08565734306 | Q21: 0.6243895331 | R21: 2009-01-31 | S21: 0.6243895331 | T21: 2009-01-31 | U21: 0.6243895331 | V21: 1 | W21: 0.7918369355 | X21: 0.8305689736 | Y21: 1 | Z21: 1 | AA21: 1 | AH21: 0 | AI21: 5.127961159 | AJ21: 10.37780952 | AK21: 0 | AL21: 0 | AM21: 0 | AN21: 1 | AO21: 1 | AP21: 0 | AQ21: 0 | AR21: 0 | AS21: 0 | AT21: 0 | AU21: 0.01129394757 | AV21: 0.004718472347 | AW21: 1.318739285 | AX21: 0.0204792136 | AY21: 1.4462 | AZ21: 0.01223797102 | BA21: 6.872104568e-05 | BB21: 1 | BC21: 1 | BD21: 1 | BE21: 1 | BF21: 1 | BG21: 1 | BH21: 0 | BI21: 5.127961159 | BJ21: 10.37780952 | BK21: 0 | BL21: 0 | BM21: 0 | BN21: -0.08565734306 | BO21: FALSE | BP21: 0.1633021334 | BQ21: -0.1487614555 | BR21: FALSE | BS21: FALSE | BT21: FALSE | BU21: 1 | BV21: 0.7918369355 | BW21: 0.8305689736 | BX21: 1 | BY21: 1 | BZ21: 1 | CU21: 2009-02-28 | CV21: 2009-01-31 | CW21: -0.08565734306 | CX21: =INDEX(BO21:BT21,$CW$5) -> FALSE
A22: 1928-12-01 | B22: 24.28000069 | C22: 13 | D22: 2009-02-28 | E22: 2008-05-24 | F22: 2008-03-17 | G22: 2009-02-28 | H22: 2009-02-28 | I22: 735.0900269 | J22: TRUE | K22: 1 | L22: 1 | M22: 735.0900269 | N22: -0.1099311976 | O22: -0.1164565132 | P22: -0.1099311976 | Q22: 0.5557496439 | R22: 2009-02-28 | S22: 0.5557496439 | T22: 2009-02-28 | U22: 0.5557496439 | V22: 1 | W22: 0.7918369355 | X22: 0.6985396933 | Y22: 1 | Z22: 1 | AA22: 1 | AH22: 0 | AI22: 5.127961159 | AJ22: 8.72812748 | AK22: 0 | AL22: 0 | AM22: 0 | AN22: 1 | AO22: 1 | AP22: 0 | AQ22: 0 | AR22: 0 | AS22: 0 | AT22: 0 | AU22: 0.01129394757 | AV22: 0.004701346936 | AW22: 1.280983796 | AX22: 0.0204792136 | AY22: 1.4422 | AZ22: 0.01223797102 | BA22: 6.872104568e-05 | BB22: 1 | BC22: 1 | BD22: 1 | BE22: 1 | BF22: 1 | BG22: 1 | BH22: 0 | BI22: 5.127961159 | BJ22: 8.72812748 | BK22: 0 | BL22: 0 | BM22: 0 | BN22: -0.1099311976 | BO22: FALSE | BP22: 0 | BQ22: -0.1589624517 | BR22: FALSE | BS22: FALSE | BT22: FALSE | BU22: 1 | BV22: 0.7918369355 | BW22: 0.6985396933 | BX22: 1 | BY22: 1 | BZ22: 1 | CU22: 2009-03-31 | CV22: 2009-02-28 | CW22: -0.1099311976 | CX22: =INDEX(BO22:BT22,$CW$5) -> FALSE
A23: 1929-01-01 | B23: 24.35000038 | C23: 14 | D23: 2009-03-31 | E23: 2008-05-31 | F23: 2008-03-18 | G23: 2009-03-31 | H23: 2009-03-31 | I23: 797.8699951 | J23: TRUE | K23: 1 | L23: 1 | M23: 797.8699951 | N23: 0.085404462 | O23: 0.08195269356 | P23: 0.085404462 | Q23: 0.6032131432 | R23: 2009-03-31 | S23: 0.6032131432 | T23: 2009-03-31 | U23: 0.6032131432 | V23: 1 | W23: 0.8365988836 | X23: 0.7140073767 | Y23: 1 | Z23: 1 | AA23: 1 | AH23: 0 | AI23: 5.417840958 | AJ23: 8.921393394 | AK23: 0 | AL23: 0 | AM23: 0 | AN23: 1 | AO23: 1 | AP23: 0 | AQ23: 0 | AR23: 0 | AS23: 0 | AT23: 0 | AU23: 0.01129394757 | AV23: 0.004705993082 | AW23: 1.304012803 | AX23: 0.01965408805 | AY23: 1.417 | AZ23: 0.01223797102 | BA23: 6.872104568e-05 | BB23: 1 | BC23: 1 | BD23: 1 | BE23: 1 | BF23: 1 | BG23: 1 | BH23: 0 | BI23: 5.417840958 | BJ23: 8.921393394 | BK23: 0 | BL23: 0 | BM23: 0 | BN23: 0.085404462 | BO23: FALSE | BP23: 0.05652925011 | BQ23: 0.02214288407 | BR23: FALSE | BS23: FALSE | BT23: FALSE | BU23: 1 | BV23: 0.8365988836 | BW23: 0.7140073767 | BX23: 1 | BY23: 1 | BZ23: 1 | CU23: 2009-04-30 | CV23: 2009-03-31 | CW23: 0.085404462 | CX23: =INDEX(BO23:BT23,$CW$5) -> FALSE
A24: 1929-02-01 | B24: 25.84000015 | C24: 15 | D24: 2009-04-30 | E24: 2008-06-07 | F24: 2008-03-19 | G24: 2009-04-30 | H24: 2009-04-30 | I24: 872.8099976 | J24: TRUE | K24: 1 | L24: 1 | M24: 872.8099976 | N24: 0.09392507915 | O24: 0.08977221824 | P24: 0.09392507915 | Q24: 0.6598699855 | R24: 2009-04-30 | S24: 0.6598699855 | T24: 2009-04-30 | U24: 0.6598699855 | V24: 1 | W24: 0.8435375076 | X24: 0.7540582309 | Y24: 1 | Z24: 1 | AA24: 1 | AH24: 0 | AI24: 5.462775707 | AJ24: 9.421821594 | AK24: 0 | AL24: 0 | AM24: 0 | AN24: 1 | AO24: 1 | AP24: 0 | AQ24: 0 | AR24: 0 | AS24: 0 | AT24: 0 | AU24: 0.01131272908 | AV24: 0.004701258527 | AW24: 1.320290464 | AX24: 0.01980982567 | AY24: 1.4712 | AZ24: 0.01223797102 | BA24: 6.894648801e-05 | BB24: 1 | BC24: 1 | BD24: 1 | BE24: 1 | BF24: 1 | BG24: 1 | BH24: 0 | BI24: 5.462775707 | BJ24: 9.421821594 | BK24: 0 | BL24: 0 | BM24: 0 | BN24: 0.09392507915 | BO24: FALSE | BP24: 0.008293848039 | BQ24: 0.05609305381 | BR24: FALSE | BS24: FALSE | BT24: FALSE | BU24: 1 | BV24: 0.8435375076 | BW24: 0.7540582309 | BX24: 1 | BY24: 1 | BZ24: 1 | CU24: 2009-05-31 | CV24: 2009-04-30 | CW24: 0.09392507915 | CX24: =INDEX(BO24:BT24,$CW$5) -> FALSE
A25: 1929-03-01 | B25: 25.82999992 | C25: 16 | D25: 2009-05-31 | E25: 2008-06-14 | F25: 2008-03-20 | G25: 2009-05-31 | H25: 2009-05-31 | I25: 919.1400146 | J25: TRUE | K25: 1 | L25: 1 | M25: 919.1400146 | N25: 0.05308144639 | O25: 0.05172057716 | P25: 0.05308144639 | Q25: 0.6948968387 | R25: 2009-05-31 | S25: 0.6948968387 | T25: 2009-05-31 | U25: 0.6948968387 | V25: 1 | W25: 1.017687141 | X25: 0.7666258477 | Y25: 1 | Z25: 1 | AA25: 1 | AH25: 0 | AI25: 6.590574265 | AJ25: 9.5788517 | AK25: 0 | AL25: 0 | AM25: 0 | AN25: 1 | AO25: 1 | AP25: 0 | AQ25: 0 | AR25: 0 | AS25: 0 | AT25: 0 | AU25: 0.01131272908 | AV25: 0.004694350818 | AW25: 1.366209095 | AX25: 0.02014098691 | AY25: 1.5418 | AZ25: 0.01223797102 | BA25: 6.894648801e-05 | BB25: 1 | BC25: 1 | BD25: 1 | BE25: 1 | BF25: 1 | BG25: 1 | BH25: 0 | BI25: 6.590574265 | BJ25: 9.5788517 | BK25: 0 | BL25: 0 | BM25: 0 | BN25: 0.05308144639 | BO25: FALSE | BP25: 0.2064515583 | BQ25: 0.01666663967 | BR25: FALSE | BS25: FALSE | BT25: FALSE | BU25: 1 | BV25: 1.017687141 | BW25: 0.7666258477 | BX25: 1 | BY25: 1 | BZ25: 1 | CU25: 2009-06-30 | CV25: 2009-05-31 | CW25: 0.05308144639 | CX25: =INDEX(BO25:BT25,$CW$5) -> FALSE
A26: 1929-04-01 | B26: 24.87999916 | C26: 17 | D26: 2009-06-30 | E26: 2008-06-21 | F26: 2008-03-23 | G26: 2009-06-30 | H26: 2009-06-30 | I26: 919.3200073 | J26: TRUE | K26: 1 | L26: 1 | M26: 919.3200073 | N26: 0.0001958272656 | O26: 0.000195808094 | P26: 0.0001958272656 | Q26: 0.6950329185 | R26: 2009-06-30 | S26: 0.6950329185 | T26: 2009-06-30 | U26: 0.6950329185 | V26: 1 | W26: 0.9931972989 | X26: 0.7491774393 | Y26: 1 | Z26: 1 | AA26: 1 | AB26: =LOOKUP($A26,INDIRECT("'"&AB$5&"'!A:A"),INDIRECT("'"&AB$5&"'!"&AB$7&":"&AB$7)) ->  | AF26: =LOOKUP($A26,INDIRECT("'"&AF$5&"'!A:A"),INDIRECT("'"&AF$5&"'!"&AF$7&":"&AF$7)) ->  | AH26: 0 | AI26: 6.431977272 | AJ26: 9.360836983 | AK26: 0 | AL26: 0 | AM26: 0 | AN26: 1 | AO26: 1 | AP26: =IFERROR(LOOKUP($A26,INDIRECT("'"&AW$6&"'!A:A"),INDIRECT("'"&AW$6&"'!"&AW$7&":"&AW$7)),0) -> 0 | AQ26: 0 | AR26: 0 | AS26: 0 | AT26: =IFERROR(LOOKUP($A26,INDIRECT("'"&BA$6&"'!A:A"),INDIRECT("'"&BA$6&"'!"&BA$7&":"&BA$7)),0) -> 0 | AU26: 0.01131272908 | AV26: 0.004655710229 | AW26: 1.401407778 | AX26: 0.02137665669 | AY26: 1.6369 | AZ26: 0.01223797102 | BA26: 6.894648801e-05 | BB26: 1 | BC26: 1 | BD26: 1 | BE26: 1 | BF26: 1 | BG26: 1 | BH26: 0 | BI26: 6.431977272 | BJ26: 9.360836983 | BK26: 0 | BL26: 0 | BM26: 0 | BN26: 0.0001958272656 | BO26: FALSE | BP26: -0.02406421446 | BQ26: -0.02276000547 | BR26: FALSE | BS26: FALSE | BT26: FALSE | BU26: 1 | BV26: =BV25*(1+BP26) -> 0.9931972989 | BW26: =BW25*(1+BQ26) -> 0.7491774393 | BX26: =BX25*(1+BR26) -> 1 | BY26: =BY25*(1+BS26) -> 1 | BZ26: =BZ25*(1+BT26) -> 1 | CU26: 2009-07-31 | CV26: 2009-06-30 | CW26: 0.0001958272656 | CX26: =INDEX(BO26:BT26,$CW$5) -> FALSE
A27: 1929-05-01 | B27: 25.98999977 | C27: 18 | D27: 2009-07-31 | E27: 2008-06-28 | F27: 2008-03-24 | G27: 2009-07-31 | H27: 2009-07-31 | I27: 987.4799805 | J27: TRUE | K27: 1 | L27: 1 | M27: 987.4799805 | N27: 0.07414172715 | O27: 0.07152194934 | P27: 0.07414172715 | Q27: 0.7465638595 | R27: 2009-07-31 | S27: 0.7465638595 | T27: 2009-07-31 | U27: 0.7465638595 | V27: 1 | W27: 0.980136325 | X27: 0.7566578037 | Y27: 1 | Z27: 1 | AA27: 1 | AH27: 0 | AI27: 6.34739399 | AJ27: 9.454302788 | AK27: 0 | AL27: 0 | AM27: 0 | AN27: 1 | AO27: 1 | AP27: 0 | AQ27: 0 | AR27: 0 | AS27: 0 | AT27: 0 | AU27: 0.01129930735 | AV27: 0.004657097883 | AW27: 1.408795786 | AX27: 0.02094240838 | AY27: 1.6378 | AZ27: 0.01223797102 | BA27: 6.834658938e-05 | BB27: 1 | BC27: 1 | BD27: 1 | BE27: 1 | BF27: 1 | BG27: 1 | BH27: 0 | BI27: 6.34739399 | BJ27: 9.454302788 | BK27: 0 | BL27: 0 | BM27: 0 | BN27: 0.07414172715 | BO27: FALSE | BP27: -0.01315043242 | BQ27: 0.009984770083 | BR27: FALSE | BS27: FALSE | BT27: FALSE | BU27: 1 | BV27: 0.980136325 | BW27: 0.7566578037 | BX27: 1 | BY27: 1 | BZ27: 1 | CU27: 2009-08-31 | CV27: 2009-07-31 | CW27: 0.07414172715 | CX27: =INDEX(BO27:BT27,$CW$5) -> FALSE
A28: 1929-06-01 | B28: 24.82999992 | C28: 19 | D28: 2009-08-31 | E28: 2008-07-05 | F28: 2008-03-25 | G28: 2009-08-31 | H28: 2009-08-31 | I28: 1020.619995 | J28: TRUE | K28: 1 | L28: 1 | M28: 1020.619995 | N28: 0.03356018887 | O28: 0.03300933634 | P28: 0.03356018887 | Q28: 0.7716186836 | R28: 2009-08-31 | S28: 0.7716186836 | T28: 2009-08-31 | U28: 0.7716186836 | V28: 1 | W28: 0.9414966531 | X28: 0.8296281082 | Y28: 1 | Z28: 1 | AA28: 1 | AH28: 0 | AI28: 6.097162247 | AJ28: 10.36605358 | AK28: 0 | AL28: 0 | AM28: 0 | AN28: 1 | AO28: 1 | AP28: 0 | AQ28: 0 | AR28: 0 | AS28: 0 | AT28: 0 | AU28: 0.01129930735 | AV28: 0.00464155585 | AW28: 1.426533524 | AX28: 0.02087246921 | AY28: 1.6532 | AZ28: 0.01223797102 | BA28: 6.834658938e-05 | BB28: 1 | BC28: 1 | BD28: 1 | BE28: 1 | BF28: 1 | BG28: 1 | BH28: 0 | BI28: 6.097162247 | BJ28: 10.36605358 | BK28: 0 | BL28: 0 | BM28: 0 | BN28: 0.03356018887 | BO28: FALSE | BP28: -0.03942275259 | BQ28: 0.09643765531 | BR28: FALSE | BS28: FALSE | BT28: FALSE | BU28: 1 | BV28: 0.9414966531 | BW28: 0.8296281082 | BX28: 1 | BY28: 1 | BZ28: 1 | CU28: 2009-09-30 | CV28: 2009-08-31 | CW28: 0.03356018887 | CX28: =INDEX(BO28:BT28,$CW$5) -> FALSE
A29: 1929-07-01 | B29: 27.77000046 | C29: 20 | D29: 2009-09-30 | E29: 2008-07-12 | F29: 2008-03-26 | G29: 2009-09-30 | H29: 2009-09-30 | I29: 1057.079956 | J29: TRUE | K29: 1 | L29: 1 | M29: 1057.079956 | N29: 0.03572334572 | O29: 0.03510006737 | P29: 0.03572334572 | Q29: 0.7991834846 | R29: 2009-09-30 | S29: 0.7991834846 | T29: 2009-09-30 | U29: 0.7991834846 | V29: 1 | W29: 1.022449083 | X29: 0.8565859203 | Y29: 1 | Z29: 1 | AA29: 1 | AH29: 0 | AI29: 6.621412754 | AJ29: 10.70288658 | AK29: 0 | AL29: 0 | AM29: 0 | AN29: 1 | AO29: 1 | AP29: 0 | AQ29: 0 | AR29: 0 | AS29: 0 | AT29: 0 | AU29: 0.01129930735 | AV29: 0.0046326108 | AW29: 1.456760694 | AX29: 0.02038735984 | AY29: 1.6323 | AZ29: 0.01223797102 | BA29: 6.834658938e-05 | BB29: 1 | BC29: 1 | BD29: 1 | BE29: 1 | BF29: 1 | BG29: 1 | BH29: 0 | BI29: 6.621412754 | BJ29: 10.70288658 | BK29: 0 | BL29: 0 | BM29: 0 | BN29: 0.03572334572 | BO29: FALSE | BP29: 0.08598270575 | BQ29: 0.03249385097 | BR29: FALSE | BS29: FALSE | BT29: FALSE | BU29: 1 | BV29: 1.022449083 | BW29: 0.8565859203 | BX29: 1 | BY29: 1 | BZ29: 1 | CU29: 2009-10-31 | CV29: 2009-09-30 | CW29: 0.03572334572 | CX29: =INDEX(BO29:BT29,$CW$5) -> FALSE
A30: 1929-08-01 | B30: 29.07999992 | C30: 21 | D30: 2009-10-31 | E30: 2008-07-19 | F30: 2008-03-27 | G30: 2009-10-31 | H30: 2009-10-31 | I30: 1036.189941 | J30: TRUE | K30: 1 | L30: 1 | M30: 1036.189941 | N30: -0.01976200053 | O30: -0.0199598802 | P30: -0.01976200053 | Q30: 0.7833900202 | R30: 2009-10-31 | S30: 0.7833900202 | T30: 2009-10-31 | U30: 0.7833900202 | V30: 1 | W30: 0.9224490313 | X30: 0.804645831 | Y30: 1 | Z30: 1 | AA30: 1 | AH30: 0 | AI30: 5.973809242 | AJ30: 10.05390453 | AK30: 0 | AL30: 0 | AM30: 0 | AN30: 1 | AO30: 1 | AP30: 0 | AQ30: 0 | AR30: 0 | AS30: 0 | AT30: 0 | AU30: 0.01126367128 | AV30: 0.004618745641 | AW30: 1.481481481 | AX30: 0.02095557418 | AY30: 1.6212 | AZ30: 0.01223797102 | BA30: 6.744750645e-05 | BB30: =IF(BB$7,INDEX($AU30:$BA30,BB$7),1) -> 1 | BC30: 1 | BD30: 1 | BE30: 1 | BF30: 1 | BG30: 1 | BH30: 0 | BI30: 5.973809242 | BJ30: 10.05390453 | BK30: 0 | BL30: 0 | BM30: 0 | BN30: -0.01976200053 | BO30: FALSE | BP30: -0.09780443175 | BQ30: -0.06063616979 | BR30: FALSE | BS30: FALSE | BT30: FALSE | BU30: 1 | BV30: 0.9224490313 | BW30: 0.804645831 | BX30: 1 | BY30: 1 | BZ30: 1 | CU30: 2009-11-30 | CV30: 2009-10-31 | CW30: -0.01976200053 | CX30: =INDEX(BO30:BT30,$CW$5) -> FALSE
A31: 1929-09-01 | B31: 31.70999908 | C31: 22 | D31: 2009-11-30 | E31: 2008-07-26 | F31: 2008-03-30 | G31: 2009-11-30 | H31: 2009-11-30 | I31: 1095.630005 | J31: TRUE | K31: 1 | L31: 1 | M31: 1095.630005 | N31: 0.05736406145 | O31: 0.05577907659 | P31: 0.05736406145 | Q31: 0.8283284534 | R31: 2009-11-30 | S31: 0.8283284534 | T31: 2009-11-30 | U31: 0.8283284534 | V31: 1 | W31: 0.8902041444 | X31: 0.7850272574 | Y31: 1 | Z31: 1 | AA31: 1 | AH31: 0 | AI31: 5.76499033 | AJ31: 9.808773994 | AK31: 0 | AL31: 0 | AM31: 0 | AN31: 1 | AO31: 1 | AP31: 0 | AQ31: 0 | AR31: 0 | AS31: 0 | AT31: 0 | AU31: 0.01126367128 | AV31: 0.00460333097 | AW31: 1.492017705 | AX31: 0.02132196162 | AY31: 1.6599 | AZ31: 0.01223797102 | BA31: 6.744750645e-05 | BB31: 1 | BC31: 1 | BD31: 1 | BE31: 1 | BF31: 1 | BG31: 1 | BH31: 0 | BI31: 5.76499033 | BJ31: 9.808773994 | BK31: 0 | BL31: 0 | BM31: 0 | BN31: 0.05736406145 | BO31: FALSE | BP31: -0.0349557383 | BQ31: -0.02438162588 | BR31: FALSE | BS31: FALSE | BT31: FALSE | BU31: 1 | BV31: 0.8902041444 | BW31: 0.7850272574 | BX31: 1 | BY31: 1 | BZ31: 1 | CU31: 2009-12-31 | CV31: 2009-11-30 | CW31: 0.05736406145 | CX31: =INDEX(BO31:BT31,$CW$5) -> FALSE
A32: 1929-10-01 | B32: 29.97999954 | C32: 23 | D32: 2009-12-31 | E32: 2008-08-02 | F32: 2008-03-31 | G32: 2009-12-31 | H32: 2009-12-31 | I32: 1115.099976 | J32: TRUE | K32: 1 | L32: 1 | M32: 1115.099976 | N32: 0.01777057092 | O32: 0.01761452035 | P32: 0.01777057092 | Q32: 0.8430483229 | R32: 2009-12-31 | S32: 0.8430483229 | T32: 2009-12-31 | U32: 0.8430483229 | V32: 1 | W32: 0.9020410018 | X32: 0.8548921031 | Y32: 1 | Z32: 1 | AA32: 1 | AH32: 0 | AI32: 5.841646194 | AJ32: 10.68172264 | AK32: 0 | AL32: 0 | AM32: 0 | AN32: 1 | AO32: 1 | AP32: 0 | AQ32: 0 | AR32: 0 | AS32: 0 | AT32: 0 | AU32: 0.01126367128 | AV32: 0.004600937671 | AW32: 1.456987204 | AX32: 0.02164033759 | AY32: 1.6226 | AZ32: 0.01223797102 | BA32: 6.744750645e-05 | BB32: 1 | BC32: 1 | BD32: 1 | BE32: 1 | BF32: 1 | BG32: 1 | BH32: 0 | BI32: 5.841646194 | BJ32: 10.68172264 | BK32: 0 | BL32: 0 | BM32: 0 | BN32: 0.01777057092 | BO32: FALSE | BP32: 0.01329678982 | BQ32: 0.08899671325 | BR32: FALSE | BS32: FALSE | BT32: FALSE | BU32: 1 | BV32: 0.9020410018 | BW32: 0.8548921031 | BX32: 1 | BY32: 1 | BZ32: 1 | CU32: 2010-01-31 | CV32: 2009-12-31 | CW32: 0.01777057092 | CX32: =INDEX(BO32:BT32,$CW$5) -> FALSE
A33: 1929-11-01 | B33: 24.14999962 | C33: 24 | D33: 2010-01-31 | E33: 2008-08-09 | F33: 2008-04-01 | G33: 2010-01-31 | H33: 2010-01-31 | I33: 1073.869995 | J33: TRUE | K33: 1 | L33: 1 | M33: 1073.869995 | N33: -0.03697424569 | O33: -0.03767512371 | P33: -0.03697424569 | Q33: 0.8118772471 | R33: 2010-01-31 | S33: 0.8118772471 | T33: 2010-01-31 | U33: 0.8118772471 | V33: 1 | W33: 0.8481634533 | X33: 0.7952972454 | Y33: 1 | Z33: 1 | AA33: 1 | AH33: 0 | AI33: 5.492733479 | AJ33: 9.937095642 | AK33: 0 | AL33: 0 | AM33: 0 | AN33: 1 | AO33: 1 | AP33: 0 | AQ33: 0 | AR33: 0 | AS33: 0 | AT33: 0 | AU33: 0.01123141201 | AV33: 0.00459795483 | AW33: 1.428279943 | AX33: 0.02161227577 | AY33: 1.6158 | AZ33: 0.01173794112 | BA33: 6.680519838e-05 | BB33: 1 | BC33: 1 | BD33: 1 | BE33: 1 | BF33: 1 | BG33: 1 | BH33: 0 | BI33: 5.492733479 | BJ33: 9.937095642 | BK33: 0 | BL33: 0 | BM33: 0 | BN33: -0.03697424569 | BO33: FALSE | BP33: -0.05972849164 | BQ33: -0.06971038511 | BR33: FALSE | BS33: FALSE | BT33: FALSE | BU33: 1 | BV33: 0.8481634533 | BW33: 0.7952972454 | BX33: 1 | BY33: 1 | BZ33: 1 | CU33: 2010-02-28 | CV33: 2010-01-31 | CW33: -0.03697424569 | CX33: =INDEX(BO33:BT33,$CW$5) -> FALSE
A34: 1929-12-01 | B34: 20.92000008 | C34: 25 | D34: 2010-02-28 | E34: 2008-08-16 | F34: 2008-04-02 | G34: 2010-02-28 | H34: 2010-02-28 | I34: 1104.48999 | J34: TRUE | K34: 1 | L34: 1 | M34: 1104.48999 | N34: 0.02851368905 | O34: 0.02811473974 | P34: 0.02851368905 | Q34: 0.8350268625 | R34: 2010-02-28 | S34: 0.8350268625 | T34: 2010-02-28 | U34: 0.8350268625 | V34: 1 | W34: 0.8053061937 | X34: 0.7822451901 | Y34: 1 | Z34: 1 | AA34: 1 | AH34: 0 | AI34: 5.215188503 | AJ34: 9.774012566 | AK34: 0 | AL34: 0 | AM34: 0 | AN34: 1 | AO34: 1 | AP34: 0 | AQ34: 0 | AR34: 0 | AS34: 0 | AT34: 0 | AU34: 0.01123141201 | AV34: 0.004602335225 | AW34: 1.368269823 | AX34: 0.02161227577 | AY34: 1.5618 | AZ34: 0.01173794112 | BA34: 6.680519838e-05 | BB34: 1 | BC34: 1 | BD34: 1 | BE34: 1 | BF34: 1 | BG34: 1 | BH34: 0 | BI34: 5.215188503 | BJ34: 9.774012566 | BK34: 0 | BL34: 0 | BM34: 0 | BN34: 0.02851368905 | BO34: FALSE | BP34: -0.05052948161 | BQ34: -0.01641154341 | BR34: FALSE | BS34: FALSE | BT34: FALSE | BU34: 1 | BV34: 0.8053061937 | BW34: 0.7822451901 | BX34: 1 | BY34: 1 | BZ34: 1 | CU34: 2010-03-31 | CV34: 2010-02-28 | CW34: 0.02851368905 | CX34: =INDEX(BO34:BT34,$CW$5) -> FALSE
A35: 1930-01-01 | B35: 21.45000076 | C35: 26 | D35: 2010-03-31 | E35: 2008-08-23 | F35: 2008-04-03 | G35: 2010-03-31 | H35: 2010-03-31 | I35: 1169.430054 | J35: TRUE | K35: 1 | L35: 1 | M35: 1169.430054 | N35: 0.05879642555 | O35: 0.05713281542 | P35: 0.05879642555 | Q35: 0.8841234572 | R35: 2010-03-31 | S35: 0.8841234572 | T35: 2010-03-31 | U35: 0.8841234572 | V35: 1 | W35: 0.7870748459 | X35: 0.8295222446 | Y35: 1 | Z35: 1 | AA35: 1 | AH35: 0 | AI35: 5.097121716 | AJ35: 10.36473083 | AK35: 0 | AL35: 0 | AM35: 0 | AN35: 1 | AO35: 1 | AP35: 0 | AQ35: 0 | AR35: 0 | AS35: 0 | AT35: 0 | AU35: 0.01123141201 | AV35: 0.004600810663 | AW35: 1.356852103 | AX35: 0.02173440556 | AY35: 1.5058 | AZ35: 0.01173794112 | BA35: 6.680519838e-05 | BB35: 1 | BC35: 1 | BD35: 1 | BE35: 1 | BF35: 1 | BG35: 1 | BH35: 0 | BI35: 5.097121716 | BJ35: 10.36473083 | BK35: 0 | BL35: 0 | BM35: 0 | BN35: 0.05879642555 | BO35: FALSE | BP35: -0.02263902592 | BQ35: 0.06043764169 | BR35: FALSE | BS35: FALSE | BT35: FALSE | BU35: 1 | BV35: 0.7870748459 | BW35: 0.8295222446 | BX35: 1 | BY35: 1 | BZ35: 1 | CU35: 2010-04-30 | CV35: 2010-03-31 | CW35: 0.05879642555 | CX35: =INDEX(BO35:BT35,$CW$5) -> FALSE
A36: 1930-02-01 | B36: 22.79000092 | C36: 27 | D36: 2010-04-30 | E36: 2008-08-30 | F36: 2008-04-06 | G36: 2010-04-30 | H36: 2010-04-30 | I36: 1186.689941 | J36: TRUE | K36: 1 | L36: 1 | M36: 1186.689941 | N36: 0.01475923048 | O36: 0.01465137301 | P36: 0.01475923048 | Q36: 0.8971724391 | R36: 2010-04-30 | S36: 0.8971724391 | T36: 2010-04-30 | U36: 0.8971724391 | V36: 1 | W36: 0.7265307403 | X36: 0.7771695393 | Y36: 1 | Z36: 1 | AA36: 1 | AH36: 0 | AI36: 4.705036163 | AJ36: 9.710593224 | AK36: 0 | AL36: 0 | AM36: 0 | AN36: 1 | AO36: 1 | AP36: 0 | AQ36: 0 | AR36: 0 | AS36: 0 | AT36: 0 | AU36: 0.01117680589 | AV36: 0.004599752533 | AW36: 1.339503166 | AX36: 0.02232641215 | AY36: 1.5332 | AZ36: 0.01173794112 | BA36: 6.584568511e-05 | BB36: 1 | BC36: 1 | BD36: 1 | BE36: 1 | BF36: 1 | BG36: 1 | BH36: 0 | BI36: 4.705036163 | BJ36: 9.710593224 | BK36: 0 | BL36: 0 | BM36: 0 | BN36: 0.01475923048 | BO36: FALSE | BP36: -0.076922933 | BQ36: -0.0631118764 | BR36: FALSE | BS36: FALSE | BT36: FALSE | BU36: 1 | BV36: 0.7265307403 | BW36: 0.7771695393 | BX36: 1 | BY36: 1 | BZ36: 1 | CU36: 2010-05-31 | CV36: 2010-04-30 | CW36: 0.01475923048 | CX36: =INDEX(BO36:BT36,$CW$5) -> FALSE
A37: 1930-03-01 | B37: 23.28000069 | C37: 28 | D37: 2010-05-31 | E37: 2008-09-06 | F37: 2008-04-07 | G37: 2010-05-31 | H37: 2010-05-31 | I37: 1089.410034 | J37: TRUE | K37: 1 | L37: 1 | M37: 1089.410034 | N37: -0.08197584207 | O37: -0.08553157288 | P37: -0.08197584207 | Q37: 0.8236259729 | R37: 2010-05-31 | S37: 0.8236259729 | T37: 2010-05-31 | U37: 0.8236259729 | V37: 1 | W37: 0.633061323 | X37: 0.7326478381 | Y37: 1 | Z37: 1 | AA37: 1 | AH37: 0 | AI37: 4.099725246 | AJ37: 9.154302597 | AK37: 0 | AL37: 0 | AM37: 0 | AN37: 1 | AO37: 1 | AP37: 0 | AQ37: 0 | AR37: 0 | AS37: 0 | AT37: 0 | AU37: 0.01117680589 | AV37: 0.004602144599 | AW37: 1.257183908 | AX37: 0.02262443439 | AY37: 1.4669 | AZ37: 0.01173794112 | BA37: 6.584568511e-05 | BB37: 1 | BC37: 1 | BD37: 1 | BE37: 1 | BF37: 1 | BG37: 1 | BH37: 0 | BI37: 4.099725246 | BJ37: 9.154302597 | BK37: 0 | BL37: 0 | BM37: 0 | BN37: -0.08197584207 | BO37: FALSE | BP37: -0.1286517034 | BQ37: -0.05728698687 | BR37: FALSE | BS37: FALSE | BT37: FALSE | BU37: 1 | BV37: 0.633061323 | BW37: 0.7326478381 | BX37: 1 | BY37: 1 | BZ37: 1 | CU37: 2010-06-30 | CV37: 2010-05-31 | CW37: -0.08197584207 | CX37: =INDEX(BO37:BT37,$CW$5) -> FALSE
A38: 1930-04-01 | B38: 25.37000084 | C38: 29 | D38: 2010-06-30 | E38: 2008-09-13 | F38: 2008-04-08 | G38: 2010-06-30 | H38: 2010-06-30 | I38: 1030.709961 | J38: TRUE | K38: 1 | L38: 1 | M38: 1030.709961 | N38: -0.05388244224 | O38: -0.05538844941 | P38: -0.05388244224 | Q38: 0.779246994 | R38: 2010-06-30 | S38: 0.779246994 | T38: 2010-06-30 | U38: 0.779246994 | V38: 1 | W38: 0.657415168 | X38: 0.6989444478 | Y38: 1 | Z38: 1 | AA38: 1 | AH38: 0 | AI38: 4.257441521 | AJ38: 8.733184814 | AK38: 0 | AL38: 0 | AM38: 0 | AN38: 1 | AO38: 1 | AP38: 0 | AQ38: 0 | AR38: 0 | AS38: 0 | AT38: 0 | AU38: 0.01117680589 | AV38: 0.004604072763 | AW38: 1.22106899 | AX38: 0.0212404418 | AY38: 1.4768 | AZ38: 0.01173794112 | BA38: 6.584568511e-05 | BB38: 1 | BC38: 1 | BD38: 1 | BE38: 1 | BF38: 1 | BG38: 1 | BH38: 0 | BI38: 4.257441521 | BJ38: 8.733184814 | BK38: 0 | BL38: 0 | BM38: 0 | BN38: -0.05388244224 | BO38: FALSE | BP38: 0.03846996196 | BQ38: -0.04600216981 | BR38: FALSE | BS38: FALSE | BT38: FALSE | BU38: 1 | BV38: 0.657415168 | BW38: 0.6989444478 | BX38: 1 | BY38: 1 | BZ38: 1 | CU38: 2010-07-31 | CV38: 2010-06-30 | CW38: -0.05388244224 | CX38: =INDEX(BO38:BT38,$CW$5) -> FALSE
A39: 1930-05-01 | B39: 24.29999924 | C39: 30 | D39: 2010-07-31 | E39: 2008-09-20 | F39: 2008-04-09 | G39: 2010-07-31 | H39: 2010-07-31 | I39: 1101.599976 | J39: TRUE | K39: 1 | L39: 1 | M39: 1101.599976 | N39: 0.06877784957 | O39: 0.06651579901 | P39: 0.06877784957 | Q39: 0.8328419266 | R39: 2010-07-31 | S39: 0.8328419266 | T39: 2010-07-31 | U39: 0.8328419266 | V39: 1 | W39: 0.623537512 | X39: 0.7581318033 | Y39: 1 | Z39: 1 | AA39: 1 | AH39: 0 | AI39: 4.038048744 | AJ39: 9.472720146 | AK39: 0 | AL39: 0 | AM39: 0 | AN39: 1 | AO39: 1 | AP39: 0 | AQ39: 0 | AR39: 0 | AS39: 0 | AT39: 0 | AU39: 0.01114293037 | AV39: 0.004595482641 | AW39: 1.278698053 | AX39: 0.02146383344 | AY39: 1.5304 | AZ39: 0.01173794112 | BA39: 6.51902679e-05 | BB39: 1 | BC39: 1 | BD39: 1 | BE39: 1 | BF39: 1 | BG39: 1 | BH39: 0 | BI39: 4.038048744 | BJ39: 9.472720146 | BK39: 0 | BL39: 0 | BM39: 0 | BN39: 0.06877784957 | BO39: FALSE | BP39: -0.05153160071 | BQ39: 0.08468105822 | BR39: FALSE | BS39: FALSE | BT39: FALSE | BU39: 1 | BV39: 0.623537512 | BW39: 0.7581318033 | BX39: 1 | BY39: 1 | BZ39: 1 | CU39: 2010-08-31 | CV39: 2010-07-31 | CW39: 0.06877784957 | CX39: =INDEX(BO39:BT39,$CW$5) -> FALSE
A40: 1930-06-01 | B40: 24.48999977 | C40: 31 | D40: 2010-08-31 | E40: 2008-09-27 | F40: 2008-04-10 | G40: 2010-08-31 | H40: 2010-08-31 | I40: 1049.329956 | J40: TRUE | K40: 1 | L40: 1 | M40: 1049.329956 | N40: -0.04744918363 | O40: -0.04861182289 | P40: -0.04744918363 | Q40: 0.793324257 | R40: 2010-08-31 | S40: 0.793324257 | T40: 2010-08-31 | U40: 0.793324257 | V40: 1 | W40: 0.5972789417 | X40: 0.7267535954 | Y40: 1 | Z40: 1 | AA40: 1 | AH40: 0 | AI40: 3.867997408 | AJ40: 9.080655098 | AK40: 0 | AL40: 0 | AM40: 0 | AN40: 1 | AO40: 1 | AP40: 0 | AQ40: 0 | AR40: 0 | AS40: 0 | AT40: 0 | AU40: 0.01114293037 | AV40: 0.00458877677 | AW40: 1.289641831 | AX40: 0.02157497303 | AY40: 1.5661 | AZ40: 0.01173794112 | BA40: 6.51902679e-05 | BB40: =IF(BB$7,INDEX($AU40:$BA40,BB$7),1) -> 1 | BC40: 1 | BD40: 1 | BE40: 1 | BF40: 1 | BG40: 1 | BH40: 0 | BI40: 3.867997408 | BJ40: 9.080655098 | BK40: 0 | BL40: 0 | BM40: 0 | BN40: -0.04744918363 | BO40: FALSE | BP40: -0.04211225447 | BQ40: -0.04138885581 | BR40: FALSE | BS40: FALSE | BT40: FALSE | BU40: 1 | BV40: 0.5972789417 | BW40: 0.7267535954 | BX40: 1 | BY40: 1 | BZ40: 1 | CU40: 2010-09-30 | CV40: 2010-08-31 | CW40: -0.04744918363 | CX40: =INDEX(BO40:BT40,$CW$5) -> FALSE
A41: 1930-07-01 | B41: 20.23999977 | C41: 32 | D41: 2010-09-30 | E41: 2008-10-04 | F41: 2008-04-13 | G41: 2010-09-30 | H41: 2010-09-30 | I41: 1141.199951 | J41: TRUE | K41: 1 | L41: 1 | M41: 1141.199951 | N41: 0.08755110305 | O41: 0.08392847419 | P41: 0.08755110305 | Q41: 0.8627806708 | R41: 2010-09-30 | S41: 0.8627806708 | T41: 2010-09-30 | U41: 0.8627806708 | V41: 1 | W41: 0.5646259177 | X41: 0.7810332926 | Y41: 1 | Z41: 1 | AA41: 1 | AH41: 0 | AI41: 3.656535387 | AJ41: 9.758870125 | AK41: 0 | AL41: 0 | AM41: 0 | AN41: 1 | AO41: 1 | AP41: 0 | AQ41: 0 | AR41: 0 | AS41: 0 | AT41: 0 | AU41: 0.01114293037 | AV41: 0.004581376704 | AW41: 1.309056289 | AX41: 0.02139495079 | AY41: 1.5591 | AZ41: 0.01173794112 | BA41: 6.51902679e-05 | BB41: 1 | BC41: 1 | BD41: 1 | BE41: 1 | BF41: 1 | BG41: 1 | BH41: 0 | BI41: 3.656535387 | BJ41: 9.758870125 | BK41: 0 | BL41: 0 | BM41: 0 | BN41: 0.08755110305 | BO41: FALSE | BP41: -0.05466963872 | BQ41: 0.07468789636 | BR41: FALSE | BS41: FALSE | BT41: FALSE | BU41: 1 | BV41: 0.5646259177 | BW41: 0.7810332926 | BX41: 1 | BY41: 1 | BZ41: 1 | CU41: 2010-10-31 | CV41: 2010-09-30 | CW41: 0.08755110305 | CX41: =INDEX(BO41:BT41,$CW$5) -> FALSE
